Workbook

Sheet Wycena
B3: POZYCJA | C3: ZAMÓWIENIE | E3: SZCZEGÓŁY | F3: CENA NETTO
B4: Podstawy | G4: =TODAY() -> 2021-07-20
B5: Model drzwi | C5: - | E5: Tu wpisz uwagi | F5: =IFERROR(VLOOKUP(C5,SKU!$B$1:$C$1030,2,0),0) -> 0
B6: Szklenie | C6: - | E6: Tu wpisz uwagi | F6: =IFERROR(VLOOKUP(C6,Mapping!$M$3:$O$10,2,0),0) -> 0
B7: Wykończenie | C7: Dab prosty podluzny | F7: =IFERROR(VLOOKUP(C7,Mapping!$Q$3:$R$8,2,0),0) -> 0
B8: Ilość kolorów | C8: Jeden (standard) | F8: =IFERROR(VLOOKUP(C8,Mapping!$V$3:$W$6,2,0),0) -> 0
B9: Kolor | C9: - | E9: - | F9: =MAX(IFERROR(VLOOKUP(E9,Mapping!$Y$3:$Z$229,2,0),0),IFERROR((VLOOKUP(C9,Mapping!$Y$3:$Z$229,2,0)),0)) -> 0
B10: Inox dustronny | C10: - | F10: =IFERROR(VLOOKUP(C10,Mapping!$AD$3:$AE$4,2,0),0) -> 0
B11: Rodzaj kamienia | C11: - | F11: =IFERROR(VLOOKUP(C11,Mapping!$AH$3:$AI$7,2,0)*IFERROR((VLOOKUP(C41,Mapping!$ES$3:$ET$8,2,1)+1),1),0) -> 0
B13: Konstrukcja drzwi
B14: Przylgowość | C14: Przylgowe | F14: =IFERROR(VLOOKUP($C$14,Mapping!$AM$3:$AN$5,2,0),0) -> 0
B15: Grubość drzwi [mm] | C15: -
B16: Szerokość drzwi [cm] | C16: 102 | E16: ="Standard do: "&IF(C15="-",102,IF(C15=78, 102,106)) -> Standard do: 102
B17: Wysokość drzwi [cm] | C17: 210 | E17: ="Standard do: "&IF(C15="-",212,IF(C15=78, 212,214)) -> Standard do: 212
B18: Kierunek otwierania | C18: -
B19: Dostawka od strony zawias | C19: - | E19: =IF((VLOOKUP(VLOOKUP(C16,Mapping!$AW$2:$AZ$230,4,0),Mapping!$BA$3:$BB$5,2,0))="Konieczna dostawka",IF(OR(C19<>"-",C20<>"-"),"","Konieczna dostawka"),IF((VLOOKUP(VLOOKUP(C16,Mapping!$AW$2:$AZ$230,4,0),Mapping!$BA$3:$BB$5,2,0))="Konieczne 2 dostawki",IF(AND(C19<>"-",C20<>"-"),"","Konieczne 2 dostawki"),"")) -> 
B20: Dostawka od strony zamka | C20: - | E20: =IF((VLOOKUP(VLOOKUP(C16,Mapping!$AW$2:$AZ$230,4,0),Mapping!$BA$3:$BB$5,2,0))="Konieczna dostawka",IF(OR(C19<>"-",C20<>"-"),"","Konieczna dostawka"),IF((VLOOKUP(VLOOKUP(C16,Mapping!$AW$2:$AZ$230,4,0),Mapping!$BA$3:$BB$5,2,0))="Konieczne 2 dostawki",IF(AND(C19<>"-",C20<>"-"),"","Konieczne 2 dostawki"),"")) -> 
B21: Naświetle górne | C21: - | E21: =IF((VLOOKUP(VLOOKUP(C17,Mapping!$BC$2:$BF$172,4,0),Mapping!$BG$3:$BH$4,2,0))="Konieczne naświetle",IF(C21="-","Konieczne naświetle",""),"") -> 
B23: Ościeżnica
B24: Rodzaj | C24: Standardowa | F24: =IFERROR(VLOOKUP(C24,Mapping!$CI$3:$CJ$4,2,0),0) -> 0
B25: Aplikacja retro | C25: - | F25: =IFERROR(VLOOKUP(C25,Mapping!$CN$3:$CO$11,2,0),0) -> 0
B26: Grubość górna [cm] | C26: =VLOOKUP($C$14,Mapping!$CX$3:$CY$5,2,0) -> 6 | E26: ="Standard: "&VLOOKUP($C$14,Mapping!$CX$3:$CY$5,2,0) -> Standard: 6 | F26: =((C26-VLOOKUP($C$14,Mapping!$CX$8:$CY$10,2,0))*(C16)/100*(VLOOKUP($C$14,Mapping!$CX$12:$CY$15,2,0))) -> 0
B27: Grubość strona zawias [cm] | C27: =VLOOKUP($C$14,Mapping!$DF$3:$DH$5,2,0) -> 6 | E27: ="Standard: "&VLOOKUP($C$14,Mapping!$DF$3:$DG$5,2,0) -> Standard: 6 | F27: =((C27-VLOOKUP($C$14,Mapping!$DF$8:$DG$10,2,0))*(C17)/100*(VLOOKUP($C$14,Mapping!$DF$13:$DG$15,2,0))) -> 0
B28: Grubość strona zamka [cm] | C28: =VLOOKUP($C$14,Mapping!$DF$3:$DH$5,3,0) -> 6 | E28: ="Standard: "&VLOOKUP($C$14,Mapping!$DF$3:$DG$5,2,0) -> Standard: 6 | F28: =((C28-VLOOKUP($C$14,Mapping!$DF$8:$DH$10,3,0))*(C17)/100*(VLOOKUP($C$14,Mapping!$DF$13:$DH$15,3,0))) -> 0
B29: Szerokość [cm] | C29: =VLOOKUP($C$24,Mapping!$DP$3:$DQ$4,2,0) -> 10.5 | E29: ="Standard: "&VLOOKUP($C$24,Mapping!$DP$3:$DQ$4,2,0) -> Standard: 10,5 | F29: =(C29-VLOOKUP($C$24,Mapping!$DP$3:$DQ$4,2,0))*(C16+2*C17)/100*VLOOKUP($C$24,Mapping!$DP$13:$DQ$14,2,0) -> 0
B30: Zabudowa wewnętrzna [cm] | C30: - | F30: =IFERROR(C30*($C$16+$C$17*2)/100*7,0) -> 0
B31: Zabudowa zewnętrzna [cm] | C31: - | F31: =IFERROR(C31*($C$16+$C$17*2)/100*7,0) -> 0
B33: Opaski
B34: Regulowana wewnętrzna | C34: - | E34: Szerokosć 7 cm | F34: =IFERROR(VLOOKUP($C$34,Mapping!$DX$3:$DY$4,2,0),0) -> 0
B35: Regulowana zewnętrzna | C35: - | E35: Szerokosć 10 cm | F35: =IFERROR(VLOOKUP($C$35,Mapping!$EA$3:$EB$4,2,0),0) -> 0
B36: Maskująca stała | C36: - | F36: =IFERROR(VLOOKUP($C$36,Mapping!$EF$3:$EG$5,2,0),0) -> 0
B37: Ćwierćwałek | C37: - | F37: =IFERROR(VLOOKUP($C$37,Mapping!$EI$3:$EJ$5,2,0),0) -> 0
B39: Skrzydło
B40: Światło przejścia szerokość [cm] | C40: - | E40: Wybierz opcję lub wpisz | F40: =IFERROR(VLOOKUP(C40,Mapping!$EM$3:$EN$8,2,1),0) -> 0
B41: Światło przejścia wysokość [cm] | C41: - | E41: Wybierz opcję lub wpisz | F41: =(IFERROR(VLOOKUP(C41,Mapping!$ES$3:$ET$8,2,1),0))*SUM($F$5:$F$10,F40) -> 0
B43: Dostawki boczne
B44: Od zawias - szerokość w świetle [cm] | C44: =IFERROR(IF(C19<>"-",((C16-C27-C28)-C40)/IF(AND(C19<>"-",C20<>"-")=TRUE,2,1)+VLOOKUP(Wycena!C25,Mapping!$CN$40:$CR$49,IF(AND(Wycena!C19="-",Wycena!C20="-"),2,IF(AND(Wycena!C19<>"-",Wycena!C20="-"),3,IF(AND(Wycena!C19="-",Wycena!C20<>"-"),4,5))),0),"-"),"-") -> - | E44: Automatycznie | F44: =IFERROR(IF(E45="",(VLOOKUP(C44,Mapping!$EY$3:$FA$6,2,1)*SUM(F5:F10)*(VLOOKUP(C41,Mapping!$ES$3:$ET$8,2,1)+1)),"Błąd wyceny"),0) -> 0
B45: Od zawias - rodzaj szklenia | C45: - | E45: =IF(C44<IFERROR(VLOOKUP($C$5,Mapping!$A$2:$I$168,((VLOOKUP(C19,Mapping!$J$2:$K$6,2,0)+IF((OR(C45="-",C45="Brak (pełne)")),0,1))),0),0),"Dostawka za wąska",IF(C44="-","",IF(C44>100,"Wycena indywidualna",""))) ->  | F45: =IFERROR(IF(E45="",IF(AND(C44>69.99,C45="Witraż"),"Wycena indywidulana",(IF((VLOOKUP(C45,Mapping!$FD$3:$FE$14,2,0)-VLOOKUP(C6,Mapping!$FD$3:$FE$14,2,0))<0,0,(VLOOKUP(C45,Mapping!$FD$3:$FE$14,2,0)-VLOOKUP(C6,Mapping!$FD$3:$FE$14,2,0)))*(VLOOKUP(C41,Mapping!$ES$3:$ET$8,2,1)+1))),"Błąd wyceny"),0) -> 0
B46: Od zawias - ilość pól szkła | C46: - | E46: Standard do: 4 | F46: =IFERROR(IF(E45="",(IF(Mapping!$FM$3-Wycena!$C$46<0,(Wycena!$C$46-Mapping!$FM$3)*Mapping!FM6,0)),"Błąd wyceny"),0) -> 0
B48: Od zamka - szerokość w świetle [cm] | C48: =IFERROR(IF(C20<>"-",((C16-C27-C28)-C40)/IF(AND(C19<>"-",C20<>"-")=TRUE,2,1)+VLOOKUP(Wycena!C25,Mapping!$CN$52:$CR$61,IF(AND(Wycena!C19="-",Wycena!C20="-"),2,IF(AND(Wycena!C19<>"-",Wycena!C20="-"),3,IF(AND(Wycena!C19="-",Wycena!C20<>"-"),4,5))),0),"-"),"-") -> - | E48: Automatycznie | F48: =IFERROR(IF(E49="",(VLOOKUP(C48,Mapping!$EY$3:$FA$6,3,1)*SUM(F5:F10)*(VLOOKUP(C41,Mapping!$ES$3:$ET$8,2,1)+1)),"Błąd wyceny"),0) -> 0
B49: Od zamka - rodzaj szklenia | C49: - | E49: =IF(C48<IFERROR(VLOOKUP($C$5,Mapping!$A$2:$I$168,((VLOOKUP(C20,Mapping!$J$2:$K$6,2,0)+IF((OR(C49="-",C49="Brak (pełne)")),0,1))),0),0),"Dostawka za wąska",IF(C48="-","",IF(C48>100,"Wycena indywidualna",""))) ->  | F49: =IFERROR(IF(E49="",IF(AND(C48>69.99,C49="Witraż"),"Wycena indywidulana",(IF((VLOOKUP(C49,Mapping!$FD$3:$FE$14,2,0)-VLOOKUP(C6,Mapping!$FD$3:$FE$14,2,0))<0,0,(VLOOKUP(C49,Mapping!$FD$3:$FE$14,2,0)-VLOOKUP(C6,Mapping!$FD$3:$FE$14,2,0)))*(VLOOKUP(C41,Mapping!$ES$3:$ET$8,2,1)+1))),"Błąd wyceny"),0) -> 0
B50: Od zamka- ilość pól szkła | C50: - | E50: Standard do: 4 | F50: =IFERROR(IF(E49="",(IF(Mapping!$FM$3-Wycena!$C$50<0,(Wycena!$C$50-Mapping!$FM$3)*Mapping!FM6,0)),"Błąd wyceny"),0) -> 0
B52: Naświetle
B53: Wysokość [cm] | C53: =IFERROR(IF(C21<>"-",C17-C26-C41,"-"),"-") -> - | E53: Automatycznie | F53: =IFERROR(IF(E54="",VLOOKUP(C21,Mapping!$BT$3:$BU$6,2,0),"Błąd wyceny"),0) -> 0
B54: Szklenie | C54: - | E54: =IF(C53="-","",IF(C53>100,"Wycena indywidulana",IF((IF(C21="Imitacja skrzydła",30,IF(C21<>"-",18,"")))>C53,"Za niskie naświetle",""))) ->  | F54: =IFERROR(IF(E54="",VLOOKUP(C54,Mapping!$BZ$2:$CB$12,3,0),"Błąd wyceny"),0) -> 0
B55: Ilość pól szkła | C55: - | E55: Standard do: 4 | F55: =IFERROR(IF(E54="",(IF(Mapping!$FM$3-Wycena!$C$55<0,(Wycena!$C$55-Mapping!$FM$3)*Mapping!FM6,0)),"Błąd wyceny"),0) -> 0
B57: Okucia
B58: Specjalny zestaw okuć | C58: Brak (standard) | F58: =IFERROR(VLOOKUP(C58,Mapping!$FV$3:$FW$10,2,0),0) -> 0
B59: Zamek | C59: - | F59: =IFERROR(VLOOKUP(C59,Mapping!$FX$15:$FY$22,2,0),0) -> 0
B60: Okucie zewnętrzne | C60: - | F60: =IFERROR(VLOOKUP(C60,Mapping!$FZ$3:$GA$33,2,0),0) -> 0
B61: Kolor okucia | C61: -
B62: Długość antaby [cm] | C62: -
B63: Wkładki | C63: - | F63: =IFERROR(VLOOKUP(C63,Mapping!$GR$3:$GS$8,2,0),"") -> 
B64: Zapadka | C64: - | F64: =IFERROR(VLOOKUP(C64,Mapping!$GV$3:$GW$5,2,0),0) -> 0
B65: Listwa zaczepowa | C65: - | F65: =IFERROR(VLOOKUP(C65,Mapping!$HA$3:$HB$4,2,0),"") -> 0
B67: Dodatki
B68: Szyba P4 | C68: - | F68: =IFERROR(VLOOKUP(C68,Mapping!$HE$3:$HG$13,3,0),0) -> 0
B69: Próg | C69: Aluminiowy (standard) | F69: =VLOOKUP(C69,Mapping!$HL$3:$HN$5,3,0) -> 0
B70: Adapter podprogowy [cm] | C70: - | F70: =IFERROR(VLOOKUP(C70,Mapping!$HR$3:$HT$13,3,0),0) -> 0
B71: Okapnik | C71: - | F71: =IFERROR(VLOOKUP(C71,Mapping!$HV$3:$HX$9,3,0),0) -> 0
B72: Kopniak inox | C72: - | F72: =IFERROR(VLOOKUP(C72,Mapping!$HV$3:$HZ$9,5,0),0) -> 0
B73: Wizjer panoramiczny | C73: - | F73: =IFERROR(VLOOKUP(C73,Mapping!$ID$3:$IE$6,2,0),0) -> 0
B74: Samozamykacz | C74: - | F74: =VLOOKUP(C74,Mapping!$IG$3:$IH$13,2,0) -> 0
B75: Kołatka | C75: - | F75: =IFERROR(VLOOKUP(C75,Mapping!$IJ$3:$IK$5,2,0),"") -> 0
B76: Piaskowanie numery na szkle | C76: - | F76: =IFERROR(VLOOKUP(C76,Mapping!$IM$3:$IN$5,2,0),0) -> 0
B77: Kontaktron (czujka alarmowa) | C77: - | F77: =IFERROR(VLOOKUP(C77,Mapping!$IP$3:$IQ$4,2,0),0) -> 0
B78: Zestaw pielęgnacyjny | C78: - | F78: =VLOOKUP(C78,Mapping!$IS$3:$IT$4,2,0) -> 0
B79: Inne | E79: Wpisz pozycję i kwotę
B81: Cena netto | F81: =SUM(F5:F80) -> 0
B82: Rabat | E82: Wybierz rabat | F82: 0
B83: Montaż | E83: Wybierz kwotę | F83: 0
B84: Cena brutto (dla wybranej stawki VAT) | C84: 0.08 | E84: Wybierz stawkę | F84: =(F81*(1-F82)+F83)*(1+C84) -> 0
B85: Klient | E85: Wpisz nazwisko | F85: xxx

Sheet SKU (hidden)
A1: Kolejność | B1: Model | C1: Cena podstawowa | D1: Konstrukcja | E1: Kolekcja | F1: Szklenie | G1: Drzwi&szklenie | H1: Inox dwustronny | I1: Kamień ozdobny
A2: 1 | B2: DB 01 | C2: 5000 | D2: Płycinowe | E2: Classic Plus | F2: Przezierne refleks | G2: =B2&F2 -> DB 01Przezierne refleks
A3: 1 | B3: DB 01 | C3: 5000 | D3: Płycinowe | E3: Classic Plus | F3: Brąz refleks | G3: =B3&F3 -> DB 01Brąz refleks
A4: 1 | B4: DB 01 | C4: 5100 | D4: Płycinowe | E4: Classic Plus | F4: Grafit refleks | G4: DB 01Grafit refleks
A5: 1 | B5: DB 01 | C5: 5100 | D5: Płycinowe | E5: Classic Plus | F5: Lustro weneckie | G5: DB 01Lustro weneckie
A6: 1 | B6: DB 01 | C6: 5300 | D6: Płycinowe | E6: Classic Plus | F6: Mleczne | G6: DB 01Mleczne
A7: 1 | B7: DB 01 | C7: 5300 | D7: Płycinowe | E7: Classic Plus | F7: Piaskowane refleks | G7: DB 01Piaskowane refleks
A8: 3 | B8: DB 03 | C8: 4800 | D8: Płycinowe | E8: Classic Plus | F8: Przezierne refleks | G8: DB 03Przezierne refleks
A9: 3 | B9: DB 03 | C9: 4800 | D9: Płycinowe | E9: Classic Plus | F9: Brąz refleks | G9: DB 03Brąz refleks
A10: 3 | B10: DB 03 | C10: 4900 | D10: Płycinowe | E10: Classic Plus | F10: Grafit refleks | G10: DB 03Grafit refleks
A11: 3 | B11: DB 03 | C11: 4900 | D11: Płycinowe | E11: Classic Plus | F11: Lustro weneckie | G11: DB 03Lustro weneckie
A12: 3 | B12: DB 03 | C12: 5100 | D12: Płycinowe | E12: Classic Plus | F12: Mleczne | G12: DB 03Mleczne
A13: 4 | B13: DB 04 | C13: 4800 | D13: Płycinowe | E13: Classic Plus | F13: Przezierne refleks | G13: DB 04Przezierne refleks
A14: 4 | B14: DB 04 | C14: 4800 | D14: Płycinowe | E14: Classic Plus | F14: Brąz refleks | G14: DB 04Brąz refleks
A15: 4 | B15: DB 04 | C15: 4900 | D15: Płycinowe | E15: Classic Plus | F15: Grafit refleks | G15: DB 04Grafit refleks
A16: 4 | B16: DB 04 | C16: 4900 | D16: Płycinowe | E16: Classic Plus | F16: Lustro weneckie | G16: DB 04Lustro weneckie
A17: 4 | B17: DB 04 | C17: 5100 | D17: Płycinowe | E17: Classic Plus | F17: Mleczne | G17: DB 04Mleczne
A18: 7 | B18: DB 07 | C18: 4800 | D18: Płycinowe | E18: Classic Plus | F18: Przezierne refleks | G18: DB 07Przezierne refleks
A19: 7 | B19: DB 07 | C19: 4800 | D19: Płycinowe | E19: Classic Plus | F19: Brąz refleks | G19: DB 07Brąz refleks
A20: 7 | B20: DB 07 | C20: 4900 | D20: Płycinowe | E20: Classic Plus | F20: Grafit refleks | G20: DB 07Grafit refleks
A21: 7 | B21: DB 07 | C21: 4900 | D21: Płycinowe | E21: Classic Plus | F21: Lustro weneckie | G21: DB 07Lustro weneckie
A22: 7 | B22: DB 07 | C22: 5100 | D22: Płycinowe | E22: Classic Plus | F22: Mleczne | G22: DB 07Mleczne
A23: 9 | B23: DB 09a | C23: 4800 | D23: Płycinowe | E23: Classic Plus | F23: Przezierne refleks | G23: DB 09aPrzezierne refleks
A24: 9 | B24: DB 09a | C24: 4800 | D24: Płycinowe | E24: Classic Plus | F24: Brąz refleks | G24: DB 09aBrąz refleks
A25: 9 | B25: DB 09a | C25: 4900 | D25: Płycinowe | E25: Classic Plus | F25: Grafit refleks | G25: DB 09aGrafit refleks
A26: 9 | B26: DB 09a | C26: 4900 | D26: Płycinowe | E26: Classic Plus | F26: Lustro weneckie | G26: DB 09aLustro weneckie
A27: 9 | B27: DB 09a | C27: 5100 | D27: Płycinowe | E27: Classic Plus | F27: Mleczne | G27: DB 09aMleczne
A28: 10 | B28: DB 10 | C28: 4800 | D28: Płycinowe | E28: Classic Plus | F28: Przezierne refleks | G28: DB 10Przezierne refleks
A29: 10 | B29: DB 10 | C29: 4800 | D29: Płycinowe | E29: Classic Plus | F29: Brąz refleks | G29: DB 10Brąz refleks
A30: 10 | B30: DB 10 | C30: 4900 | D30: Płycinowe | E30: Classic Plus | F30: Grafit refleks | G30: DB 10Grafit refleks
A31: 10 | B31: DB 10 | C31: 4900 | D31: Płycinowe | E31: Classic Plus | F31: Lustro weneckie | G31: DB 10Lustro weneckie
A32: 10 | B32: DB 10 | C32: 5100 | D32: Płycinowe | E32: Classic Plus | F32: Mleczne | G32: DB 10Mleczne
A33: 11 | B33: DB 11 | C33: 4800 | D33: Płycinowe | E33: Classic Plus | F33: Przezierne refleks | G33: DB 11Przezierne refleks
A34: 11 | B34: DB 11 | C34: 4800 | D34: Płycinowe | E34: Classic Plus | F34: Brąz refleks | G34: DB 11Brąz refleks
A35: 11 | B35: DB 11 | C35: 4900 | D35: Płycinowe | E35: Classic Plus | F35: Grafit refleks | G35: DB 11Grafit refleks
A36: 11 | B36: DB 11 | C36: 4900 | D36: Płycinowe | E36: Classic Plus | F36: Lustro weneckie | G36: DB 11Lustro weneckie
A37: 11 | B37: DB 11 | C37: 5100 | D37: Płycinowe | E37: Classic Plus | F37: Mleczne | G37: DB 11Mleczne
A38: 12 | B38: DB 12 | C38: 4800 | D38: Płycinowe | E38: Classic Plus | F38: Przezierne refleks | G38: DB 12Przezierne refleks
A39: 12 | B39: DB 12 | C39: 4800 | D39: Płycinowe | E39: Classic Plus | F39: Brąz refleks | G39: DB 12Brąz refleks
A40: 12 | B40: DB 12 | C40: 4900 | D40: Płycinowe | E40: Classic Plus | F40: Grafit refleks | G40: DB 12Grafit refleks
A41: 12 | B41: DB 12 | C41: 4900 | D41: Płycinowe | E41: Classic Plus | F41: Lustro weneckie | G41: DB 12Lustro weneckie
A42: 12 | B42: DB 12 | C42: 5100 | D42: Płycinowe | E42: Classic Plus | F42: Mleczne | G42: DB 12Mleczne
A43: 12 | B43: DB 12 | C43: 5100 | D43: Płycinowe | E43: Classic Plus | F43: Piaskowane refleks | G43: DB 12Piaskowane refleks
A44: 14 | B44: DB 14 | C44: 4800 | D44: Płycinowe | E44: Classic Plus | F44: Przezierne refleks | G44: DB 14Przezierne refleks
A45: 14 | B45: DB 14 | C45: 4800 | D45: Płycinowe | E45: Classic Plus | F45: Brąz refleks | G45: DB 14Brąz refleks
A46: 14 | B46: DB 14 | C46: 4900 | D46: Płycinowe | E46: Classic Plus | F46: Grafit refleks | G46: DB 14Grafit refleks
A47: 14 | B47: DB 14 | C47: 4900 | D47: Płycinowe | E47: Classic Plus | F47: Lustro weneckie | G47: DB 14Lustro weneckie
A48: 14 | B48: DB 14 | C48: 5100 | D48: Płycinowe | E48: Classic Plus | F48: Mleczne | G48: DB 14Mleczne
A49: 17 | B49: DB 17 | C49: 4800 | D49: Płycinowe | E49: Classic Plus | F49: Przezierne refleks | G49: DB 17Przezierne refleks
A50: 17 | B50: DB 17 | C50: 4800 | D50: Płycinowe | E50: Classic Plus | F50: Brąz refleks | G50: DB 17Brąz refleks
A51: 17 | B51: DB 17 | C51: 4900 | D51: Płycinowe | E51: Classic Plus | F51: Grafit refleks | G51: DB 17Grafit refleks
A52: 17 | B52: DB 17 | C52: 4900 | D52: Płycinowe | E52: Classic Plus | F52: Lustro weneckie | G52: DB 17Lustro weneckie
A53: 17 | B53: DB 17 | C53: 5100 | D53: Płycinowe | E53: Classic Plus | F53: Mleczne | G53: DB 17Mleczne
A54: 17 | B54: DB 17 | C54: 5100 | D54: Płycinowe | E54: Classic Plus | F54: Piaskowane refleks | G54: DB 17Piaskowane refleks
A55: 17 | B55: DB 17 | C55: 5100 | D55: Płycinowe | E55: Classic Plus | F55: Brąz refleks wypukły | G55: DB 17Brąz refleks wypukły
A56: 18 | B56: DB 18 | C56: 4800 | D56: Płycinowe | E56: Classic Plus | F56: Przezierne refleks | G56: DB 18Przezierne refleks
A57: 18 | B57: DB 18 | C57: 4800 | D57: Płycinowe | E57: Classic Plus | F57: Brąz refleks | G57: DB 18Brąz refleks
A58: 18 | B58: DB 18 | C58: 4900 | D58: Płycinowe | E58: Classic Plus | F58: Grafit refleks | G58: DB 18Grafit refleks
A59: 18 | B59: DB 18 | C59: 4900 | D59: Płycinowe | E59: Classic Plus | F59: Lustro weneckie | G59: DB 18Lustro weneckie
A60: 18 | B60: DB 18 | C60: 5100 | D60: Płycinowe | E60: Classic Plus | F60: Mleczne | G60: DB 18Mleczne
A61: 18 | B61: DB 18 | C61: 5100 | D61: Płycinowe | E61: Classic Plus | F61: Brąz refleks wypukły | G61: DB 18Brąz refleks wypukły
A62: 19 | B62: DB 19a | C62: 4800 | D62: Płycinowe | E62: Classic Plus | F62: Przezierne refleks | G62: DB 19aPrzezierne refleks
A63: 19 | B63: DB 19a | C63: 4800 | D63: Płycinowe | E63: Classic Plus | F63: Brąz refleks | G63: DB 19aBrąz refleks
A64: 19 | B64: DB 19a | C64: 4900 | D64: Płycinowe | E64: Classic Plus | F64: Grafit refleks | G64: DB 19aGrafit refleks
A65: 19 | B65: DB 19a | C65: 4900 | D65: Płycinowe | E65: Classic Plus | F65: Lustro weneckie | G65: DB 19aLustro weneckie
A66: 19 | B66: DB 19a | C66: 5100 | D66: Płycinowe | E66: Classic Plus | F66: Mleczne | G66: DB 19aMleczne
A67: 20 | B67: DB 20 | C67: 4800 | D67: Płycinowe | E67: Classic Plus | F67: Przezierne refleks | G67: =B67&F67 -> DB 20Przezierne refleks
A68: 20 | B68: DB 20 | C68: 4800 | D68: Płycinowe | E68: Classic Plus | F68: Brąz refleks | G68: DB 20Brąz refleks
A69: 20 | B69: DB 20 | C69: 4900 | D69: Płycinowe | E69: Classic Plus | F69: Grafit refleks | G69: DB 20Grafit refleks
A70: 20 | B70: DB 20 | C70: 4900 | D70: Płycinowe | E70: Classic Plus | F70: Lustro weneckie | G70: DB 20Lustro weneckie
A71: 20 | B71: DB 20 | C71: 5100 | D71: Płycinowe | E71: Classic Plus | F71: Mleczne | G71: DB 20Mleczne
A72: 21 | B72: DB 21 | C72: 5000 | D72: Płycinowe | E72: Classic Plus | F72: Przezierne refleks | G72: DB 21Przezierne refleks
A73: 21 | B73: DB 21 | C73: 5000 | D73: Płycinowe | E73: Classic Plus | F73: Brąz refleks | G73: DB 21Brąz refleks
A74: 21 | B74: DB 21 | C74: 5100 | D74: Płycinowe | E74: Classic Plus | F74: Grafit refleks | G74: DB 21Grafit refleks
A75: 21 | B75: DB 21 | C75: 5100 | D75: Płycinowe | E75: Classic Plus | F75: Lustro weneckie | G75: DB 21Lustro weneckie
A76: 21 | B76: DB 21 | C76: 5300 | D76: Płycinowe | E76: Classic Plus | F76: Mleczne | G76: DB 21Mleczne
A77: 21 | B77: DB 21 | C77: 5300 | D77: Płycinowe | E77: Classic Plus | F77: Piaskowane refleks | G77: DB 21Piaskowane refleks
A78: 21 | B78: DB 21 | C78: 5300 | D78: Płycinowe | E78: Classic Plus | F78: Brąz refleks wypukły | G78: DB 21Brąz refleks wypukły
A79: 28 | B79: DB 28 | C79: 4800 | D79: Płycinowe | E79: Classic Plus | F79: Przezierne refleks | G79: DB 28Przezierne refleks
A80: 28 | B80: DB 28 | C80: 4800 | D80: Płycinowe | E80: Classic Plus | F80: Brąz refleks | G80: DB 28Brąz refleks
A81: 28 | B81: DB 28 | C81: 4900 | D81: Płycinowe | E81: Classic Plus | F81: Grafit refleks | G81: DB 28Grafit refleks
A82: 28 | B82: DB 28 | C82: 4900 | D82: Płycinowe | E82: Classic Plus | F82: Lustro weneckie | G82: DB 28Lustro weneckie
A83: 28 | B83: DB 28 | C83: 5100 | D83: Płycinowe | E83: Classic Plus | F83: Mleczne | G83: DB 28Mleczne
A84: 31 | B84: DB 31 | C84: 4800 | D84: Płycinowe | E84: Classic Plus | F84: Przezierne refleks | G84: DB 31Przezierne refleks
A85: 31 | B85: DB 31 | C85: 4800 | D85: Płycinowe | E85: Classic Plus | F85: Brąz refleks | G85: DB 31Brąz refleks
A86: 31 | B86: DB 31 | C86: 4900 | D86: Płycinowe | E86: Classic Plus | F86: Grafit refleks | G86: DB 31Grafit refleks
A87: 31 | B87: DB 31 | C87: 4900 | D87: Płycinowe | E87: Classic Plus | F87: Lustro weneckie | G87: DB 31Lustro weneckie
A88: 31 | B88: DB 31 | C88: 5100 | D88: Płycinowe | E88: Classic Plus | F88: Mleczne | G88: DB 31Mleczne
A89: 31 | B89: DB 31a | C89: 4800 | D89: Płycinowe | E89: Classic Plus | F89: Przezierne refleks | G89: DB 31aPrzezierne refleks
A90: 31 | B90: DB 31a | C90: 4800 | D90: Płycinowe | E90: Classic Plus | F90: Brąz refleks | G90: DB 31aBrąz refleks
A91: 31 | B91: DB 31a | C91: 4900 | D91: Płycinowe | E91: Classic Plus | F91: Grafit refleks | G91: DB 31aGrafit refleks
A92: 31 | B92: DB 31a | C92: 4900 | D92: Płycinowe | E92: Classic Plus | F92: Lustro weneckie | G92: DB 31aLustro weneckie
A93: 31 | B93: DB 31a | C93: 5100 | D93: Płycinowe | E93: Classic Plus | F93: Mleczne | G93: DB 31aMleczne
A94: 32 | B94: DB 32 | C94: 4600 | D94: Płycinowe | E94: Classic Plus | F94: Brak (pełne) | G94: DB 32Brak (pełne)
A95: 33 | B95: DB 33 | C95: 4800 | D95: Płycinowe | E95: Classic Plus | F95: Przezierne refleks | G95: DB 33Przezierne refleks
A96: 33 | B96: DB 33 | C96: 4800 | D96: Płycinowe | E96: Classic Plus | F96: Brąz refleks | G96: DB 33Brąz refleks
A97: 33 | B97: DB 33 | C97: 4900 | D97: Płycinowe | E97: Classic Plus | F97: Grafit refleks | G97: DB 33Grafit refleks
A98: 33 | B98: DB 33 | C98: 4900 | D98: Płycinowe | E98: Classic Plus | F98: Lustro weneckie | G98: DB 33Lustro weneckie
A99: 33 | B99: DB 33 | C99: 5100 | D99: Płycinowe | E99: Classic Plus | F99: Mleczne | G99: DB 33Mleczne
A100: 34 | B100: DB 34 | C100: 4600 | D100: Płycinowe | E100: Classic Plus | F100: Brak (pełne) | G100: DB 34Brak (pełne)
A101: 39 | B101: DB 39 | C101: 4800 | D101: Płycinowe | E101: Classic Plus | F101: Przezierne refleks | G101: DB 39Przezierne refleks
A102: 39 | B102: DB 39 | C102: 4800 | D102: Płycinowe | E102: Classic Plus | F102: Brąz refleks | G102: DB 39Brąz refleks
A103: 39 | B103: DB 39 | C103: 4900 | D103: Płycinowe | E103: Classic Plus | F103: Grafit refleks | G103: DB 39Grafit refleks
A104: 39 | B104: DB 39 | C104: 4900 | D104: Płycinowe | E104: Classic Plus | F104: Lustro weneckie | G104: DB 39Lustro weneckie
A105: 39 | B105: DB 39 | C105: 5100 | D105: Płycinowe | E105: Classic Plus | F105: Mleczne | G105: DB 39Mleczne
A106: 39 | B106: DB 39 | C106: 5100 | D106: Płycinowe | E106: Classic Plus | F106: Piaskowane refleks | G106: DB 39Piaskowane refleks
A107: 43 | B107: DB 43 | C107: 4800 | D107: Płycinowe | E107: Classic Plus | F107: Przezierne refleks | G107: DB 43Przezierne refleks
A108: 43 | B108: DB 43 | C108: 4800 | D108: Płycinowe | E108: Classic Plus | F108: Brąz refleks | G108: DB 43Brąz refleks
A109: 43 | B109: DB 43 | C109: 4900 | D109: Płycinowe | E109: Classic Plus | F109: Grafit refleks | G109: DB 43Grafit refleks
A110: 43 | B110: DB 43 | C110: 4900 | D110: Płycinowe | E110: Classic Plus | F110: Lustro weneckie | G110: DB 43Lustro weneckie
A111: 43 | B111: DB 43 | C111: 5100 | D111: Płycinowe | E111: Classic Plus | F111: Mleczne | G111: DB 43Mleczne
A112: 45 | B112: DB 45 | C112: 4800 | D112: Płycinowe | E112: Classic Plus | F112: Przezierne refleks | G112: DB 45Przezierne refleks
A113: 45 | B113: DB 45 | C113: 4800 | D113: Płycinowe | E113: Classic Plus | F113: Brąz refleks | G113: DB 45Brąz refleks
A114: 45 | B114: DB 45 | C114: 4900 | D114: Płycinowe | E114: Classic Plus | F114: Grafit refleks | G114: DB 45Grafit refleks
A115: 45 | B115: DB 45 | C115: 4900 | D115: Płycinowe | E115: Classic Plus | F115: Lustro weneckie | G115: DB 45Lustro weneckie
A116: 45 | B116: DB 45 | C116: 5100 | D116: Płycinowe | E116: Classic Plus | F116: Mleczne | G116: DB 45Mleczne
A117: 45 | B117: DB 45 | C117: 5100 | D117: Płycinowe | E117: Classic Plus | F117: Piaskowane refleks | G117: DB 45Piaskowane refleks
A118: 47 | B118: DB 47 | C118: 4800 | D118: Płycinowe | E118: Classic Plus | F118: Przezierne refleks | G118: DB 47Przezierne refleks
A119: 47 | B119: DB 47 | C119: 4800 | D119: Płycinowe | E119: Classic Plus | F119: Brąz refleks | G119: DB 47Brąz refleks
A120: 47 | B120: DB 47 | C120: 4900 | D120: Płycinowe | E120: Classic Plus | F120: Grafit refleks | G120: DB 47Grafit refleks
A121: 47 | B121: DB 47 | C121: 4900 | D121: Płycinowe | E121: Classic Plus | F121: Lustro weneckie | G121: DB 47Lustro weneckie
A122: 47 | B122: DB 47 | C122: 5100 | D122: Płycinowe | E122: Classic Plus | F122: Mleczne | G122: DB 47Mleczne
A123: 51 | B123: DB 51 | C123: 4600 | D123: Płycinowe | E123: Classic Plus | F123: Przezierne refleks | G123: DB 51Przezierne refleks
A124: 51 | B124: DB 51 | C124: 4600 | D124: Płycinowe | E124: Classic Plus | F124: Brąz refleks | G124: DB 51Brąz refleks
A125: 51 | B125: DB 51 | C125: 4700 | D125: Płycinowe | E125: Classic Plus | F125: Grafit refleks | G125: DB 51Grafit refleks
A126: 51 | B126: DB 51 | C126: 4700 | D126: Płycinowe | E126: Classic Plus | F126: Lustro weneckie | G126: DB 51Lustro weneckie
A127: 51 | B127: DB 51 | C127: 4900 | D127: Płycinowe | E127: Classic Plus | F127: Mleczne | G127: DB 51Mleczne
A128: 52 | B128: DB 52a | C128: 4600 | D128: Płycinowe | E128: Classic Plus | F128: Brąz refleks | G128: DB 52aBrąz refleks
A129: 52 | B129: DB 52a | C129: 4700 | D129: Płycinowe | E129: Classic Plus | F129: Grafit refleks | G129: =B129&F129 -> DB 52aGrafit refleks
A130: 52 | B130: DB 52a | C130: 4700 | D130: Płycinowe | E130: Classic Plus | F130: Lustro weneckie | G130: DB 52aLustro weneckie
A131: 52 | B131: DB 52a | C131: 4900 | D131: Płycinowe | E131: Classic Plus | F131: Mleczne | G131: DB 52aMleczne
A132: 55 | B132: DB 55 | C132: 4800 | D132: Płycinowe | E132: Classic | F132: Przezierne refleks | G132: DB 55Przezierne refleks
A133: 55 | B133: DB 55 | C133: 4800 | D133: Płycinowe | E133: Classic | F133: Brąz refleks | G133: DB 55Brąz refleks
A134: 55 | B134: DB 55 | C134: 4900 | D134: Płycinowe | E134: Classic | F134: Grafit refleks | G134: DB 55Grafit refleks
A135: 55 | B135: DB 55 | C135: 4900 | D135: Płycinowe | E135: Classic | F135: Lustro weneckie | G135: DB 55Lustro weneckie
A136: 55 | B136: DB 55 | C136: 5100 | D136: Płycinowe | E136: Classic | F136: Mleczne | G136: DB 55Mleczne
A137: 56 | B137: DB 56 | C137: 4600 | D137: Płycinowe | E137: Classic | F137: Brak (pełne) | G137: DB 56Brak (pełne)
A138: 56 | B138: DB 56a | C138: 4600 | D138: Płycinowe | E138: Classic | F138: Brak (pełne) | G138: DB 56aBrak (pełne)
A139: 57 | B139: DB 57 | C139: 4800 | D139: Płycinowe | E139: Classic | F139: Przezierne refleks | G139: DB 57Przezierne refleks
A140: 57 | B140: DB 57 | C140: 4800 | D140: Płycinowe | E140: Classic | F140: Brąz refleks | G140: DB 57Brąz refleks
A141: 57 | B141: DB 57 | C141: 4900 | D141: Płycinowe | E141: Classic | F141: Grafit refleks | G141: DB 57Grafit refleks
A142: 57 | B142: DB 57 | C142: 4900 | D142: Płycinowe | E142: Classic | F142: Lustro weneckie | G142: DB 57Lustro weneckie
A143: 57 | B143: DB 57 | C143: 5100 | D143: Płycinowe | E143: Classic | F143: Mleczne | G143: DB 57Mleczne
A144: 57 | B144: DB 57 | C144: 5100 | D144: Płycinowe | E144: Classic | F144: Piaskowane refleks | G144: DB 57Piaskowane refleks
A145: 57 | B145: DB 57 | C145: 5100 | D145: Płycinowe | E145: Classic | F145: Brąz refleks wypukły | G145: DB 57Brąz refleks wypukły
A146: 57 | B146: DB 57 | C146: 5600 | D146: Płycinowe | E146: Classic | F146: Witraz | G146: DB 57Witraz
A147: 59 | B147: DB 59 | C147: 4800 | D147: Płycinowe | E147: Classic | F147: Przezierne refleks | G147: DB 59Przezierne refleks
A148: 59 | B148: DB 59 | C148: 4800 | D148: Płycinowe | E148: Classic | F148: Brąz refleks | G148: DB 59Brąz refleks
A149: 59 | B149: DB 59 | C149: 4900 | D149: Płycinowe | E149: Classic | F149: Grafit refleks | G149: DB 59Grafit refleks
A150: 59 | B150: DB 59 | C150: 4900 | D150: Płycinowe | E150: Classic | F150: Lustro weneckie | G150: DB 59Lustro weneckie
A151: 59 | B151: DB 59 | C151: 5100 | D151: Płycinowe | E151: Classic | F151: Mleczne | G151: DB 59Mleczne
A152: 59 | B152: DB 59a | C152: 4800 | D152: Płycinowe | E152: Classic | F152: Przezierne refleks | G152: DB 59aPrzezierne refleks
A153: 59 | B153: DB 59a | C153: 4800 | D153: Płycinowe | E153: Classic | F153: Brąz refleks | G153: DB 59aBrąz refleks
A154: 59 | B154: DB 59a | C154: 4900 | D154: Płycinowe | E154: Classic | F154: Grafit refleks | G154: DB 59aGrafit refleks
A155: 59 | B155: DB 59a | C155: 4900 | D155: Płycinowe | E155: Classic | F155: Lustro weneckie | G155: DB 59aLustro weneckie
A156: 59 | B156: DB 59a | C156: 5100 | D156: Płycinowe | E156: Classic | F156: Mleczne | G156: DB 59aMleczne
A157: 60 | B157: DB 60 | C157: 4800 | D157: Płycinowe | E157: Classic | F157: Przezierne refleks | G157: DB 60Przezierne refleks
A158: 60 | B158: DB 60 | C158: 4800 | D158: Płycinowe | E158: Classic | F158: Brąz refleks | G158: DB 60Brąz refleks
A159: 60 | B159: DB 60 | C159: 4900 | D159: Płycinowe | E159: Classic | F159: Grafit refleks | G159: DB 60Grafit refleks
A160: 60 | B160: DB 60 | C160: 4900 | D160: Płycinowe | E160: Classic | F160: Lustro weneckie | G160: DB 60Lustro weneckie
A161: 60 | B161: DB 60 | C161: 5100 | D161: Płycinowe | E161: Classic | F161: Mleczne | G161: DB 60Mleczne
A162: 61 | B162: DB 61a | C162: 4800 | D162: Płycinowe | E162: Classic | F162: Brak (pełne) | G162: DB 61aBrak (pełne)
A163: 62 | B163: DB 62a | C163: 4600 | D163: Płycinowe | E163: Classic | F163: Brak (pełne) | G163: DB 62aBrak (pełne)
A164: 63 | B164: DB 63 | C164: 4600 | D164: Płycinowe | E164: Classic | F164: Brak (pełne) | G164: DB 63Brak (pełne)
A165: 63 | B165: DB 63a | C165: 4600 | D165: Płycinowe | E165: Classic | F165: Brak (pełne) | G165: DB 63aBrak (pełne)
A166: 65 | B166: DB 65 | C166: 4800 | D166: Płycinowe | E166: Classic | F166: Przezierne refleks | G166: DB 65Przezierne refleks
A167: 65 | B167: DB 65 | C167: 4800 | D167: Płycinowe | E167: Classic | F167: Brąz refleks | G167: DB 65Brąz refleks
A168: 65 | B168: DB 65 | C168: 4900 | D168: Płycinowe | E168: Classic | F168: Grafit refleks | G168: DB 65Grafit refleks
A169: 65 | B169: DB 65 | C169: 4900 | D169: Płycinowe | E169: Classic | F169: Lustro weneckie | G169: DB 65Lustro weneckie
A170: 65 | B170: DB 65 | C170: 5100 | D170: Płycinowe | E170: Classic | F170: Mleczne | G170: DB 65Mleczne
A171: 66 | B171: DB 66a | C171: 4800 | D171: Płycinowe | E171: Classic | F171: Brak (pełne) | G171: DB 66aBrak (pełne)
A172: 67 | B172: DB 67 | C172: 4800 | D172: Płycinowe | E172: Classic | F172: Przezierne refleks | G172: DB 67Przezierne refleks
A173: 67 | B173: DB 67 | C173: 4800 | D173: Płycinowe | E173: Classic | F173: Brąz refleks | G173: DB 67Brąz refleks
A174: 67 | B174: DB 67 | C174: 4900 | D174: Płycinowe | E174: Classic | F174: Grafit refleks | G174: DB 67Grafit refleks
A175: 67 | B175: DB 67 | C175: 4900 | D175: Płycinowe | E175: Classic | F175: Lustro weneckie | G175: DB 67Lustro weneckie
A176: 67 | B176: DB 67 | C176: 5100 | D176: Płycinowe | E176: Classic | F176: Mleczne | G176: DB 67Mleczne
A177: 68 | B177: DB 68a | C177: 4800 | D177: Płycinowe | E177: Classic | F177: Brak (pełne) | G177: DB 68aBrak (pełne)
A178: 69 | B178: DB 69 | C178: 4800 | D178: Płycinowe | E178: Classic | F178: Przezierne refleks | G178: DB 69Przezierne refleks
A179: 69 | B179: DB 69 | C179: 4800 | D179: Płycinowe | E179: Classic | F179: Brąz refleks | G179: DB 69Brąz refleks
A180: 69 | B180: DB 69 | C180: 4900 | D180: Płycinowe | E180: Classic | F180: Grafit refleks | G180: DB 69Grafit refleks
A181: 69 | B181: DB 69 | C181: 4900 | D181: Płycinowe | E181: Classic | F181: Lustro weneckie | G181: DB 69Lustro weneckie
A182: 69 | B182: DB 69 | C182: 5100 | D182: Płycinowe | E182: Classic | F182: Mleczne | G182: DB 69Mleczne
A183: 70 | B183: DB 70 | C183: 4800 | D183: Płycinowe | E183: Classic | F183: Przezierne refleks | G183: DB 70Przezierne refleks
A184: 70 | B184: DB 70 | C184: 4800 | D184: Płycinowe | E184: Classic | F184: Brąz refleks | G184: DB 70Brąz refleks
A185: 70 | B185: DB 70 | C185: 4900 | D185: Płycinowe | E185: Classic | F185: Grafit refleks | G185: =B185&F185 -> DB 70Grafit refleks
A186: 70 | B186: DB 70 | C186: 4900 | D186: Płycinowe | E186: Classic | F186: Lustro weneckie | G186: DB 70Lustro weneckie
A187: 70 | B187: DB 70 | C187: 5100 | D187: Płycinowe | E187: Classic | F187: Mleczne | G187: DB 70Mleczne
A188: 71 | B188: DB 71a | C188: 4800 | D188: Płycinowe | E188: Classic | F188: Przezierne refleks | G188: DB 71aPrzezierne refleks
A189: 71 | B189: DB 71a | C189: 4800 | D189: Płycinowe | E189: Classic | F189: Brąz refleks | G189: DB 71aBrąz refleks
A190: 71 | B190: DB 71a | C190: 4900 | D190: Płycinowe | E190: Classic | F190: Grafit refleks | G190: DB 71aGrafit refleks
A191: 71 | B191: DB 71a | C191: 4900 | D191: Płycinowe | E191: Classic | F191: Lustro weneckie | G191: DB 71aLustro weneckie
A192: 71 | B192: DB 71a | C192: 5100 | D192: Płycinowe | E192: Classic | F192: Mleczne | G192: DB 71aMleczne
A193: 71 | B193: DB 71a | C193: 5100 | D193: Płycinowe | E193: Classic | F193: Piaskowane refleks | G193: DB 71aPiaskowane refleks
A194: 72 | B194: DB 72a | C194: 4800 | D194: Płycinowe | E194: Classic | F194: Przezierne refleks | G194: DB 72aPrzezierne refleks
A195: 72 | B195: DB 72a | C195: 4800 | D195: Płycinowe | E195: Classic | F195: Brąz refleks | G195: DB 72aBrąz refleks
A196: 72 | B196: DB 72a | C196: 4900 | D196: Płycinowe | E196: Classic | F196: Grafit refleks | G196: DB 72aGrafit refleks
A197: 72 | B197: DB 72a | C197: 4900 | D197: Płycinowe | E197: Classic | F197: Lustro weneckie | G197: DB 72aLustro weneckie
A198: 72 | B198: DB 72a | C198: 5100 | D198: Płycinowe | E198: Classic | F198: Mleczne | G198: DB 72aMleczne
A199: 73 | B199: DB 73 | C199: 4600 | D199: Płycinowe | E199: Classic | F199: Brak (pełne) | G199: DB 73Brak (pełne)
A200: 74 | B200: DB 74 | C200: 4900 | D200: Płycinowe | E200: Modern Inox | F200: Przezierne refleks | G200: DB 74Przezierne refleks | H200: 200
... 543 more rows

Sheet Mapping (hidden)
A1: Modele | M1: Szklenie | Q1: Wykończenie | V1: Ilość kolorów | Y1: Kolor | AD1: Inox dustronny | AH1: Rodzaj kamienia | AL1: Przylgowość | AQ1: Grubosc | AW1: Szerokość i dostawki | BC1: Wysokość i naświetla | BJ1: Kierunek otwierania | BN1: Dostawki | BT1: Naświetle | CI1: Ościeżnica rodzaj | CN1: Aplikacja Retro | CV1: Grubość górna standard [cm] | DD1: Grubość boczna ościeżnicy | DP1: Szerokość ościeznicy cm | DV1: Obróbki | DX1: Opaska wewnętrzna | EA1: Opaska zewnętrzna | EF1: Listwa maskująca | EI1: Ćwierćwałek | EL1: Skrzydło szerokość (tu będzie można wpisać swój wymiar) | ER1: Skrzydło wysokość (tu będzie można wpisać swój wymiar) | EX1: Dostawki cena | FD1: Szklenie dostawkach | FM1: pola szkła | FV1: Okucia | GC1: 1 | GD1: 2 | GE1: 3 | GF1: 4 | GG1: 5 | GH1: 6 | HE1: Szyba P4 | HL1: PROGI | HR1: Adapter | HV1: Okapnik/Kopniak | ID1: Wizjer | IG1: Samozamykacz | IJ1: Kołatka | IM1: Piaskowanie numery na szkle | IP1: Kontrakton | IS1: Zestaw pielęgnacyjny | IV1: Rabat | IX1: Montaż | IZ1: VAT
A2: lista | B2: dostawka w ościeżnicy nowoczesna pełna - minimalna szerokość | C2: dostawka w ościeżnicy nowoczesna szklana - minimalna szerokość | D2: dostawka w ościeżnicy tradycyjna pełna - minimalna szerokość | E2: dostawka w ościeżnicy tradycyjna szklana - minimalna szerokość | F2: dostawka w imitacji skrzydła stała pełna - minimalna szerokość | G2: dostawka w imitacji skrzydła stała szklana - minimalna szerokość | H2: dostawka w imitacji skrzydła ruchoma pełna - minimalna szerokość | I2: dostawka w imitacji skrzydła ruchoma szklana - minimalna szerokość | J2: Mapping | K2: Mapping na pełne | M2: funkcja | N2: cena | O2: mapping | Q2: lista | R2: cena | S2: funkcja po konstrukcji | T2: mapping | V2: lista | W2: cena | Y2: lista | Z2: cena | AA2: funkcja po konstrukcji | AB2: mapping | AD2: lista | AE2: cena | AF2: mapping | AH2: lista | AI2: cena | AJ2: mapping | AL2: lista | AM2: funkcja po konstrukcji | AN2: cena | AO2: mapping | AQ2: lista | AR2: funkcja po konstrukcji | AS2: funkcja po ościeżnicy | AT2: cena | AU2: mapping | AW2: szerokość | AX2: 102 dostawka | AY2: 106 dostawka | AZ2: dostawki po grubości | BA2: dostawki mapping | BC2: wysokosc | BD2: 102 naswietle | BE2: 106 naswietle | BF2: naswietle po grubosci | BG2: naswietle mapping | BJ2: lista | BK2: funkcja po ościeżnicy | BL2: mapping | BN2: lista | BO2: funkcja po konstrukcji | BP2: fukcja po linii (Kamień bez imitacji skrzydła) | BQ2: funkcja po ościeżnicy (bezprzylgowa glass) | BR2: mapping | BT2: lista | BU2: cena bez szkła | BV2: wysokość naświetla | BW2: dopłata do wysokości | BX2: funkcja po ościeżnicy | BY2: mapping | BZ2: szkło naświetle | CA2: dopłata bazowa | CB2: cena finalna | CC2: szklenie po rodzaju naświetla | CD2: szklenie po opcji szklenia | CE2: maping szklenie | CF2: pola szkła | CI2: lista | CJ2: cena | CK2: funckja po ościeżnicy | CL2: mapping | CN2: lista | CO2: cena | CP2: funkcja po krosnowej | CQ2: funkcja po ościeżnicy | CR2: funkcja po dostawkach | CS2: funkcja po naświetlu | CT2: mapping | CV2: vlookup rodzaj | CW2: grubość | CX2: vlookup ościeżnicy | CY2: funkcja po grubosci | CZ2: lista wybór | DA2: funkcja po warunku minimum | DB2: mapping | DD2: vlookup rodzaj | DE2: grubość | DF2: vlookup ościeżnicy | DG2: funkcja po grubosci ościeżnicy od zawias | DH2: funkcja po grubosci ościeżnicy od zamka | DJ2: lista wybór | DK2: funkcja po warunku minimum od zawias | DL2: mapping od zawias | DM2: funkcja po warunku minimum od zamka | DN2: mapping od zamka | DP2: vlookup rodzaj | DQ2: szerokość | DR2: lista wybór | DS2: funkcja po warunku minimum | DT2: mapping | DV2: lista wybór | DX2: lista | DY2: cena | EA2: lista | EB2: cena | EC2: funkcja po ościeżnicy | ED2: mapping | EF2: lista | EG2: cena | EI2: lista | EJ2: cena | EL2: lista | EM2: pod wymiar | EN2: cena | EO2: funkcja po dostawce | EP2: mapping | ER2: lista | ES2: pod wymiar | ET2: cena | EU2: funkcja po naświetlu | EV2: mapping | EX2: szerokość | EY2: pod wymiar | EZ2: procenty od zawias | FA2: procenty od zamka | FB2: naświetle | FC2: wylicznie pod naświetla | FD2: lista | FE2: dopłata szklenie | FF2: opcje szklenia po rodzaju dostawki dostawka od zawias | FG2: opcje jeśli w ogóle jest jakaś dostawka od zawias | FH2: mapping od zawias | FI2: opcje szklenia po rodzaju dostawki dostawka od zamka | FJ2: opcje jeśli w ogóle jest jakaś dostawka od zamka | FK2: mapping od zamka | FM2: ilość za free | FN2: lista | FO2: funkcja po wyborze od zawias | FP2: mapping od zawias | FQ2: fukca po wyborze od zamka | FR2: mapping od zamka | FS2: funkcja po naświetlu | FT2: mapping po naświetlu | FV2: Specjalny zestaw lista | FW2: cena | FX2: Zamek po zestawie | FY2: zamek mapping | FZ2: Okucie zewnętrzne lista | GA2: Cena | GB2: Okucia po konstrukcji | GC2: Brak (standard) | GD2: Zestaw elektronik z zamkiem ryglowym | GE2: Zestaw elektronik z zamkiem automatycznym | GF2: Zestaw z pochwytem na styl amerykański | GG2: Zestaw antywłamaniowy RC2 | GH2: Wszystkie czytniki | GI2: Okucia po zestawie | GJ2: Numeracja pomocnicza | GK2: Mapping okucia | GL2: Tabela okucia a kolor (1/2) | GM2: Tabela okucia a kolor (2/2) | GN2: Kolor okucia funkcja | GO2: Kolor okucia mapping | GP2: Długość antaby | GQ2: Długość mapping | GR2: Wkładki lista | GS2: Cena wkładki | GT2: Wkładki po zestawie | GU2: Wkładka mapping | GV2: Zapadka | GW2: Cena | GX2: funkcja po zapadce | GY2: po okuciu (dla klamek nie) | GZ2: mapping zapadka | HA2: Listwa zaczepowa | HB2: cena | HC2: mapping listwa | HE2: lista opcji | HF2: Cena podstawowa | HG2: Cena po uwzględniu RC2 | HH2: funkcja po skrzydle (czy pełne czy nie) | HI2: funkcja po konstrukcji | HJ2: mapping P4 | HL2: lista | HM2: cena bazowa | HN2: cena pod dostawkach | HO2: funkcja po kierunku otwierania | HP2: mapping progi | HR2: lista | HS2: Cena bazowa | HT2: Cena po dostawkach | HV2: Według ilości dostawek | HW2: Cena bezowa okapnik | HX2: Cena po konstrucji okapnik | HY2: cena bazowa kopniak | HZ2: cena po konstrukcji kopniak | IA2: funkcja po konstrukcji | IB2: mapping okapnik/kopniak | ID2: lista | IE2: Cena | IG2: lista | IH2: cena | IJ2: lista | IK2: cena | IM2: lista | IN2: cena | IP2: lista | IQ2: cena | IS2: lista | IT2: cena | IV2: lista | IX2: lista | IZ2: lista
A3: DB 01 | B3: 20 | C3: 20 | D3: 20 | E3: 20 | F3: 44 | G3: 44 | H3: 44 | I3: 44 | J3: W ościeżnicy nowoczesna | K3: 2 | M3: =IFERROR(VLOOKUP(Wycena!$C$5,OFFSET(SKU!$B$1,MATCH(Wycena!$C$5,SKU!$B$1:$B$743,0)-1,0,1000,6),5,0),"") ->  | N3: =IFERROR(VLOOKUP(Wycena!$C$5,OFFSET(SKU!$B$1,MATCH(Wycena!$C$5,SKU!$B$1:$B$743,0)-1,0,1000,6),2,0)-VLOOKUP(Wycena!$C$5,SKU!$B$1:$C$743,2,0),"") ->  | O3: =IF(ROWS($M$3:M3)>(ROWS($M$3:$M$10)-COUNTBLANK($M$3:$M$10)),"",INDEX($M$3:$M$10,SMALL(IF($M$3:$M$10<>"",ROW($M$3:$M$10)-2),ROWS($M$3:M3)))) ->  | Q3: Dab prosty podluzny | R3: 0 | S3: Dab prosty podluzny | T3: =IF(ROWS($S$3:S3)>(ROWS($S$3:$S$8)-COUNTBLANK($S$3:$S$8)),"",INDEX($S$3:$S$8,SMALL(IF($S$3:$S$8<>"",ROW($S$3:$S$8)-2),ROWS($S$3:S3)))) ->  | V3: Jeden (standard) | W3: 0 | Y3: Afromozja | Z3: 0 | AA3: =Y3 -> Afromozja | AB3: =IF(ROWS($AA$3:AA3)>(ROWS($AA$3:$AA$228)-COUNTBLANK($AA$3:$AA$228)),"",INDEX($AA$3:$AA$228,SMALL(IF($AA$3:$AA$228<>"",ROW($AA$3:$AA$228)-2),ROWS($AA$3:AA3)))) ->  | AD3: =IF(VLOOKUP(Wycena!C5,SKU!$B$1:$H$743,7,0)>0,"Tak","") ->  | AE3: =IF(AD3="Tak",VLOOKUP(Wycena!$C$5,SKU!$B$1:$H$743,7,0),0) ->  | AF3: =IF(ROWS($AD$3:AD3)>(ROWS($AD$3:$AD$4)-COUNTBLANK($AD$3:$AD$4)),"",INDEX($AD$3:$AD$4,SMALL(IF($AD$3:$AD$4<>"",ROW($AD$3:$AD$4)-2),ROWS($AD$3:AD3)))) ->  | AH3: =IF(VLOOKUP(Wycena!$C$5,SKU!$B$1:$I$743,8,0)>0,"Brąz rdzawy","-") ->  | AI3: =VLOOKUP(Wycena!$C$5,SKU!$B$1:$I$743,8,0) ->  | AJ3: =IF(ROWS($AH$3:AH3)>(ROWS($AH$3:$AH$7)-COUNTBLANK($AH$3:$AH$7)),"",INDEX($AH$3:$AH$7,SMALL(IF($AH$3:$AH$7<>"",ROW($AH$3:$AH$7)-2),ROWS($AH$3:AH3)))) ->  | AL3: Przylgowe | AM3: Przylgowe | AN3: 0 | AO3: =IF(ROWS($AM$3:AM3)>(ROWS($AM$3:$AM$5)-COUNTBLANK($AM$3:$AM$5)),"",INDEX($AM$3:$AM$5,SMALL(IF($AM$3:$AM$5<>"",ROW($AM$3:$AM$5)-2),ROWS($AM$3:AM3)))) ->  | AQ3: 78 | AR3: 78 | AS3: =IF(Wycena!C14="Przylgowe",Mapping!AR3,"") -> 78 | AT3: 0 | AU3: =IF(ROWS($AS$3:AS3)>(ROWS($AS$3:$AS$5)-COUNTBLANK($AS$3:$AS$5)),"",INDEX($AS$3:$AS$5,SMALL(IF($AS$3:$AS$5<>"",ROW($AS$3:$AS$5)-2),ROWS($AS$3:AS3)))) -> 78 | AW3: 72 | AX3: 0 | AY3: 0 | AZ3: =IF(Wycena!$C$15=78,Mapping!AX3,AY3) -> 0 | BA3: 0 | BC3: 180 | BD3: 0 | BE3: 0 | BF3: =IF(Wycena!$C$15=78,Mapping!BD3,BE3) -> 0 | BG3: 0 | BJ3: Lewe na zewnątrz | BK3: Lewe na zewnątrz | BL3: =IF(ROWS($BK$3:BK3)>(ROWS($BK$3:$BK$6)-COUNTBLANK($BK$3:$BK$6)),"",INDEX($BK$3:$BK$6,SMALL(IF($BK$3:$BK$6<>"",ROW($BK$3:$BK$6)-2),ROWS($BK$3:BK3)))) -> Lewe na zewnątrz | BN3: - | BO3: - | BP3: - | BQ3: - | BR3: =IF(ROWS($BQ$3:BQ3)>(ROWS($BQ$3:$BQ$7)-COUNTBLANK($BQ$3:$BQ$7)),"",INDEX($BQ$3:$BQ$7,SMALL(IF($BQ$3:$BQ$7<>"",ROW($BQ$3:$BQ$7)-2),ROWS($BQ$3:BQ3)))) ->  | BT3: - | BU3: 0 | BV3: 0 | BW3: 0 | BX3: - | BY3: =IF(ROWS($BX$3:BX3)>(ROWS($BX$3:$BX$6)-COUNTBLANK($BX$3:$BX$6)),"",INDEX($BX$3:$BX$6,SMALL(IF($BX$3:$BX$6<>"",ROW($BX$3:$BX$6)-2),ROWS($BX$3:BX3)))) -> - | BZ3: Brak (pełne) | CA3: 0 | CB3: =CA3*(1+IFERROR(VLOOKUP(Wycena!$C$44,Mapping!$EY$3:$FB$6,4,1),0)+IFERROR(VLOOKUP(Wycena!$C$48,Mapping!$EY$3:$FB$6,4,1),0))*(1+VLOOKUP(Wycena!$C$53,Mapping!$BV$3:$BW$6,2,1)) ->  | CC3: Brak (pełne) | CD3: =IF(Wycena!$C$21="-","-",CC3) -> - | CE3: =IF(ROWS($CD$3:CD3)>(ROWS($CD$3:$CD$13)-COUNTBLANK($CD$3:$CD$13)),"",INDEX($CD$3:$CD$13,SMALL(IF($CD$3:$CD$13<>"",ROW($CD$3:$CD$13)-2),ROWS($CD$3:CD3)))) -> - | CI3: Standardowa | CJ3: 0 | CK3: Standardowa | CL3: =IF(ROWS($CK$3:CK3)>(ROWS($CK$3:$CK$4)-COUNTBLANK($CK$3:$CK$4)),"",INDEX($CK$3:$CK$4,SMALL(IF($CK$3:$CK$4<>"",ROW($CK$3:$CK$4)-2),ROWS($CK$3:CK3)))) -> Standardowa | CN3: - | CO3: 0 | CP3: - | CQ3: - | CR3: - | CS3: - | CT3: =IF(ROWS($CS$3:CS3)>(ROWS($CS$3:$CS$11)-COUNTBLANK($CS$3:$CS$11)),"",INDEX($CS$3:$CS$11,SMALL(IF($CS$3:$CS$11<>"",ROW($CS$3:$CS$11)-2),ROWS($CS$3:CS3)))) -> - | CV3: standardowa | CW3: 6 | CX3: Przylgowe | CY3: =VLOOKUP(Wycena!$C$24,Mapping!$CV$3:$CW$4,2,0) -> 6 | CZ3: 6 | DA3: =IF(CZ3>=VLOOKUP(Wycena!$C$14,Mapping!$CX$3:$CY$5,2,0),CZ3,"") -> 6 | DB3: =IF(ROWS($DA$3:DA3)>(ROWS($DA$3:$DA$28)-COUNTBLANK($DA$3:$DA$28)),"",INDEX($DA$3:$DA$28,SMALL(IF($DA$3:$DA$28<>"",ROW($DA$3:$DA$28)-2),ROWS($DA$3:DA3)))) -> 6 | DD3: standardowa | DE3: 6 | DF3: Przylgowe | DG3: =VLOOKUP(Wycena!$C$24,Mapping!$CV$3:$CW$4,2,0)+VLOOKUP(Wycena!C25,$CN$16:$CR$25,IF(AND(Wycena!C19="-",Wycena!C20="-"),2,IF(AND(Wycena!C19<>"-",Wycena!C20="-"),3,IF(AND(Wycena!C19="-",Wycena!C20<>"-"),4,5))),0) -> 6 | DH3: =VLOOKUP(Wycena!$C$24,Mapping!$CV$3:$CW$4,2,0)+VLOOKUP(Wycena!C25,$CN$28:$CR$37,IF(AND(Wycena!C19="-",Wycena!C20="-"),2,IF(AND(Wycena!C19<>"-",Wycena!C20="-"),3,IF(AND(Wycena!C19="-",Wycena!C20<>"-"),4,5))),0) -> 6 | DJ3: 6 | DK3: =IF(DJ3>=VLOOKUP(Wycena!$C$14,Mapping!$DF$3:$DG$5,2,0),DJ3,"") -> 6 | DL3: =IF(ROWS($DK$3:DK3)>(ROWS($DK$3:$DK$28)-COUNTBLANK($DK$3:$DK$28)),"",INDEX($DK$3:$DK$28,SMALL(IF($DK$3:$DK$28<>"",ROW($DK$3:$DK$28)-2),ROWS($DK$3:DK3)))) -> 6 | DM3: =IF(DJ3>=VLOOKUP(Wycena!$C$14,Mapping!$DF$3:$DH$5,3,0),DJ3,"") -> 6 | DN3: =IF(ROWS($DM$3:DM3)>(ROWS($DM$3:$DM$28)-COUNTBLANK($DM$3:$DM$28)),"",INDEX($DM$3:$DM$28,SMALL(IF($DM$3:$DM$28<>"",ROW($DM$3:$DM$28)-2),ROWS($DM$3:DM3)))) -> 6 | DP3: standardowa | DQ3: 10.5 | DR3: 6 | DS3: =IF(DR3>=VLOOKUP(Wycena!$C$24,Mapping!$DP$3:$DQ$4,2,0),DR3,"") ->  | DT3: =IF(ROWS($DS$3:DS3)>(ROWS($DS$3:$DS$28)-COUNTBLANK($DS$3:$DS$28)),"",INDEX($DS$3:$DS$28,SMALL(IF($DS$3:$DS$28<>"",ROW($DS$3:$DS$28)-2),ROWS($DS$3:DS3)))) -> 10.5 | DV3: - | DX3: - | DY3: 0 | EA3: - | EB3: 0 | EC3: - | ED3: =IF(ROWS($EC$3:EC3)>(ROWS($EC$3:$EC$4)-COUNTBLANK($EC$3:$EC$4)),"",INDEX($EC$3:$EC$4,SMALL(IF($EC$3:$EC$4<>"",ROW($EC$3:$EC$4)-2),ROWS($EC$3:EC3)))) -> - | EF3: - | EG3: 0 | EI3: - | EJ3: 0 | EL3: 80 | EM3: 60 | EN3: 0 | EO3: =IF(OR(Wycena!$C$19<>"-",Wycena!$C$20<>"-",),EL3,IF((Wycena!$C$16-Wycena!$C$27-Wycena!$C$28)>118,"-",(Wycena!$C$16-Wycena!$C$27-Wycena!$C$28))) -> 90 | EP3: =IF(ROWS($EO$3:EO3)>(ROWS($EO$3:$EO$8)-COUNTBLANK($EO$3:$EO$8)),"",INDEX($EO$3:$EO$8,SMALL(IF($EO$3:$EO$8<>"",ROW($EO$3:$EO$8)-2),ROWS($EO$3:EO3)))) -> 90 | ER3: 204 | ES3: =180-VLOOKUP(Wycena!$C$14,Mapping!$CX$3:$CY$5,2,0) -> 174 | ET3: 0 | EU3: =IF(AND(Wycena!$C$21<>"-",ER3<=Wycena!$C$17-Wycena!$C$26),ER3,Wycena!$C$17-Wycena!$C$26) -> 204 | EV3: =IF(ROWS($EU$3:EU3)>(ROWS($EU$3:$EU$8)-COUNTBLANK($EU$3:$EU$8)),"",INDEX($EU$3:$EU$8,SMALL(IF($EU$3:$EU$8<>"",ROW($EU$3:$EU$8)-2),ROWS($EU$3:EU3)))) -> 204 | EX3: 0 | EY3: 0 | EZ3: =50%+IF(Wycena!$C$19="Imitacja skrzydła ruchoma",0.1,0) -> 0.5 | FA3: =50%+IF(Wycena!$C$20="Imitacja skrzydła ruchoma",0.1,0) -> 0.5 | FB3: 0.5 | FC3: =IFERROR(VLOOKUP(Wycena!$C$44,Mapping!$EY$3:$FB$6,4,1)+VLOOKUP(Wycena!$C$48,Mapping!$EY$3:$FB$6,4,1),0) -> 0 | FD3: Brak (pełne) | FE3: 0 | FF3: Brak (pełne) | FG3: =IF(Wycena!$C$19="-","-",FF3) -> - | FH3: =IF(ROWS($FG$3:FG3)>(ROWS($FG$3:$FG$14)-COUNTBLANK($FG$3:$FG$14)),"",INDEX($FG$3:$FG$14,SMALL(IF($FG$3:$FG$14<>"",ROW($FG$3:$FG$14)-2),ROWS($FG$3:FG3)))) -> - | FI3: Brak (pełne) | FJ3: =IF(Wycena!$C$20="-","-",FI3) -> - | FK3: =IF(ROWS($FJ$3:FJ3)>(ROWS($FJ$3:$FJ$14)-COUNTBLANK($FJ$3:$FJ$14)),"",INDEX($FJ$3:$FJ$14,SMALL(IF($FJ$3:$FJ$14<>"",ROW($FJ$3:$FJ$14)-2),ROWS($FJ$3:FJ3)))) -> - | FM3: 4 | FN3: - | FO3: - | FP3: =IF(ROWS($FO$3:FO3)>(ROWS($FO$3:$FO$23)-COUNTBLANK($FO$3:$FO$23)),"",INDEX($FO$3:$FO$23,SMALL(IF($FO$3:$FO$23<>"",ROW($FO$3:$FO$23)-2),ROWS($FO$3:FO3)))) -> - | FQ3: - | FR3: =IF(ROWS($FQ$3:FQ3)>(ROWS($FQ$3:$FQ$23)-COUNTBLANK($FQ$3:$FQ$23)),"",INDEX($FQ$3:$FQ$23,SMALL(IF($FQ$3:$FQ$23<>"",ROW($FQ$3:$FQ$23)-2),ROWS($FQ$3:FQ3)))) -> - | FS3: - | FT3: =IF(ROWS($FS$3:FS3)>(ROWS($FS$3:$FS$23)-COUNTBLANK($FS$3:$FS$23)),"",INDEX($FS$3:$FS$23,SMALL(IF($FS$3:$FS$23<>"",ROW($FS$3:$FS$23)-2),ROWS($FS$3:FS3)))) -> - | FV3: Brak (standard) | FW3: 0 | FX3: =IFERROR(VLOOKUP(Wycena!C58,OFFSET(FV15,MATCH(Wycena!C58,FV15:FV32,0)-1,0,15,2),2,0),"") -> Ryglowy 3-punktowy z gałką (standard) | FY3: =IF(ROWS($FX$3:FX3)>(ROWS($FX$3:$FX$8)-COUNTBLANK($FX$3:$FX$8)),"",INDEX($FX$3:$FX$8,SMALL(IF($FX$3:$FX$8<>"",ROW($FX$3:$FX$8)-2),ROWS($FX$3:FX3)))) -> Ryglowy 3-punktowy z gałką (standard) | FZ3: Klamka Medos Warszawa (standard) | GA3: 0 | GB3: Klamka Medos Warszawa (standard) | GC3: =GB3 -> Klamka Medos Warszawa (standard) | GI3: =IF((HLOOKUP(VLOOKUP(Wycena!$C$58,Mapping!$GH$35:$GI$42,2,0),$GC$1:$GH$33,2+GJ3))=0,"",(HLOOKUP(VLOOKUP(Wycena!$C$58,Mapping!$GH$35:$GI$42,2,0),$GC$1:$GH$33,2+GJ3))) -> Klamka Medos Warszawa (standard) | GJ3: 1 | GK3: =IF(ROWS($GI$3:GI3)>(ROWS($GI$3:$GI$33)-COUNTBLANK($GI$3:$GI$33)),"",INDEX($GI$3:$GI$33,SMALL(IF($GI$3:$GI$33<>"",ROW($GI$3:$GI$33)-2),ROWS($GI$3:GI3)))) ->  | GL3: Klamka Medos Warszawa (standard) | GM3: Inox | GN3: =IFERROR(VLOOKUP(Wycena!C60,OFFSET(GL2,MATCH(Wycena!C60,$GL$2:$GL$101,0)-1,0,100,2),2,0),"") ->  | GO3: =IF(ROWS($GN$3:GN3)>(ROWS($GN$3:$GN$6)-COUNTBLANK($GN$3:$GN$6)),"",INDEX($GN$3:$GN$6,SMALL(IF($GN$3:$GN$6<>"",ROW($GN$3:$GN$6)-2),ROWS($GN$3:GN3)))) ->  | GP3: =IFERROR(IF(FIND("Antaba M",Wycena!$C$60)>0,50,"-"),"-") -> - | GQ3: =IF(ROWS($GP$3:GP3)>(ROWS($GP$3:$GP$9)-COUNTBLANK($GP$3:$GP$9)),"",INDEX($GP$3:$GP$9,SMALL(IF($GP$3:$GP$9<>"",ROW($GP$3:$GP$9)-2),ROWS($GP$3:GP3)))) -> - | GR3: Standard satyna | GS3: 0 | GT3: =IF(OR(Wycena!$C$58=Mapping!$FV$7,Wycena!$C$58=Mapping!$FV$6),"",GR3) -> Standard satyna | GU3: =IF(ROWS($GT$3:GT3)>(ROWS($GT$3:$GT$8)-COUNTBLANK($GT$3:$GT$8)),"",INDEX($GT$3:$GT$8,SMALL(IF($GT$3:$GT$8<>"",ROW($GT$3:$GT$8)-2),ROWS($GT$3:GT3)))) -> Standard satyna | GV3: - | GX3: - | GY3: - | GZ3: =IF(ROWS($GY$3:GY3)>(ROWS($GY$3:$GY$5)-COUNTBLANK(GY$3:$GY$5)),"",INDEX(GY$3:$GY$5,SMALL(IF(GY$3:$GY$5<>"",ROW(GY$3:$GY$5)-2),ROWS($GY$3:GY3)))) -> - | HA3: =IF(Wycena!C58=Mapping!$HA$31,"","-") -> - | HB3: 0 | HC3: =IF(ROWS($HA$3:HA3)>(ROWS($HI$3:$HI$4)-COUNTBLANK($HA$3:$HA$4)),"",INDEX($HA$3:$HA$4,SMALL(IF($HA$3:$HA$4<>"",ROW($HA$3:$HA$4)-2),ROWS($HA$3:HA3)))) -> - | HI3: =IF(Wycena!$C$58=Mapping!$HA$31,"","-") -> - | HJ3: =IF(ROWS($HI$3:HI3)>(ROWS($HI$3:$HI$13)-COUNTBLANK($HI$3:$HI$13)),"",INDEX($HI$3:$HI$13,SMALL(IF($HI$3:$HI$13<>"",ROW($HI$3:$HI$13)-2),ROWS($HI$3:HI3)))) -> - | HL3: Aluminiowy (standard) | HM3: 0 | HN3: 0 | HO3: Aluminiowy (standard) | HP3: =IF(ROWS($HO$3:HO3)>(ROWS($HO$3:$HO$5)-COUNTBLANK($HO$3:$HO$5)),"",INDEX($HO$3:$HO$5,SMALL(IF($HO$3:$HO$5<>"",ROW($HO$3:$HO$5)-2),ROWS($HO$3:HO3)))) ->  | HR3: - | HS3: 0 | HT3: 0 | HV3: - | HW3: 0 | HX3: 0 | HY3: 0 | HZ3: 0 | IA3: - | IB3: =IF(ROWS($IA$3:IA3)>(ROWS($IA$3:$IA$9)-COUNTBLANK($IA$3:$IA$9)),"",INDEX($IA$3:$IA$9,SMALL(IF($IA$3:$IA$9<>"",ROW($IA$3:$IA$9)-2),ROWS($IA$3:IA3)))) -> - | ID3: - | IE3: 0 | IG3: - | IH3: 0 | IJ3: - | IK3: 0 | IM3: - | IN3: 0 | IP3: - | IQ3: 0 | IS3: - | IT3: 0 | IV3: 0 | IX3: 100 | IZ3: 0
A4: DB 03 | B4: 20 | C4: 20 | D4: 20 | E4: 20 | F4: 34 | G4: 34 | H4: =F4+2 -> 36 | I4: =G4+2 -> 36 | J4: W ościeżnicy tradycyjna | K4: 4 | M4: =IFERROR(VLOOKUP(Wycena!$C$5,OFFSET(SKU!$B$1,MATCH(Wycena!$C$5,SKU!$B$1:$B$743,0),0,1000,6),5,0),"") ->  | N4: =IFERROR(VLOOKUP(Wycena!$C$5,OFFSET(SKU!$B$1,MATCH(Wycena!$C$5,SKU!$B$1:$B$743,0),0,1000,6),2,0)-VLOOKUP(Wycena!$C$5,SKU!$B$1:$C$743,2,0),"") ->  | O4: =IF(ROWS($M$3:M4)>(ROWS($M$3:$M$10)-COUNTBLANK($M$3:$M$10)),"",INDEX($M$3:$M$10,SMALL(IF($M$3:$M$10<>"",ROW($M$3:$M$10)-2),ROWS($M$3:M4)))) ->  | Q4: Dąb prosty poprzeczny | R4: 0 | S4: =IF(VLOOKUP(Wycena!$C$5,SKU!$B$1:$D$743,3,0)="Płytowe",Q4,"") ->  | T4: =IF(ROWS($S$3:S4)>(ROWS($S$3:$S$8)-COUNTBLANK($S$3:$S$8)),"",INDEX($S$3:$S$8,SMALL(IF($S$3:$S$8<>"",ROW($S$3:$S$8)-2),ROWS($S$3:S4)))) ->  | V4: Dwukolor ościeżnica (standard) | W4: 0 | Y4: Brunat | Z4: 0 | AA4: =Y4 -> Brunat | AB4: =IF(ROWS($AA$3:AA4)>(ROWS($AA$3:$AA$228)-COUNTBLANK($AA$3:$AA$228)),"",INDEX($AA$3:$AA$228,SMALL(IF($AA$3:$AA$228<>"",ROW($AA$3:$AA$228)-2),ROWS($AA$3:AA4)))) ->  | AD4: - | AF4: =IF(ROWS($AD$3:AD4)>(ROWS($AD$3:$AD$4)-COUNTBLANK($AD$3:$AD$4)),"",INDEX($AD$3:$AD$4,SMALL(IF($AD$3:$AD$4<>"",ROW($AD$3:$AD$4)-2),ROWS($AD$3:AD4)))) ->  | AH4: =IF(VLOOKUP(Wycena!$C$5,SKU!$B$1:$I$743,8,0)>0,"Szary piasek","") ->  | AI4: =VLOOKUP(Wycena!$C$5,SKU!$B$1:$I$743,8,0) ->  | AJ4: =IF(ROWS($AH$3:AH4)>(ROWS($AH$3:$AH$7)-COUNTBLANK($AH$3:$AH$7)),"",INDEX($AH$3:$AH$7,SMALL(IF($AH$3:$AH$7<>"",ROW($AH$3:$AH$7)-2),ROWS($AH$3:AH4)))) ->  | AL4: Bezprzylgowe | AM4: =IF(VLOOKUP(Wycena!$C$5,SKU!$B$1:$D$743,3,0)="Płytowe",AL4,"") ->  | AN4: =IFERROR(IF(Wycena!C41*1>214,2500,2000),2000)*(IF(Wycena!C19="Imitacja skrzydła ruchoma",1,0)+IF(Wycena!C20="Imitacja skrzydła ruchoma",1,0)+1) -> 2000 | AO4: =IF(ROWS($AM$3:AM4)>(ROWS($AM$3:$AM$5)-COUNTBLANK($AM$3:$AM$5)),"",INDEX($AM$3:$AM$5,SMALL(IF($AM$3:$AM$5<>"",ROW($AM$3:$AM$5)-2),ROWS($AM$3:AM4)))) ->  | AQ4: 90 | AR4: =IF(VLOOKUP(Wycena!$C$5,SKU!$B$1:$D$743,3,0)="Płytowe",AQ4,"") ->  | AS4: =IF(OR((Wycena!C14="Bezprzylgowe"),(Wycena!C14="Bezprzylgowe Glass")),Mapping!AR4,"") ->  | AT4: 0 | AU4: =IF(ROWS($AS$3:AS4)>(ROWS($AS$3:$AS$5)-COUNTBLANK($AS$3:$AS$5)),"",INDEX($AS$3:$AS$5,SMALL(IF($AS$3:$AS$5<>"",ROW($AS$3:$AS$5)-2),ROWS($AS$3:AS4)))) ->  | AW4: 73 | AX4: 0 | AY4: 0 | AZ4: =IF(Wycena!$C$15=78,Mapping!AX4,AY4) -> 0 | BA4: 1 | BB4: Konieczna dostawka | BC4: 181 | BD4: 0 | BE4: 0 | BF4: =IF(Wycena!$C$15=78,Mapping!BD4,BE4) -> 0 | BG4: 1 | BH4: Konieczne naświetle | BJ4: Lewe do wewnątrz | BK4: =IF(Wycena!$C$14="Bezprzylgowe Glass","",BJ4) -> Lewe do wewnątrz | BL4: =IF(ROWS($BK$3:BK4)>(ROWS($BK$3:$BK$6)-COUNTBLANK($BK$3:$BK$6)),"",INDEX($BK$3:$BK$6,SMALL(IF($BK$3:$BK$6<>"",ROW($BK$3:$BK$6)-2),ROWS($BK$3:BK4)))) -> Lewe do wewnątrz | BN4: W ościeżnicy nowoczesna | BO4: W ościeżnicy nowoczesna | BP4: =BO4 -> W ościeżnicy nowoczesna | BQ4: =IF(Wycena!$C$14="Bezprzylgowe Glass","",BP4) -> W ościeżnicy nowoczesna | BR4: =IF(ROWS($BQ$3:BQ4)>(ROWS($BQ$3:$BQ$7)-COUNTBLANK($BQ$3:$BQ$7)),"",INDEX($BQ$3:$BQ$7,SMALL(IF($BQ$3:$BQ$7<>"",ROW($BQ$3:$BQ$7)-2),ROWS($BQ$3:BQ4)))) ->  | BT4: W ościeżnicy | BU4: =((900+IF(Wycena!$F$9<>0,200,0))*(1+IFERROR(VLOOKUP(Wycena!$C$44,Mapping!$EY$3:$FB$6,4,1),0)+IFERROR(VLOOKUP(Wycena!$C$48,Mapping!$EY$3:$FB$6,4,1),0))*(1+VLOOKUP(Wycena!$C$53,Mapping!$BV$3:$BW$6,2,1))) ->  | BV4: 50.0001 | BW4: 0.2 | BX4: =IF(Wycena!$C$14="Bezprzylgowe Glass","",BT4) -> W ościeżnicy | BY4: =IF(ROWS($BX$3:BX4)>(ROWS($BX$3:$BX$6)-COUNTBLANK($BX$3:$BX$6)),"",INDEX($BX$3:$BX$6,SMALL(IF($BX$3:$BX$6<>"",ROW($BX$3:$BX$6)-2),ROWS($BX$3:BX4)))) -> W ościeżnicy | BZ4: Brąz refleks | CA4: 0 | CB4: =CA4*(1+IFERROR(VLOOKUP(Wycena!$C$44,Mapping!$EY$3:$FB$6,4,1),0)+IFERROR(VLOOKUP(Wycena!$C$48,Mapping!$EY$3:$FB$6,4,1),0))*(1+VLOOKUP(Wycena!$C$53,Mapping!$BV$3:$BW$6,2,1)) ->  | CC4: Przezierne refleks | CD4: =IF(Wycena!$C$21="-","",CC4) ->  | CE4: =IF(ROWS($CD$3:CD4)>(ROWS($CD$3:$CD$13)-COUNTBLANK($CD$3:$CD$13)),"",INDEX($CD$3:$CD$13,SMALL(IF($CD$3:$CD$13<>"",ROW($CD$3:$CD$13)-2),ROWS($CD$3:CD4)))) ->  | CI4: Krosnowa | CJ4: 300 | CK4: =IF(Wycena!$C$14="Przylgowe",CI4,"") -> Krosnowa | CL4: =IF(ROWS($CK$3:CK4)>(ROWS($CK$3:$CK$4)-COUNTBLANK($CK$3:$CK$4)),"",INDEX($CK$3:$CK$4,SMALL(IF($CK$3:$CK$4<>"",ROW($CK$3:$CK$4)-2),ROWS($CK$3:CK4)))) -> Krosnowa | CN4: Przy skrzydle od zewnątrz | CO4: 1200 | CP4: =IF(Wycena!$C$24="Krosnowa","",CN4) -> Przy skrzydle od zewnątrz | CQ4: =IF(Wycena!$C$14="Bezprzylgowe Glass","",CP4) -> Przy skrzydle od zewnątrz | CR4: =CQ4 -> Przy skrzydle od zewnątrz | CS4: =CR4 -> Przy skrzydle od zewnątrz | CT4: =IF(ROWS($CS$3:CS4)>(ROWS($CS$3:$CS$11)-COUNTBLANK($CS$3:$CS$11)),"",INDEX($CS$3:$CS$11,SMALL(IF($CS$3:$CS$11<>"",ROW($CS$3:$CS$11)-2),ROWS($CS$3:CS4)))) -> Przy skrzydle od zewnątrz | CV4: krosnowa | CW4: 10.5 | CX4: Bezprzylgowe | CY4: 8 | CZ4: 7 | DA4: =IF(CZ4>=VLOOKUP(Wycena!$C$14,Mapping!$CX$3:$CY$5,2,0),CZ4,"") -> 7 | DB4: =IF(ROWS($DA$3:DA4)>(ROWS($DA$3:$DA$28)-COUNTBLANK($DA$3:$DA$28)),"",INDEX($DA$3:$DA$28,SMALL(IF($DA$3:$DA$28<>"",ROW($DA$3:$DA$28)-2),ROWS($DA$3:DA4)))) -> 7 | DD4: krosnowa | DE4: 10.5 | DF4: Bezprzylgowe | DG4: =8+VLOOKUP(Wycena!C25,$CN$16:$CR$25,IF(AND(Wycena!C19="-",Wycena!C20="-"),2,IF(AND(Wycena!C19<>"-",Wycena!C20="-"),3,IF(AND(Wycena!C19="-",Wycena!C20<>"-"),4,5))),0) -> 8 | DH4: =8+VLOOKUP(Wycena!C25,$CN$28:$CR$37,IF(AND(Wycena!C19="-",Wycena!C20="-"),2,IF(AND(Wycena!C19<>"-",Wycena!C20="-"),3,IF(AND(Wycena!C19="-",Wycena!C20<>"-"),4,5))),0) -> 8 | DJ4: 7 | DK4: =IF(DJ4>=VLOOKUP(Wycena!$C$14,Mapping!$DF$3:$DG$5,2,0),DJ4,"") -> 7 | DL4: =IF(ROWS($DK$3:DK4)>(ROWS($DK$3:$DK$28)-COUNTBLANK($DK$3:$DK$28)),"",INDEX($DK$3:$DK$28,SMALL(IF($DK$3:$DK$28<>"",ROW($DK$3:$DK$28)-2),ROWS($DK$3:DK4)))) -> 7 | DM4: =IF(DJ4>=VLOOKUP(Wycena!$C$14,Mapping!$DF$3:$DH$5,3,0),DJ4,"") -> 7 | DN4: =IF(ROWS($DM$3:DM4)>(ROWS($DM$3:$DM$28)-COUNTBLANK($DM$3:$DM$28)),"",INDEX($DM$3:$DM$28,SMALL(IF($DM$3:$DM$28<>"",ROW($DM$3:$DM$28)-2),ROWS($DM$3:DM4)))) -> 7 | DP4: krosnowa | DQ4: 6 | DR4: 7 | DS4: =IF(DR4>=VLOOKUP(Wycena!$C$24,Mapping!$DP$3:$DQ$4,2,0),DR4,"") ->  | DT4: =IF(ROWS($DS$3:DS4)>(ROWS($DS$3:$DS$28)-COUNTBLANK($DS$3:$DS$28)),"",INDEX($DS$3:$DS$28,SMALL(IF($DS$3:$DS$28<>"",ROW($DS$3:$DS$28)-2),ROWS($DS$3:DS4)))) -> 11 | DV4: 1 | DX4: Tak | DY4: =240+(IF(Wycena!C19<>"-",1,0)+IF(Wycena!C20<>"-",1,0))*DY8+IF((IF(Wycena!C15="-",212,IF(Wycena!C15=78, 212,214)))<Wycena!$C$17,1,0)*DY9 -> 240 | EA4: Tak | EB4: =280+(IF(Wycena!C19<>"-",1,0)+IF(Wycena!C20<>"-",1,0))*EB8+IF((IF(Wycena!F15="-",212,IF(Wycena!F15=78, 212,214)))<Wycena!$C$17,1,0)*EB9 -> 280 | EC4: =IF(Wycena!C14="Bezprzylgowe Glass","",EA4) -> Tak | ED4: =IF(ROWS($EC$3:EC4)>(ROWS($EC$3:$EC$4)-COUNTBLANK($EC$3:$EC$4)),"",INDEX($EC$3:$EC$4,SMALL(IF($EC$3:$EC$4<>"",ROW($EC$3:$EC$4)-2),ROWS($EC$3:EC4)))) -> Tak | EF4: 1 kpl | EG4: 200 | EI4: 1 kpl | EJ4: 140 | EL4: 85 | EO4: =IF(OR(Wycena!$C$19<>"-",Wycena!$C$20<>"-",),EL4,"") ->  | EP4: =IF(ROWS($EO$3:EO4)>(ROWS($EO$3:$EO$8)-COUNTBLANK($EO$3:$EO$8)),"",INDEX($EO$3:$EO$8,SMALL(IF($EO$3:$EO$8<>"",ROW($EO$3:$EO$8)-2),ROWS($EO$3:EO4)))) ->  | ER4: 206 | ES4: 206.001 | ET4: 0.1 | EU4: =IF(IF(Wycena!$C$21<>"-",ER4,"")<=Wycena!$C$17-Wycena!$C$26,ER4,"") ->  | EV4: =IF(ROWS($EU$3:EU4)>(ROWS($EU$3:$EU$8)-COUNTBLANK($EU$3:$EU$8)),"",INDEX($EU$3:$EU$8,SMALL(IF($EU$3:$EU$8<>"",ROW($EU$3:$EU$8)-2),ROWS($EU$3:EU4)))) ->  | EX4: 50 | EY4: 50.001 | EZ4: =70%+IF(Wycena!$C$19="Imitacja skrzydła ruchoma",0.1,0) -> 0.7 | FA4: =70%+IF(Wycena!$C$20="Imitacja skrzydła ruchoma",0.1,0) -> 0.7 | FB4: 0.7 | FC4: =IFERROR(VLOOKUP(Wycena!$C$44,Mapping!$EY$3:$FB$6,4,1)+VLOOKUP(Wycena!$C$48,Mapping!$EY$3:$FB$6,4,1),0) -> 0 | FD4: Przezierne refleks | FE4: 200 | FF4: Przezierne refleks | FG4: =IF(Wycena!$C$19="-","-",FF4) -> - | FH4: =IF(ROWS($FG$3:FG4)>(ROWS($FG$3:$FG$14)-COUNTBLANK($FG$3:$FG$14)),"",INDEX($FG$3:$FG$14,SMALL(IF($FG$3:$FG$14<>"",ROW($FG$3:$FG$14)-2),ROWS($FG$3:FG4)))) -> - | FI4: Przezierne refleks | FJ4: =IF(Wycena!$C$20="-","",FI4) ->  | FK4: =IF(ROWS($FJ$3:FJ4)>(ROWS($FJ$3:$FJ$14)-COUNTBLANK($FJ$3:$FJ$14)),"",INDEX($FJ$3:$FJ$14,SMALL(IF($FJ$3:$FJ$14<>"",ROW($FJ$3:$FJ$14)-2),ROWS($FJ$3:FJ4)))) ->  | FN4: 1 | FO4: =IF(Wycena!$C$19="-","",FN4) ->  | FP4: =IF(ROWS($FO$3:FO4)>(ROWS($FO$3:$FO$23)-COUNTBLANK($FO$3:$FO$23)),"",INDEX($FO$3:$FO$23,SMALL(IF($FO$3:$FO$23<>"",ROW($FO$3:$FO$23)-2),ROWS($FO$3:FO4)))) ->  | FQ4: =IF(Wycena!$C$20="-","",FN4) ->  | FR4: =IF(ROWS($FQ$3:FQ4)>(ROWS($FQ$3:$FQ$23)-COUNTBLANK($FQ$3:$FQ$23)),"",INDEX($FQ$3:$FQ$23,SMALL(IF($FQ$3:$FQ$23<>"",ROW($FQ$3:$FQ$23)-2),ROWS($FQ$3:FQ4)))) ->  | FS4: =IF(Wycena!$C$21="-","",FN4) ->  | FT4: =IF(ROWS($FS$3:FS4)>(ROWS($FS$3:$FS$23)-COUNTBLANK($FS$3:$FS$23)),"",INDEX($FS$3:$FS$23,SMALL(IF($FS$3:$FS$23<>"",ROW($FS$3:$FS$23)-2),ROWS($FS$3:FS4)))) ->  | FV4: Zestaw elektronik z zamkiem ryglowym | FW4: 900 | FX4: =IFERROR(VLOOKUP(Wycena!C58,OFFSET(FV15,MATCH(Wycena!C58,FV15:FV32,0),0,15,2),2,0),"") -> Ryglowy 3-punktowy bez gałki (standard) | FY4: =IF(ROWS($FX$3:FX4)>(ROWS($FX$3:$FX$8)-COUNTBLANK($FX$3:$FX$8)),"",INDEX($FX$3:$FX$8,SMALL(IF($FX$3:$FX$8<>"",ROW($FX$3:$FX$8)-2),ROWS($FX$3:FX4)))) -> Ryglowy 3-punktowy bez gałki (standard) | FZ4: Klamka Medos Dublin | GA4: 150 | GB4: Klamka Medos Dublin | GC4: =GB4 -> Klamka Medos Dublin | GI4: =IF((HLOOKUP(VLOOKUP(Wycena!$C$58,Mapping!$GH$35:$GI$42,2,0),$GC$1:$GH$33,2+GJ4))=0,"",(HLOOKUP(VLOOKUP(Wycena!$C$58,Mapping!$GH$35:$GI$42,2,0),$GC$1:$GH$33,2+GJ4))) -> Klamka Medos Dublin | GJ4: 2 | GK4: =IF(ROWS($GI$3:GI4)>(ROWS($GI$3:$GI$33)-COUNTBLANK($GI$3:$GI$33)),"",INDEX($GI$3:$GI$33,SMALL(IF($GI$3:$GI$33<>"",ROW($GI$3:$GI$33)-2),ROWS($GI$3:GI4)))) ->  | GL4: Klamka Medos Warszawa (standard) | GM4: Stare złoto | GN4: =IFERROR(VLOOKUP(Wycena!C60,OFFSET(GL2,MATCH(Wycena!C60,$GL$2:$GL$100,0),0,100,2),2,0),"") ->  | GO4: =IF(ROWS($GN$3:GN4)>(ROWS($GN$3:$GN$6)-COUNTBLANK($GN$3:$GN$6)),"",INDEX($GN$3:$GN$6,SMALL(IF($GN$3:$GN$6<>"",ROW($GN$3:$GN$6)-2),ROWS($GN$3:GN4)))) ->  | GP4: =IFERROR(IF(FIND("Antaba M",Wycena!$C$60)>0,80,""),"") ->  | GQ4: =IF(ROWS($GP$3:GP4)>(ROWS($GP$3:$GP$9)-COUNTBLANK($GP$3:$GP$9)),"",INDEX($GP$3:$GP$9,SMALL(IF($GP$3:$GP$9<>"",ROW($GP$3:$GP$9)-2),ROWS($GP$3:GP4)))) ->  | GR4: Standard patyna | GS4: 0 | GT4: =IF(OR(Wycena!$C$58=Mapping!$FV$7,Wycena!$C$58=Mapping!$FV$6),"",GR4) -> Standard patyna | GU4: =IF(ROWS($GT$3:GT4)>(ROWS($GT$3:$GT$8)-COUNTBLANK($GT$3:$GT$8)),"",INDEX($GT$3:$GT$8,SMALL(IF($GT$3:$GT$8<>"",ROW($GT$3:$GT$8)-2),ROWS($GT$3:GT4)))) -> Standard patyna | GV4: Manualna | GW4: 350 | GX4: =IF(Wycena!$C$58=Mapping!$GV$15,Mapping!GV4,"") -> Manualna | GY4: =IFERROR(IF(FIND("Klamka",Wycena!$C$60)>0,"",GX4),GX4) -> Manualna | GZ4: =IF(ROWS($GY$3:GY4)>(ROWS($GY$3:$GY$5)-COUNTBLANK(GY$3:$GY$5)),"",INDEX(GY$3:$GY$5,SMALL(IF(GY$3:$GY$5<>"",ROW(GY$3:$GY$5)-2),ROWS($GY$3:GY4)))) -> Manualna | HA4: Tak | HB4: =IF(Wycena!C58="Zestaw antywłamaniowy RC2",0,250) -> 250 | HC4: =IF(ROWS($HA$3:HA4)>(ROWS($HA$3:$HA$4)-COUNTBLANK($HA$3:$HA$4)),"",INDEX($HA$3:$HA$4,SMALL(IF($HA$3:$HA$4<>"",ROW($HA$3:$HA$4)-2),ROWS($HA$3:HA4)))) -> Tak | HE4: W skrzydle | HF4: 300 | HG4: =IF(Wycena!$C$58=Mapping!$HA$31,-300,0)+HF4 -> 300 | HH4: =IF(Wycena!$C$6="Brak (pełne)","",HE4) -> W skrzydle | HI4: =HH4 -> W skrzydle | HJ4: =IF(ROWS($HI$3:HI4)>(ROWS($HI$3:$HI$13)-COUNTBLANK($HI$3:$HI$13)),"",INDEX($HI$3:$HI$13,SMALL(IF($HI$3:$HI$13<>"",ROW($HI$3:$HI$13)-2),ROWS($HI$3:HI4)))) -> W skrzydle | HL4: Drewniany z nakładką gumową | HM4: 150 | HN4: =(1+IFERROR(VLOOKUP(Wycena!$C$44,Mapping!$EY$3:$FB$6,4,1),0)+IFERROR(VLOOKUP(Wycena!$C$48,Mapping!$EY$3:$FB$6,4,1),0))*HM4 -> 150 | HO4: =IF(VLOOKUP(Wycena!$C$18,Mapping!$HL$10:$HM$13,2,0)=0,"",Mapping!HL4) ->  | HP4: =IF(ROWS($HO$3:HO4)>(ROWS($HO$3:$HO$5)-COUNTBLANK($HO$3:$HO$5)),"",INDEX($HO$3:$HO$5,SMALL(IF($HO$3:$HO$5<>"",ROW($HO$3:$HO$5)-2),ROWS($HO$3:HO4)))) ->  | HR4: 3 | HS4: 70 | HT4: =(1+IFERROR(VLOOKUP(Wycena!$C$44,Mapping!$EY$3:$FB$6,4,1),0)+IFERROR(VLOOKUP(Wycena!$C$48,Mapping!$EY$3:$FB$6,4,1),0))*HS4 -> 70 | HV4: Z jednej strony skrzydła | HW4: 100 | HX4: 100 | HY4: 200 | HZ4: 200 | IA4: Z jednej strony skrzydła | IB4: =IF(ROWS($IA$3:IA4)>(ROWS($IA$3:$IA$9)-COUNTBLANK($IA$3:$IA$9)),"",INDEX($IA$3:$IA$9,SMALL(IF($IA$3:$IA$9<>"",ROW($IA$3:$IA$9)-2),ROWS($IA$3:IA4)))) -> Z jednej strony skrzydła | ID4: Inox | IE4: 150 | IG4: Nawierzchniowy inox | IH4: 300 | IJ4: Lew retro patyna | IK4: 300 | IM4: Na skrzydle | IN4: 200 | IP4: Tak | IQ4: 30 | IS4: Tak | IT4: 100 | IV4: 0.01 | IX4: 200 | IZ4: 0.08
A5: DB 04 | B5: 20 | C5: 20 | D5: 20 | E5: 20 | F5: 34 | G5: 34 | H5: 36 | I5: 36 | J5: Imitacja skrzydła stała | K5: 6 | M5: =IFERROR(VLOOKUP(Wycena!$C$5,OFFSET(SKU!$B$1,MATCH(Wycena!$C$5,SKU!$B$1:$B$743,0)+1,0,1000,6),5,0),"") ->  | N5: =IFERROR(VLOOKUP(Wycena!$C$5,OFFSET(SKU!$B$1,MATCH(Wycena!$C$5,SKU!$B$1:$B$743,0)+1,0,1000,6),2,0)-VLOOKUP(Wycena!$C$5,SKU!$B$1:$C$743,2,0),"") ->  | O5: =IF(ROWS($M$3:M5)>(ROWS($M$3:$M$10)-COUNTBLANK($M$3:$M$10)),"",INDEX($M$3:$M$10,SMALL(IF($M$3:$M$10<>"",ROW($M$3:$M$10)-2),ROWS($M$3:M5)))) ->  | Q5: Dab flader podłużny | R5: 800 | S5: =IF(VLOOKUP(Wycena!$C$5,SKU!$B$1:$D$743,3,0)="Płytowe",Q5,"") ->  | T5: =IF(ROWS($S$3:S5)>(ROWS($S$3:$S$8)-COUNTBLANK($S$3:$S$8)),"",INDEX($S$3:$S$8,SMALL(IF($S$3:$S$8<>"",ROW($S$3:$S$8)-2),ROWS($S$3:S5)))) ->  | V5: Dwukolor | W5: 300 | Y5: Dąb | Z5: 0 | AA5: Dąb | AB5: =IF(ROWS($AA$3:AA5)>(ROWS($AA$3:$AA$228)-COUNTBLANK($AA$3:$AA$228)),"",INDEX($AA$3:$AA$228,SMALL(IF($AA$3:$AA$228<>"",ROW($AA$3:$AA$228)-2),ROWS($AA$3:AA5)))) ->  | AD5: x | AF5: x | AH5: =IF(VLOOKUP(Wycena!$C$5,SKU!$B$1:$I$743,8,0)>0,"Skała beżowa","") ->  | AI5: =VLOOKUP(Wycena!$C$5,SKU!$B$1:$I$743,8,0) ->  | AJ5: =IF(ROWS($AH$3:AH5)>(ROWS($AH$3:$AH$7)-COUNTBLANK($AH$3:$AH$7)),"",INDEX($AH$3:$AH$7,SMALL(IF($AH$3:$AH$7<>"",ROW($AH$3:$AH$7)-2),ROWS($AH$3:AH5)))) ->  | AL5: Bezprzylgowe Glass | AM5: =IF(OR((VLOOKUP(Wycena!$C$5,SKU!$B$1:$E$743,4,0)="Simple"),VLOOKUP(Wycena!$C$5,SKU!$B$1:$E$743,4,0)="Prestige Glass",VLOOKUP(Wycena!$C$5,SKU!$B$1:$E$743,4,0)="Maverick"),AL5,"") ->  | AN5: =IFERROR(IF(Wycena!C41*1>214,2500,2000),2000) -> 2000 | AO5: =IF(ROWS($AM$3:AM5)>(ROWS($AM$3:$AM$5)-COUNTBLANK($AM$3:$AM$5)),"",INDEX($AM$3:$AM$5,SMALL(IF($AM$3:$AM$5<>"",ROW($AM$3:$AM$5)-2),ROWS($AM$3:AM5)))) ->  | AU5: =IF(ROWS($AS$3:AS5)>(ROWS($AS$3:$AS$5)-COUNTBLANK($AS$3:$AS$5)),"",INDEX($AS$3:$AS$5,SMALL(IF($AS$3:$AS$5<>"",ROW($AS$3:$AS$5)-2),ROWS($AS$3:AS5)))) ->  | AW5: 74 | AX5: 0 | AY5: 0 | AZ5: =IF(Wycena!$C$15=78,Mapping!AX5,AY5) -> 0 | BA5: 2 | BB5: Konieczne 2 dostawki | BC5: 182 | BD5: 0 | BE5: 0 | BF5: =IF(Wycena!$C$15=78,Mapping!BD5,BE5) -> 0 | BJ5: Prawe na zewnątrz | BK5: Prawe na zewnątrz | BL5: =IF(ROWS($BK$3:BK5)>(ROWS($BK$3:$BK$6)-COUNTBLANK($BK$3:$BK$6)),"",INDEX($BK$3:$BK$6,SMALL(IF($BK$3:$BK$6<>"",ROW($BK$3:$BK$6)-2),ROWS($BK$3:BK5)))) -> Prawe na zewnątrz | BN5: W ościeżnicy tradycyjna | BO5: =IF(VLOOKUP(Wycena!$C$5,SKU!$B$1:$D$743,3,0)="Płytowe","",BN5) ->  | BP5: =BO5 ->  | BQ5: =IF(Wycena!$C$14="Bezprzylgowe Glass","",BP5) ->  | BR5: =IF(ROWS($BQ$3:BQ5)>(ROWS($BQ$3:$BQ$7)-COUNTBLANK($BQ$3:$BQ$7)),"",INDEX($BQ$3:$BQ$7,SMALL(IF($BQ$3:$BQ$7<>"",ROW($BQ$3:$BQ$7)-2),ROWS($BQ$3:BQ5)))) ->  | BT5: Imitacja skrzydła | BU5: =((900+IF(Wycena!$F$9<>0,200,0))*(1+IFERROR(VLOOKUP(Wycena!$C$44,Mapping!$EY$3:$FB$6,4,1),0)+IFERROR(VLOOKUP(Wycena!$C$48,Mapping!$EY$3:$FB$6,4,1),0))*(1+VLOOKUP(Wycena!$C$53,Mapping!$BV$3:$BW$6,2,1))) ->  | BV5: 70.0001 | BW5: 0.5 | BX5: =IF(Wycena!$C$14="Bezprzylgowe Glass","",BT5) -> Imitacja skrzydła | BY5: =IF(ROWS($BX$3:BX5)>(ROWS($BX$3:$BX$6)-COUNTBLANK($BX$3:$BX$6)),"",INDEX($BX$3:$BX$6,SMALL(IF($BX$3:$BX$6<>"",ROW($BX$3:$BX$6)-2),ROWS($BX$3:BX5)))) -> Imitacja skrzydła | BZ5: Grafit refleks | CA5: 50 | CB5: =CA5*(1+IFERROR(VLOOKUP(Wycena!$C$44,Mapping!$EY$3:$FB$6,4,1),0)+IFERROR(VLOOKUP(Wycena!$C$48,Mapping!$EY$3:$FB$6,4,1),0))*(1+VLOOKUP(Wycena!$C$53,Mapping!$BV$3:$BW$6,2,1)) ->  | CC5: Brąz refleks | CD5: =IF(Wycena!$C$21="-","",CC5) ->  | CE5: =IF(ROWS($CD$3:CD5)>(ROWS($CD$3:$CD$13)-COUNTBLANK($CD$3:$CD$13)),"",INDEX($CD$3:$CD$13,SMALL(IF($CD$3:$CD$13<>"",ROW($CD$3:$CD$13)-2),ROWS($CD$3:CD5)))) ->  | CI5: x | CJ5: x | CK5: x | CL5: x | CN5: Przy skrzydle z dwóch stron | CO5: 1600 | CP5: =IF(Wycena!$C$24="Krosnowa","",CN5) -> Przy skrzydle z dwóch stron | CQ5: =IF(Wycena!$C$14="Bezprzylgowe Glass","",CP5) -> Przy skrzydle z dwóch stron | CR5: =CQ5 -> Przy skrzydle z dwóch stron | CS5: =CR5 -> Przy skrzydle z dwóch stron | CT5: =IF(ROWS($CS$3:CS5)>(ROWS($CS$3:$CS$11)-COUNTBLANK($CS$3:$CS$11)),"",INDEX($CS$3:$CS$11,SMALL(IF($CS$3:$CS$11<>"",ROW($CS$3:$CS$11)-2),ROWS($CS$3:CS5)))) -> Przy skrzydle z dwóch stron | CX5: Bezprzylgowe Glass | CY5: 12 | CZ5: 8 | DA5: =IF(CZ5>=VLOOKUP(Wycena!$C$14,Mapping!$CX$3:$CY$5,2,0),CZ5,"") -> 8 | DB5: =IF(ROWS($DA$3:DA5)>(ROWS($DA$3:$DA$28)-COUNTBLANK($DA$3:$DA$28)),"",INDEX($DA$3:$DA$28,SMALL(IF($DA$3:$DA$28<>"",ROW($DA$3:$DA$28)-2),ROWS($DA$3:DA5)))) -> 8 | DF5: Bezprzylgowe Glass | DG5: 12 | DH5: 12 | DJ5: 8 | DK5: =IF(DJ5>=VLOOKUP(Wycena!$C$14,Mapping!$DF$3:$DG$5,2,0),DJ5,"") -> 8 | DL5: =IF(ROWS($DK$3:DK5)>(ROWS($DK$3:$DK$28)-COUNTBLANK($DK$3:$DK$28)),"",INDEX($DK$3:$DK$28,SMALL(IF($DK$3:$DK$28<>"",ROW($DK$3:$DK$28)-2),ROWS($DK$3:DK5)))) -> 8 | DM5: =IF(DJ5>=VLOOKUP(Wycena!$C$14,Mapping!$DF$3:$DH$5,3,0),DJ5,"") -> 8 | DN5: =IF(ROWS($DM$3:DM5)>(ROWS($DM$3:$DM$28)-COUNTBLANK($DM$3:$DM$28)),"",INDEX($DM$3:$DM$28,SMALL(IF($DM$3:$DM$28<>"",ROW($DM$3:$DM$28)-2),ROWS($DM$3:DM5)))) -> 8 | DR5: 8 | DS5: =IF(DR5>=VLOOKUP(Wycena!$C$24,Mapping!$DP$3:$DQ$4,2,0),DR5,"") ->  | DT5: =IF(ROWS($DS$3:DS5)>(ROWS($DS$3:$DS$28)-COUNTBLANK($DS$3:$DS$28)),"",INDEX($DS$3:$DS$28,SMALL(IF($DS$3:$DS$28<>"",ROW($DS$3:$DS$28)-2),ROWS($DS$3:DS5)))) -> 12 | DV5: 2 | EC5: x | ED5: x | EF5: 2 kpl | EG5: 400 | EI5: 2 kpl | EJ5: 280 | EL5: 90 | EM5: 90.001 | EN5: 300 | EO5: =IF(OR(Wycena!$C$19<>"-",Wycena!$C$20<>"-",),EL5,"") ->  | EP5: =IF(ROWS($EO$3:EO5)>(ROWS($EO$3:$EO$8)-COUNTBLANK($EO$3:$EO$8)),"",INDEX($EO$3:$EO$8,SMALL(IF($EO$3:$EO$8<>"",ROW($EO$3:$EO$8)-2),ROWS($EO$3:EO5)))) ->  | ER5: 214 | ES5: 214.001 | ET5: 0.2 | EU5: =IF(IF(Wycena!$C$21<>"-",ER5,"")<=Wycena!$C$17-Wycena!$C$26,ER5,"") ->  | EV5: =IF(ROWS($EU$3:EU5)>(ROWS($EU$3:$EU$8)-COUNTBLANK($EU$3:$EU$8)),"",INDEX($EU$3:$EU$8,SMALL(IF($EU$3:$EU$8<>"",ROW($EU$3:$EU$8)-2),ROWS($EU$3:EU5)))) ->  | EX5: 70 | EY5: 70.001 | EZ5: =100%+IF(Wycena!$C$19="Imitacja skrzydła ruchoma",0.1,0) -> 1 | FA5: =100%+IF(Wycena!$C$20="Imitacja skrzydła ruchoma",0.1,0) -> 1 | FB5: 1 | FC5: =IFERROR(VLOOKUP(Wycena!$C$44,Mapping!$EY$3:$FB$6,4,1)+VLOOKUP(Wycena!$C$48,Mapping!$EY$3:$FB$6,4,1),0) -> 0 | FD5: Brąz refleks | FE5: 200 | FF5: Brąz refleks | FG5: =IF(Wycena!$C$19="-","",FF5) ->  | FH5: =IF(ROWS($FG$3:FG5)>(ROWS($FG$3:$FG$14)-COUNTBLANK($FG$3:$FG$14)),"",INDEX($FG$3:$FG$14,SMALL(IF($FG$3:$FG$14<>"",ROW($FG$3:$FG$14)-2),ROWS($FG$3:FG5)))) ->  | FI5: Brąz refleks | FJ5: =IF(Wycena!$C$20="-","",FI5) ->  | FK5: =IF(ROWS($FJ$3:FJ5)>(ROWS($FJ$3:$FJ$14)-COUNTBLANK($FJ$3:$FJ$14)),"",INDEX($FJ$3:$FJ$14,SMALL(IF($FJ$3:$FJ$14<>"",ROW($FJ$3:$FJ$14)-2),ROWS($FJ$3:FJ5)))) ->  | FM5: stawka powyżej 4 | FN5: 2 | FO5: =IF(Wycena!$C$19="-","",FN5) ->  | FP5: =IF(ROWS($FO$3:FO5)>(ROWS($FO$3:$FO$23)-COUNTBLANK($FO$3:$FO$23)),"",INDEX($FO$3:$FO$23,SMALL(IF($FO$3:$FO$23<>"",ROW($FO$3:$FO$23)-2),ROWS($FO$3:FO5)))) ->  | FQ5: =IF(Wycena!$C$20="-","",FN5) ->  | FR5: =IF(ROWS($FQ$3:FQ5)>(ROWS($FQ$3:$FQ$23)-COUNTBLANK($FQ$3:$FQ$23)),"",INDEX($FQ$3:$FQ$23,SMALL(IF($FQ$3:$FQ$23<>"",ROW($FQ$3:$FQ$23)-2),ROWS($FQ$3:FQ5)))) ->  | FS5: =IF(Wycena!$C$21="-","",FN5) ->  | FT5: =IF(ROWS($FS$3:FS5)>(ROWS($FS$3:$FS$23)-COUNTBLANK($FS$3:$FS$23)),"",INDEX($FS$3:$FS$23,SMALL(IF($FS$3:$FS$23<>"",ROW($FS$3:$FS$23)-2),ROWS($FS$3:FS5)))) ->  | FV5: Zestaw elektronik z zamkiem automatycznym | FW5: 1200 | FX5: =IFERROR(VLOOKUP(Wycena!C58,OFFSET(FV15,MATCH(Wycena!C58,FV15:FV32,0)+1,0,15,2),2,0),"") -> Ryglowy 4-punktowy | FY5: =IF(ROWS($FX$3:FX5)>(ROWS($FX$3:$FX$8)-COUNTBLANK($FX$3:$FX$8)),"",INDEX($FX$3:$FX$8,SMALL(IF($FX$3:$FX$8<>"",ROW($FX$3:$FX$8)-2),ROWS($FX$3:FX5)))) -> Ryglowy 4-punktowy | FZ5: Klamka Barański Retro | GA5: 400 | GB5: Klamka Barański Retro | GC5: Klamka Barański Retro | GI5: =IF((HLOOKUP(VLOOKUP(Wycena!$C$58,Mapping!$GH$35:$GI$42,2,0),$GC$1:$GH$33,2+GJ5))=0,"",(HLOOKUP(VLOOKUP(Wycena!$C$58,Mapping!$GH$35:$GI$42,2,0),$GC$1:$GH$33,2+GJ5))) -> Klamka Barański Retro | GJ5: 3 | GK5: =IF(ROWS($GI$3:GI5)>(ROWS($GI$3:$GI$33)-COUNTBLANK($GI$3:$GI$33)),"",INDEX($GI$3:$GI$33,SMALL(IF($GI$3:$GI$33<>"",ROW($GI$3:$GI$33)-2),ROWS($GI$3:GI5)))) ->  | GL5: Klamka Medos Warszawa (standard) | GM5: Czarny | GN5: =IFERROR(VLOOKUP(Wycena!C60,OFFSET(GL2,MATCH(Wycena!C60,$GL$2:$GL$100,0)+1,0,100,2),2,0),"") ->  | GO5: =IF(ROWS($GN$3:GN5)>(ROWS($GN$3:$GN$6)-COUNTBLANK($GN$3:$GN$6)),"",INDEX($GN$3:$GN$6,SMALL(IF($GN$3:$GN$6<>"",ROW($GN$3:$GN$6)-2),ROWS($GN$3:GN5)))) ->  | GP5: =IFERROR(IF(FIND("Antaba M",Wycena!$C$60)>0,100,""),"") ->  | GQ5: =IF(ROWS($GP$3:GP5)>(ROWS($GP$3:$GP$9)-COUNTBLANK($GP$3:$GP$9)),"",INDEX($GP$3:$GP$9,SMALL(IF($GP$3:$GP$9<>"",ROW($GP$3:$GP$9)-2),ROWS($GP$3:GP5)))) ->  | GR5: Klasy B czarna | GS5: 250 | GT5: =IF(OR(Wycena!$C$58=Mapping!$FV$7,Wycena!$C$58=Mapping!$FV$6),"",GR5) -> Klasy B czarna | GU5: =IF(ROWS($GT$3:GT5)>(ROWS($GT$3:$GT$8)-COUNTBLANK($GT$3:$GT$8)),"",INDEX($GT$3:$GT$8,SMALL(IF($GT$3:$GT$8<>"",ROW($GT$3:$GT$8)-2),ROWS($GT$3:GT5)))) -> Klasy B czarna | GV5: Elektrozaczep | GW5: =IF(Wycena!C58=Mapping!GV18,0,400) -> 400 | GX5: =IF(OR(Wycena!$C$58=Mapping!$GV$18,Wycena!$C$58=Mapping!$GV$15),Mapping!GV5,"") -> Elektrozaczep | GY5: =IFERROR(IF(FIND("Klamka",Wycena!$C$60)>0,"",GX5),GX5) -> Elektrozaczep | GZ5: =IF(ROWS($GY$3:GY5)>(ROWS($GY$3:$GY$5)-COUNTBLANK(GY$3:$GY$5)),"",INDEX(GY$3:$GY$5,SMALL(IF(GY$3:$GY$5<>"",ROW(GY$3:$GY$5)-2),ROWS($GY$3:GY5)))) -> Elektrozaczep | HA5: x | HB5: x | HC5: x | HE5: W skrzydle i dostawce | HF5: 600 | HG5: =IF(Wycena!$C$58=Mapping!$HA$31,-300,0)+HF5 -> 600 | HH5: =IF(Wycena!$C$6="Brak (pełne)","",HE5) -> W skrzydle i dostawce | HI5: =IF(OR(AND(Wycena!$C$19="-",Wycena!$C$20<>"-"),AND(Wycena!$C$20="-",Wycena!$C$19<>"-")),HH5,"") ->  | HJ5: =IF(ROWS($HI$3:HI5)>(ROWS($HI$3:$HI$13)-COUNTBLANK($HI$3:$HI$13)),"",INDEX($HI$3:$HI$13,SMALL(IF($HI$3:$HI$13<>"",ROW($HI$3:$HI$13)-2),ROWS($HI$3:HI5)))) ->  | HL5: Drewniany z nakładką aluminową | HM5: 200 | HN5: =(1+IFERROR(VLOOKUP(Wycena!$C$44,Mapping!$EY$3:$FB$6,4,1),0)+IFERROR(VLOOKUP(Wycena!$C$48,Mapping!$EY$3:$FB$6,4,1),0))*HM5 -> 200 | HO5: Drewniany z nakładką aluminową | HP5: =IF(ROWS($HO$3:HO5)>(ROWS($HO$3:$HO$5)-COUNTBLANK($HO$3:$HO$5)),"",INDEX($HO$3:$HO$5,SMALL(IF($HO$3:$HO$5<>"",ROW($HO$3:$HO$5)-2),ROWS($HO$3:HO5)))) ->  | HR5: 5 | HS5: 70 | HT5: =(1+IFERROR(VLOOKUP(Wycena!$C$44,Mapping!$EY$3:$FB$6,4,1),0)+IFERROR(VLOOKUP(Wycena!$C$48,Mapping!$EY$3:$FB$6,4,1),0))*HS5 -> 70 | HV5: Z jednej strony skrzydła i dostawki | HW5: 100 | HX5: =(1+IFERROR(VLOOKUP(Wycena!$C$44,Mapping!$EY$3:$FB$6,4,1),0)+IFERROR(VLOOKUP(Wycena!$C$48,Mapping!$EY$3:$FB$6,4,1),0))*HW5 -> 100 | HY5: 200 | HZ5: =(1+IFERROR(VLOOKUP(Wycena!$C$44,Mapping!$EY$3:$FB$6,4,1),0)+IFERROR(VLOOKUP(Wycena!$C$48,Mapping!$EY$3:$FB$6,4,1),0))*HY5 -> 200 | IA5: =IF(OR(AND(Wycena!$C$19="-",Wycena!$C$20<>"-"),AND(Wycena!$C$20="-",Wycena!$C$19<>"-")),HV5,"") ->  | IB5: =IF(ROWS($IA$3:IA5)>(ROWS($IA$3:$IA$9)-COUNTBLANK($IA$3:$IA$9)),"",INDEX($IA$3:$IA$9,SMALL(IF($IA$3:$IA$9<>"",ROW($IA$3:$IA$9)-2),ROWS($IA$3:IA5)))) -> Z dwóch stron skrzydła | ID5: Patyna | IE5: 150 | IG5: Nawierzchniowy biały | IH5: 300 | IJ5: Lew retro satyna | IK5: 300 | IM5: Na dostawce | IN5: 200 | IV5: 0.02 | IX5: 300 | IZ5: 0.23
A6: DB 07 | B6: 20 | C6: 20 | D6: 20 | E6: 20 | F6: 34 | G6: 34 | H6: 36 | I6: 36 | J6: Imitacja skrzydła ruchoma | K6: 8 | M6: =IFERROR(VLOOKUP(Wycena!$C$5,OFFSET(SKU!$B$1,MATCH(Wycena!$C$5,SKU!$B$1:$B$743,0)+2,0,1000,6),5,0),"") ->  | N6: =IFERROR(VLOOKUP(Wycena!$C$5,OFFSET(SKU!$B$1,MATCH(Wycena!$C$5,SKU!$B$1:$B$743,0)+2,0,1000,6),2,0)-VLOOKUP(Wycena!$C$5,SKU!$B$1:$C$743,2,0),"") ->  | O6: =IF(ROWS($M$3:M6)>(ROWS($M$3:$M$10)-COUNTBLANK($M$3:$M$10)),"",INDEX($M$3:$M$10,SMALL(IF($M$3:$M$10<>"",ROW($M$3:$M$10)-2),ROWS($M$3:M6)))) ->  | Q6: Dąb flader poprzeczny | R6: 800 | S6: =IF(VLOOKUP(Wycena!$C$5,SKU!$B$1:$D$743,3,0)="Płytowe",Q6,"") ->  | T6: =IF(ROWS($S$3:S6)>(ROWS($S$3:$S$8)-COUNTBLANK($S$3:$S$8)),"",INDEX($S$3:$S$8,SMALL(IF($S$3:$S$8<>"",ROW($S$3:$S$8)-2),ROWS($S$3:S6)))) ->  | V6: Więcej niż dwa | W6: 500 | Y6: Dąb bagienny | Z6: 0 | AA6: Dąb bagienny | AB6: =IF(ROWS($AA$3:AA6)>(ROWS($AA$3:$AA$228)-COUNTBLANK($AA$3:$AA$228)),"",INDEX($AA$3:$AA$228,SMALL(IF($AA$3:$AA$228<>"",ROW($AA$3:$AA$228)-2),ROWS($AA$3:AA6)))) ->  | AH6: =IF(VLOOKUP(Wycena!$C$5,SKU!$B$1:$I$743,8,0)>0,"Węgiel drzewny","") ->  | AI6: =VLOOKUP(Wycena!$C$5,SKU!$B$1:$I$743,8,0) ->  | AJ6: =IF(ROWS($AH$3:AH6)>(ROWS($AH$3:$AH$7)-COUNTBLANK($AH$3:$AH$7)),"",INDEX($AH$3:$AH$7,SMALL(IF($AH$3:$AH$7<>"",ROW($AH$3:$AH$7)-2),ROWS($AH$3:AH6)))) ->  | AL6: x | AM6: x | AN6: x | AO6: x | AQ6: x | AR6: x | AS6: x | AT6: x | AU6: x | AW6: 75 | AX6: 0 | AY6: 0 | AZ6: =IF(Wycena!$C$15=78,Mapping!AX6,AY6) -> 0 | BC6: 183 | BD6: 0 | BE6: 0 | BF6: =IF(Wycena!$C$15=78,Mapping!BD6,BE6) -> 0 | BJ6: Prawe do wewnątrz | BK6: =IF(Wycena!$C$14="Bezprzylgowe Glass","",BJ6) -> Prawe do wewnątrz | BL6: =IF(ROWS($BK$3:BK6)>(ROWS($BK$3:$BK$6)-COUNTBLANK($BK$3:$BK$6)),"",INDEX($BK$3:$BK$6,SMALL(IF($BK$3:$BK$6<>"",ROW($BK$3:$BK$6)-2),ROWS($BK$3:BK6)))) -> Prawe do wewnątrz | BN6: Imitacja skrzydła stała | BO6: Imitacja skrzydła stała | BP6: =IF(VLOOKUP(Wycena!C5,SKU!$B$1:$E$743,4,0)="Prestige Kamień","",BO6) ->  | BQ6: =BP6 ->  | BR6: =IF(ROWS($BQ$3:BQ6)>(ROWS($BQ$3:$BQ$7)-COUNTBLANK($BQ$3:$BQ$7)),"",INDEX($BQ$3:$BQ$7,SMALL(IF($BQ$3:$BQ$7<>"",ROW($BQ$3:$BQ$7)-2),ROWS($BQ$3:BQ6)))) ->  | BT6: W łuku | BU6: =((2100+IF(Wycena!$F$9<>0,200,0))*(1+IFERROR(VLOOKUP(Wycena!$C$44,Mapping!$EY$3:$FB$6,4,1),0)+IFERROR(VLOOKUP(Wycena!$C$48,Mapping!$EY$3:$FB$6,4,1),0))*(1+VLOOKUP(Wycena!$C$53,Mapping!$BV$3:$BW$6,2,1))) ->  | BV6: 100.0001 | BX6: =IF(Wycena!$C$14="Bezprzylgowe Glass","",BT6) -> W łuku | BY6: =IF(ROWS($BX$3:BX6)>(ROWS($BX$3:$BX$6)-COUNTBLANK($BX$3:$BX$6)),"",INDEX($BX$3:$BX$6,SMALL(IF($BX$3:$BX$6<>"",ROW($BX$3:$BX$6)-2),ROWS($BX$3:BX6)))) -> W łuku | BZ6: Lustro weneckie | CA6: 50 | CB6: =CA6*(1+IFERROR(VLOOKUP(Wycena!$C$44,Mapping!$EY$3:$FB$6,4,1),0)+IFERROR(VLOOKUP(Wycena!$C$48,Mapping!$EY$3:$FB$6,4,1),0))*(1+VLOOKUP(Wycena!$C$53,Mapping!$BV$3:$BW$6,2,1)) ->  | CC6: Grafit refleks | CD6: =IF(Wycena!$C$21="-","",CC6) ->  | CE6: =IF(ROWS($CD$3:CD6)>(ROWS($CD$3:$CD$13)-COUNTBLANK($CD$3:$CD$13)),"",INDEX($CD$3:$CD$13,SMALL(IF($CD$3:$CD$13<>"",ROW($CD$3:$CD$13)-2),ROWS($CD$3:CD6)))) ->  | CN6: Przy skrzydle i ościeżnicy od zewnątrz | CO6: =1200+((IF(OR(Wycena!$C$19="W ościeżnicy nowoczesna",Wycena!$C$19="W ościeżnicy tradycyjna"),1,0))+(IF(OR(Wycena!$C$20="W ościeżnicy nowoczesna",Wycena!$C$20="W ościeżnicy tradycyjna"),1,0)))*600 -> 1200 | CP6: =IF(Wycena!$C$24="Krosnowa","",CN6) -> Przy skrzydle i ościeżnicy od zewnątrz | CQ6: =IF(Wycena!$C$14="Bezprzylgowe Glass","",CP6) -> Przy skrzydle i ościeżnicy od zewnątrz | CR6: =IF(OR(Wycena!$C$19="W ościeżnicy nowoczesna",Wycena!$C$19="W ościeżnicy tradycyjna",Wycena!$C$20="W ościeżnicy nowoczesna",Wycena!$C$20="W ościeżnicy tradycyjna"),CQ6,"") ->  | CS6: =CR6 ->  | CT6: =IF(ROWS($CS$3:CS6)>(ROWS($CS$3:$CS$11)-COUNTBLANK($CS$3:$CS$11)),"",INDEX($CS$3:$CS$11,SMALL(IF($CS$3:$CS$11<>"",ROW($CS$3:$CS$11)-2),ROWS($CS$3:CS6)))) ->  | CZ6: 9 | DA6: =IF(CZ6>=VLOOKUP(Wycena!$C$14,Mapping!$CX$3:$CY$5,2,0),CZ6,"") -> 9 | DB6: =IF(ROWS($DA$3:DA6)>(ROWS($DA$3:$DA$28)-COUNTBLANK($DA$3:$DA$28)),"",INDEX($DA$3:$DA$28,SMALL(IF($DA$3:$DA$28<>"",ROW($DA$3:$DA$28)-2),ROWS($DA$3:DA6)))) -> 9 | DJ6: 9 | DK6: =IF(DJ6>=VLOOKUP(Wycena!$C$14,Mapping!$DF$3:$DG$5,2,0),DJ6,"") -> 9 | DL6: =IF(ROWS($DK$3:DK6)>(ROWS($DK$3:$DK$28)-COUNTBLANK($DK$3:$DK$28)),"",INDEX($DK$3:$DK$28,SMALL(IF($DK$3:$DK$28<>"",ROW($DK$3:$DK$28)-2),ROWS($DK$3:DK6)))) -> 9 | DM6: =IF(DJ6>=VLOOKUP(Wycena!$C$14,Mapping!$DF$3:$DH$5,3,0),DJ6,"") -> 9 | DN6: =IF(ROWS($DM$3:DM6)>(ROWS($DM$3:$DM$28)-COUNTBLANK($DM$3:$DM$28)),"",INDEX($DM$3:$DM$28,SMALL(IF($DM$3:$DM$28<>"",ROW($DM$3:$DM$28)-2),ROWS($DM$3:DM6)))) -> 9 | DR6: 9 | DS6: =IF(DR6>=VLOOKUP(Wycena!$C$24,Mapping!$DP$3:$DQ$4,2,0),DR6,"") ->  | DT6: =IF(ROWS($DS$3:DS6)>(ROWS($DS$3:$DS$28)-COUNTBLANK($DS$3:$DS$28)),"",INDEX($DS$3:$DS$28,SMALL(IF($DS$3:$DS$28<>"",ROW($DS$3:$DS$28)-2),ROWS($DS$3:DS6)))) -> 13 | DV6: 3 | EL6: 100 | EM6: 100.001 | EN6: 900 | EO6: =IF(OR(Wycena!$C$19<>"-",Wycena!$C$20<>"-",),EL6,"") ->  | EP6: =IF(ROWS($EO$3:EO6)>(ROWS($EO$3:$EO$8)-COUNTBLANK($EO$3:$EO$8)),"",INDEX($EO$3:$EO$8,SMALL(IF($EO$3:$EO$8<>"",ROW($EO$3:$EO$8)-2),ROWS($EO$3:EO6)))) ->  | ER6: 224 | ES6: 224.001 | ET6: 0.3 | EU6: =IF(IF(Wycena!$C$21<>"-",ER6,"")<=Wycena!$C$17-Wycena!$C$26,ER6,"") ->  | EV6: =IF(ROWS($EU$3:EU6)>(ROWS($EU$3:$EU$8)-COUNTBLANK($EU$3:$EU$8)),"",INDEX($EU$3:$EU$8,SMALL(IF($EU$3:$EU$8<>"",ROW($EU$3:$EU$8)-2),ROWS($EU$3:EU6)))) ->  | EX6: 100 | EY6: 100.001 | FD6: Grafit refleks | FE6: 250 | FF6: Grafit refleks | FG6: =IF(Wycena!$C$19="-","",FF6) ->  | FH6: =IF(ROWS($FG$3:FG6)>(ROWS($FG$3:$FG$14)-COUNTBLANK($FG$3:$FG$14)),"",INDEX($FG$3:$FG$14,SMALL(IF($FG$3:$FG$14<>"",ROW($FG$3:$FG$14)-2),ROWS($FG$3:FG6)))) ->  | FI6: Grafit refleks | FJ6: =IF(Wycena!$C$20="-","",FI6) ->  | FK6: =IF(ROWS($FJ$3:FJ6)>(ROWS($FJ$3:$FJ$14)-COUNTBLANK($FJ$3:$FJ$14)),"",INDEX($FJ$3:$FJ$14,SMALL(IF($FJ$3:$FJ$14<>"",ROW($FJ$3:$FJ$14)-2),ROWS($FJ$3:FJ6)))) ->  | FM6: 80 | FN6: 3 | FO6: =IF(Wycena!$C$19="-","",FN6) ->  | FP6: =IF(ROWS($FO$3:FO6)>(ROWS($FO$3:$FO$23)-COUNTBLANK($FO$3:$FO$23)),"",INDEX($FO$3:$FO$23,SMALL(IF($FO$3:$FO$23<>"",ROW($FO$3:$FO$23)-2),ROWS($FO$3:FO6)))) ->  | FQ6: =IF(Wycena!$C$20="-","",FN6) ->  | FR6: =IF(ROWS($FQ$3:FQ6)>(ROWS($FQ$3:$FQ$23)-COUNTBLANK($FQ$3:$FQ$23)),"",INDEX($FQ$3:$FQ$23,SMALL(IF($FQ$3:$FQ$23<>"",ROW($FQ$3:$FQ$23)-2),ROWS($FQ$3:FQ6)))) ->  | FS6: =IF(Wycena!$C$21="-","",FN6) ->  | FT6: =IF(ROWS($FS$3:FS6)>(ROWS($FS$3:$FS$23)-COUNTBLANK($FS$3:$FS$23)),"",INDEX($FS$3:$FS$23,SMALL(IF($FS$3:$FS$23<>"",ROW($FS$3:$FS$23)-2),ROWS($FS$3:FS6)))) ->  | FV6: Zestaw z pochwytem na styl amerykański | FW6: 2200 | FX6: =IFERROR(VLOOKUP(Wycena!C58,OFFSET(FV15,MATCH(Wycena!C58,FV15:FV32,0)+2,0,15,2),2,0),"") -> Automat 3-punktowy z gałką | FY6: =IF(ROWS($FX$3:FX6)>(ROWS($FX$3:$FX$8)-COUNTBLANK($FX$3:$FX$8)),"",INDEX($FX$3:$FX$8,SMALL(IF($FX$3:$FX$8<>"",ROW($FX$3:$FX$8)-2),ROWS($FX$3:FX6)))) -> Automat 3-punktowy z gałką | FZ6: Klamka Hoppe Bezpieczna | GA6: 250 | GB6: Klamka Hoppe Bezpieczna | GC6: Klamka Hoppe Bezpieczna | GI6: =IF((HLOOKUP(VLOOKUP(Wycena!$C$58,Mapping!$GH$35:$GI$42,2,0),$GC$1:$GH$33,2+GJ6))=0,"",(HLOOKUP(VLOOKUP(Wycena!$C$58,Mapping!$GH$35:$GI$42,2,0),$GC$1:$GH$33,2+GJ6))) -> Klamka Hoppe Bezpieczna | GJ6: 4 | GK6: =IF(ROWS($GI$3:GI6)>(ROWS($GI$3:$GI$33)-COUNTBLANK($GI$3:$GI$33)),"",INDEX($GI$3:$GI$33,SMALL(IF($GI$3:$GI$33<>"",ROW($GI$3:$GI$33)-2),ROWS($GI$3:GI6)))) ->  | GL6: Klamka Medos Dublin | GM6: Inox | GN6: =IFERROR(VLOOKUP(Wycena!C60,OFFSET(GL2,MATCH(Wycena!C60,$GL$2:$GL$100,0)+2,0,100,2),2,0),"") ->  | GO6: =IF(ROWS($GN$3:GN6)>(ROWS($GN$3:$GN$6)-COUNTBLANK($GN$3:$GN$6)),"",INDEX($GN$3:$GN$6,SMALL(IF($GN$3:$GN$6<>"",ROW($GN$3:$GN$6)-2),ROWS($GN$3:GN6)))) ->  | GP6: =IFERROR(IF(FIND("Antaba M",Wycena!$C$60)>0,120,""),"") ->  | GQ6: =IF(ROWS($GP$3:GP6)>(ROWS($GP$3:$GP$9)-COUNTBLANK($GP$3:$GP$9)),"",INDEX($GP$3:$GP$9,SMALL(IF($GP$3:$GP$9<>"",ROW($GP$3:$GP$9)-2),ROWS($GP$3:GP6)))) ->  | GR6: Klasy C patyna | GS6: =IF(Wycena!$C$58=Mapping!$FV$7,0,250) -> 250 | GT6: =IF(Wycena!$C$58=Mapping!FV6,"",IF(Wycena!$C$58=Mapping!FV7,GR6,GR6)) -> Klasy C patyna | GU6: =IF(ROWS($GT$3:GT6)>(ROWS($GT$3:$GT$8)-COUNTBLANK($GT$3:$GT$8)),"",INDEX($GT$3:$GT$8,SMALL(IF($GT$3:$GT$8<>"",ROW($GT$3:$GT$8)-2),ROWS($GT$3:GT6)))) -> Klasy C patyna | GX6: x | GY6: x | GZ6: x | HE6: W skrzydle i dostawkach | HF6: 900 | HG6: =IF(Wycena!$C$58=Mapping!$HA$31,-300,0)+HF6 -> 900 | HH6: =IF(Wycena!$C$6="Brak (pełne)","",HE6) -> W skrzydle i dostawkach | HI6: =IF(AND(Wycena!$C$19<>"-",Wycena!$C$20<>"-"),HH6,"") ->  | HJ6: =IF(ROWS($HI$3:HI6)>(ROWS($HI$3:$HI$13)-COUNTBLANK($HI$3:$HI$13)),"",INDEX($HI$3:$HI$13,SMALL(IF($HI$3:$HI$13<>"",ROW($HI$3:$HI$13)-2),ROWS($HI$3:HI6)))) ->  | HL6: x | HM6: x | HN6: x | HO6: x | HP6: x | HR6: 8 | HS6: 140 | HT6: =(1+IFERROR(VLOOKUP(Wycena!$C$44,Mapping!$EY$3:$FB$6,4,1),0)+IFERROR(VLOOKUP(Wycena!$C$48,Mapping!$EY$3:$FB$6,4,1),0))*HS6 -> 140 | HV6: Z jednej strony skrzydła i dostawek | HW6: 100 | HX6: =(1+IFERROR(VLOOKUP(Wycena!$C$44,Mapping!$EY$3:$FB$6,4,1),0)+IFERROR(VLOOKUP(Wycena!$C$48,Mapping!$EY$3:$FB$6,4,1),0))*HW6 -> 100 | HY6: 200 | HZ6: =(1+IFERROR(VLOOKUP(Wycena!$C$44,Mapping!$EY$3:$FB$6,4,1),0)+IFERROR(VLOOKUP(Wycena!$C$48,Mapping!$EY$3:$FB$6,4,1),0))*HY6 -> 200 | IA6: =IF(AND(Wycena!$C$19<>"-",Wycena!$C$20<>"-"),HV6,"") ->  | IB6: =IF(ROWS($IA$3:IA6)>(ROWS($IA$3:$IA$9)-COUNTBLANK($IA$3:$IA$9)),"",INDEX($IA$3:$IA$9,SMALL(IF($IA$3:$IA$9<>"",ROW($IA$3:$IA$9)-2),ROWS($IA$3:IA6)))) ->  | ID6: Czarny | IE6: 150 | IG6: Nawierzchniowy brąz | IH6: 300 | IV6: 0.03 | IX6: 400
A7: DB 09a | B7: 20 | C7: 20 | D7: 20 | E7: 20 | F7: 34 | G7: 34 | H7: 36 | I7: 36 | M7: =IFERROR(VLOOKUP(Wycena!$C$5,OFFSET(SKU!$B$1,MATCH(Wycena!$C$5,SKU!$B$1:$B$743,0)+3,0,1000,6),5,0),"") ->  | N7: =IFERROR(VLOOKUP(Wycena!$C$5,OFFSET(SKU!$B$1,MATCH(Wycena!$C$5,SKU!$B$1:$B$743,0)+3,0,1000,6),2,0)-VLOOKUP(Wycena!$C$5,SKU!$B$1:$C$743,2,0),"") ->  | O7: =IF(ROWS($M$3:M7)>(ROWS($M$3:$M$10)-COUNTBLANK($M$3:$M$10)),"",INDEX($M$3:$M$10,SMALL(IF($M$3:$M$10<>"",ROW($M$3:$M$10)-2),ROWS($M$3:M7)))) ->  | Q7: Dąb sękaty podłużny | R7: 1000 | S7: =IF(VLOOKUP(Wycena!$C$5,SKU!$B$1:$D$743,3,0)="Płytowe",Q7,"") ->  | T7: =IF(ROWS($S$3:S7)>(ROWS($S$3:$S$8)-COUNTBLANK($S$3:$S$8)),"",INDEX($S$3:$S$8,SMALL(IF($S$3:$S$8<>"",ROW($S$3:$S$8)-2),ROWS($S$3:S7)))) ->  | Y7: Dąb natura | Z7: 500 | AA7: =IF(VLOOKUP(Wycena!$C$5,SKU!$B$1:$D$743,3,0)="Płytowe",Y7,"") ->  | AB7: =IF(ROWS($AA$3:AA7)>(ROWS($AA$3:$AA$228)-COUNTBLANK($AA$3:$AA$228)),"",INDEX($AA$3:$AA$228,SMALL(IF($AA$3:$AA$228<>"",ROW($AA$3:$AA$228)-2),ROWS($AA$3:AA7)))) ->  | AF7: =$AF$3:INDEX($AF$3:$AF$4,(ROWS($AD$3:$AD$4)-COUNTBLANK($AD$3:$AD$4))) ->  | AH7: =IF(VLOOKUP(Wycena!$C$5,SKU!$B$1:$I$743,8,0)>0,"Złota patyna","") ->  | AI7: =VLOOKUP(Wycena!$C$5,SKU!$B$1:$I$743,8,0) ->  | AJ7: =IF(ROWS($AH$3:AH7)>(ROWS($AH$3:$AH$7)-COUNTBLANK($AH$3:$AH$7)),"",INDEX($AH$3:$AH$7,SMALL(IF($AH$3:$AH$7<>"",ROW($AH$3:$AH$7)-2),ROWS($AH$3:AH7)))) ->  | AW7: 76 | AX7: 0 | AY7: 0 | AZ7: =IF(Wycena!$C$15=78,Mapping!AX7,AY7) -> 0 | BC7: 184 | BD7: 0 | BE7: 0 | BF7: =IF(Wycena!$C$15=78,Mapping!BD7,BE7) -> 0 | BJ7: x | BK7: x | BL7: x | BN7: Imitacja skrzydła ruchoma | BO7: Imitacja skrzydła ruchoma | BP7: =IF(VLOOKUP(Wycena!C5,SKU!$B$1:$E$743,4,0)="Prestige Kamień","",BO7) ->  | BQ7: =IF(Wycena!$C$14="Bezprzylgowe Glass","",BP7) ->  | BR7: =IF(ROWS($BQ$3:BQ7)>(ROWS($BQ$3:$BQ$7)-COUNTBLANK($BQ$3:$BQ$7)),"",INDEX($BQ$3:$BQ$7,SMALL(IF($BQ$3:$BQ$7<>"",ROW($BQ$3:$BQ$7)-2),ROWS($BQ$3:BQ7)))) ->  | BT7: x | BX7: x | BY7: x | BZ7: Mleczne | CA7: 150 | CB7: =CA7*(1+IFERROR(VLOOKUP(Wycena!$C$44,Mapping!$EY$3:$FB$6,4,1),0)+IFERROR(VLOOKUP(Wycena!$C$48,Mapping!$EY$3:$FB$6,4,1),0))*(1+VLOOKUP(Wycena!$C$53,Mapping!$BV$3:$BW$6,2,1)) ->  | CC7: Lustro weneckie | CD7: =IF(Wycena!$C$21="-","",CC7) ->  | CE7: =IF(ROWS($CD$3:CD7)>(ROWS($CD$3:$CD$13)-COUNTBLANK($CD$3:$CD$13)),"",INDEX($CD$3:$CD$13,SMALL(IF($CD$3:$CD$13<>"",ROW($CD$3:$CD$13)-2),ROWS($CD$3:CD7)))) ->  | CL7: =$CL$3:INDEX($CL$3:$CL$4,(ROWS($CK$3:$CK$4)-COUNTBLANK($CK$3:$CK$4))) -> Standardowa | CN7: Przy skrzydle i ościeżnicy z dwóch stron | CO7: =1600+((IF(OR(Wycena!$C$19="W ościeżnicy nowoczesna",Wycena!$C$19="W ościeżnicy tradycyjna"),1,0))+(IF(OR(Wycena!$C$20="W ościeżnicy nowoczesna",Wycena!$C$20="W ościeżnicy tradycyjna"),1,0)))*800 -> 1600 | CP7: =IF(Wycena!$C$24="Krosnowa","",CN7) -> Przy skrzydle i ościeżnicy z dwóch stron | CQ7: =IF(Wycena!$C$14="Bezprzylgowe Glass","",CP7) -> Przy skrzydle i ościeżnicy z dwóch stron | CR7: =IF(OR(Wycena!$C$19="W ościeżnicy nowoczesna",Wycena!$C$19="W ościeżnicy tradycyjna",Wycena!$C$20="W ościeżnicy nowoczesna",Wycena!$C$20="W ościeżnicy tradycyjna"),CQ7,"") ->  | CS7: =CR7 ->  | CT7: =IF(ROWS($CS$3:CS7)>(ROWS($CS$3:$CS$11)-COUNTBLANK($CS$3:$CS$11)),"",INDEX($CS$3:$CS$11,SMALL(IF($CS$3:$CS$11<>"",ROW($CS$3:$CS$11)-2),ROWS($CS$3:CS7)))) ->  | CX7: vlookup ościeżnicy | CY7: grubość pod liczenie | CZ7: 10 | DA7: =IF(CZ7>=VLOOKUP(Wycena!$C$14,Mapping!$CX$3:$CY$5,2,0),CZ7,"") -> 10 | DB7: =IF(ROWS($DA$3:DA7)>(ROWS($DA$3:$DA$28)-COUNTBLANK($DA$3:$DA$28)),"",INDEX($DA$3:$DA$28,SMALL(IF($DA$3:$DA$28<>"",ROW($DA$3:$DA$28)-2),ROWS($DA$3:DA7)))) -> 10 | DF7: vlookup ościeżnicy | DG7: grubość pod liczenie | DH7: grubość pod liczenie | DJ7: 10 | DK7: =IF(DJ7>=VLOOKUP(Wycena!$C$14,Mapping!$DF$3:$DG$5,2,0),DJ7,"") -> 10 | DL7: =IF(ROWS($DK$3:DK7)>(ROWS($DK$3:$DK$28)-COUNTBLANK($DK$3:$DK$28)),"",INDEX($DK$3:$DK$28,SMALL(IF($DK$3:$DK$28<>"",ROW($DK$3:$DK$28)-2),ROWS($DK$3:DK7)))) -> 10 | DM7: =IF(DJ7>=VLOOKUP(Wycena!$C$14,Mapping!$DF$3:$DH$5,3,0),DJ7,"") -> 10 | DN7: =IF(ROWS($DM$3:DM7)>(ROWS($DM$3:$DM$28)-COUNTBLANK($DM$3:$DM$28)),"",INDEX($DM$3:$DM$28,SMALL(IF($DM$3:$DM$28<>"",ROW($DM$3:$DM$28)-2),ROWS($DM$3:DM7)))) -> 10 | DP7: vlookup rodzaj | DQ7: szerokości pod liczenie | DR7: 10 | DS7: =IF(DR7>=VLOOKUP(Wycena!$C$24,Mapping!$DP$3:$DQ$4,2,0),DR7,"") ->  | DT7: =IF(ROWS($DS$3:DS7)>(ROWS($DS$3:$DS$28)-COUNTBLANK($DS$3:$DS$28)),"",INDEX($DS$3:$DS$28,SMALL(IF($DS$3:$DS$28<>"",ROW($DS$3:$DS$28)-2),ROWS($DS$3:DS7)))) -> 14 | DV7: 4 | DX7: dopłaty | DY7: stawka | EA7: dopłaty | EB7: stawka | ED7: =$ED$3:INDEX($ED$3:$ED$4,(ROWS($EC$3:$EC$4)-COUNTBLANK($EC$3:$EC$4))) -> - | EL7: 108 | EM7: 108.001 | EN7: 1500 | EO7: =IF(OR(Wycena!$C$19<>"-",Wycena!$C$20<>"-",),EL7,"") ->  | EP7: =IF(ROWS($EO$3:EO7)>(ROWS($EO$3:$EO$8)-COUNTBLANK($EO$3:$EO$8)),"",INDEX($EO$3:$EO$8,SMALL(IF($EO$3:$EO$8<>"",ROW($EO$3:$EO$8)-2),ROWS($EO$3:EO7)))) ->  | ER7: 234 | ES7: 234.001 | ET7: 0.4 | EU7: =IF(IF(Wycena!$C$21<>"-",ER7,"")<=Wycena!$C$17-Wycena!$C$26,ER7,"") ->  | EV7: =IF(ROWS($EU$3:EU7)>(ROWS($EU$3:$EU$8)-COUNTBLANK($EU$3:$EU$8)),"",INDEX($EU$3:$EU$8,SMALL(IF($EU$3:$EU$8<>"",ROW($EU$3:$EU$8)-2),ROWS($EU$3:EU7)))) ->  | FD7: Lustro weneckie | FE7: 250 | FF7: Lustro weneckie | FG7: =IF(Wycena!$C$19="-","",FF7) ->  | FH7: =IF(ROWS($FG$3:FG7)>(ROWS($FG$3:$FG$14)-COUNTBLANK($FG$3:$FG$14)),"",INDEX($FG$3:$FG$14,SMALL(IF($FG$3:$FG$14<>"",ROW($FG$3:$FG$14)-2),ROWS($FG$3:FG7)))) ->  | FI7: Lustro weneckie | FJ7: =IF(Wycena!$C$20="-","",FI7) ->  | FK7: =IF(ROWS($FJ$3:FJ7)>(ROWS($FJ$3:$FJ$14)-COUNTBLANK($FJ$3:$FJ$14)),"",INDEX($FJ$3:$FJ$14,SMALL(IF($FJ$3:$FJ$14<>"",ROW($FJ$3:$FJ$14)-2),ROWS($FJ$3:FJ7)))) ->  | FN7: 4 | FO7: =IF(Wycena!$C$19="-","",FN7) ->  | FP7: =IF(ROWS($FO$3:FO7)>(ROWS($FO$3:$FO$23)-COUNTBLANK($FO$3:$FO$23)),"",INDEX($FO$3:$FO$23,SMALL(IF($FO$3:$FO$23<>"",ROW($FO$3:$FO$23)-2),ROWS($FO$3:FO7)))) ->  | FQ7: =IF(Wycena!$C$20="-","",FN7) ->  | FR7: =IF(ROWS($FQ$3:FQ7)>(ROWS($FQ$3:$FQ$23)-COUNTBLANK($FQ$3:$FQ$23)),"",INDEX($FQ$3:$FQ$23,SMALL(IF($FQ$3:$FQ$23<>"",ROW($FQ$3:$FQ$23)-2),ROWS($FQ$3:FQ7)))) ->  | FS7: =IF(Wycena!$C$21="-","",FN7) ->  | FT7: =IF(ROWS($FS$3:FS7)>(ROWS($FS$3:$FS$23)-COUNTBLANK($FS$3:$FS$23)),"",INDEX($FS$3:$FS$23,SMALL(IF($FS$3:$FS$23<>"",ROW($FS$3:$FS$23)-2),ROWS($FS$3:FS7)))) ->  | FU7: x | FV7: Zestaw antywłamaniowy RC2 | FW7: =900+IF(Wycena!$C$6="Brak (pełne)",0,300) -> 1200 | FX7: =IFERROR(VLOOKUP(Wycena!C58,OFFSET(FV15,MATCH(Wycena!C58,FV15:FV32,0)+3,0,15,2),2,0),"") -> Automat 3-punktowy bez gałki | FY7: =IF(ROWS($FX$3:FX7)>(ROWS($FX$3:$FX$8)-COUNTBLANK($FX$3:$FX$8)),"",INDEX($FX$3:$FX$8,SMALL(IF($FX$3:$FX$8<>"",ROW($FX$3:$FX$8)-2),ROWS($FX$3:FX7)))) -> Automat 3-punktowy bez gałki | FZ7: Klamka AXA Diva Flex | GA7: =IF(Wycena!C58=Mapping!$FV$7,0,400) -> 400 | GB7: Klamka AXA Diva Flex | GC7: Klamka AXA Diva Flex | GG7: =GB7 -> Klamka AXA Diva Flex | GI7: =IF((HLOOKUP(VLOOKUP(Wycena!$C$58,Mapping!$GH$35:$GI$42,2,0),$GC$1:$GH$33,2+GJ7))=0,"",(HLOOKUP(VLOOKUP(Wycena!$C$58,Mapping!$GH$35:$GI$42,2,0),$GC$1:$GH$33,2+GJ7))) -> Klamka AXA Diva Flex | GJ7: 5 | GK7: =IF(ROWS($GI$3:GI7)>(ROWS($GI$3:$GI$33)-COUNTBLANK($GI$3:$GI$33)),"",INDEX($GI$3:$GI$33,SMALL(IF($GI$3:$GI$33<>"",ROW($GI$3:$GI$33)-2),ROWS($GI$3:GI7)))) ->  | GL7: Klamka Medos Dublin | GM7: Stare złoto | GN7: x | GO7: x | GP7: =IFERROR(IF(FIND("Antaba M",Wycena!$C$60)>0,150,""),"") ->  | GQ7: =IF(ROWS($GP$3:GP7)>(ROWS($GP$3:$GP$9)-COUNTBLANK($GP$3:$GP$9)),"",INDEX($GP$3:$GP$9,SMALL(IF($GP$3:$GP$9<>"",ROW($GP$3:$GP$9)-2),ROWS($GP$3:GP7)))) ->  | GR7: Klasy C satyna | GS7: =IF(Wycena!$C$58=Mapping!$FV$7,0,250) -> 250 | GT7: =IF(Wycena!$C$58=Mapping!FV6,"",IF(Wycena!$C$58=Mapping!FV7,GR7,GR7)) -> Klasy C satyna | GU7: =IF(ROWS($GT$3:GT7)>(ROWS($GT$3:$GT$8)-COUNTBLANK($GT$3:$GT$8)),"",INDEX($GT$3:$GT$8,SMALL(IF($GT$3:$GT$8<>"",ROW($GT$3:$GT$8)-2),ROWS($GT$3:GT7)))) -> Klasy C satyna | HC7: =$HC$3:INDEX($HC$3:$HC$4,(ROWS($HA$3:$HA$4)-COUNTBLANK($HA$3:$HA$4))) -> - | HE7: W skrzydle i naświetlu | HF7: 600 | HG7: =IF(Wycena!$C$58=Mapping!$HA$31,-300,0)+HF7 -> 600 | HH7: =IF(Wycena!$C$6="Brak (pełne)","",HE7) -> W skrzydle i naświetlu | HI7: =IF(AND(Wycena!$C$19="-",Wycena!$C$20="-",Wycena!$C$21<>"-"),HH7,"") ->  | HJ7: =IF(ROWS($HI$3:HI7)>(ROWS($HI$3:$HI$13)-COUNTBLANK($HI$3:$HI$13)),"",INDEX($HI$3:$HI$13,SMALL(IF($HI$3:$HI$13<>"",ROW($HI$3:$HI$13)-2),ROWS($HI$3:HI7)))) ->  | HR7: 10 | HS7: 140 | HT7: =(1+IFERROR(VLOOKUP(Wycena!$C$44,Mapping!$EY$3:$FB$6,4,1),0)+IFERROR(VLOOKUP(Wycena!$C$48,Mapping!$EY$3:$FB$6,4,1),0))*HS7 -> 140 | HV7: Z dwóch stron skrzydła | HW7: 200 | HX7: 200 | HY7: 400 | HZ7: 400 | IA7: Z dwóch stron skrzydła | IB7: =IF(ROWS($IA$3:IA7)>(ROWS($IA$3:$IA$9)-COUNTBLANK($IA$3:$IA$9)),"",INDEX($IA$3:$IA$9,SMALL(IF($IA$3:$IA$9<>"",ROW($IA$3:$IA$9)-2),ROWS($IA$3:IA7)))) ->  | IG7: Nawierzchniowy czarny | IH7: 300 | IV7: 0.04 | IX7: 500
A8: DB 10 | B8: 20 | C8: 20 | D8: 20 | E8: 20 | F8: 34 | G8: 34 | H8: 36 | I8: 36 | M8: =IFERROR(VLOOKUP(Wycena!$C$5,OFFSET(SKU!$B$1,MATCH(Wycena!$C$5,SKU!$B$1:$B$743,0)+4,0,1000,6),5,0),"") ->  | N8: =IFERROR(VLOOKUP(Wycena!$C$5,OFFSET(SKU!$B$1,MATCH(Wycena!$C$5,SKU!$B$1:$B$743,0)+4,0,1000,6),2,0)-VLOOKUP(Wycena!$C$5,SKU!$B$1:$C$743,2,0),"") ->  | O8: =IF(ROWS($M$3:M8)>(ROWS($M$3:$M$10)-COUNTBLANK($M$3:$M$10)),"",INDEX($M$3:$M$10,SMALL(IF($M$3:$M$10<>"",ROW($M$3:$M$10)-2),ROWS($M$3:M8)))) ->  | Q8: Dąb sękaty poprzeczny | R8: 1000 | S8: =IF(VLOOKUP(Wycena!$C$5,SKU!$B$1:$D$743,3,0)="Płytowe",Q8,"") ->  | T8: =IF(ROWS($S$3:S8)>(ROWS($S$3:$S$8)-COUNTBLANK($S$3:$S$8)),"",INDEX($S$3:$S$8,SMALL(IF($S$3:$S$8<>"",ROW($S$3:$S$8)-2),ROWS($S$3:S8)))) ->  | Y8: Jasny orzech | Z8: 0 | AA8: Jasny orzech | AB8: =IF(ROWS($AA$3:AA8)>(ROWS($AA$3:$AA$228)-COUNTBLANK($AA$3:$AA$228)),"",INDEX($AA$3:$AA$228,SMALL(IF($AA$3:$AA$228<>"",ROW($AA$3:$AA$228)-2),ROWS($AA$3:AA8)))) ->  | AH8: x | AJ8: x | AO8: =$AO$3:INDEX($AO$3:$AO$5,(ROWS($AM$3:$AM$5)-COUNTBLANK($AM$3:$AM$5))) ->  | AU8: =$AU$3:INDEX($AU$3:$AU$5,(ROWS($AS$3:$AS$5)-COUNTBLANK($AS$3:$AS$5))) -> 78 | AW8: 77 | AX8: 0 | AY8: 0 | AZ8: =IF(Wycena!$C$15=78,Mapping!AX8,AY8) -> 0 | BC8: 185 | BD8: 0 | BE8: 0 | BF8: =IF(Wycena!$C$15=78,Mapping!BD8,BE8) -> 0 | BN8: x | BO8: x | BQ8: x | BR8: x | BZ8: Piaskowane refleks | CA8: 150 | CB8: =CA8*(1+IFERROR(VLOOKUP(Wycena!$C$44,Mapping!$EY$3:$FB$6,4,1),0)+IFERROR(VLOOKUP(Wycena!$C$48,Mapping!$EY$3:$FB$6,4,1),0))*(1+VLOOKUP(Wycena!$C$53,Mapping!$BV$3:$BW$6,2,1)) ->  | CC8: Mleczne | CD8: =IF(Wycena!$C$21="-","",CC8) ->  | CE8: =IF(ROWS($CD$3:CD8)>(ROWS($CD$3:$CD$13)-COUNTBLANK($CD$3:$CD$13)),"",INDEX($CD$3:$CD$13,SMALL(IF($CD$3:$CD$13<>"",ROW($CD$3:$CD$13)-2),ROWS($CD$3:CD8)))) ->  | CN8: Przy skrzydle i naświetlu od zewnątrz | CO8: 1200 | CP8: =IF(Wycena!$C$24="Krosnowa","",CN8) -> Przy skrzydle i naświetlu od zewnątrz | CQ8: =IF(Wycena!$C$14="Bezprzylgowe Glass","",CP8) -> Przy skrzydle i naświetlu od zewnątrz | CR8: =CQ8 -> Przy skrzydle i naświetlu od zewnątrz | CS8: =IF(Wycena!$C$21="W ościeżnicy",CR8,"") ->  | CT8: =IF(ROWS($CS$3:CS8)>(ROWS($CS$3:$CS$11)-COUNTBLANK($CS$3:$CS$11)),"",INDEX($CS$3:$CS$11,SMALL(IF($CS$3:$CS$11<>"",ROW($CS$3:$CS$11)-2),ROWS($CS$3:CS8)))) ->  | CX8: Przylgowe | CY8: =VLOOKUP(Wycena!$C$24,Mapping!$CV$3:$CW$4,2,0) -> 6 | CZ8: 10.5 | DA8: =IF(OR(DA3=6,DA5=8),"",IF(CZ8>=VLOOKUP(Wycena!$C$14,Mapping!$CX$3:$CY$5,2,0),CZ8,"")) ->  | DB8: =IF(ROWS($DA$3:DA8)>(ROWS($DA$3:$DA$28)-COUNTBLANK($DA$3:$DA$28)),"",INDEX($DA$3:$DA$28,SMALL(IF($DA$3:$DA$28<>"",ROW($DA$3:$DA$28)-2),ROWS($DA$3:DA8)))) -> 11 | DF8: Przylgowe | DG8: =VLOOKUP(Wycena!$C$24,Mapping!$CV$3:$CW$4,2,0)+VLOOKUP(Wycena!C25,$CN$16:$CR$25,IF(AND(Wycena!C19="-",Wycena!C20="-"),2,IF(AND(Wycena!C19<>"-",Wycena!C20="-"),3,IF(AND(Wycena!C19="-",Wycena!C20<>"-"),4,5))),0) -> 6 | DH8: =VLOOKUP(Wycena!$C$24,Mapping!$CV$3:$CW$4,2,0)+VLOOKUP(Wycena!C25,$CN$28:$CR$37,IF(AND(Wycena!C19="-",Wycena!C20="-"),2,IF(AND(Wycena!C19<>"-",Wycena!C20="-"),3,IF(AND(Wycena!C19="-",Wycena!C20<>"-"),4,5))),0) -> 6 | DJ8: 10.5 | DK8: =IF(OR(DK3=6,DK5=8),"",IF(DJ8>=VLOOKUP(Wycena!$C$14,Mapping!$DF$3:$DG$5,2,0),DJ8,"")) ->  | DL8: =IF(ROWS($DK$3:DK8)>(ROWS($DK$3:$DK$28)-COUNTBLANK($DK$3:$DK$28)),"",INDEX($DK$3:$DK$28,SMALL(IF($DK$3:$DK$28<>"",ROW($DK$3:$DK$28)-2),ROWS($DK$3:DK8)))) -> 11 | DM8: =IF(OR(DK3=6,DK5=8),"",IF(DJ8>=VLOOKUP(Wycena!$C$14,Mapping!$DF$3:$DH$5,3,0),DJ8,"")) ->  | DN8: =IF(ROWS($DM$3:DM8)>(ROWS($DM$3:$DM$28)-COUNTBLANK($DM$3:$DM$28)),"",INDEX($DM$3:$DM$28,SMALL(IF($DM$3:$DM$28<>"",ROW($DM$3:$DM$28)-2),ROWS($DM$3:DM8)))) -> 11 | DP8: standardowa | DQ8: 10.5 | DR8: 10.5 | DS8: =IF(DS3=6,"",IF(DR8>=VLOOKUP(Wycena!$C$24,Mapping!$DP$3:$DQ$4,2,0),DR8,"")) -> 10.5 | DT8: =IF(ROWS($DS$3:DS8)>(ROWS($DS$3:$DS$28)-COUNTBLANK($DS$3:$DS$28)),"",INDEX($DS$3:$DS$28,SMALL(IF($DS$3:$DS$28<>"",ROW($DS$3:$DS$28)-2),ROWS($DS$3:DS8)))) -> 15 | DV8: 5 | DX8: za dostawkę | DY8: 80 | EA8: za dostawkę | EB8: 80 | EL8: 118 | EM8: 118.001 | EO8: =IF(OR(Wycena!$C$19<>"-",Wycena!$C$20<>"-",),EL8,"") ->  | EP8: =IF(ROWS($EO$3:EO8)>(ROWS($EO$3:$EO$8)-COUNTBLANK($EO$3:$EO$8)),"",INDEX($EO$3:$EO$8,SMALL(IF($EO$3:$EO$8<>"",ROW($EO$3:$EO$8)-2),ROWS($EO$3:EO8)))) ->  | ER8: 244 | ES8: 244.001 | EU8: =IF(IF(Wycena!$C$21<>"-",ER8,"")<=Wycena!$C$17-Wycena!$C$26,ER8,"") ->  | EV8: =IF(ROWS($EU$3:EU8)>(ROWS($EU$3:$EU$8)-COUNTBLANK($EU$3:$EU$8)),"",INDEX($EU$3:$EU$8,SMALL(IF($EU$3:$EU$8<>"",ROW($EU$3:$EU$8)-2),ROWS($EU$3:EU8)))) ->  | FD8: Mleczne | FE8: 350 | FF8: Mleczne | FG8: =IF(Wycena!$C$19="-","",FF8) ->  | FH8: =IF(ROWS($FG$3:FG8)>(ROWS($FG$3:$FG$14)-COUNTBLANK($FG$3:$FG$14)),"",INDEX($FG$3:$FG$14,SMALL(IF($FG$3:$FG$14<>"",ROW($FG$3:$FG$14)-2),ROWS($FG$3:FG8)))) ->  | FI8: Mleczne | FJ8: =IF(Wycena!$C$20="-","",FI8) ->  | FK8: =IF(ROWS($FJ$3:FJ8)>(ROWS($FJ$3:$FJ$14)-COUNTBLANK($FJ$3:$FJ$14)),"",INDEX($FJ$3:$FJ$14,SMALL(IF($FJ$3:$FJ$14<>"",ROW($FJ$3:$FJ$14)-2),ROWS($FJ$3:FJ8)))) ->  | FN8: 5 | FO8: =IF(Wycena!$C$19="-","",FN8) ->  | FP8: =IF(ROWS($FO$3:FO8)>(ROWS($FO$3:$FO$23)-COUNTBLANK($FO$3:$FO$23)),"",INDEX($FO$3:$FO$23,SMALL(IF($FO$3:$FO$23<>"",ROW($FO$3:$FO$23)-2),ROWS($FO$3:FO8)))) ->  | FQ8: =IF(Wycena!$C$20="-","",FN8) ->  | FR8: =IF(ROWS($FQ$3:FQ8)>(ROWS($FQ$3:$FQ$23)-COUNTBLANK($FQ$3:$FQ$23)),"",INDEX($FQ$3:$FQ$23,SMALL(IF($FQ$3:$FQ$23<>"",ROW($FQ$3:$FQ$23)-2),ROWS($FQ$3:FQ8)))) ->  | FS8: =IF(Wycena!$C$21="-","",FN8) ->  | FT8: =IF(ROWS($FS$3:FS8)>(ROWS($FS$3:$FS$23)-COUNTBLANK($FS$3:$FS$23)),"",INDEX($FS$3:$FS$23,SMALL(IF($FS$3:$FS$23<>"",ROW($FS$3:$FS$23)-2),ROWS($FS$3:FS8)))) ->  | FU8: x | FV8: Zestaw czytnik linii papilarnych | FW8: 4900 | FX8: =IFERROR(VLOOKUP(Wycena!C58,OFFSET(FV15,MATCH(Wycena!C58,FV15:FV32,0)+4,0,15,2),2,0),"") -> Automat 4-punktowy | FY8: =IF(ROWS($FX$3:FX8)>(ROWS($FX$3:$FX$8)-COUNTBLANK($FX$3:$FX$8)),"",INDEX($FX$3:$FX$8,SMALL(IF($FX$3:$FX$8<>"",ROW($FX$3:$FX$8)-2),ROWS($FX$3:FX8)))) -> Automat 4-punktowy | FZ8: Klamka AXA Haga Plus | GA8: 150 | GB8: Klamka AXA Haga Plus | GC8: Klamka AXA Haga Plus | GI8: =IF((HLOOKUP(VLOOKUP(Wycena!$C$58,Mapping!$GH$35:$GI$42,2,0),$GC$1:$GH$33,2+GJ8))=0,"",(HLOOKUP(VLOOKUP(Wycena!$C$58,Mapping!$GH$35:$GI$42,2,0),$GC$1:$GH$33,2+GJ8))) -> Klamka AXA Haga Plus | GJ8: 6 | GK8: =IF(ROWS($GI$3:GI8)>(ROWS($GI$3:$GI$33)-COUNTBLANK($GI$3:$GI$33)),"",INDEX($GI$3:$GI$33,SMALL(IF($GI$3:$GI$33<>"",ROW($GI$3:$GI$33)-2),ROWS($GI$3:GI8)))) ->  | GL8: Klamka Medos Dublin | GM8: Czarny | GP8: =IFERROR(IF(FIND("Antaba M",Wycena!$C$60)>0,170,""),"") ->  | GQ8: =IF(ROWS($GP$3:GP8)>(ROWS($GP$3:$GP$9)-COUNTBLANK($GP$3:$GP$9)),"",INDEX($GP$3:$GP$9,SMALL(IF($GP$3:$GP$9<>"",ROW($GP$3:$GP$9)-2),ROWS($GP$3:GP8)))) ->  | GR8: Klasy C czarna | GS8: =IF(Wycena!$C$58=Mapping!$FV$7,200,450) -> 450 | GT8: =IF(Wycena!$C$58=Mapping!FV6,"-",IF(Wycena!$C$58=Mapping!FV7,GR8,GR8)) -> Klasy C czarna | GU8: =IF(ROWS($GT$3:GT8)>(ROWS($GT$3:$GT$8)-COUNTBLANK($GT$3:$GT$8)),"",INDEX($GT$3:$GT$8,SMALL(IF($GT$3:$GT$8<>"",ROW($GT$3:$GT$8)-2),ROWS($GT$3:GT8)))) -> Klasy C czarna | GZ8: =$GZ$3:INDEX($GZ$3:$GZ$5,(ROWS($GY$3:$GY$5)-COUNTBLANK($GY$3:$GY$5))) -> - | HE8: W skrzydle, dostawce i naświetlu | HF8: 900 | HG8: =IF(Wycena!$C$58=Mapping!$HA$31,-300,0)+HF8 -> 900 | HH8: =IF(Wycena!$C$6="Brak (pełne)","",HE8) -> W skrzydle, dostawce i naświetlu | HI8: =IF(OR(AND(Wycena!$C$19="-",Wycena!$C$20<>"-",Wycena!C21<>"-"),AND(Wycena!$C$20="-",Wycena!$C$19<>"-",Wycena!C21<>"-")),HH8,"") ->  | HJ8: =IF(ROWS($HI$3:HI8)>(ROWS($HI$3:$HI$13)-COUNTBLANK($HI$3:$HI$13)),"",INDEX($HI$3:$HI$13,SMALL(IF($HI$3:$HI$13<>"",ROW($HI$3:$HI$13)-2),ROWS($HI$3:HI8)))) ->  | HP8: =$HP$3:INDEX($HP$3:$HP$5,(ROWS($HO$3:$HO$5)-COUNTBLANK($HO$3:$HO$5))) ->  | HR8: 13 | HS8: 210 | HT8: =(1+IFERROR(VLOOKUP(Wycena!$C$44,Mapping!$EY$3:$FB$6,4,1),0)+IFERROR(VLOOKUP(Wycena!$C$48,Mapping!$EY$3:$FB$6,4,1),0))*HS8 -> 210 | HV8: Z dwóch stron skrzydła i dostawki | HW8: 200 | HX8: =(1+IFERROR(VLOOKUP(Wycena!$C$44,Mapping!$EY$3:$FB$6,4,1),0)+IFERROR(VLOOKUP(Wycena!$C$48,Mapping!$EY$3:$FB$6,4,1),0))*HW8 -> 200 | HY8: 400 | HZ8: =(1+IFERROR(VLOOKUP(Wycena!$C$44,Mapping!$EY$3:$FB$6,4,1),0)+IFERROR(VLOOKUP(Wycena!$C$48,Mapping!$EY$3:$FB$6,4,1),0))*HY8 -> 400 | IA8: =IF(OR(AND(Wycena!$C$19="-",Wycena!$C$20<>"-"),AND(Wycena!$C$20="-",Wycena!$C$19<>"-")),HV8,"") ->  | IB8: =IF(ROWS($IA$3:IA8)>(ROWS($IA$3:$IA$9)-COUNTBLANK($IA$3:$IA$9)),"",INDEX($IA$3:$IA$9,SMALL(IF($IA$3:$IA$9<>"",ROW($IA$3:$IA$9)-2),ROWS($IA$3:IA8)))) ->  | IG8: Nawierzchniowy z funkcją stop inox | IH8: 400 | IV8: 0.05 | IX8: 600
A9: DB 11 | B9: 20 | C9: 20 | D9: 20 | E9: 20 | F9: 34 | G9: 34 | H9: 36 | I9: 36 | M9: =IFERROR(VLOOKUP(Wycena!$C$5,OFFSET(SKU!$B$1,MATCH(Wycena!$C$5,SKU!$B$1:$B$743,0)+5,0,1000,6),5,0),"") ->  | N9: =IFERROR(VLOOKUP(Wycena!$C$5,OFFSET(SKU!$B$1,MATCH(Wycena!$C$5,SKU!$B$1:$B$743,0)+5,0,1000,6),2,0)-VLOOKUP(Wycena!$C$5,SKU!$B$1:$C$743,2,0),"") ->  | O9: =IF(ROWS($M$3:M9)>(ROWS($M$3:$M$10)-COUNTBLANK($M$3:$M$10)),"",INDEX($M$3:$M$10,SMALL(IF($M$3:$M$10<>"",ROW($M$3:$M$10)-2),ROWS($M$3:M9)))) ->  | Q9: x | R9: x | S9: x | T9: x | Y9: Mahoń | Z9: 0 | AA9: Mahoń | AB9: =IF(ROWS($AA$3:AA9)>(ROWS($AA$3:$AA$228)-COUNTBLANK($AA$3:$AA$228)),"",INDEX($AA$3:$AA$228,SMALL(IF($AA$3:$AA$228<>"",ROW($AA$3:$AA$228)-2),ROWS($AA$3:AA9)))) ->  | AW9: 78 | AX9: 0 | AY9: 0 | AZ9: =IF(Wycena!$C$15=78,Mapping!AX9,AY9) -> 0 | BC9: 186 | BD9: 0 | BE9: 0 | BF9: =IF(Wycena!$C$15=78,Mapping!BD9,BE9) -> 0 | BL9: =$BL$3:INDEX($BL$3:$BL$6,(ROWS($BK$3:$BK$6)-COUNTBLANK($BK$3:$BK$6))) -> Lewe na zewnątrz | BY9: =$BY$3:INDEX($BY$3:$BY$6,(ROWS($BX$3:$BX$6)-COUNTBLANK($BX$3:$BX$6))) -> - | BZ9: Dyskretne brąz refleks | CA9: 400 | CB9: =CA9*(1+IFERROR(VLOOKUP(Wycena!$C$44,Mapping!$EY$3:$FB$6,4,1),0)+IFERROR(VLOOKUP(Wycena!$C$48,Mapping!$EY$3:$FB$6,4,1),0))*(1+VLOOKUP(Wycena!$C$53,Mapping!$BV$3:$BW$6,2,1)) ->  | CC9: Piaskowane refleks | CD9: =IF(Wycena!$C$21="-","",CC9) ->  | CE9: =IF(ROWS($CD$3:CD9)>(ROWS($CD$3:$CD$13)-COUNTBLANK($CD$3:$CD$13)),"",INDEX($CD$3:$CD$13,SMALL(IF($CD$3:$CD$13<>"",ROW($CD$3:$CD$13)-2),ROWS($CD$3:CD9)))) ->  | CN9: Przy skrzydle i naświetlu z dwóch stron | CO9: 1600 | CP9: =IF(Wycena!$C$24="Krosnowa","",CN9) -> Przy skrzydle i naświetlu z dwóch stron | CQ9: =IF(Wycena!$C$14="Bezprzylgowe Glass","",CP9) -> Przy skrzydle i naświetlu z dwóch stron | CR9: =CQ9 -> Przy skrzydle i naświetlu z dwóch stron | CS9: =IF(Wycena!$C$21="W ościeżnicy",CR9,"") ->  | CT9: =IF(ROWS($CS$3:CS9)>(ROWS($CS$3:$CS$11)-COUNTBLANK($CS$3:$CS$11)),"",INDEX($CS$3:$CS$11,SMALL(IF($CS$3:$CS$11<>"",ROW($CS$3:$CS$11)-2),ROWS($CS$3:CS9)))) ->  | CX9: Bezprzylgowe | CY9: 8 | CZ9: 11 | DA9: =IF(CZ9>=VLOOKUP(Wycena!$C$14,Mapping!$CX$3:$CY$5,2,0),CZ9,"") -> 11 | DB9: =IF(ROWS($DA$3:DA9)>(ROWS($DA$3:$DA$28)-COUNTBLANK($DA$3:$DA$28)),"",INDEX($DA$3:$DA$28,SMALL(IF($DA$3:$DA$28<>"",ROW($DA$3:$DA$28)-2),ROWS($DA$3:DA9)))) -> 12 | DF9: Bezprzylgowe | DG9: =8+VLOOKUP(Wycena!C25,$CN$16:$CR$25,IF(AND(Wycena!C19="-",Wycena!C20="-"),2,IF(AND(Wycena!C19<>"-",Wycena!C20="-"),3,IF(AND(Wycena!C19="-",Wycena!C20<>"-"),4,5))),0) -> 8 | DH9: =8+VLOOKUP(Wycena!C25,$CN$28:$CR$37,IF(AND(Wycena!C19="-",Wycena!C20="-"),2,IF(AND(Wycena!C19<>"-",Wycena!C20="-"),3,IF(AND(Wycena!C19="-",Wycena!C20<>"-"),4,5))),0) -> 8 | DJ9: 11 | DK9: =IF(DJ9>=VLOOKUP(Wycena!$C$14,Mapping!$DF$3:$DG$5,2,0),DJ9,"") -> 11 | DL9: =IF(ROWS($DK$3:DK9)>(ROWS($DK$3:$DK$28)-COUNTBLANK($DK$3:$DK$28)),"",INDEX($DK$3:$DK$28,SMALL(IF($DK$3:$DK$28<>"",ROW($DK$3:$DK$28)-2),ROWS($DK$3:DK9)))) -> 12 | DM9: =IF(DJ9>=VLOOKUP(Wycena!$C$14,Mapping!$DF$3:$DH$5,3,0),DJ9,"") -> 11 | DN9: =IF(ROWS($DM$3:DM9)>(ROWS($DM$3:$DM$28)-COUNTBLANK($DM$3:$DM$28)),"",INDEX($DM$3:$DM$28,SMALL(IF($DM$3:$DM$28<>"",ROW($DM$3:$DM$28)-2),ROWS($DM$3:DM9)))) -> 12 | DP9: krosnowa | DQ9: 6 | DR9: 11 | DS9: =IF(DR9>=VLOOKUP(Wycena!$C$24,Mapping!$DP$3:$DQ$4,2,0),DR9,"") -> 11 | DT9: =IF(ROWS($DS$3:DS9)>(ROWS($DS$3:$DS$28)-COUNTBLANK($DS$3:$DS$28)),"",INDEX($DS$3:$DS$28,SMALL(IF($DS$3:$DS$28<>"",ROW($DS$3:$DS$28)-2),ROWS($DS$3:DS9)))) -> 16 | DV9: 6 | DX9: za wysokość ponad standard | DY9: 80 | EA9: za wysokość ponad standard | EB9: 80 | EL9: x | EM9: x | EN9: x | EO9: x | EP9: x | ER9: x | ES9: x | ET9: x | EU9: x | EV9: x | FD9: Piaskowane refleks | FE9: 350 | FF9: Piaskowane refleks | FG9: =IF(Wycena!$C$19="-","",FF9) ->  | FH9: =IF(ROWS($FG$3:FG9)>(ROWS($FG$3:$FG$14)-COUNTBLANK($FG$3:$FG$14)),"",INDEX($FG$3:$FG$14,SMALL(IF($FG$3:$FG$14<>"",ROW($FG$3:$FG$14)-2),ROWS($FG$3:FG9)))) ->  | FI9: Piaskowane refleks | FJ9: =IF(Wycena!$C$20="-","",FI9) ->  | FK9: =IF(ROWS($FJ$3:FJ9)>(ROWS($FJ$3:$FJ$14)-COUNTBLANK($FJ$3:$FJ$14)),"",INDEX($FJ$3:$FJ$14,SMALL(IF($FJ$3:$FJ$14<>"",ROW($FJ$3:$FJ$14)-2),ROWS($FJ$3:FJ9)))) ->  | FN9: 6 | FO9: =IF(Wycena!$C$19="-","",FN9) ->  | FP9: =IF(ROWS($FO$3:FO9)>(ROWS($FO$3:$FO$23)-COUNTBLANK($FO$3:$FO$23)),"",INDEX($FO$3:$FO$23,SMALL(IF($FO$3:$FO$23<>"",ROW($FO$3:$FO$23)-2),ROWS($FO$3:FO9)))) ->  | FQ9: =IF(Wycena!$C$20="-","",FN9) ->  | FR9: =IF(ROWS($FQ$3:FQ9)>(ROWS($FQ$3:$FQ$23)-COUNTBLANK($FQ$3:$FQ$23)),"",INDEX($FQ$3:$FQ$23,SMALL(IF($FQ$3:$FQ$23<>"",ROW($FQ$3:$FQ$23)-2),ROWS($FQ$3:FQ9)))) ->  | FS9: =IF(Wycena!$C$21="-","",FN9) ->  | FT9: =IF(ROWS($FS$3:FS9)>(ROWS($FS$3:$FS$23)-COUNTBLANK($FS$3:$FS$23)),"",INDEX($FS$3:$FS$23,SMALL(IF($FS$3:$FS$23<>"",ROW($FS$3:$FS$23)-2),ROWS($FS$3:FS9)))) ->  | FU9: x | FV9: Zestaw czytnik RFID | FW9: 4900 | FX9: x | FY9: x | FZ9: Klamka AXA Manitoba Plus | GA9: 200 | GB9: Klamka AXA Manitoba Plus | GC9: Klamka AXA Manitoba Plus | GI9: =IF((HLOOKUP(VLOOKUP(Wycena!$C$58,Mapping!$GH$35:$GI$42,2,0),$GC$1:$GH$33,2+GJ9))=0,"",(HLOOKUP(VLOOKUP(Wycena!$C$58,Mapping!$GH$35:$GI$42,2,0),$GC$1:$GH$33,2+GJ9))) -> Klamka AXA Manitoba Plus | GJ9: 7 | GK9: =IF(ROWS($GI$3:GI9)>(ROWS($GI$3:$GI$33)-COUNTBLANK($GI$3:$GI$33)),"",INDEX($GI$3:$GI$33,SMALL(IF($GI$3:$GI$33<>"",ROW($GI$3:$GI$33)-2),ROWS($GI$3:GI9)))) ->  | GL9: Klamka Barański Retro | GM9: Satyna | GO9: =$GO$3:INDEX($GO$3:$GO$6,(ROWS($GN$3:$GN$6)-COUNTBLANK($GN$3:$GN$6))) ->  | GP9: =IFERROR(IF(FIND("Vegas",Wycena!$C$60)>0,200,""),"") ->  | GQ9: =IF(ROWS($GP$3:GP9)>(ROWS($GP$3:$GP$9)-COUNTBLANK($GP$3:$GP$9)),"",INDEX($GP$3:$GP$9,SMALL(IF($GP$3:$GP$9<>"",ROW($GP$3:$GP$9)-2),ROWS($GP$3:GP9)))) ->  | GT9: x | GU9: x | HE9: W skrzydle, dostawkach i naświetlu | HF9: 1200 | HG9: =IF(Wycena!$C$58=Mapping!$HA$31,-300,0)+HF9 -> 1200 | HH9: =IF(Wycena!$C$6="Brak (pełne)","",HE9) -> W skrzydle, dostawkach i naświetlu | HI9: =IF(AND(Wycena!$C$19<>"-",Wycena!$C$20<>"-",Wycena!$C$21<>"-"),HH9,"") ->  | HJ9: =IF(ROWS($HI$3:HI9)>(ROWS($HI$3:$HI$13)-COUNTBLANK($HI$3:$HI$13)),"",INDEX($HI$3:$HI$13,SMALL(IF($HI$3:$HI$13<>"",ROW($HI$3:$HI$13)-2),ROWS($HI$3:HI9)))) ->  | HR9: 15 | HS9: 210 | HT9: =(1+IFERROR(VLOOKUP(Wycena!$C$44,Mapping!$EY$3:$FB$6,4,1),0)+IFERROR(VLOOKUP(Wycena!$C$48,Mapping!$EY$3:$FB$6,4,1),0))*HS9 -> 210 | HV9: Z dwóch stron skrzydła i dostawek | HW9: 200 | HX9: =(1+IFERROR(VLOOKUP(Wycena!$C$44,Mapping!$EY$3:$FB$6,4,1),0)+IFERROR(VLOOKUP(Wycena!$C$48,Mapping!$EY$3:$FB$6,4,1),0))*HW9 -> 200 | HY9: 400 | HZ9: =(1+IFERROR(VLOOKUP(Wycena!$C$44,Mapping!$EY$3:$FB$6,4,1),0)+IFERROR(VLOOKUP(Wycena!$C$48,Mapping!$EY$3:$FB$6,4,1),0))*HY9 -> 400 | IA9: =IF(AND(Wycena!$C$19<>"-",Wycena!$C$20<>"-"),HV9,"") ->  | IB9: =IF(ROWS($IA$3:IA9)>(ROWS($IA$3:$IA$9)-COUNTBLANK($IA$3:$IA$9)),"",INDEX($IA$3:$IA$9,SMALL(IF($IA$3:$IA$9<>"",ROW($IA$3:$IA$9)-2),ROWS($IA$3:IA9)))) ->  | IG9: Nawierzchniowy z funkcją stop biały | IH9: 400 | IV9: 0.06 | IX9: 700
A10: DB 12 | B10: 20 | C10: 20 | D10: 20 | E10: 20 | F10: 34 | G10: 34 | H10: 36 | I10: 36 | J10: Mapping dla naświetle | K10: 3 | M10: =IFERROR(VLOOKUP(Wycena!$C$5,OFFSET(SKU!$B$1,MATCH(Wycena!$C$5,SKU!$B$1:$B$743,0)+6,0,1000,6),5,0),"") ->  | N10: =IFERROR(VLOOKUP(Wycena!$C$5,OFFSET(SKU!$B$1,MATCH(Wycena!$C$5,SKU!$B$1:$B$743,0)+6,0,1000,6),2,0)-VLOOKUP(Wycena!$C$5,SKU!$B$1:$C$743,2,0),"") ->  | O10: =IF(ROWS($M$3:M10)>(ROWS($M$3:$M$10)-COUNTBLANK($M$3:$M$10)),"",INDEX($M$3:$M$10,SMALL(IF($M$3:$M$10<>"",ROW($M$3:$M$10)-2),ROWS($M$3:M10)))) ->  | Y10: Orzech | Z10: 0 | AA10: Orzech | AB10: =IF(ROWS($AA$3:AA10)>(ROWS($AA$3:$AA$228)-COUNTBLANK($AA$3:$AA$228)),"",INDEX($AA$3:$AA$228,SMALL(IF($AA$3:$AA$228<>"",ROW($AA$3:$AA$228)-2),ROWS($AA$3:AA10)))) ->  | AJ10: =$AJ$3:INDEX($AJ$3:$AJ$7,(ROWS($AH$3:$AH$7)-COUNTBLANK($AH$3:$AH$7))) ->  | AW10: 79 | AX10: 0 | AY10: 0 | AZ10: =IF(Wycena!$C$15=78,Mapping!AX10,AY10) -> 0 | BC10: 187 | BD10: 0 | BE10: 0 | BF10: =IF(Wycena!$C$15=78,Mapping!BD10,BE10) -> 0 | BR10: =$BR$3:INDEX($BR$3:$BR$7,(ROWS($BQ$3:$BQ$7)-COUNTBLANK($BQ$3:$BQ$7))) ->  | BZ10: Dyskretne grafit refleks | CA10: 400 | CB10: =CA10*(1+IFERROR(VLOOKUP(Wycena!$C$44,Mapping!$EY$3:$FB$6,4,1),0)+IFERROR(VLOOKUP(Wycena!$C$48,Mapping!$EY$3:$FB$6,4,1),0))*(1+VLOOKUP(Wycena!$C$53,Mapping!$BV$3:$BW$6,2,1)) ->  | CC10: =IF(Wycena!$C$21="Imitacja skrzydła",BZ9,"") ->  | CD10: =IF(Wycena!$C$21="-","",CC10) ->  | CE10: =IF(ROWS($CD$3:CD10)>(ROWS($CD$3:$CD$13)-COUNTBLANK($CD$3:$CD$13)),"",INDEX($CD$3:$CD$13,SMALL(IF($CD$3:$CD$13<>"",ROW($CD$3:$CD$13)-2),ROWS($CD$3:CD10)))) ->  | CN10: Przy skrzydle, naświetlu i ościeżnicy od zewnątrz | CO10: =1200+((IF(OR(Wycena!$C$19="W ościeżnicy nowoczesna",Wycena!$C$19="W ościeżnicy tradycyjna"),1,0))+(IF(OR(Wycena!$C$20="W ościeżnicy nowoczesna",Wycena!$C$20="W ościeżnicy tradycyjna"),1,0)))*600 -> 1200 | CP10: =IF(Wycena!$C$24="Krosnowa","",CN10) -> Przy skrzydle, naświetlu i ościeżnicy od zewnątrz | CQ10: =IF(Wycena!$C$14="Bezprzylgowe Glass","",CP10) -> Przy skrzydle, naświetlu i ościeżnicy od zewnątrz | CR10: =IF(OR(Wycena!$C$19="W ościeżnicy nowoczesna",Wycena!$C$19="W ościeżnicy tradycyjna",Wycena!$C$20="W ościeżnicy nowoczesna",Wycena!$C$20="W ościeżnicy tradycyjna"),CQ10,"") ->  | CS10: =IF(Wycena!$C$21="W ościeżnicy",CR10,"") ->  | CT10: =IF(ROWS($CS$3:CS10)>(ROWS($CS$3:$CS$11)-COUNTBLANK($CS$3:$CS$11)),"",INDEX($CS$3:$CS$11,SMALL(IF($CS$3:$CS$11<>"",ROW($CS$3:$CS$11)-2),ROWS($CS$3:CS10)))) ->  | CX10: Bezprzylgowe Glass | CY10: 8 | CZ10: 12 | DA10: =IF(CZ10>=VLOOKUP(Wycena!$C$14,Mapping!$CX$3:$CY$5,2,0),CZ10,"") -> 12 | DB10: =IF(ROWS($DA$3:DA10)>(ROWS($DA$3:$DA$28)-COUNTBLANK($DA$3:$DA$28)),"",INDEX($DA$3:$DA$28,SMALL(IF($DA$3:$DA$28<>"",ROW($DA$3:$DA$28)-2),ROWS($DA$3:DA10)))) -> 13 | DF10: Bezprzylgowe Glass | DG10: 8 | DH10: 8 | DJ10: 12 | DK10: =IF(DJ10>=VLOOKUP(Wycena!$C$14,Mapping!$DF$3:$DG$5,2,0),DJ10,"") -> 12 | DL10: =IF(ROWS($DK$3:DK10)>(ROWS($DK$3:$DK$28)-COUNTBLANK($DK$3:$DK$28)),"",INDEX($DK$3:$DK$28,SMALL(IF($DK$3:$DK$28<>"",ROW($DK$3:$DK$28)-2),ROWS($DK$3:DK10)))) -> 13 | DM10: =IF(DJ10>=VLOOKUP(Wycena!$C$14,Mapping!$DF$3:$DH$5,3,0),DJ10,"") -> 12 | DN10: =IF(ROWS($DM$3:DM10)>(ROWS($DM$3:$DM$28)-COUNTBLANK($DM$3:$DM$28)),"",INDEX($DM$3:$DM$28,SMALL(IF($DM$3:$DM$28<>"",ROW($DM$3:$DM$28)-2),ROWS($DM$3:DM10)))) -> 13 | DR10: 12 | DS10: =IF(DR10>=VLOOKUP(Wycena!$C$24,Mapping!$DP$3:$DQ$4,2,0),DR10,"") -> 12 | DT10: =IF(ROWS($DS$3:DS10)>(ROWS($DS$3:$DS$28)-COUNTBLANK($DS$3:$DS$28)),"",INDEX($DS$3:$DS$28,SMALL(IF($DS$3:$DS$28<>"",ROW($DS$3:$DS$28)-2),ROWS($DS$3:DS10)))) -> 17 | DV10: 7 | FD10: Dyskretne brąz refleks | FE10: 600 | FF10: =IF(OR(Wycena!$C$19="Imitacja skrzydła stała",Wycena!$C$19="Imitacja skrzydła ruchoma"),FD10,"") ->  | FG10: =IF(Wycena!$C$19="-","",FF10) ->  | FH10: =IF(ROWS($FG$3:FG10)>(ROWS($FG$3:$FG$14)-COUNTBLANK($FG$3:$FG$14)),"",INDEX($FG$3:$FG$14,SMALL(IF($FG$3:$FG$14<>"",ROW($FG$3:$FG$14)-2),ROWS($FG$3:FG10)))) ->  | FI10: =IF(OR(Wycena!$C$20="Imitacja skrzydła stała",Wycena!$C$20="Imitacja skrzydła ruchoma"),FD10,"") ->  | FJ10: =IF(Wycena!$C$20="-","",FI10) ->  | FK10: =IF(ROWS($FJ$3:FJ10)>(ROWS($FJ$3:$FJ$14)-COUNTBLANK($FJ$3:$FJ$14)),"",INDEX($FJ$3:$FJ$14,SMALL(IF($FJ$3:$FJ$14<>"",ROW($FJ$3:$FJ$14)-2),ROWS($FJ$3:FJ10)))) ->  | FN10: 7 | FO10: =IF(Wycena!$C$19="-","",FN10) ->  | FP10: =IF(ROWS($FO$3:FO10)>(ROWS($FO$3:$FO$23)-COUNTBLANK($FO$3:$FO$23)),"",INDEX($FO$3:$FO$23,SMALL(IF($FO$3:$FO$23<>"",ROW($FO$3:$FO$23)-2),ROWS($FO$3:FO10)))) ->  | FQ10: =IF(Wycena!$C$20="-","",FN10) ->  | FR10: =IF(ROWS($FQ$3:FQ10)>(ROWS($FQ$3:$FQ$23)-COUNTBLANK($FQ$3:$FQ$23)),"",INDEX($FQ$3:$FQ$23,SMALL(IF($FQ$3:$FQ$23<>"",ROW($FQ$3:$FQ$23)-2),ROWS($FQ$3:FQ10)))) ->  | FS10: =IF(Wycena!$C$21="-","",FN10) ->  | FT10: =IF(ROWS($FS$3:FS10)>(ROWS($FS$3:$FS$23)-COUNTBLANK($FS$3:$FS$23)),"",INDEX($FS$3:$FS$23,SMALL(IF($FS$3:$FS$23<>"",ROW($FS$3:$FS$23)-2),ROWS($FS$3:FS10)))) ->  | FU10: x | FV10: Zestaw szklana klawiatura Bluetooth | FW10: 4900 | FZ10: Klamka AXA Niagara Plus | GA10: 200 | GB10: Klamka AXA Niagara Plus | GC10: Klamka AXA Niagara Plus | GI10: =IF((HLOOKUP(VLOOKUP(Wycena!$C$58,Mapping!$GH$35:$GI$42,2,0),$GC$1:$GH$33,2+GJ10))=0,"",(HLOOKUP(VLOOKUP(Wycena!$C$58,Mapping!$GH$35:$GI$42,2,0),$GC$1:$GH$33,2+GJ10))) -> Klamka AXA Niagara Plus | GJ10: 8 | GK10: =IF(ROWS($GI$3:GI10)>(ROWS($GI$3:$GI$33)-COUNTBLANK($GI$3:$GI$33)),"",INDEX($GI$3:$GI$33,SMALL(IF($GI$3:$GI$33<>"",ROW($GI$3:$GI$33)-2),ROWS($GI$3:GI10)))) ->  | GL10: Klamka Barański Retro | GM10: Patyna | GP10: x | GQ10: x | HE10: W dostawce | HF10: 300 | HG10: 300 | HH10: W dostawce | HI10: =IF(OR(AND(Wycena!$C$19="-",Wycena!$C$20<>"-"),AND(Wycena!$C$20="-",Wycena!$C$19<>"-")),HH10,"") ->  | HJ10: =IF(ROWS($HI$3:HI10)>(ROWS($HI$3:$HI$13)-COUNTBLANK($HI$3:$HI$13)),"",INDEX($HI$3:$HI$13,SMALL(IF($HI$3:$HI$13<>"",ROW($HI$3:$HI$13)-2),ROWS($HI$3:HI10)))) ->  | HL10: Lewe na zewnątrz | HM10: 1 | HR10: 18 | HS10: 280 | HT10: =(1+IFERROR(VLOOKUP(Wycena!$C$44,Mapping!$EY$3:$FB$6,4,1),0)+IFERROR(VLOOKUP(Wycena!$C$48,Mapping!$EY$3:$FB$6,4,1),0))*HS10 -> 280 | HV10: x | HW10: x | HX10: x | HY10: x | HZ10: x | IA10: x | IB10: x | IG10: Nawierzchniowy z funkcją stop brąz | IH10: 400 | IV10: 0.07 | IX10: 800
A11: DB 14 | B11: 20 | C11: 20 | D11: 20 | E11: 20 | F11: 34 | G11: 34 | H11: 36 | I11: 36 | J11: W ościeżnicy | K11: 5 | M11: x | N11: x | O11: x | T11: =$T$3:INDEX($T$3:$T$8,(ROWS($S$3:$S$8)-COUNTBLANK($S$3:$S$8))) ->  | Y11: Palisander | Z11: 0 | AA11: Palisander | AB11: =IF(ROWS($AA$3:AA11)>(ROWS($AA$3:$AA$228)-COUNTBLANK($AA$3:$AA$228)),"",INDEX($AA$3:$AA$228,SMALL(IF($AA$3:$AA$228<>"",ROW($AA$3:$AA$228)-2),ROWS($AA$3:AA11)))) ->  | AW11: 80 | AX11: 0 | AY11: 0 | AZ11: =IF(Wycena!$C$15=78,Mapping!AX11,AY11) -> 0 | BC11: 188 | BD11: 0 | BE11: 0 | BF11: =IF(Wycena!$C$15=78,Mapping!BD11,BE11) -> 0 | BZ11: Dyskretne lustrzane | CA11: 400 | CB11: =CA11*(1+IFERROR(VLOOKUP(Wycena!$C$44,Mapping!$EY$3:$FB$6,4,1),0)+IFERROR(VLOOKUP(Wycena!$C$48,Mapping!$EY$3:$FB$6,4,1),0))*(1+VLOOKUP(Wycena!$C$53,Mapping!$BV$3:$BW$6,2,1)) ->  | CC11: =IF(Wycena!$C$21="Imitacja skrzydła",BZ10,"") ->  | CD11: =IF(Wycena!$C$21="-","",CC11) ->  | CE11: =IF(ROWS($CD$3:CD11)>(ROWS($CD$3:$CD$13)-COUNTBLANK($CD$3:$CD$13)),"",INDEX($CD$3:$CD$13,SMALL(IF($CD$3:$CD$13<>"",ROW($CD$3:$CD$13)-2),ROWS($CD$3:CD11)))) ->  | CN11: Przy skrzydle, naświetlu i ościeżnicy z dwóch stron | CO11: =1600+((IF(OR(Wycena!$C$19="W ościeżnicy nowoczesna",Wycena!$C$19="W ościeżnicy tradycyjna"),1,0))+(IF(OR(Wycena!$C$20="W ościeżnicy nowoczesna",Wycena!$C$20="W ościeżnicy tradycyjna"),1,0)))*800 -> 1600 | CP11: =IF(Wycena!$C$24="Krosnowa","",CN11) -> Przy skrzydle, naświetlu i ościeżnicy z dwóch stron | CQ11: =IF(Wycena!$C$14="Bezprzylgowe Glass","",CP11) -> Przy skrzydle, naświetlu i ościeżnicy z dwóch stron | CR11: =IF(OR(Wycena!$C$19="W ościeżnicy nowoczesna",Wycena!$C$19="W ościeżnicy tradycyjna",Wycena!$C$20="W ościeżnicy nowoczesna",Wycena!$C$20="W ościeżnicy tradycyjna"),CQ11,"") ->  | CS11: =IF(Wycena!$C$21="W ościeżnicy",CR11,"") ->  | CT11: =IF(ROWS($CS$3:CS11)>(ROWS($CS$3:$CS$11)-COUNTBLANK($CS$3:$CS$11)),"",INDEX($CS$3:$CS$11,SMALL(IF($CS$3:$CS$11<>"",ROW($CS$3:$CS$11)-2),ROWS($CS$3:CS11)))) ->  | CZ11: 13 | DA11: =IF(CZ11>=VLOOKUP(Wycena!$C$14,Mapping!$CX$3:$CY$5,2,0),CZ11,"") -> 13 | DB11: =IF(ROWS($DA$3:DA11)>(ROWS($DA$3:$DA$28)-COUNTBLANK($DA$3:$DA$28)),"",INDEX($DA$3:$DA$28,SMALL(IF($DA$3:$DA$28<>"",ROW($DA$3:$DA$28)-2),ROWS($DA$3:DA11)))) -> 14 | DJ11: 13 | DK11: =IF(DJ11>=VLOOKUP(Wycena!$C$14,Mapping!$DF$3:$DG$5,2,0),DJ11,"") -> 13 | DL11: =IF(ROWS($DK$3:DK11)>(ROWS($DK$3:$DK$28)-COUNTBLANK($DK$3:$DK$28)),"",INDEX($DK$3:$DK$28,SMALL(IF($DK$3:$DK$28<>"",ROW($DK$3:$DK$28)-2),ROWS($DK$3:DK11)))) -> 14 | DM11: =IF(DJ11>=VLOOKUP(Wycena!$C$14,Mapping!$DF$3:$DH$5,3,0),DJ11,"") -> 13 | DN11: =IF(ROWS($DM$3:DM11)>(ROWS($DM$3:$DM$28)-COUNTBLANK($DM$3:$DM$28)),"",INDEX($DM$3:$DM$28,SMALL(IF($DM$3:$DM$28<>"",ROW($DM$3:$DM$28)-2),ROWS($DM$3:DM11)))) -> 14 | DR11: 13 | DS11: =IF(DR11>=VLOOKUP(Wycena!$C$24,Mapping!$DP$3:$DQ$4,2,0),DR11,"") -> 13 | DT11: =IF(ROWS($DS$3:DS11)>(ROWS($DS$3:$DS$28)-COUNTBLANK($DS$3:$DS$28)),"",INDEX($DS$3:$DS$28,SMALL(IF($DS$3:$DS$28<>"",ROW($DS$3:$DS$28)-2),ROWS($DS$3:DS11)))) -> 18 | DV11: 8 | EP11: =$EP$3:INDEX($EP$3:$EP$8,(ROWS($EO$3:$EO$8)-COUNTBLANK($EO$3:$EO$8))) -> 90 | EV11: =$EV$3:INDEX($EV$3:$EV$8,(ROWS($EU$3:$EU$8)-COUNTBLANK($EU$3:$EU$8))) -> 204 | FD11: Dyskretne grafit refleks | FE11: 600 | FF11: =IF(OR(Wycena!$C$19="Imitacja skrzydła stała",Wycena!$C$19="Imitacja skrzydła ruchoma"),FD11,"") ->  | FG11: =IF(Wycena!$C$19="-","",FF11) ->  | FH11: =IF(ROWS($FG$3:FG11)>(ROWS($FG$3:$FG$14)-COUNTBLANK($FG$3:$FG$14)),"",INDEX($FG$3:$FG$14,SMALL(IF($FG$3:$FG$14<>"",ROW($FG$3:$FG$14)-2),ROWS($FG$3:FG11)))) ->  | FI11: =IF(OR(Wycena!$C$20="Imitacja skrzydła stała",Wycena!$C$20="Imitacja skrzydła ruchoma"),FD11,"") ->  | FJ11: =IF(Wycena!$C$20="-","",FI11) ->  | FK11: =IF(ROWS($FJ$3:FJ11)>(ROWS($FJ$3:$FJ$14)-COUNTBLANK($FJ$3:$FJ$14)),"",INDEX($FJ$3:$FJ$14,SMALL(IF($FJ$3:$FJ$14<>"",ROW($FJ$3:$FJ$14)-2),ROWS($FJ$3:FJ11)))) ->  | FN11: 8 | FO11: =IF(Wycena!$C$19="-","",FN11) ->  | FP11: =IF(ROWS($FO$3:FO11)>(ROWS($FO$3:$FO$23)-COUNTBLANK($FO$3:$FO$23)),"",INDEX($FO$3:$FO$23,SMALL(IF($FO$3:$FO$23<>"",ROW($FO$3:$FO$23)-2),ROWS($FO$3:FO11)))) ->  | FQ11: =IF(Wycena!$C$20="-","",FN11) ->  | FR11: =IF(ROWS($FQ$3:FQ11)>(ROWS($FQ$3:$FQ$23)-COUNTBLANK($FQ$3:$FQ$23)),"",INDEX($FQ$3:$FQ$23,SMALL(IF($FQ$3:$FQ$23<>"",ROW($FQ$3:$FQ$23)-2),ROWS($FQ$3:FQ11)))) ->  | FS11: =IF(Wycena!$C$21="-","",FN11) ->  | FT11: =IF(ROWS($FS$3:FS11)>(ROWS($FS$3:$FS$23)-COUNTBLANK($FS$3:$FS$23)),"",INDEX($FS$3:$FS$23,SMALL(IF($FS$3:$FS$23<>"",ROW($FS$3:$FS$23)-2),ROWS($FS$3:FS11)))) ->  | FY11: =$FY$3:INDEX($FY$3:$FY$8,(ROWS($FX$3:$FX$8)-COUNTBLANK($FX$3:$FX$8))) -> Ryglowy 3-punktowy z gałką (standard) | FZ11: Klamka AXA Prestige Flex | GA11: 350 | GB11: Klamka AXA Prestige Flex | GC11: Klamka AXA Prestige Flex | GI11: =IF((HLOOKUP(VLOOKUP(Wycena!$C$58,Mapping!$GH$35:$GI$42,2,0),$GC$1:$GH$33,2+GJ11))=0,"",(HLOOKUP(VLOOKUP(Wycena!$C$58,Mapping!$GH$35:$GI$42,2,0),$GC$1:$GH$33,2+GJ11))) -> Klamka AXA Prestige Flex | GJ11: 9 | GK11: =IF(ROWS($GI$3:GI11)>(ROWS($GI$3:$GI$33)-COUNTBLANK($GI$3:$GI$33)),"",INDEX($GI$3:$GI$33,SMALL(IF($GI$3:$GI$33<>"",ROW($GI$3:$GI$33)-2),ROWS($GI$3:GI11)))) ->  | GL11: Klamka Hoppe Bezpieczna | GM11: Satyna | GU11: =$GU$3:INDEX($GU$3:$GU$8,(ROWS($GT$3:$GT$8)-COUNTBLANK($GT$3:$GT$8))) -> Standard satyna | HE11: W dostawkach | HF11: 600 | HG11: 600 | HH11: W dostawkach | HI11: =IF(AND(Wycena!$C$19<>"-",Wycena!$C$20<>"-"),HH11,"") ->  | HJ11: =IF(ROWS($HI$3:HI11)>(ROWS($HI$3:$HI$13)-COUNTBLANK($HI$3:$HI$13)),"",INDEX($HI$3:$HI$13,SMALL(IF($HI$3:$HI$13<>"",ROW($HI$3:$HI$13)-2),ROWS($HI$3:HI11)))) ->  | HL11: Lewe do wewnątrz | HM11: 0 | HR11: 20 | HS11: 280 | HT11: =(1+IFERROR(VLOOKUP(Wycena!$C$44,Mapping!$EY$3:$FB$6,4,1),0)+IFERROR(VLOOKUP(Wycena!$C$48,Mapping!$EY$3:$FB$6,4,1),0))*HS11 -> 280 | IG11: Nawierzchniowy z funkcją stop czarny | IH11: 400 | IV11: 0.08 | IX11: 900
A12: DB 17 | B12: 20 | C12: 20 | D12: 20 | E12: 20 | F12: 34 | G12: 34 | H12: 36 | I12: 36 | J12: Imitacja skrzydła | K12: 3 | Y12: Teak | Z12: 0 | AA12: Teak | AB12: =IF(ROWS($AA$3:AA12)>(ROWS($AA$3:$AA$228)-COUNTBLANK($AA$3:$AA$228)),"",INDEX($AA$3:$AA$228,SMALL(IF($AA$3:$AA$228<>"",ROW($AA$3:$AA$228)-2),ROWS($AA$3:AA12)))) ->  | AW12: 81 | AX12: 0 | AY12: 0 | AZ12: =IF(Wycena!$C$15=78,Mapping!AX12,AY12) -> 0 | BC12: 189 | BD12: 0 | BE12: 0 | BF12: =IF(Wycena!$C$15=78,Mapping!BD12,BE12) -> 0 | BZ12: Dyskretne lustro weneckie w głębi | CA12: 400 | CB12: =CA12*(1+IFERROR(VLOOKUP(Wycena!$C$44,Mapping!$EY$3:$FB$6,4,1),0)+IFERROR(VLOOKUP(Wycena!$C$48,Mapping!$EY$3:$FB$6,4,1),0))*(1+VLOOKUP(Wycena!$C$53,Mapping!$BV$3:$BW$6,2,1)) ->  | CC12: =IF(Wycena!$C$21="Imitacja skrzydła",BZ11,"") ->  | CD12: =IF(Wycena!$C$21="-","",CC12) ->  | CE12: =IF(ROWS($CD$3:CD12)>(ROWS($CD$3:$CD$13)-COUNTBLANK($CD$3:$CD$13)),"",INDEX($CD$3:$CD$13,SMALL(IF($CD$3:$CD$13<>"",ROW($CD$3:$CD$13)-2),ROWS($CD$3:CD12)))) ->  | CN12: x | CQ12: x | CR12: x | CS12: x | CT12: x | CX12: vlookup ościeżnicy | CY12: stawki pod liczenie | CZ12: 14 | DA12: =IF(CZ12>=VLOOKUP(Wycena!$C$14,Mapping!$CX$3:$CY$5,2,0),CZ12,"") -> 14 | DB12: =IF(ROWS($DA$3:DA12)>(ROWS($DA$3:$DA$28)-COUNTBLANK($DA$3:$DA$28)),"",INDEX($DA$3:$DA$28,SMALL(IF($DA$3:$DA$28<>"",ROW($DA$3:$DA$28)-2),ROWS($DA$3:DA12)))) -> 15 | DF12: vlookup ościeżnicy | DG12: stawki pod liczenie | DH12: stawki pod liczenie | DJ12: 14 | DK12: =IF(DJ12>=VLOOKUP(Wycena!$C$14,Mapping!$DF$3:$DG$5,2,0),DJ12,"") -> 14 | DL12: =IF(ROWS($DK$3:DK12)>(ROWS($DK$3:$DK$28)-COUNTBLANK($DK$3:$DK$28)),"",INDEX($DK$3:$DK$28,SMALL(IF($DK$3:$DK$28<>"",ROW($DK$3:$DK$28)-2),ROWS($DK$3:DK12)))) -> 15 | DM12: =IF(DJ12>=VLOOKUP(Wycena!$C$14,Mapping!$DF$3:$DH$5,3,0),DJ12,"") -> 14 | DN12: =IF(ROWS($DM$3:DM12)>(ROWS($DM$3:$DM$28)-COUNTBLANK($DM$3:$DM$28)),"",INDEX($DM$3:$DM$28,SMALL(IF($DM$3:$DM$28<>"",ROW($DM$3:$DM$28)-2),ROWS($DM$3:DM12)))) -> 15 | DP12: vlookup rodzaj | DQ12: stawki pod liczenie | DR12: 14 | DS12: =IF(DR12>=VLOOKUP(Wycena!$C$24,Mapping!$DP$3:$DQ$4,2,0),DR12,"") -> 14 | DT12: =IF(ROWS($DS$3:DS12)>(ROWS($DS$3:$DS$28)-COUNTBLANK($DS$3:$DS$28)),"",INDEX($DS$3:$DS$28,SMALL(IF($DS$3:$DS$28<>"",ROW($DS$3:$DS$28)-2),ROWS($DS$3:DS12)))) -> 19 | DV12: 9 | FD12: Dyskretne lustrzane | FE12: 600 | FF12: =IF(OR(Wycena!$C$19="Imitacja skrzydła stała",Wycena!$C$19="Imitacja skrzydła ruchoma"),FD12,"") ->  | FG12: =IF(Wycena!$C$19="-","",FF12) ->  | FH12: =IF(ROWS($FG$3:FG12)>(ROWS($FG$3:$FG$14)-COUNTBLANK($FG$3:$FG$14)),"",INDEX($FG$3:$FG$14,SMALL(IF($FG$3:$FG$14<>"",ROW($FG$3:$FG$14)-2),ROWS($FG$3:FG12)))) ->  | FI12: =IF(OR(Wycena!$C$20="Imitacja skrzydła stała",Wycena!$C$20="Imitacja skrzydła ruchoma"),FD12,"") ->  | FJ12: =IF(Wycena!$C$20="-","",FI12) ->  | FK12: =IF(ROWS($FJ$3:FJ12)>(ROWS($FJ$3:$FJ$14)-COUNTBLANK($FJ$3:$FJ$14)),"",INDEX($FJ$3:$FJ$14,SMALL(IF($FJ$3:$FJ$14<>"",ROW($FJ$3:$FJ$14)-2),ROWS($FJ$3:FJ12)))) ->  | FN12: 9 | FO12: =IF(Wycena!$C$19="-","",FN12) ->  | FP12: =IF(ROWS($FO$3:FO12)>(ROWS($FO$3:$FO$23)-COUNTBLANK($FO$3:$FO$23)),"",INDEX($FO$3:$FO$23,SMALL(IF($FO$3:$FO$23<>"",ROW($FO$3:$FO$23)-2),ROWS($FO$3:FO12)))) ->  | FQ12: =IF(Wycena!$C$20="-","",FN12) ->  | FR12: =IF(ROWS($FQ$3:FQ12)>(ROWS($FQ$3:$FQ$23)-COUNTBLANK($FQ$3:$FQ$23)),"",INDEX($FQ$3:$FQ$23,SMALL(IF($FQ$3:$FQ$23<>"",ROW($FQ$3:$FQ$23)-2),ROWS($FQ$3:FQ12)))) ->  | FS12: =IF(Wycena!$C$21="-","",FN12) ->  | FT12: =IF(ROWS($FS$3:FS12)>(ROWS($FS$3:$FS$23)-COUNTBLANK($FS$3:$FS$23)),"",INDEX($FS$3:$FS$23,SMALL(IF($FS$3:$FS$23<>"",ROW($FS$3:$FS$23)-2),ROWS($FS$3:FS12)))) ->  | FZ12: Klamka AXA Slim Plus | GA12: 200 | GB12: Klamka AXA Slim Plus | GC12: Klamka AXA Slim Plus | GI12: =IF((HLOOKUP(VLOOKUP(Wycena!$C$58,Mapping!$GH$35:$GI$42,2,0),$GC$1:$GH$33,2+GJ12))=0,"",(HLOOKUP(VLOOKUP(Wycena!$C$58,Mapping!$GH$35:$GI$42,2,0),$GC$1:$GH$33,2+GJ12))) -> Klamka AXA Slim Plus | GJ12: 10 | GK12: =IF(ROWS($GI$3:GI12)>(ROWS($GI$3:$GI$33)-COUNTBLANK($GI$3:$GI$33)),"",INDEX($GI$3:$GI$33,SMALL(IF($GI$3:$GI$33<>"",ROW($GI$3:$GI$33)-2),ROWS($GI$3:GI12)))) ->  | GL12: Klamka Hoppe Bezpieczna | GM12: Patyna | GQ12: =$GQ$3:INDEX($GQ$3:$GQ$9,(ROWS($GP$3:$GP$9)-COUNTBLANK($GP$3:$GP$9))) -> - | HE12: W dostawce i naświetlu | HF12: 600 | HG12: 600 | HH12: W dostawce i naświetlu | HI12: =IF(OR(AND(Wycena!$C$19="-",Wycena!$C$20<>"-",Wycena!C21<>"-"),AND(Wycena!$C$20="-",Wycena!$C$19<>"-",Wycena!C21<>"-")),HH12,"") ->  | HJ12: =IF(ROWS($HI$3:HI12)>(ROWS($HI$3:$HI$13)-COUNTBLANK($HI$3:$HI$13)),"",INDEX($HI$3:$HI$13,SMALL(IF($HI$3:$HI$13<>"",ROW($HI$3:$HI$13)-2),ROWS($HI$3:HI12)))) ->  | HL12: Prawe na zewnątrz | HM12: 1 | HR12: 23 | HS12: 350 | HT12: =(1+IFERROR(VLOOKUP(Wycena!$C$44,Mapping!$EY$3:$FB$6,4,1),0)+IFERROR(VLOOKUP(Wycena!$C$48,Mapping!$EY$3:$FB$6,4,1),0))*HS12 -> 350 | IB12: =$IB$3:INDEX($IB$3:$IB$9,(ROWS($IA$3:$IA$9)-COUNTBLANK($IA$3:$IA$9))) -> - | IG12: Ukryty | IH12: 900 | IV12: 0.09 | IX12: 1000
A13: DB 18 | B13: 20 | C13: 20 | D13: 20 | E13: 20 | F13: 34 | G13: 34 | H13: 36 | I13: 36 | J13: W łuku w ościeżnicy | O13: =$O$3:INDEX($O$3:$O$10,(ROWS($M$3:$M$10)-COUNTBLANK($M$3:$M$10))) ->  | Y13: Vintage oak | Z13: 0 | AA13: Vintage oak | AB13: =IF(ROWS($AA$3:AA13)>(ROWS($AA$3:$AA$228)-COUNTBLANK($AA$3:$AA$228)),"",INDEX($AA$3:$AA$228,SMALL(IF($AA$3:$AA$228<>"",ROW($AA$3:$AA$228)-2),ROWS($AA$3:AA13)))) ->  | AW13: 82 | AX13: 0 | AY13: 0 | AZ13: =IF(Wycena!$C$15=78,Mapping!AX13,AY13) -> 0 | BC13: 190 | BD13: 0 | BE13: 0 | BF13: =IF(Wycena!$C$15=78,Mapping!BD13,BE13) -> 0 | BZ13: x | CA13: x | CC13: =IF(Wycena!$C$21="Imitacja skrzydła",BZ12,"") ->  | CD13: =IF(Wycena!$C$21="-","",CC13) ->  | CE13: =IF(ROWS($CD$3:CD13)>(ROWS($CD$3:$CD$13)-COUNTBLANK($CD$3:$CD$13)),"",INDEX($CD$3:$CD$13,SMALL(IF($CD$3:$CD$13<>"",ROW($CD$3:$CD$13)-2),ROWS($CD$3:CD13)))) ->  | CX13: Przylgowe | CY13: 26 | CZ13: 15 | DA13: =IF(CZ13>=VLOOKUP(Wycena!$C$14,Mapping!$CX$3:$CY$5,2,0),CZ13,"") -> 15 | DB13: =IF(ROWS($DA$3:DA13)>(ROWS($DA$3:$DA$28)-COUNTBLANK($DA$3:$DA$28)),"",INDEX($DA$3:$DA$28,SMALL(IF($DA$3:$DA$28<>"",ROW($DA$3:$DA$28)-2),ROWS($DA$3:DA13)))) -> 16 | DF13: Przylgowe | DG13: 26 | DH13: 26 | DJ13: 15 | DK13: =IF(DJ13>=VLOOKUP(Wycena!$C$14,Mapping!$DF$3:$DG$5,2,0),DJ13,"") -> 15 | DL13: =IF(ROWS($DK$3:DK13)>(ROWS($DK$3:$DK$28)-COUNTBLANK($DK$3:$DK$28)),"",INDEX($DK$3:$DK$28,SMALL(IF($DK$3:$DK$28<>"",ROW($DK$3:$DK$28)-2),ROWS($DK$3:DK13)))) -> 16 | DM13: =IF(DJ13>=VLOOKUP(Wycena!$C$14,Mapping!$DF$3:$DH$5,3,0),DJ13,"") -> 15 | DN13: =IF(ROWS($DM$3:DM13)>(ROWS($DM$3:$DM$28)-COUNTBLANK($DM$3:$DM$28)),"",INDEX($DM$3:$DM$28,SMALL(IF($DM$3:$DM$28<>"",ROW($DM$3:$DM$28)-2),ROWS($DM$3:DM13)))) -> 16 | DP13: standardowa | DQ13: 18 | DR13: 15 | DS13: =IF(DR13>=VLOOKUP(Wycena!$C$24,Mapping!$DP$3:$DQ$4,2,0),DR13,"") -> 15 | DT13: =IF(ROWS($DS$3:DS13)>(ROWS($DS$3:$DS$28)-COUNTBLANK($DS$3:$DS$28)),"",INDEX($DS$3:$DS$28,SMALL(IF($DS$3:$DS$28<>"",ROW($DS$3:$DS$28)-2),ROWS($DS$3:DS13)))) -> 20 | DV13: 10 | FD13: Dyskretne lustro weneckie w głębi | FE13: 600 | FF13: =IF(OR(Wycena!$C$19="Imitacja skrzydła stała",Wycena!$C$19="Imitacja skrzydła ruchoma"),FD13,"") ->  | FG13: =IF(Wycena!$C$19="-","",FF13) ->  | FH13: =IF(ROWS($FG$3:FG13)>(ROWS($FG$3:$FG$14)-COUNTBLANK($FG$3:$FG$14)),"",INDEX($FG$3:$FG$14,SMALL(IF($FG$3:$FG$14<>"",ROW($FG$3:$FG$14)-2),ROWS($FG$3:FG13)))) ->  | FI13: =IF(OR(Wycena!$C$20="Imitacja skrzydła stała",Wycena!$C$20="Imitacja skrzydła ruchoma"),FD13,"") ->  | FJ13: =IF(Wycena!$C$20="-","",FI13) ->  | FK13: =IF(ROWS($FJ$3:FJ13)>(ROWS($FJ$3:$FJ$14)-COUNTBLANK($FJ$3:$FJ$14)),"",INDEX($FJ$3:$FJ$14,SMALL(IF($FJ$3:$FJ$14<>"",ROW($FJ$3:$FJ$14)-2),ROWS($FJ$3:FJ13)))) ->  | FN13: 10 | FO13: =IF(Wycena!$C$19="-","",FN13) ->  | FP13: =IF(ROWS($FO$3:FO13)>(ROWS($FO$3:$FO$23)-COUNTBLANK($FO$3:$FO$23)),"",INDEX($FO$3:$FO$23,SMALL(IF($FO$3:$FO$23<>"",ROW($FO$3:$FO$23)-2),ROWS($FO$3:FO13)))) ->  | FQ13: =IF(Wycena!$C$20="-","",FN13) ->  | FR13: =IF(ROWS($FQ$3:FQ13)>(ROWS($FQ$3:$FQ$23)-COUNTBLANK($FQ$3:$FQ$23)),"",INDEX($FQ$3:$FQ$23,SMALL(IF($FQ$3:$FQ$23<>"",ROW($FQ$3:$FQ$23)-2),ROWS($FQ$3:FQ13)))) ->  | FS13: =IF(Wycena!$C$21="-","",FN13) ->  | FT13: =IF(ROWS($FS$3:FS13)>(ROWS($FS$3:$FS$23)-COUNTBLANK($FS$3:$FS$23)),"",INDEX($FS$3:$FS$23,SMALL(IF($FS$3:$FS$23<>"",ROW($FS$3:$FS$23)-2),ROWS($FS$3:FS13)))) ->  | FZ13: Klamko - pochwyt Medos Warszawa | GA13: 200 | GB13: Klamko - pochwyt Medos Warszawa | GC13: Klamko - pochwyt Medos Warszawa | GI13: =IF((HLOOKUP(VLOOKUP(Wycena!$C$58,Mapping!$GH$35:$GI$42,2,0),$GC$1:$GH$33,2+GJ13))=0,"",(HLOOKUP(VLOOKUP(Wycena!$C$58,Mapping!$GH$35:$GI$42,2,0),$GC$1:$GH$33,2+GJ13))) -> Klamko - pochwyt Medos Warszawa | GJ13: 11 | GK13: =IF(ROWS($GI$3:GI13)>(ROWS($GI$3:$GI$33)-COUNTBLANK($GI$3:$GI$33)),"",INDEX($GI$3:$GI$33,SMALL(IF($GI$3:$GI$33<>"",ROW($GI$3:$GI$33)-2),ROWS($GI$3:GI13)))) ->  | GL13: Klamka AXA Diva Flex | GM13: Inox | GQ13: - | HE13: W dostawkach i naświetlu | HF13: 900 | HG13: 900 | HH13: W dostawkach i naświetlu | HI13: =IF(AND(Wycena!$C$19<>"-",Wycena!$C$20<>"-",Wycena!$C$21<>"-"),HH13,"") ->  | HJ13: =IF(ROWS($HI$3:HI13)>(ROWS($HI$3:$HI$13)-COUNTBLANK($HI$3:$HI$13)),"",INDEX($HI$3:$HI$13,SMALL(IF($HI$3:$HI$13<>"",ROW($HI$3:$HI$13)-2),ROWS($HI$3:HI13)))) ->  | HL13: Prawe do wewnątrz | HM13: 0 | HR13: 25 | HS13: 350 | HT13: =(1+IFERROR(VLOOKUP(Wycena!$C$44,Mapping!$EY$3:$FB$6,4,1),0)+IFERROR(VLOOKUP(Wycena!$C$48,Mapping!$EY$3:$FB$6,4,1),0))*HS13 -> 350 | IG13: Ukryty z funkcją stop | IH13: 1000 | IV13: 0.1 | IX13: 1100
A14: DB 19a | B14: 20 | C14: 20 | D14: 20 | E14: 20 | F14: 50 | G14: 50 | H14: 50 | I14: 50 | Y14: Winchester | Z14: 0 | AA14: Winchester | AB14: =IF(ROWS($AA$3:AA14)>(ROWS($AA$3:$AA$228)-COUNTBLANK($AA$3:$AA$228)),"",INDEX($AA$3:$AA$228,SMALL(IF($AA$3:$AA$228<>"",ROW($AA$3:$AA$228)-2),ROWS($AA$3:AA14)))) ->  | AW14: 83 | AX14: 0 | AY14: 0 | AZ14: =IF(Wycena!$C$15=78,Mapping!AX14,AY14) -> 0 | BC14: 191 | BD14: 0 | BE14: 0 | BF14: =IF(Wycena!$C$15=78,Mapping!BD14,BE14) -> 0 | CC14: x | CD14: x | CE14: x | CT14: =$CT$3:INDEX($CT$3:$CT$11,(ROWS($CS$3:$CS$11)-COUNTBLANK($CS$3:$CS$11))) -> - | CX14: Bezprzylgowe | CY14: 26 | CZ14: 16 | DA14: =IF(CZ14>=VLOOKUP(Wycena!$C$14,Mapping!$CX$3:$CY$5,2,0),CZ14,"") -> 16 | DB14: =IF(ROWS($DA$3:DA14)>(ROWS($DA$3:$DA$28)-COUNTBLANK($DA$3:$DA$28)),"",INDEX($DA$3:$DA$28,SMALL(IF($DA$3:$DA$28<>"",ROW($DA$3:$DA$28)-2),ROWS($DA$3:DA14)))) -> 17 | DF14: Bezprzylgowe | DG14: 26 | DH14: 26 | DJ14: 16 | DK14: =IF(DJ14>=VLOOKUP(Wycena!$C$14,Mapping!$DF$3:$DG$5,2,0),DJ14,"") -> 16 | DL14: =IF(ROWS($DK$3:DK14)>(ROWS($DK$3:$DK$28)-COUNTBLANK($DK$3:$DK$28)),"",INDEX($DK$3:$DK$28,SMALL(IF($DK$3:$DK$28<>"",ROW($DK$3:$DK$28)-2),ROWS($DK$3:DK14)))) -> 17 | DM14: =IF(DJ14>=VLOOKUP(Wycena!$C$14,Mapping!$DF$3:$DH$5,3,0),DJ14,"") -> 16 | DN14: =IF(ROWS($DM$3:DM14)>(ROWS($DM$3:$DM$28)-COUNTBLANK($DM$3:$DM$28)),"",INDEX($DM$3:$DM$28,SMALL(IF($DM$3:$DM$28<>"",ROW($DM$3:$DM$28)-2),ROWS($DM$3:DM14)))) -> 17 | DP14: krosnowa | DQ14: 18 | DR14: 16 | DS14: =IF(DR14>=VLOOKUP(Wycena!$C$24,Mapping!$DP$3:$DQ$4,2,0),DR14,"") -> 16 | DT14: =IF(ROWS($DS$3:DS14)>(ROWS($DS$3:$DS$28)-COUNTBLANK($DS$3:$DS$28)),"",INDEX($DS$3:$DS$28,SMALL(IF($DS$3:$DS$28<>"",ROW($DS$3:$DS$28)-2),ROWS($DS$3:DS14)))) -> 21 | DV14: 11 | FD14: Witraż | FE14: 1000 | FF14: =IF(OR(Wycena!$C$19="Imitacja skrzydła stała",Wycena!$C$19="Imitacja skrzydła ruchoma",Wycena!$C$19="W ościeżnicy tradycyjna"),FD14,"") ->  | FG14: =IF(Wycena!$C$19="-","",FF14) ->  | FH14: =IF(ROWS($FG$3:FG14)>(ROWS($FG$3:$FG$14)-COUNTBLANK($FG$3:$FG$14)),"",INDEX($FG$3:$FG$14,SMALL(IF($FG$3:$FG$14<>"",ROW($FG$3:$FG$14)-2),ROWS($FG$3:FG14)))) ->  | FI14: =IF(OR(Wycena!$C$20="Imitacja skrzydła stała",Wycena!$C$20="Imitacja skrzydła ruchoma",Wycena!$C$20="W ościeżnicy tradycyjna"),FD14,"") ->  | FJ14: =IF(Wycena!$C$20="-","",FI14) ->  | FK14: =IF(ROWS($FJ$3:FJ14)>(ROWS($FJ$3:$FJ$14)-COUNTBLANK($FJ$3:$FJ$14)),"",INDEX($FJ$3:$FJ$14,SMALL(IF($FJ$3:$FJ$14<>"",ROW($FJ$3:$FJ$14)-2),ROWS($FJ$3:FJ14)))) ->  | FN14: 11 | FO14: =IF(Wycena!$C$19="-","",FN14) ->  | FP14: =IF(ROWS($FO$3:FO14)>(ROWS($FO$3:$FO$23)-COUNTBLANK($FO$3:$FO$23)),"",INDEX($FO$3:$FO$23,SMALL(IF($FO$3:$FO$23<>"",ROW($FO$3:$FO$23)-2),ROWS($FO$3:FO14)))) ->  | FQ14: =IF(Wycena!$C$20="-","",FN14) ->  | FR14: =IF(ROWS($FQ$3:FQ14)>(ROWS($FQ$3:$FQ$23)-COUNTBLANK($FQ$3:$FQ$23)),"",INDEX($FQ$3:$FQ$23,SMALL(IF($FQ$3:$FQ$23<>"",ROW($FQ$3:$FQ$23)-2),ROWS($FQ$3:FQ14)))) ->  | FS14: =IF(Wycena!$C$21="-","",FN14) ->  | FT14: =IF(ROWS($FS$3:FS14)>(ROWS($FS$3:$FS$23)-COUNTBLANK($FS$3:$FS$23)),"",INDEX($FS$3:$FS$23,SMALL(IF($FS$3:$FS$23<>"",ROW($FS$3:$FS$23)-2),ROWS($FS$3:FS14)))) ->  | FV14: zestaw specjalny | FW14: zamek | FX14: Cena | FZ14: Klamko - pochwyt Medos Dublin | GA14: 200 | GB14: Klamko - pochwyt Medos Dublin | GC14: Klamko - pochwyt Medos Dublin | GI14: =IF((HLOOKUP(VLOOKUP(Wycena!$C$58,Mapping!$GH$35:$GI$42,2,0),$GC$1:$GH$33,2+GJ14))=0,"",(HLOOKUP(VLOOKUP(Wycena!$C$58,Mapping!$GH$35:$GI$42,2,0),$GC$1:$GH$33,2+GJ14))) -> Klamko - pochwyt Medos Dublin | GJ14: 12 | GK14: =IF(ROWS($GI$3:GI14)>(ROWS($GI$3:$GI$33)-COUNTBLANK($GI$3:$GI$33)),"",INDEX($GI$3:$GI$33,SMALL(IF($GI$3:$GI$33<>"",ROW($GI$3:$GI$33)-2),ROWS($GI$3:GI14)))) ->  | GL14: Klamka AXA Diva Flex | GM14: Tytan | GQ14: - | GV14: Po zestawie | HE14: x | HF14: x | HG14: x | HH14: x | HI14: x | HJ14: x | HR14: x | HS14: x | HT14: x | IV14: 0.11 | IX14: 1200
A15: DB 20 | B15: 20 | C15: 20 | D15: 20 | E15: 20 | F15: 34 | G15: 34 | H15: =F15+2 -> 36 | I15: =G15+2 -> 36 | Y15: Złoty dąb | Z15: 0 | AA15: Złoty dąb | AB15: =IF(ROWS($AA$3:AA15)>(ROWS($AA$3:$AA$228)-COUNTBLANK($AA$3:$AA$228)),"",INDEX($AA$3:$AA$228,SMALL(IF($AA$3:$AA$228<>"",ROW($AA$3:$AA$228)-2),ROWS($AA$3:AA15)))) ->  | AW15: 84 | AX15: 0 | AY15: 0 | AZ15: =IF(Wycena!$C$15=78,Mapping!AX15,AY15) -> 0 | BC15: 192 | BD15: 0 | BE15: 0 | BF15: =IF(Wycena!$C$15=78,Mapping!BD15,BE15) -> 0 | CN15: =VLOOKUP(Wycena!C25,$CN$16:$CR$25,IF(AND(Wycena!C19="-",Wycena!C20="-"),2,IF(AND(Wycena!C19<>"-",Wycena!C20="-"),3,IF(AND(Wycena!C19="-",Wycena!C20<>"-"),4,5))),0) -> 0 | CX15: Bezprzylgowe Glass | CY15: 70 | CZ15: 17 | DA15: =IF(CZ15>=VLOOKUP(Wycena!$C$14,Mapping!$CX$3:$CY$5,2,0),CZ15,"") -> 17 | DB15: =IF(ROWS($DA$3:DA15)>(ROWS($DA$3:$DA$28)-COUNTBLANK($DA$3:$DA$28)),"",INDEX($DA$3:$DA$28,SMALL(IF($DA$3:$DA$28<>"",ROW($DA$3:$DA$28)-2),ROWS($DA$3:DA15)))) -> 18 | DF15: Bezprzylgowe Glass | DG15: 70 | DH15: 70 | DJ15: 17 | DK15: =IF(DJ15>=VLOOKUP(Wycena!$C$14,Mapping!$DF$3:$DG$5,2,0),DJ15,"") -> 17 | DL15: =IF(ROWS($DK$3:DK15)>(ROWS($DK$3:$DK$28)-COUNTBLANK($DK$3:$DK$28)),"",INDEX($DK$3:$DK$28,SMALL(IF($DK$3:$DK$28<>"",ROW($DK$3:$DK$28)-2),ROWS($DK$3:DK15)))) -> 18 | DM15: =IF(DJ15>=VLOOKUP(Wycena!$C$14,Mapping!$DF$3:$DH$5,3,0),DJ15,"") -> 17 | DN15: =IF(ROWS($DM$3:DM15)>(ROWS($DM$3:$DM$28)-COUNTBLANK($DM$3:$DM$28)),"",INDEX($DM$3:$DM$28,SMALL(IF($DM$3:$DM$28<>"",ROW($DM$3:$DM$28)-2),ROWS($DM$3:DM15)))) -> 18 | DR15: 17 | DS15: =IF(DR15>=VLOOKUP(Wycena!$C$24,Mapping!$DP$3:$DQ$4,2,0),DR15,"") -> 17 | DT15: =IF(ROWS($DS$3:DS15)>(ROWS($DS$3:$DS$28)-COUNTBLANK($DS$3:$DS$28)),"",INDEX($DS$3:$DS$28,SMALL(IF($DS$3:$DS$28<>"",ROW($DS$3:$DS$28)-2),ROWS($DS$3:DS15)))) -> 22 | DV15: 12 | FD15: x | FE15: x | FF15: x | FG15: x | FH15: x | FI15: x | FJ15: x | FK15: x | FN15: 12 | FO15: =IF(Wycena!$C$19="-","",FN15) ->  | FP15: =IF(ROWS($FO$3:FO15)>(ROWS($FO$3:$FO$23)-COUNTBLANK($FO$3:$FO$23)),"",INDEX($FO$3:$FO$23,SMALL(IF($FO$3:$FO$23<>"",ROW($FO$3:$FO$23)-2),ROWS($FO$3:FO15)))) ->  | FQ15: =IF(Wycena!$C$20="-","",FN15) ->  | FR15: =IF(ROWS($FQ$3:FQ15)>(ROWS($FQ$3:$FQ$23)-COUNTBLANK($FQ$3:$FQ$23)),"",INDEX($FQ$3:$FQ$23,SMALL(IF($FQ$3:$FQ$23<>"",ROW($FQ$3:$FQ$23)-2),ROWS($FQ$3:FQ15)))) ->  | FS15: =IF(Wycena!$C$21="-","",FN15) ->  | FT15: =IF(ROWS($FS$3:FS15)>(ROWS($FS$3:$FS$23)-COUNTBLANK($FS$3:$FS$23)),"",INDEX($FS$3:$FS$23,SMALL(IF($FS$3:$FS$23<>"",ROW($FS$3:$FS$23)-2),ROWS($FS$3:FS15)))) ->  | FV15: Brak (standard) | FW15: Ryglowy 3-punktowy z gałką (standard) | FX15: Ryglowy 3-punktowy z gałką (standard) | FY15: 0 | FZ15: Klamko - pochwyt Hoppe Bezpieczna | GA15: 300 | GB15: Klamko - pochwyt Hoppe Bezpieczna | GC15: Klamko - pochwyt Hoppe Bezpieczna | GI15: =IF((HLOOKUP(VLOOKUP(Wycena!$C$58,Mapping!$GH$35:$GI$42,2,0),$GC$1:$GH$33,2+GJ15))=0,"",(HLOOKUP(VLOOKUP(Wycena!$C$58,Mapping!$GH$35:$GI$42,2,0),$GC$1:$GH$33,2+GJ15))) -> Klamko - pochwyt Hoppe Bezpieczna | GJ15: 13 | GK15: =IF(ROWS($GI$3:GI15)>(ROWS($GI$3:$GI$33)-COUNTBLANK($GI$3:$GI$33)),"",INDEX($GI$3:$GI$33,SMALL(IF($GI$3:$GI$33<>"",ROW($GI$3:$GI$33)-2),ROWS($GI$3:GI15)))) ->  | GL15: Klamka AXA Diva Flex | GM15: Stare złoto | GQ15: - | GV15: Brak (standard) | GW15: - | IV15: 0.12 | IX15: 1300
A16: DB 21 | B16: 20 | C16: 20 | D16: 20 | E16: 20 | F16: 44 | G16: 44 | H16: 44 | I16: 44 | Y16: RAL 9016 biały | Z16: 0 | AA16: RAL 9016 biały | AB16: =IF(ROWS($AA$3:AA16)>(ROWS($AA$3:$AA$228)-COUNTBLANK($AA$3:$AA$228)),"",INDEX($AA$3:$AA$228,SMALL(IF($AA$3:$AA$228<>"",ROW($AA$3:$AA$228)-2),ROWS($AA$3:AA16)))) ->  | AW16: 85 | AX16: 0 | AY16: 0 | AZ16: =IF(Wycena!$C$15=78,Mapping!AX16,AY16) -> 0 | BC16: 193 | BD16: 0 | BE16: 0 | BF16: =IF(Wycena!$C$15=78,Mapping!BD16,BE16) -> 0 | CE16: =$CE$3:INDEX($CE$3:$CE$13,(ROWS($CD$3:$CD$13)-COUNTBLANK($CD$3:$CD$13))) -> - | CN16: Dla ościeżnicy od zawias | CO16: SOLO | CP16: DOSTAWKA OD ZAWIAS | CQ16: DOSTAWKA OD ZAMKA | CR16: 2 DOSTAWKI | CZ16: 18 | DA16: =IF(CZ16>=VLOOKUP(Wycena!$C$14,Mapping!$CX$3:$CY$5,2,0),CZ16,"") -> 18 | DB16: =IF(ROWS($DA$3:DA16)>(ROWS($DA$3:$DA$28)-COUNTBLANK($DA$3:$DA$28)),"",INDEX($DA$3:$DA$28,SMALL(IF($DA$3:$DA$28<>"",ROW($DA$3:$DA$28)-2),ROWS($DA$3:DA16)))) -> 19 | DJ16: 18 | DK16: =IF(DJ16>=VLOOKUP(Wycena!$C$14,Mapping!$DF$3:$DG$5,2,0),DJ16,"") -> 18 | DL16: =IF(ROWS($DK$3:DK16)>(ROWS($DK$3:$DK$28)-COUNTBLANK($DK$3:$DK$28)),"",INDEX($DK$3:$DK$28,SMALL(IF($DK$3:$DK$28<>"",ROW($DK$3:$DK$28)-2),ROWS($DK$3:DK16)))) -> 19 | DM16: =IF(DJ16>=VLOOKUP(Wycena!$C$14,Mapping!$DF$3:$DH$5,3,0),DJ16,"") -> 18 | DN16: =IF(ROWS($DM$3:DM16)>(ROWS($DM$3:$DM$28)-COUNTBLANK($DM$3:$DM$28)),"",INDEX($DM$3:$DM$28,SMALL(IF($DM$3:$DM$28<>"",ROW($DM$3:$DM$28)-2),ROWS($DM$3:DM16)))) -> 19 | DR16: 18 | DS16: =IF(DR16>=VLOOKUP(Wycena!$C$24,Mapping!$DP$3:$DQ$4,2,0),DR16,"") -> 18 | DT16: =IF(ROWS($DS$3:DS16)>(ROWS($DS$3:$DS$28)-COUNTBLANK($DS$3:$DS$28)),"",INDEX($DS$3:$DS$28,SMALL(IF($DS$3:$DS$28<>"",ROW($DS$3:$DS$28)-2),ROWS($DS$3:DS16)))) -> 23 | DV16: 13 | FN16: 13 | FO16: =IF(Wycena!$C$19="-","",FN16) ->  | FP16: =IF(ROWS($FO$3:FO16)>(ROWS($FO$3:$FO$23)-COUNTBLANK($FO$3:$FO$23)),"",INDEX($FO$3:$FO$23,SMALL(IF($FO$3:$FO$23<>"",ROW($FO$3:$FO$23)-2),ROWS($FO$3:FO16)))) ->  | FQ16: =IF(Wycena!$C$20="-","",FN16) ->  | FR16: =IF(ROWS($FQ$3:FQ16)>(ROWS($FQ$3:$FQ$23)-COUNTBLANK($FQ$3:$FQ$23)),"",INDEX($FQ$3:$FQ$23,SMALL(IF($FQ$3:$FQ$23<>"",ROW($FQ$3:$FQ$23)-2),ROWS($FQ$3:FQ16)))) ->  | FS16: =IF(Wycena!$C$21="-","",FN16) ->  | FT16: =IF(ROWS($FS$3:FS16)>(ROWS($FS$3:$FS$23)-COUNTBLANK($FS$3:$FS$23)),"",INDEX($FS$3:$FS$23,SMALL(IF($FS$3:$FS$23<>"",ROW($FS$3:$FS$23)-2),ROWS($FS$3:FS16)))) ->  | FV16: Brak (standard) | FW16: Ryglowy 3-punktowy bez gałki (standard) | FX16: Ryglowy 3-punktowy bez gałki (standard) | FY16: 0 | FZ16: Klamko - pochwyt AXA Diva Flex | GA16: 450 | GB16: Klamko - pochwyt AXA Diva Flex | GC16: Klamko - pochwyt AXA Diva Flex | GI16: =IF((HLOOKUP(VLOOKUP(Wycena!$C$58,Mapping!$GH$35:$GI$42,2,0),$GC$1:$GH$33,2+GJ16))=0,"",(HLOOKUP(VLOOKUP(Wycena!$C$58,Mapping!$GH$35:$GI$42,2,0),$GC$1:$GH$33,2+GJ16))) -> Klamko - pochwyt AXA Diva Flex | GJ16: 14 | GK16: =IF(ROWS($GI$3:GI16)>(ROWS($GI$3:$GI$33)-COUNTBLANK($GI$3:$GI$33)),"",INDEX($GI$3:$GI$33,SMALL(IF($GI$3:$GI$33<>"",ROW($GI$3:$GI$33)-2),ROWS($GI$3:GI16)))) ->  | GL16: Klamka AXA Haga Plus | GM16: Inox | GQ16: - | GV16: Brak (standard) | GW16: Manualna | HJ16: =$HJ$3:INDEX($HJ$3:$HJ$13,(ROWS($HI$3:$HI$13)-COUNTBLANK($HI$3:$HI$13))) -> - | IV16: 0.13 | IX16: 1400
A17: DB 28 | B17: 20 | C17: 20 | D17: 20 | E17: 20 | F17: 63 | G17: 63 | H17: 63 | I17: 63 | Y17: RAL 7016 antracyt | Z17: 0 | AA17: RAL 7016 antracyt | AB17: =IF(ROWS($AA$3:AA17)>(ROWS($AA$3:$AA$228)-COUNTBLANK($AA$3:$AA$228)),"",INDEX($AA$3:$AA$228,SMALL(IF($AA$3:$AA$228<>"",ROW($AA$3:$AA$228)-2),ROWS($AA$3:AA17)))) ->  | AW17: 86 | AX17: 0 | AY17: 0 | AZ17: =IF(Wycena!$C$15=78,Mapping!AX17,AY17) -> 0 | BC17: 194 | BD17: 0 | BE17: 0 | BF17: =IF(Wycena!$C$15=78,Mapping!BD17,BE17) -> 0 | CN17: - | CO17: 0 | CP17: 0 | CQ17: 0 | CR17: 0 | CZ17: 19 | DA17: =IF(CZ17>=VLOOKUP(Wycena!$C$14,Mapping!$CX$3:$CY$5,2,0),CZ17,"") -> 19 | DB17: =IF(ROWS($DA$3:DA17)>(ROWS($DA$3:$DA$28)-COUNTBLANK($DA$3:$DA$28)),"",INDEX($DA$3:$DA$28,SMALL(IF($DA$3:$DA$28<>"",ROW($DA$3:$DA$28)-2),ROWS($DA$3:DA17)))) -> 20 | DJ17: 19 | DK17: =IF(DJ17>=VLOOKUP(Wycena!$C$14,Mapping!$DF$3:$DG$5,2,0),DJ17,"") -> 19 | DL17: =IF(ROWS($DK$3:DK17)>(ROWS($DK$3:$DK$28)-COUNTBLANK($DK$3:$DK$28)),"",INDEX($DK$3:$DK$28,SMALL(IF($DK$3:$DK$28<>"",ROW($DK$3:$DK$28)-2),ROWS($DK$3:DK17)))) -> 20 | DM17: =IF(DJ17>=VLOOKUP(Wycena!$C$14,Mapping!$DF$3:$DH$5,3,0),DJ17,"") -> 19 | DN17: =IF(ROWS($DM$3:DM17)>(ROWS($DM$3:$DM$28)-COUNTBLANK($DM$3:$DM$28)),"",INDEX($DM$3:$DM$28,SMALL(IF($DM$3:$DM$28<>"",ROW($DM$3:$DM$28)-2),ROWS($DM$3:DM17)))) -> 20 | DR17: 19 | DS17: =IF(DR17>=VLOOKUP(Wycena!$C$24,Mapping!$DP$3:$DQ$4,2,0),DR17,"") -> 19 | DT17: =IF(ROWS($DS$3:DS17)>(ROWS($DS$3:$DS$28)-COUNTBLANK($DS$3:$DS$28)),"",INDEX($DS$3:$DS$28,SMALL(IF($DS$3:$DS$28<>"",ROW($DS$3:$DS$28)-2),ROWS($DS$3:DS17)))) -> 24 | DV17: 14 | DX17: =3*25 -> 75 | FH17: =$FH$3:INDEX($FH$3:$FH$14,(ROWS($FG$3:$FG$14)-COUNTBLANK($FG$3:$FG$14))) -> - | FK17: =$FK$3:INDEX($FK$3:$FK$14,(ROWS($FJ$3:$FJ$14)-COUNTBLANK($FJ$3:$FJ$14))) -> - | FN17: 14 | FO17: =IF(Wycena!$C$19="-","",FN17) ->  | FP17: =IF(ROWS($FO$3:FO17)>(ROWS($FO$3:$FO$23)-COUNTBLANK($FO$3:$FO$23)),"",INDEX($FO$3:$FO$23,SMALL(IF($FO$3:$FO$23<>"",ROW($FO$3:$FO$23)-2),ROWS($FO$3:FO17)))) ->  | FQ17: =IF(Wycena!$C$20="-","",FN17) ->  | FR17: =IF(ROWS($FQ$3:FQ17)>(ROWS($FQ$3:$FQ$23)-COUNTBLANK($FQ$3:$FQ$23)),"",INDEX($FQ$3:$FQ$23,SMALL(IF($FQ$3:$FQ$23<>"",ROW($FQ$3:$FQ$23)-2),ROWS($FQ$3:FQ17)))) ->  | FS17: =IF(Wycena!$C$21="-","",FN17) ->  | FT17: =IF(ROWS($FS$3:FS17)>(ROWS($FS$3:$FS$23)-COUNTBLANK($FS$3:$FS$23)),"",INDEX($FS$3:$FS$23,SMALL(IF($FS$3:$FS$23<>"",ROW($FS$3:$FS$23)-2),ROWS($FS$3:FS17)))) ->  | FV17: Brak (standard) | FW17: Ryglowy 4-punktowy | FX17: Ryglowy 4-punktowy | FY17: 200 | FZ17: Klamko - pochwyt AXA Haga Plus | GA17: 200 | GB17: Klamko - pochwyt AXA Haga Plus | GC17: Klamko - pochwyt AXA Haga Plus | GI17: =IF((HLOOKUP(VLOOKUP(Wycena!$C$58,Mapping!$GH$35:$GI$42,2,0),$GC$1:$GH$33,2+GJ17))=0,"",(HLOOKUP(VLOOKUP(Wycena!$C$58,Mapping!$GH$35:$GI$42,2,0),$GC$1:$GH$33,2+GJ17))) -> Klamko - pochwyt AXA Haga Plus | GJ17: 15 | GK17: =IF(ROWS($GI$3:GI17)>(ROWS($GI$3:$GI$33)-COUNTBLANK($GI$3:$GI$33)),"",INDEX($GI$3:$GI$33,SMALL(IF($GI$3:$GI$33<>"",ROW($GI$3:$GI$33)-2),ROWS($GI$3:GI17)))) ->  | GL17: Klamka AXA Haga Plus | GM17: Tytan | GQ17: - | GV17: Brak (standard) | GW17: Elektrozaczep | IV17: 0.14 | IX17: 1500
A18: DB 31 | B18: 20 | C18: 20 | D18: 20 | E18: 20 | F18: 34 | G18: 34 | H18: =F18+2 -> 36 | I18: 36 | Y18: RAL 7040 | Z18: 0 | AA18: RAL 7040 | AB18: =IF(ROWS($AA$3:AA18)>(ROWS($AA$3:$AA$228)-COUNTBLANK($AA$3:$AA$228)),"",INDEX($AA$3:$AA$228,SMALL(IF($AA$3:$AA$228<>"",ROW($AA$3:$AA$228)-2),ROWS($AA$3:AA18)))) ->  | AW18: 87 | AX18: 0 | AY18: 0 | AZ18: =IF(Wycena!$C$15=78,Mapping!AX18,AY18) -> 0 | BC18: 195 | BD18: 0 | BE18: 0 | BF18: =IF(Wycena!$C$15=78,Mapping!BD18,BE18) -> 0 | CN18: Przy skrzydle od zewnątrz | CO18: =IF(Wycena!$C$14="Przylgowe",8,IF(Wycena!$C$14="Bezprzylgowe",6,0)) -> 8 | CP18: 0 | CQ18: =IF(Wycena!$C$14="Przylgowe",8,IF(Wycena!$C$14="Bezprzylgowe",6,0)) -> 8 | CR18: 0 | CZ18: 20 | DA18: =IF(CZ18>=VLOOKUP(Wycena!$C$14,Mapping!$CX$3:$CY$5,2,0),CZ18,"") -> 20 | DB18: =IF(ROWS($DA$3:DA18)>(ROWS($DA$3:$DA$28)-COUNTBLANK($DA$3:$DA$28)),"",INDEX($DA$3:$DA$28,SMALL(IF($DA$3:$DA$28<>"",ROW($DA$3:$DA$28)-2),ROWS($DA$3:DA18)))) -> 21 | DJ18: 20 | DK18: =IF(DJ18>=VLOOKUP(Wycena!$C$14,Mapping!$DF$3:$DG$5,2,0),DJ18,"") -> 20 | DL18: =IF(ROWS($DK$3:DK18)>(ROWS($DK$3:$DK$28)-COUNTBLANK($DK$3:$DK$28)),"",INDEX($DK$3:$DK$28,SMALL(IF($DK$3:$DK$28<>"",ROW($DK$3:$DK$28)-2),ROWS($DK$3:DK18)))) -> 21 | DM18: =IF(DJ18>=VLOOKUP(Wycena!$C$14,Mapping!$DF$3:$DH$5,3,0),DJ18,"") -> 20 | DN18: =IF(ROWS($DM$3:DM18)>(ROWS($DM$3:$DM$28)-COUNTBLANK($DM$3:$DM$28)),"",INDEX($DM$3:$DM$28,SMALL(IF($DM$3:$DM$28<>"",ROW($DM$3:$DM$28)-2),ROWS($DM$3:DM18)))) -> 21 | DR18: 20 | DS18: =IF(DR18>=VLOOKUP(Wycena!$C$24,Mapping!$DP$3:$DQ$4,2,0),DR18,"") -> 20 | DT18: =IF(ROWS($DS$3:DS18)>(ROWS($DS$3:$DS$28)-COUNTBLANK($DS$3:$DS$28)),"",INDEX($DS$3:$DS$28,SMALL(IF($DS$3:$DS$28<>"",ROW($DS$3:$DS$28)-2),ROWS($DS$3:DS18)))) -> 25 | DV18: 15 | FN18: 15 | FO18: =IF(Wycena!$C$19="-","",FN18) ->  | FP18: =IF(ROWS($FO$3:FO18)>(ROWS($FO$3:$FO$23)-COUNTBLANK($FO$3:$FO$23)),"",INDEX($FO$3:$FO$23,SMALL(IF($FO$3:$FO$23<>"",ROW($FO$3:$FO$23)-2),ROWS($FO$3:FO18)))) ->  | FQ18: =IF(Wycena!$C$20="-","",FN18) ->  | FR18: =IF(ROWS($FQ$3:FQ18)>(ROWS($FQ$3:$FQ$23)-COUNTBLANK($FQ$3:$FQ$23)),"",INDEX($FQ$3:$FQ$23,SMALL(IF($FQ$3:$FQ$23<>"",ROW($FQ$3:$FQ$23)-2),ROWS($FQ$3:FQ18)))) ->  | FS18: =IF(Wycena!$C$21="-","",FN18) ->  | FT18: =IF(ROWS($FS$3:FS18)>(ROWS($FS$3:$FS$23)-COUNTBLANK($FS$3:$FS$23)),"",INDEX($FS$3:$FS$23,SMALL(IF($FS$3:$FS$23<>"",ROW($FS$3:$FS$23)-2),ROWS($FS$3:FS18)))) ->  | FV18: Brak (standard) | FW18: Automat 3-punktowy z gałką | FX18: Automat 3-punktowy z gałką | FY18: =IF(OR(Wycena!$C$58=Mapping!$FV$5,Wycena!C58=Mapping!FV7,Wycena!C58=Mapping!FV8,Wycena!C58=Mapping!FV9,Wycena!C58=Mapping!FV10),0,300) -> 300 | FZ18: Klamko - pochwyt AXA Prestige Flex | GA18: 400 | GB18: Klamko - pochwyt AXA Prestige Flex | GC18: Klamko - pochwyt AXA Prestige Flex | GI18: =IF((HLOOKUP(VLOOKUP(Wycena!$C$58,Mapping!$GH$35:$GI$42,2,0),$GC$1:$GH$33,2+GJ18))=0,"",(HLOOKUP(VLOOKUP(Wycena!$C$58,Mapping!$GH$35:$GI$42,2,0),$GC$1:$GH$33,2+GJ18))) -> Klamko - pochwyt AXA Prestige Flex | GJ18: 16 | GK18: =IF(ROWS($GI$3:GI18)>(ROWS($GI$3:$GI$33)-COUNTBLANK($GI$3:$GI$33)),"",INDEX($GI$3:$GI$33,SMALL(IF($GI$3:$GI$33<>"",ROW($GI$3:$GI$33)-2),ROWS($GI$3:GI18)))) ->  | GL18: Klamka AXA Haga Plus | GM18: Stare złoto | GQ18: - | GV18: Zestaw elektronik z zamkiem ryglowym | GW18: Elektrozaczep | IV18: 0.15 | IX18: 1600
A19: DB 31a | B19: 20 | C19: 20 | D19: 20 | E19: 20 | F19: 34 | G19: 34 | H19: 36 | I19: 36 | Y19: RAL 7047 | Z19: 0 | AA19: RAL 7047 | AB19: =IF(ROWS($AA$3:AA19)>(ROWS($AA$3:$AA$228)-COUNTBLANK($AA$3:$AA$228)),"",INDEX($AA$3:$AA$228,SMALL(IF($AA$3:$AA$228<>"",ROW($AA$3:$AA$228)-2),ROWS($AA$3:AA19)))) ->  | AW19: 88 | AX19: 0 | AY19: 0 | AZ19: =IF(Wycena!$C$15=78,Mapping!AX19,AY19) -> 0 | BC19: 196 | BD19: 0 | BE19: 0 | BF19: =IF(Wycena!$C$15=78,Mapping!BD19,BE19) -> 0 | CN19: Przy skrzydle z dwóch stron | CO19: =IF(Wycena!$C$14="Przylgowe",8,IF(Wycena!$C$14="Bezprzylgowe",6,0)) -> 8 | CP19: 0 | CQ19: =IF(Wycena!$C$14="Przylgowe",8,IF(Wycena!$C$14="Bezprzylgowe",6,0)) -> 8 | CR19: 0 | CZ19: 21 | DA19: =IF(CZ19>=VLOOKUP(Wycena!$C$14,Mapping!$CX$3:$CY$5,2,0),CZ19,"") -> 21 | DB19: =IF(ROWS($DA$3:DA19)>(ROWS($DA$3:$DA$28)-COUNTBLANK($DA$3:$DA$28)),"",INDEX($DA$3:$DA$28,SMALL(IF($DA$3:$DA$28<>"",ROW($DA$3:$DA$28)-2),ROWS($DA$3:DA19)))) -> 22 | DJ19: 21 | DK19: =IF(DJ19>=VLOOKUP(Wycena!$C$14,Mapping!$DF$3:$DG$5,2,0),DJ19,"") -> 21 | DL19: =IF(ROWS($DK$3:DK19)>(ROWS($DK$3:$DK$28)-COUNTBLANK($DK$3:$DK$28)),"",INDEX($DK$3:$DK$28,SMALL(IF($DK$3:$DK$28<>"",ROW($DK$3:$DK$28)-2),ROWS($DK$3:DK19)))) -> 22 | DM19: =IF(DJ19>=VLOOKUP(Wycena!$C$14,Mapping!$DF$3:$DH$5,3,0),DJ19,"") -> 21 | DN19: =IF(ROWS($DM$3:DM19)>(ROWS($DM$3:$DM$28)-COUNTBLANK($DM$3:$DM$28)),"",INDEX($DM$3:$DM$28,SMALL(IF($DM$3:$DM$28<>"",ROW($DM$3:$DM$28)-2),ROWS($DM$3:DM19)))) -> 22 | DR19: 21 | DS19: =IF(DR19>=VLOOKUP(Wycena!$C$24,Mapping!$DP$3:$DQ$4,2,0),DR19,"") -> 21 | DT19: =IF(ROWS($DS$3:DS19)>(ROWS($DS$3:$DS$28)-COUNTBLANK($DS$3:$DS$28)),"",INDEX($DS$3:$DS$28,SMALL(IF($DS$3:$DS$28<>"",ROW($DS$3:$DS$28)-2),ROWS($DS$3:DS19)))) -> 26 | DV19: 16 | FD19: Ocja witraż nie powinna być dotępna dla w ościeżnicy nowoczesnej | FN19: 16 | FO19: =IF(Wycena!$C$19="-","",FN19) ->  | FP19: =IF(ROWS($FO$3:FO19)>(ROWS($FO$3:$FO$23)-COUNTBLANK($FO$3:$FO$23)),"",INDEX($FO$3:$FO$23,SMALL(IF($FO$3:$FO$23<>"",ROW($FO$3:$FO$23)-2),ROWS($FO$3:FO19)))) ->  | FQ19: =IF(Wycena!$C$20="-","",FN19) ->  | FR19: =IF(ROWS($FQ$3:FQ19)>(ROWS($FQ$3:$FQ$23)-COUNTBLANK($FQ$3:$FQ$23)),"",INDEX($FQ$3:$FQ$23,SMALL(IF($FQ$3:$FQ$23<>"",ROW($FQ$3:$FQ$23)-2),ROWS($FQ$3:FQ19)))) ->  | FS19: =IF(Wycena!$C$21="-","",FN19) ->  | FT19: =IF(ROWS($FS$3:FS19)>(ROWS($FS$3:$FS$23)-COUNTBLANK($FS$3:$FS$23)),"",INDEX($FS$3:$FS$23,SMALL(IF($FS$3:$FS$23<>"",ROW($FS$3:$FS$23)-2),ROWS($FS$3:FS19)))) ->  | FV19: Brak (standard) | FW19: Automat 3-punktowy bez gałki | FX19: Automat 3-punktowy bez gałki | FY19: =IF(OR(Wycena!$C$58=Mapping!$FV$5,Wycena!C58=Mapping!FV7,Wycena!C58=Mapping!FV8,Wycena!C58=Mapping!FV9,Wycena!C58=Mapping!FV10),0,300) -> 300 | FZ19: Pochwyt Palermo w zestawie | GA19: 1600 | GB19: Pochwyt Palermo w zestawie | GC19: =IF(OR(Wycena!C59=Mapping!FX20,Wycena!C59=Mapping!FX17,Wycena!C59="-"),"",GB19) ->  | GI19: =IF((HLOOKUP(VLOOKUP(Wycena!$C$58,Mapping!$GH$35:$GI$42,2,0),$GC$1:$GH$33,2+GJ19))=0,"",(HLOOKUP(VLOOKUP(Wycena!$C$58,Mapping!$GH$35:$GI$42,2,0),$GC$1:$GH$33,2+GJ19))) ->  | GJ19: 17 | GK19: =IF(ROWS($GI$3:GI19)>(ROWS($GI$3:$GI$33)-COUNTBLANK($GI$3:$GI$33)),"",INDEX($GI$3:$GI$33,SMALL(IF($GI$3:$GI$33<>"",ROW($GI$3:$GI$33)-2),ROWS($GI$3:GI19)))) ->  | GL19: Klamka AXA Haga Plus | GM19: Czarny | GV19: Zestaw elektronik z zamkiem automatycznym | GW19: - | IX19: 1700
A20: DB 32 | B20: 20 | C20: 20 | D20: 20 | E20: 20 | F20: 34 | G20: 34 | H20: 36 | I20: 36 | Y20: --- RAL inny --- | Z20: 500 | AA20: --- RAL inny --- | AB20: =IF(ROWS($AA$3:AA20)>(ROWS($AA$3:$AA$228)-COUNTBLANK($AA$3:$AA$228)),"",INDEX($AA$3:$AA$228,SMALL(IF($AA$3:$AA$228<>"",ROW($AA$3:$AA$228)-2),ROWS($AA$3:AA20)))) ->  | AW20: 89 | AX20: 0 | AY20: 0 | AZ20: =IF(Wycena!$C$15=78,Mapping!AX20,AY20) -> 0 | BC20: 197 | BD20: 0 | BE20: 0 | BF20: =IF(Wycena!$C$15=78,Mapping!BD20,BE20) -> 0 | CN20: Przy skrzydle i ościeżnicy od zewnątrz | CP20: =IF(Wycena!$C$14="Przylgowe",8,IF(Wycena!$C$14="Bezprzylgowe",6,0)) -> 8 | CQ20: =IF(Wycena!$C$14="Przylgowe",8,IF(Wycena!$C$14="Bezprzylgowe",6,0)) -> 8 | CR20: =IF(Wycena!$C$14="Przylgowe",8,IF(Wycena!$C$14="Bezprzylgowe",6,0)) -> 8 | CZ20: 22 | DA20: =IF(CZ20>=VLOOKUP(Wycena!$C$14,Mapping!$CX$3:$CY$5,2,0),CZ20,"") -> 22 | DB20: =IF(ROWS($DA$3:DA20)>(ROWS($DA$3:$DA$28)-COUNTBLANK($DA$3:$DA$28)),"",INDEX($DA$3:$DA$28,SMALL(IF($DA$3:$DA$28<>"",ROW($DA$3:$DA$28)-2),ROWS($DA$3:DA20)))) -> 23 | DJ20: 22 | DK20: =IF(DJ20>=VLOOKUP(Wycena!$C$14,Mapping!$DF$3:$DG$5,2,0),DJ20,"") -> 22 | DL20: =IF(ROWS($DK$3:DK20)>(ROWS($DK$3:$DK$28)-COUNTBLANK($DK$3:$DK$28)),"",INDEX($DK$3:$DK$28,SMALL(IF($DK$3:$DK$28<>"",ROW($DK$3:$DK$28)-2),ROWS($DK$3:DK20)))) -> 23 | DM20: =IF(DJ20>=VLOOKUP(Wycena!$C$14,Mapping!$DF$3:$DH$5,3,0),DJ20,"") -> 22 | DN20: =IF(ROWS($DM$3:DM20)>(ROWS($DM$3:$DM$28)-COUNTBLANK($DM$3:$DM$28)),"",INDEX($DM$3:$DM$28,SMALL(IF($DM$3:$DM$28<>"",ROW($DM$3:$DM$28)-2),ROWS($DM$3:DM20)))) -> 23 | DR20: 22 | DS20: =IF(DR20>=VLOOKUP(Wycena!$C$24,Mapping!$DP$3:$DQ$4,2,0),DR20,"") -> 22 | DT20: =IF(ROWS($DS$3:DS20)>(ROWS($DS$3:$DS$28)-COUNTBLANK($DS$3:$DS$28)),"",INDEX($DS$3:$DS$28,SMALL(IF($DS$3:$DS$28<>"",ROW($DS$3:$DS$28)-2),ROWS($DS$3:DS20)))) -> 27 | DV20: 17 | FD20: Opcja dyskretne - tylko dla imitacji skrzydła | FN20: 17 | FO20: =IF(Wycena!$C$19="-","",FN20) ->  | FP20: =IF(ROWS($FO$3:FO20)>(ROWS($FO$3:$FO$23)-COUNTBLANK($FO$3:$FO$23)),"",INDEX($FO$3:$FO$23,SMALL(IF($FO$3:$FO$23<>"",ROW($FO$3:$FO$23)-2),ROWS($FO$3:FO20)))) ->  | FQ20: =IF(Wycena!$C$20="-","",FN20) ->  | FR20: =IF(ROWS($FQ$3:FQ20)>(ROWS($FQ$3:$FQ$23)-COUNTBLANK($FQ$3:$FQ$23)),"",INDEX($FQ$3:$FQ$23,SMALL(IF($FQ$3:$FQ$23<>"",ROW($FQ$3:$FQ$23)-2),ROWS($FQ$3:FQ20)))) ->  | FS20: =IF(Wycena!$C$21="-","",FN20) ->  | FT20: =IF(ROWS($FS$3:FS20)>(ROWS($FS$3:$FS$23)-COUNTBLANK($FS$3:$FS$23)),"",INDEX($FS$3:$FS$23,SMALL(IF($FS$3:$FS$23<>"",ROW($FS$3:$FS$23)-2),ROWS($FS$3:FS20)))) ->  | FV20: Brak (standard) | FW20: Automat 4-punktowy | FX20: Automat 4-punktowy | FY20: =IF(Wycena!$C$58=Mapping!$FV$5,200,IF(OR(Wycena!C58=Mapping!FV8,Wycena!C58=Mapping!FV9,Wycena!C58=Mapping!FV10,Wycena!C58=Mapping!FV7),0,500)) -> 500 | FZ20: Pochwyt Eva | GA20: 0 | GB20: Pochwyt Eva | GF20: =GB20 -> Pochwyt Eva | GI20: =IF((HLOOKUP(VLOOKUP(Wycena!$C$58,Mapping!$GH$35:$GI$42,2,0),$GC$1:$GH$33,2+GJ20))=0,"",(HLOOKUP(VLOOKUP(Wycena!$C$58,Mapping!$GH$35:$GI$42,2,0),$GC$1:$GH$33,2+GJ20))) ->  | GJ20: 18 | GK20: =IF(ROWS($GI$3:GI20)>(ROWS($GI$3:$GI$33)-COUNTBLANK($GI$3:$GI$33)),"",INDEX($GI$3:$GI$33,SMALL(IF($GI$3:$GI$33<>"",ROW($GI$3:$GI$33)-2),ROWS($GI$3:GI20)))) ->  | GL20: Klamka AXA Manitoba Plus | GM20: Inox | GV20: Zestaw z pochwytem na styl amerykański | GW20: - | IX20: 1800
A21: DB 33 | B21: 20 | C21: 20 | D21: 20 | E21: 20 | F21: 34 | G21: 34 | H21: 36 | I21: 36 | Y21: RAL 1000 | Z21: 500 | AA21: RAL 1000 | AB21: =IF(ROWS($AA$3:AA21)>(ROWS($AA$3:$AA$228)-COUNTBLANK($AA$3:$AA$228)),"",INDEX($AA$3:$AA$228,SMALL(IF($AA$3:$AA$228<>"",ROW($AA$3:$AA$228)-2),ROWS($AA$3:AA21)))) ->  | AW21: 90 | AX21: 0 | AY21: 0 | AZ21: =IF(Wycena!$C$15=78,Mapping!AX21,AY21) -> 0 | BC21: 198 | BD21: 0 | BE21: 0 | BF21: =IF(Wycena!$C$15=78,Mapping!BD21,BE21) -> 0 | CN21: Przy skrzydle i ościeżnicy z dwóch stron | CP21: =IF(Wycena!$C$14="Przylgowe",8,IF(Wycena!$C$14="Bezprzylgowe",6,0)) -> 8 | CQ21: =IF(Wycena!$C$14="Przylgowe",8,IF(Wycena!$C$14="Bezprzylgowe",6,0)) -> 8 | CR21: =IF(Wycena!$C$14="Przylgowe",8,IF(Wycena!$C$14="Bezprzylgowe",6,0)) -> 8 | CZ21: 23 | DA21: =IF(CZ21>=VLOOKUP(Wycena!$C$14,Mapping!$CX$3:$CY$5,2,0),CZ21,"") -> 23 | DB21: =IF(ROWS($DA$3:DA21)>(ROWS($DA$3:$DA$28)-COUNTBLANK($DA$3:$DA$28)),"",INDEX($DA$3:$DA$28,SMALL(IF($DA$3:$DA$28<>"",ROW($DA$3:$DA$28)-2),ROWS($DA$3:DA21)))) -> 24 | DJ21: 23 | DK21: =IF(DJ21>=VLOOKUP(Wycena!$C$14,Mapping!$DF$3:$DG$5,2,0),DJ21,"") -> 23 | DL21: =IF(ROWS($DK$3:DK21)>(ROWS($DK$3:$DK$28)-COUNTBLANK($DK$3:$DK$28)),"",INDEX($DK$3:$DK$28,SMALL(IF($DK$3:$DK$28<>"",ROW($DK$3:$DK$28)-2),ROWS($DK$3:DK21)))) -> 24 | DM21: =IF(DJ21>=VLOOKUP(Wycena!$C$14,Mapping!$DF$3:$DH$5,3,0),DJ21,"") -> 23 | DN21: =IF(ROWS($DM$3:DM21)>(ROWS($DM$3:$DM$28)-COUNTBLANK($DM$3:$DM$28)),"",INDEX($DM$3:$DM$28,SMALL(IF($DM$3:$DM$28<>"",ROW($DM$3:$DM$28)-2),ROWS($DM$3:DM21)))) -> 24 | DR21: 23 | DS21: =IF(DR21>=VLOOKUP(Wycena!$C$24,Mapping!$DP$3:$DQ$4,2,0),DR21,"") -> 23 | DT21: =IF(ROWS($DS$3:DS21)>(ROWS($DS$3:$DS$28)-COUNTBLANK($DS$3:$DS$28)),"",INDEX($DS$3:$DS$28,SMALL(IF($DS$3:$DS$28<>"",ROW($DS$3:$DS$28)-2),ROWS($DS$3:DS21)))) -> 28 | DV21: 18 | FN21: 18 | FO21: =IF(Wycena!$C$19="-","",FN21) ->  | FP21: =IF(ROWS($FO$3:FO21)>(ROWS($FO$3:$FO$23)-COUNTBLANK($FO$3:$FO$23)),"",INDEX($FO$3:$FO$23,SMALL(IF($FO$3:$FO$23<>"",ROW($FO$3:$FO$23)-2),ROWS($FO$3:FO21)))) ->  | FQ21: =IF(Wycena!$C$20="-","",FN21) ->  | FR21: =IF(ROWS($FQ$3:FQ21)>(ROWS($FQ$3:$FQ$23)-COUNTBLANK($FQ$3:$FQ$23)),"",INDEX($FQ$3:$FQ$23,SMALL(IF($FQ$3:$FQ$23<>"",ROW($FQ$3:$FQ$23)-2),ROWS($FQ$3:FQ21)))) ->  | FS21: =IF(Wycena!$C$21="-","",FN21) ->  | FT21: =IF(ROWS($FS$3:FS21)>(ROWS($FS$3:$FS$23)-COUNTBLANK($FS$3:$FS$23)),"",INDEX($FS$3:$FS$23,SMALL(IF($FS$3:$FS$23<>"",ROW($FS$3:$FS$23)-2),ROWS($FS$3:FS21)))) ->  | FV21: Zestaw elektronik z zamkiem ryglowym | FW21: Ryglowy 3-punktowy z gałką (standard) | FX21: Pojedynczy jedna wkładka | FY21: 0 | FZ21: Pochwyt Maddalena | GA21: 0 | GB21: Pochwyt Maddalena | GF21: =GB21 -> Pochwyt Maddalena | GI21: =IF((HLOOKUP(VLOOKUP(Wycena!$C$58,Mapping!$GH$35:$GI$42,2,0),$GC$1:$GH$33,2+GJ21))=0,"",(HLOOKUP(VLOOKUP(Wycena!$C$58,Mapping!$GH$35:$GI$42,2,0),$GC$1:$GH$33,2+GJ21))) ->  | GJ21: 19 | GK21: =IF(ROWS($GI$3:GI21)>(ROWS($GI$3:$GI$33)-COUNTBLANK($GI$3:$GI$33)),"",INDEX($GI$3:$GI$33,SMALL(IF($GI$3:$GI$33<>"",ROW($GI$3:$GI$33)-2),ROWS($GI$3:GI21)))) ->  | GL21: Klamka AXA Manitoba Plus | GM21: Tytan | GV21: Zestaw antywłamaniowy RC2 | GW21: - | IX21: 1900
A22: DB 34 | B22: 20 | C22: 20 | D22: 20 | E22: 20 | F22: 34 | G22: 34 | H22: 36 | I22: 36 | Y22: RAL 1001 | Z22: 500 | AA22: RAL 1001 | AB22: =IF(ROWS($AA$3:AA22)>(ROWS($AA$3:$AA$228)-COUNTBLANK($AA$3:$AA$228)),"",INDEX($AA$3:$AA$228,SMALL(IF($AA$3:$AA$228<>"",ROW($AA$3:$AA$228)-2),ROWS($AA$3:AA22)))) ->  | AW22: 91 | AX22: 0 | AY22: 0 | AZ22: =IF(Wycena!$C$15=78,Mapping!AX22,AY22) -> 0 | BC22: 199 | BD22: 0 | BE22: 0 | BF22: =IF(Wycena!$C$15=78,Mapping!BD22,BE22) -> 0 | CN22: Przy skrzydle i naświetlu od zewnątrz | CO22: =IF(Wycena!$C$14="Przylgowe",8,IF(Wycena!$C$14="Bezprzylgowe",6,0)) -> 8 | CP22: 0 | CQ22: =IF(Wycena!$C$14="Przylgowe",8,IF(Wycena!$C$14="Bezprzylgowe",6,0)) -> 8 | CR22: 0 | CZ22: 24 | DA22: =IF(CZ22>=VLOOKUP(Wycena!$C$14,Mapping!$CX$3:$CY$5,2,0),CZ22,"") -> 24 | DB22: =IF(ROWS($DA$3:DA22)>(ROWS($DA$3:$DA$28)-COUNTBLANK($DA$3:$DA$28)),"",INDEX($DA$3:$DA$28,SMALL(IF($DA$3:$DA$28<>"",ROW($DA$3:$DA$28)-2),ROWS($DA$3:DA22)))) -> 25 | DJ22: 24 | DK22: =IF(DJ22>=VLOOKUP(Wycena!$C$14,Mapping!$DF$3:$DG$5,2,0),DJ22,"") -> 24 | DL22: =IF(ROWS($DK$3:DK22)>(ROWS($DK$3:$DK$28)-COUNTBLANK($DK$3:$DK$28)),"",INDEX($DK$3:$DK$28,SMALL(IF($DK$3:$DK$28<>"",ROW($DK$3:$DK$28)-2),ROWS($DK$3:DK22)))) -> 25 | DM22: =IF(DJ22>=VLOOKUP(Wycena!$C$14,Mapping!$DF$3:$DH$5,3,0),DJ22,"") -> 24 | DN22: =IF(ROWS($DM$3:DM22)>(ROWS($DM$3:$DM$28)-COUNTBLANK($DM$3:$DM$28)),"",INDEX($DM$3:$DM$28,SMALL(IF($DM$3:$DM$28<>"",ROW($DM$3:$DM$28)-2),ROWS($DM$3:DM22)))) -> 25 | DR22: 24 | DS22: =IF(DR22>=VLOOKUP(Wycena!$C$24,Mapping!$DP$3:$DQ$4,2,0),DR22,"") -> 24 | DT22: =IF(ROWS($DS$3:DS22)>(ROWS($DS$3:$DS$28)-COUNTBLANK($DS$3:$DS$28)),"",INDEX($DS$3:$DS$28,SMALL(IF($DS$3:$DS$28<>"",ROW($DS$3:$DS$28)-2),ROWS($DS$3:DS22)))) -> 29 | DV22: 19 | FN22: 19 | FO22: =IF(Wycena!$C$19="-","",FN22) ->  | FP22: =IF(ROWS($FO$3:FO22)>(ROWS($FO$3:$FO$23)-COUNTBLANK($FO$3:$FO$23)),"",INDEX($FO$3:$FO$23,SMALL(IF($FO$3:$FO$23<>"",ROW($FO$3:$FO$23)-2),ROWS($FO$3:FO22)))) ->  | FQ22: =IF(Wycena!$C$20="-","",FN22) ->  | FR22: =IF(ROWS($FQ$3:FQ22)>(ROWS($FQ$3:$FQ$23)-COUNTBLANK($FQ$3:$FQ$23)),"",INDEX($FQ$3:$FQ$23,SMALL(IF($FQ$3:$FQ$23<>"",ROW($FQ$3:$FQ$23)-2),ROWS($FQ$3:FQ22)))) ->  | FS22: =IF(Wycena!$C$21="-","",FN22) ->  | FT22: =IF(ROWS($FS$3:FS22)>(ROWS($FS$3:$FS$23)-COUNTBLANK($FS$3:$FS$23)),"",INDEX($FS$3:$FS$23,SMALL(IF($FS$3:$FS$23<>"",ROW($FS$3:$FS$23)-2),ROWS($FS$3:FS22)))) ->  | FV22: Zestaw elektronik z zamkiem ryglowym | FW22: Ryglowy 3-punktowy bez gałki (standard) | FX22: Podwójny dwie wkładki | FY22: 500 | FZ22: Antaba Medos Lisbon prostokątna prosta + klamka Warszawa | GA22: 800 | GB22: =IF(VLOOKUP(Wycena!$C$5,SKU!$B$1:$D$743,3,0)="Płytowe",FZ22,"") ->  | GC22: =GB22 ->  | GD22: =GB22 ->  | GE22: =GB22 ->  | GH22: =GB22 ->  | GI22: =IF((HLOOKUP(VLOOKUP(Wycena!$C$58,Mapping!$GH$35:$GI$42,2,0),$GC$1:$GH$33,2+GJ22))=0,"",(HLOOKUP(VLOOKUP(Wycena!$C$58,Mapping!$GH$35:$GI$42,2,0),$GC$1:$GH$33,2+GJ22))) ->  | GJ22: 20 | GK22: =IF(ROWS($GI$3:GI22)>(ROWS($GI$3:$GI$33)-COUNTBLANK($GI$3:$GI$33)),"",INDEX($GI$3:$GI$33,SMALL(IF($GI$3:$GI$33<>"",ROW($GI$3:$GI$33)-2),ROWS($GI$3:GI22)))) ->  | GL22: Klamka AXA Manitoba Plus | GM22: Stare złoto | GV22: Zestaw czytnik linii papilarnych | GW22: - | IX22: 2000
A23: DB 39 | B23: 20 | C23: 20 | D23: 48 | E23: 48 | F23: 50 | G23: 50 | H23: 50 | I23: 50 | Y23: RAL 1002 | Z23: 500 | AA23: RAL 1002 | AB23: =IF(ROWS($AA$3:AA23)>(ROWS($AA$3:$AA$228)-COUNTBLANK($AA$3:$AA$228)),"",INDEX($AA$3:$AA$228,SMALL(IF($AA$3:$AA$228<>"",ROW($AA$3:$AA$228)-2),ROWS($AA$3:AA23)))) ->  | AW23: 92 | AX23: 0 | AY23: 0 | AZ23: =IF(Wycena!$C$15=78,Mapping!AX23,AY23) -> 0 | BC23: 200 | BD23: 0 | BE23: 0 | BF23: =IF(Wycena!$C$15=78,Mapping!BD23,BE23) -> 0 | CN23: Przy skrzydle i naświetlu z dwóch stron | CO23: =IF(Wycena!$C$14="Przylgowe",8,IF(Wycena!$C$14="Bezprzylgowe",6,0)) -> 8 | CP23: 0 | CQ23: =IF(Wycena!$C$14="Przylgowe",8,IF(Wycena!$C$14="Bezprzylgowe",6,0)) -> 8 | CR23: 0 | CZ23: 25 | DA23: =IF(CZ23>=VLOOKUP(Wycena!$C$14,Mapping!$CX$3:$CY$5,2,0),CZ23,"") -> 25 | DB23: =IF(ROWS($DA$3:DA23)>(ROWS($DA$3:$DA$28)-COUNTBLANK($DA$3:$DA$28)),"",INDEX($DA$3:$DA$28,SMALL(IF($DA$3:$DA$28<>"",ROW($DA$3:$DA$28)-2),ROWS($DA$3:DA23)))) -> 26 | DJ23: 25 | DK23: =IF(DJ23>=VLOOKUP(Wycena!$C$14,Mapping!$DF$3:$DG$5,2,0),DJ23,"") -> 25 | DL23: =IF(ROWS($DK$3:DK23)>(ROWS($DK$3:$DK$28)-COUNTBLANK($DK$3:$DK$28)),"",INDEX($DK$3:$DK$28,SMALL(IF($DK$3:$DK$28<>"",ROW($DK$3:$DK$28)-2),ROWS($DK$3:DK23)))) -> 26 | DM23: =IF(DJ23>=VLOOKUP(Wycena!$C$14,Mapping!$DF$3:$DH$5,3,0),DJ23,"") -> 25 | DN23: =IF(ROWS($DM$3:DM23)>(ROWS($DM$3:$DM$28)-COUNTBLANK($DM$3:$DM$28)),"",INDEX($DM$3:$DM$28,SMALL(IF($DM$3:$DM$28<>"",ROW($DM$3:$DM$28)-2),ROWS($DM$3:DM23)))) -> 26 | DR23: 25 | DS23: =IF(DR23>=VLOOKUP(Wycena!$C$24,Mapping!$DP$3:$DQ$4,2,0),DR23,"") -> 25 | DT23: =IF(ROWS($DS$3:DS23)>(ROWS($DS$3:$DS$28)-COUNTBLANK($DS$3:$DS$28)),"",INDEX($DS$3:$DS$28,SMALL(IF($DS$3:$DS$28<>"",ROW($DS$3:$DS$28)-2),ROWS($DS$3:DS23)))) -> 30 | DV23: 20 | FN23: 20 | FO23: =IF(Wycena!$C$19="-","",FN23) ->  | FP23: =IF(ROWS($FO$3:FO23)>(ROWS($FO$3:$FO$23)-COUNTBLANK($FO$3:$FO$23)),"",INDEX($FO$3:$FO$23,SMALL(IF($FO$3:$FO$23<>"",ROW($FO$3:$FO$23)-2),ROWS($FO$3:FO23)))) ->  | FQ23: =IF(Wycena!$C$20="-","",FN23) ->  | FR23: =IF(ROWS($FQ$3:FQ23)>(ROWS($FQ$3:$FQ$23)-COUNTBLANK($FQ$3:$FQ$23)),"",INDEX($FQ$3:$FQ$23,SMALL(IF($FQ$3:$FQ$23<>"",ROW($FQ$3:$FQ$23)-2),ROWS($FQ$3:FQ23)))) ->  | FS23: =IF(Wycena!$C$21="-","",FN23) ->  | FT23: =IF(ROWS($FS$3:FS23)>(ROWS($FS$3:$FS$23)-COUNTBLANK($FS$3:$FS$23)),"",INDEX($FS$3:$FS$23,SMALL(IF($FS$3:$FS$23<>"",ROW($FS$3:$FS$23)-2),ROWS($FS$3:FS23)))) ->  | FV23: Zestaw elektronik z zamkiem ryglowym | FW23: Ryglowy 4-punktowy | FZ23: Antaba Medos Lisbon prostokątna skośna + klamka Warszawa | GA23: 900 | GB23: =IF(VLOOKUP(Wycena!$C$5,SKU!$B$1:$D$743,3,0)="Płycinowe",FZ23,"") ->  | GD23: =GB23 ->  | GH23: =GB23 ->  | GI23: =IF((HLOOKUP(VLOOKUP(Wycena!$C$58,Mapping!$GH$35:$GI$42,2,0),$GC$1:$GH$33,2+GJ23))=0,"",(HLOOKUP(VLOOKUP(Wycena!$C$58,Mapping!$GH$35:$GI$42,2,0),$GC$1:$GH$33,2+GJ23))) ->  | GJ23: 21 | GK23: =IF(ROWS($GI$3:GI23)>(ROWS($GI$3:$GI$33)-COUNTBLANK($GI$3:$GI$33)),"",INDEX($GI$3:$GI$33,SMALL(IF($GI$3:$GI$33<>"",ROW($GI$3:$GI$33)-2),ROWS($GI$3:GI23)))) ->  | GL23: Klamka AXA Niagara Plus | GM23: Inox | GV23: Zestaw czytnik RFID | GW23: - | HA23: Po zestawie
A24: DB 43 | B24: 20 | C24: 20 | D24: 20 | E24: 20 | F24: 34 | G24: 34 | H24: =F24+2 -> 36 | I24: =G24+2 -> 36 | Y24: RAL 1003 | Z24: 500 | AA24: RAL 1003 | AB24: =IF(ROWS($AA$3:AA24)>(ROWS($AA$3:$AA$228)-COUNTBLANK($AA$3:$AA$228)),"",INDEX($AA$3:$AA$228,SMALL(IF($AA$3:$AA$228<>"",ROW($AA$3:$AA$228)-2),ROWS($AA$3:AA24)))) ->  | AW24: 93 | AX24: 0 | AY24: 0 | AZ24: =IF(Wycena!$C$15=78,Mapping!AX24,AY24) -> 0 | BC24: 201 | BD24: 0 | BE24: 0 | BF24: =IF(Wycena!$C$15=78,Mapping!BD24,BE24) -> 0 | CN24: Przy skrzydle, naświetlu i ościeżnicy od zewnątrz | CP24: =IF(Wycena!$C$14="Przylgowe",8,IF(Wycena!$C$14="Bezprzylgowe",6,0)) -> 8 | CQ24: =IF(Wycena!$C$14="Przylgowe",8,IF(Wycena!$C$14="Bezprzylgowe",6,0)) -> 8 | CR24: =IF(Wycena!$C$14="Przylgowe",8,IF(Wycena!$C$14="Bezprzylgowe",6,0)) -> 8 | CZ24: 26 | DA24: =IF(CZ24>=VLOOKUP(Wycena!$C$14,Mapping!$CX$3:$CY$5,2,0),CZ24,"") -> 26 | DB24: =IF(ROWS($DA$3:DA24)>(ROWS($DA$3:$DA$28)-COUNTBLANK($DA$3:$DA$28)),"",INDEX($DA$3:$DA$28,SMALL(IF($DA$3:$DA$28<>"",ROW($DA$3:$DA$28)-2),ROWS($DA$3:DA24)))) -> 27 | DJ24: 26 | DK24: =IF(DJ24>=VLOOKUP(Wycena!$C$14,Mapping!$DF$3:$DG$5,2,0),DJ24,"") -> 26 | DL24: =IF(ROWS($DK$3:DK24)>(ROWS($DK$3:$DK$28)-COUNTBLANK($DK$3:$DK$28)),"",INDEX($DK$3:$DK$28,SMALL(IF($DK$3:$DK$28<>"",ROW($DK$3:$DK$28)-2),ROWS($DK$3:DK24)))) -> 27 | DM24: =IF(DJ24>=VLOOKUP(Wycena!$C$14,Mapping!$DF$3:$DH$5,3,0),DJ24,"") -> 26 | DN24: =IF(ROWS($DM$3:DM24)>(ROWS($DM$3:$DM$28)-COUNTBLANK($DM$3:$DM$28)),"",INDEX($DM$3:$DM$28,SMALL(IF($DM$3:$DM$28<>"",ROW($DM$3:$DM$28)-2),ROWS($DM$3:DM24)))) -> 27 | DR24: 26 | DS24: =IF(DR24>=VLOOKUP(Wycena!$C$24,Mapping!$DP$3:$DQ$4,2,0),DR24,"") -> 26 | DT24: =IF(ROWS($DS$3:DS24)>(ROWS($DS$3:$DS$28)-COUNTBLANK($DS$3:$DS$28)),"",INDEX($DS$3:$DS$28,SMALL(IF($DS$3:$DS$28<>"",ROW($DS$3:$DS$28)-2),ROWS($DS$3:DS24)))) ->  | DV24: 21 | FN24: x | FO24: x | FP24: x | FQ24: x | FR24: x | FS24: x | FV24: Zestaw elektronik z zamkiem automatycznym | FW24: Automat 3-punktowy z gałką | FZ24: Antaba Medos Madrid kwadratowa prosta + klamka Warszawa | GA24: 800 | GB24: =IF(VLOOKUP(Wycena!$C$5,SKU!$B$1:$D$743,3,0)="Płytowe",FZ24,"") ->  | GI24: =IF((HLOOKUP(VLOOKUP(Wycena!$C$58,Mapping!$GH$35:$GI$42,2,0),$GC$1:$GH$33,2+GJ24))=0,"",(HLOOKUP(VLOOKUP(Wycena!$C$58,Mapping!$GH$35:$GI$42,2,0),$GC$1:$GH$33,2+GJ24))) ->  | GJ24: 22 | GK24: =IF(ROWS($GI$3:GI24)>(ROWS($GI$3:$GI$33)-COUNTBLANK($GI$3:$GI$33)),"",INDEX($GI$3:$GI$33,SMALL(IF($GI$3:$GI$33<>"",ROW($GI$3:$GI$33)-2),ROWS($GI$3:GI24)))) ->  | GL24: Klamka AXA Niagara Plus | GM24: Tytan | GV24: Zestaw szklana klawiatura Bluetooth | GW24: - | HA24: Brak (standard) | HB24: -
A25: DB 45 | B25: 20 | C25: 20 | D25: 20 | E25: 20 | F25: 34 | G25: 34 | H25: 36 | I25: 36 | Y25: RAL 1004 | Z25: 500 | AA25: RAL 1004 | AB25: =IF(ROWS($AA$3:AA25)>(ROWS($AA$3:$AA$228)-COUNTBLANK($AA$3:$AA$228)),"",INDEX($AA$3:$AA$228,SMALL(IF($AA$3:$AA$228<>"",ROW($AA$3:$AA$228)-2),ROWS($AA$3:AA25)))) ->  | AW25: 94 | AX25: 0 | AY25: 0 | AZ25: =IF(Wycena!$C$15=78,Mapping!AX25,AY25) -> 0 | BC25: 202 | BD25: 0 | BE25: 0 | BF25: =IF(Wycena!$C$15=78,Mapping!BD25,BE25) -> 0 | CN25: Przy skrzydle, naświetlu i ościeżnicy z dwóch stron | CP25: =IF(Wycena!$C$14="Przylgowe",8,IF(Wycena!$C$14="Bezprzylgowe",6,0)) -> 8 | CQ25: =IF(Wycena!$C$14="Przylgowe",8,IF(Wycena!$C$14="Bezprzylgowe",6,0)) -> 8 | CR25: =IF(Wycena!$C$14="Przylgowe",8,IF(Wycena!$C$14="Bezprzylgowe",6,0)) -> 8 | CZ25: 27 | DA25: =IF(CZ25>=VLOOKUP(Wycena!$C$14,Mapping!$CX$3:$CY$5,2,0),CZ25,"") -> 27 | DB25: =IF(ROWS($DA$3:DA25)>(ROWS($DA$3:$DA$28)-COUNTBLANK($DA$3:$DA$28)),"",INDEX($DA$3:$DA$28,SMALL(IF($DA$3:$DA$28<>"",ROW($DA$3:$DA$28)-2),ROWS($DA$3:DA25)))) -> 28 | DJ25: 27 | DK25: =IF(DJ25>=VLOOKUP(Wycena!$C$14,Mapping!$DF$3:$DG$5,2,0),DJ25,"") -> 27 | DL25: =IF(ROWS($DK$3:DK25)>(ROWS($DK$3:$DK$28)-COUNTBLANK($DK$3:$DK$28)),"",INDEX($DK$3:$DK$28,SMALL(IF($DK$3:$DK$28<>"",ROW($DK$3:$DK$28)-2),ROWS($DK$3:DK25)))) -> 28 | DM25: =IF(DJ25>=VLOOKUP(Wycena!$C$14,Mapping!$DF$3:$DH$5,3,0),DJ25,"") -> 27 | DN25: =IF(ROWS($DM$3:DM25)>(ROWS($DM$3:$DM$28)-COUNTBLANK($DM$3:$DM$28)),"",INDEX($DM$3:$DM$28,SMALL(IF($DM$3:$DM$28<>"",ROW($DM$3:$DM$28)-2),ROWS($DM$3:DM25)))) -> 28 | DR25: 27 | DS25: =IF(DR25>=VLOOKUP(Wycena!$C$24,Mapping!$DP$3:$DQ$4,2,0),DR25,"") -> 27 | DT25: =IF(ROWS($DS$3:DS25)>(ROWS($DS$3:$DS$28)-COUNTBLANK($DS$3:$DS$28)),"",INDEX($DS$3:$DS$28,SMALL(IF($DS$3:$DS$28<>"",ROW($DS$3:$DS$28)-2),ROWS($DS$3:DS25)))) ->  | DV25: 22 | FV25: Zestaw elektronik z zamkiem automatycznym | FW25: Automat 3-punktowy bez gałki | FZ25: Antaba Medos Madrid kwadratowa skośna + klamka Warszawa | GA25: 900 | GB25: =IF(VLOOKUP(Wycena!$C$5,SKU!$B$1:$D$743,3,0)="Płycinowe",FZ25,"") ->  | GI25: =IF((HLOOKUP(VLOOKUP(Wycena!$C$58,Mapping!$GH$35:$GI$42,2,0),$GC$1:$GH$33,2+GJ25))=0,"",(HLOOKUP(VLOOKUP(Wycena!$C$58,Mapping!$GH$35:$GI$42,2,0),$GC$1:$GH$33,2+GJ25))) ->  | GJ25: 23 | GK25: =IF(ROWS($GI$3:GI25)>(ROWS($GI$3:$GI$33)-COUNTBLANK($GI$3:$GI$33)),"",INDEX($GI$3:$GI$33,SMALL(IF($GI$3:$GI$33<>"",ROW($GI$3:$GI$33)-2),ROWS($GI$3:GI25)))) ->  | GL25: Klamka AXA Niagara Plus | GM25: Stare złoto | HA25: Brak (standard) | HB25: Tak
A26: DB 47 | B26: 20 | C26: 20 | D26: 20 | E26: 20 | F26: 34 | G26: 34 | H26: 36 | I26: 36 | Y26: RAL 1005 | Z26: 500 | AA26: RAL 1005 | AB26: =IF(ROWS($AA$3:AA26)>(ROWS($AA$3:$AA$228)-COUNTBLANK($AA$3:$AA$228)),"",INDEX($AA$3:$AA$228,SMALL(IF($AA$3:$AA$228<>"",ROW($AA$3:$AA$228)-2),ROWS($AA$3:AA26)))) ->  | AW26: 95 | AX26: 0 | AY26: 0 | AZ26: =IF(Wycena!$C$15=78,Mapping!AX26,AY26) -> 0 | BC26: 203 | BD26: 0 | BE26: 0 | BF26: =IF(Wycena!$C$15=78,Mapping!BD26,BE26) -> 0 | CZ26: 28 | DA26: =IF(CZ26>=VLOOKUP(Wycena!$C$14,Mapping!$CX$3:$CY$5,2,0),CZ26,"") -> 28 | DB26: =IF(ROWS($DA$3:DA26)>(ROWS($DA$3:$DA$28)-COUNTBLANK($DA$3:$DA$28)),"",INDEX($DA$3:$DA$28,SMALL(IF($DA$3:$DA$28<>"",ROW($DA$3:$DA$28)-2),ROWS($DA$3:DA26)))) -> 29 | DJ26: 28 | DK26: =IF(DJ26>=VLOOKUP(Wycena!$C$14,Mapping!$DF$3:$DG$5,2,0),DJ26,"") -> 28 | DL26: =IF(ROWS($DK$3:DK26)>(ROWS($DK$3:$DK$28)-COUNTBLANK($DK$3:$DK$28)),"",INDEX($DK$3:$DK$28,SMALL(IF($DK$3:$DK$28<>"",ROW($DK$3:$DK$28)-2),ROWS($DK$3:DK26)))) -> 29 | DM26: =IF(DJ26>=VLOOKUP(Wycena!$C$14,Mapping!$DF$3:$DH$5,3,0),DJ26,"") -> 28 | DN26: =IF(ROWS($DM$3:DM26)>(ROWS($DM$3:$DM$28)-COUNTBLANK($DM$3:$DM$28)),"",INDEX($DM$3:$DM$28,SMALL(IF($DM$3:$DM$28<>"",ROW($DM$3:$DM$28)-2),ROWS($DM$3:DM26)))) -> 29 | DR26: 28 | DS26: =IF(DR26>=VLOOKUP(Wycena!$C$24,Mapping!$DP$3:$DQ$4,2,0),DR26,"") -> 28 | DT26: =IF(ROWS($DS$3:DS26)>(ROWS($DS$3:$DS$28)-COUNTBLANK($DS$3:$DS$28)),"",INDEX($DS$3:$DS$28,SMALL(IF($DS$3:$DS$28<>"",ROW($DS$3:$DS$28)-2),ROWS($DS$3:DS26)))) ->  | DV26: 23 | FP26: =$FP$3:INDEX($FP$3:$FP$23,(ROWS($FO$3:$FO$23)-COUNTBLANK($FO$3:$FO$23))) -> - | FR26: =$FR$3:INDEX($FR$3:$FR$23,(ROWS($FQ$3:$FQ$23)-COUNTBLANK($FQ$3:$FQ$23))) -> - | FT26: =$FT$3:INDEX($FT$3:$FT$23,(ROWS($FS$3:$FS$23)-COUNTBLANK($FS$3:$FS$23))) -> - | FV26: Zestaw elektronik z zamkiem automatycznym | FW26: Automat 4-punktowy | FZ26: Antaba Medos Paris okrągła prosta + klamka Warszawa | GA26: 800 | GB26: =IF(VLOOKUP(Wycena!$C$5,SKU!$B$1:$D$743,3,0)="Płytowe",FZ26,"") ->  | GI26: =IF((HLOOKUP(VLOOKUP(Wycena!$C$58,Mapping!$GH$35:$GI$42,2,0),$GC$1:$GH$33,2+GJ26))=0,"",(HLOOKUP(VLOOKUP(Wycena!$C$58,Mapping!$GH$35:$GI$42,2,0),$GC$1:$GH$33,2+GJ26))) ->  | GJ26: 24 | GK26: =IF(ROWS($GI$3:GI26)>(ROWS($GI$3:$GI$33)-COUNTBLANK($GI$3:$GI$33)),"",INDEX($GI$3:$GI$33,SMALL(IF($GI$3:$GI$33<>"",ROW($GI$3:$GI$33)-2),ROWS($GI$3:GI26)))) ->  | GL26: Klamka AXA Prestige Flex | GM26: Inox | HA26: Zestaw elektronik z zamkiem ryglowym | HB26: -
A27: DB 51 | B27: 20 | C27: 20 | D27: 20 | E27: 20 | F27: 34 | G27: 34 | H27: 36 | I27: 36 | Y27: RAL 1006 | Z27: 500 | AA27: RAL 1006 | AB27: =IF(ROWS($AA$3:AA27)>(ROWS($AA$3:$AA$228)-COUNTBLANK($AA$3:$AA$228)),"",INDEX($AA$3:$AA$228,SMALL(IF($AA$3:$AA$228<>"",ROW($AA$3:$AA$228)-2),ROWS($AA$3:AA27)))) ->  | AW27: 96 | AX27: 0 | AY27: 0 | AZ27: =IF(Wycena!$C$15=78,Mapping!AX27,AY27) -> 0 | BC27: 204 | BD27: 0 | BE27: 0 | BF27: =IF(Wycena!$C$15=78,Mapping!BD27,BE27) -> 0 | CN27: =VLOOKUP(Wycena!C25,$CN$28:$CR$37,IF(AND(Wycena!C19="-",Wycena!C20="-"),2,IF(AND(Wycena!C19<>"-",Wycena!C20="-"),3,IF(AND(Wycena!C19="-",Wycena!C20<>"-"),4,5))),0) -> 0 | CZ27: 29 | DA27: =IF(CZ27>=VLOOKUP(Wycena!$C$14,Mapping!$CX$3:$CY$5,2,0),CZ27,"") -> 29 | DB27: =IF(ROWS($DA$3:DA27)>(ROWS($DA$3:$DA$28)-COUNTBLANK($DA$3:$DA$28)),"",INDEX($DA$3:$DA$28,SMALL(IF($DA$3:$DA$28<>"",ROW($DA$3:$DA$28)-2),ROWS($DA$3:DA27)))) -> 30 | DJ27: 29 | DK27: =IF(DJ27>=VLOOKUP(Wycena!$C$14,Mapping!$DF$3:$DG$5,2,0),DJ27,"") -> 29 | DL27: =IF(ROWS($DK$3:DK27)>(ROWS($DK$3:$DK$28)-COUNTBLANK($DK$3:$DK$28)),"",INDEX($DK$3:$DK$28,SMALL(IF($DK$3:$DK$28<>"",ROW($DK$3:$DK$28)-2),ROWS($DK$3:DK27)))) -> 30 | DM27: =IF(DJ27>=VLOOKUP(Wycena!$C$14,Mapping!$DF$3:$DH$5,3,0),DJ27,"") -> 29 | DN27: =IF(ROWS($DM$3:DM27)>(ROWS($DM$3:$DM$28)-COUNTBLANK($DM$3:$DM$28)),"",INDEX($DM$3:$DM$28,SMALL(IF($DM$3:$DM$28<>"",ROW($DM$3:$DM$28)-2),ROWS($DM$3:DM27)))) -> 30 | DR27: 29 | DS27: =IF(DR27>=VLOOKUP(Wycena!$C$24,Mapping!$DP$3:$DQ$4,2,0),DR27,"") -> 29 | DT27: =IF(ROWS($DS$3:DS27)>(ROWS($DS$3:$DS$28)-COUNTBLANK($DS$3:$DS$28)),"",INDEX($DS$3:$DS$28,SMALL(IF($DS$3:$DS$28<>"",ROW($DS$3:$DS$28)-2),ROWS($DS$3:DS27)))) ->  | DV27: 24 | FV27: Zestaw z pochwytem na styl amerykański | FW27: Pojedynczy jedna wkładka | FZ27: Antaba Medos Paris okrągła skośna + klamka Warszawa | GA27: 900 | GB27: =IF(VLOOKUP(Wycena!$C$5,SKU!$B$1:$D$743,3,0)="Płycinowe",FZ27,"") ->  | GI27: =IF((HLOOKUP(VLOOKUP(Wycena!$C$58,Mapping!$GH$35:$GI$42,2,0),$GC$1:$GH$33,2+GJ27))=0,"",(HLOOKUP(VLOOKUP(Wycena!$C$58,Mapping!$GH$35:$GI$42,2,0),$GC$1:$GH$33,2+GJ27))) ->  | GJ27: 25 | GK27: =IF(ROWS($GI$3:GI27)>(ROWS($GI$3:$GI$33)-COUNTBLANK($GI$3:$GI$33)),"",INDEX($GI$3:$GI$33,SMALL(IF($GI$3:$GI$33<>"",ROW($GI$3:$GI$33)-2),ROWS($GI$3:GI27)))) ->  | GL27: Klamka AXA Prestige Flex | GM27: Tytan | HA27: Zestaw elektronik z zamkiem ryglowym | HB27: Tak
A28: DB 52a | B28: 20 | C28: 20 | D28: 20 | E28: 20 | F28: 34 | G28: 34 | H28: 36 | I28: 36 | Y28: RAL 1007 | Z28: 500 | AA28: RAL 1007 | AB28: =IF(ROWS($AA$3:AA28)>(ROWS($AA$3:$AA$228)-COUNTBLANK($AA$3:$AA$228)),"",INDEX($AA$3:$AA$228,SMALL(IF($AA$3:$AA$228<>"",ROW($AA$3:$AA$228)-2),ROWS($AA$3:AA28)))) ->  | AW28: 97 | AX28: 0 | AY28: 0 | AZ28: =IF(Wycena!$C$15=78,Mapping!AX28,AY28) -> 0 | BC28: 205 | BD28: 0 | BE28: 0 | BF28: =IF(Wycena!$C$15=78,Mapping!BD28,BE28) -> 0 | CN28: Dla ościeżnicy od zamka | CO28: SOLO | CP28: DOSTAWKA OD ZAWIAS | CQ28: DOSTAWKA OD ZAMKA | CR28: 2 DOSTAWKI | CZ28: 30 | DA28: =IF(CZ28>=VLOOKUP(Wycena!$C$14,Mapping!$CX$3:$CY$5,2,0),CZ28,"") -> 30 | DB28: =IF(ROWS($DA$3:DA28)>(ROWS($DA$3:$DA$28)-COUNTBLANK($DA$3:$DA$28)),"",INDEX($DA$3:$DA$28,SMALL(IF($DA$3:$DA$28<>"",ROW($DA$3:$DA$28)-2),ROWS($DA$3:DA28)))) ->  | DJ28: 30 | DK28: =IF(DJ28>=VLOOKUP(Wycena!$C$14,Mapping!$DF$3:$DG$5,2,0),DJ28,"") -> 30 | DL28: =IF(ROWS($DK$3:DK28)>(ROWS($DK$3:$DK$28)-COUNTBLANK($DK$3:$DK$28)),"",INDEX($DK$3:$DK$28,SMALL(IF($DK$3:$DK$28<>"",ROW($DK$3:$DK$28)-2),ROWS($DK$3:DK28)))) ->  | DM28: =IF(DJ28>=VLOOKUP(Wycena!$C$14,Mapping!$DF$3:$DH$5,3,0),DJ28,"") -> 30 | DN28: =IF(ROWS($DM$3:DM28)>(ROWS($DM$3:$DM$28)-COUNTBLANK($DM$3:$DM$28)),"",INDEX($DM$3:$DM$28,SMALL(IF($DM$3:$DM$28<>"",ROW($DM$3:$DM$28)-2),ROWS($DM$3:DM28)))) ->  | DR28: 30 | DS28: =IF(DR28>=VLOOKUP(Wycena!$C$24,Mapping!$DP$3:$DQ$4,2,0),DR28,"") -> 30 | DT28: =IF(ROWS($DS$3:DS28)>(ROWS($DS$3:$DS$28)-COUNTBLANK($DS$3:$DS$28)),"",INDEX($DS$3:$DS$28,SMALL(IF($DS$3:$DS$28<>"",ROW($DS$3:$DS$28)-2),ROWS($DS$3:DS28)))) ->  | DV28: 25 | FV28: Zestaw z pochwytem na styl amerykański | FW28: Podwójny dwie wkładki | FZ28: Antaba Vegas prostokątna polerowana + klamka Warszawa | GA28: 1600 | GB28: =IF(VLOOKUP(Wycena!$C$5,SKU!$B$1:$D$743,3,0)="Płytowe",FZ28,"") ->  | GD28: =GC28 ->  | GE28: =GD28 ->  | GI28: =IF((HLOOKUP(VLOOKUP(Wycena!$C$58,Mapping!$GH$35:$GI$42,2,0),$GC$1:$GH$33,2+GJ28))=0,"",(HLOOKUP(VLOOKUP(Wycena!$C$58,Mapping!$GH$35:$GI$42,2,0),$GC$1:$GH$33,2+GJ28))) ->  | GJ28: 26 | GK28: =IF(ROWS($GI$3:GI28)>(ROWS($GI$3:$GI$33)-COUNTBLANK($GI$3:$GI$33)),"",INDEX($GI$3:$GI$33,SMALL(IF($GI$3:$GI$33<>"",ROW($GI$3:$GI$33)-2),ROWS($GI$3:GI28)))) ->  | GL28: Klamka AXA Prestige Flex | GM28: Stare złoto | HA28: Zestaw elektronik z zamkiem automatycznym | HB28: -
A29: DB 55 | B29: 20 | C29: 20 | D29: 20 | E29: 20 | F29: 34 | G29: 34 | H29: 36 | I29: 36 | Y29: RAL 1011 | Z29: 500 | AA29: RAL 1011 | AB29: =IF(ROWS($AA$3:AA29)>(ROWS($AA$3:$AA$228)-COUNTBLANK($AA$3:$AA$228)),"",INDEX($AA$3:$AA$228,SMALL(IF($AA$3:$AA$228<>"",ROW($AA$3:$AA$228)-2),ROWS($AA$3:AA29)))) ->  | AW29: 98 | AX29: 0 | AY29: 0 | AZ29: =IF(Wycena!$C$15=78,Mapping!AX29,AY29) -> 0 | BC29: 206 | BD29: 0 | BE29: 0 | BF29: =IF(Wycena!$C$15=78,Mapping!BD29,BE29) -> 0 | CN29: - | CO29: 0 | CP29: 0 | CQ29: 0 | CR29: 0 | CZ29: x | DA29: x | DB29: x | DJ29: x | DK29: x | DL29: x | DM29: x | DN29: x | DR29: x | DS29: x | DT29: x | DV29: 26 | FV29: Zestaw antywłamaniowy RC2 | FW29: Automat 4-punktowy | GB29: =IF(VLOOKUP(Wycena!$C$5,SKU!$B$1:$D$743,3,0)="Płytowe",FZ29,"") ->  | GI29: =IF((HLOOKUP(VLOOKUP(Wycena!$C$58,Mapping!$GH$35:$GI$42,2,0),$GC$1:$GH$33,2+GJ29))=0,"",(HLOOKUP(VLOOKUP(Wycena!$C$58,Mapping!$GH$35:$GI$42,2,0),$GC$1:$GH$33,2+GJ29))) ->  | GJ29: 27 | GK29: =IF(ROWS($GI$3:GI29)>(ROWS($GI$3:$GI$33)-COUNTBLANK($GI$3:$GI$33)),"",INDEX($GI$3:$GI$33,SMALL(IF($GI$3:$GI$33<>"",ROW($GI$3:$GI$33)-2),ROWS($GI$3:GI29)))) ->  | GL29: Klamka AXA Slim Plus | GM29: Inox | HA29: Zestaw elektronik z zamkiem automatycznym | HB29: Tak
A30: DB 56 | B30: 20 | C30: 20 | D30: 20 | E30: 20 | F30: 34 | G30: 34 | H30: 36 | I30: 36 | Y30: RAL 1012 | Z30: 500 | AA30: RAL 1012 | AB30: =IF(ROWS($AA$3:AA30)>(ROWS($AA$3:$AA$228)-COUNTBLANK($AA$3:$AA$228)),"",INDEX($AA$3:$AA$228,SMALL(IF($AA$3:$AA$228<>"",ROW($AA$3:$AA$228)-2),ROWS($AA$3:AA30)))) ->  | AW30: 99 | AX30: 0 | AY30: 0 | AZ30: =IF(Wycena!$C$15=78,Mapping!AX30,AY30) -> 0 | BC30: 207 | BD30: 0 | BE30: 0 | BF30: =IF(Wycena!$C$15=78,Mapping!BD30,BE30) -> 0 | CN30: Przy skrzydle od zewnątrz | CO30: =IF(Wycena!$C$14="Przylgowe",8,IF(Wycena!$C$14="Bezprzylgowe",6,0)) -> 8 | CP30: =IF(Wycena!$C$14="Przylgowe",8,IF(Wycena!$C$14="Bezprzylgowe",6,0)) -> 8 | CQ30: 0 | CR30: 0 | DV30: 27 | FV30: Zestaw czytnik linii papilarnych | FW30: Automat 4-punktowy | GB30: =IF(VLOOKUP(Wycena!$C$5,SKU!$B$1:$D$743,3,0)="Płytowe",FZ30,"") ->  | GD30: =GB30 ->  | GE30: =GB30 ->  | GI30: =IF((HLOOKUP(VLOOKUP(Wycena!$C$58,Mapping!$GH$35:$GI$42,2,0),$GC$1:$GH$33,2+GJ30))=0,"",(HLOOKUP(VLOOKUP(Wycena!$C$58,Mapping!$GH$35:$GI$42,2,0),$GC$1:$GH$33,2+GJ30))) ->  | GJ30: 28 | GK30: =IF(ROWS($GI$3:GI30)>(ROWS($GI$3:$GI$33)-COUNTBLANK($GI$3:$GI$33)),"",INDEX($GI$3:$GI$33,SMALL(IF($GI$3:$GI$33<>"",ROW($GI$3:$GI$33)-2),ROWS($GI$3:GI30)))) ->  | GL30: Klamka AXA Slim Plus | GM30: Tytan | HA30: Zestaw z pochwytem na styl amerykański | HB30: -
A31: DB 56a | B31: 20 | C31: 20 | D31: 20 | E31: 20 | F31: 34 | G31: 34 | H31: 36 | I31: 36 | Y31: RAL 1013 | Z31: 500 | AA31: RAL 1013 | AB31: =IF(ROWS($AA$3:AA31)>(ROWS($AA$3:$AA$228)-COUNTBLANK($AA$3:$AA$228)),"",INDEX($AA$3:$AA$228,SMALL(IF($AA$3:$AA$228<>"",ROW($AA$3:$AA$228)-2),ROWS($AA$3:AA31)))) ->  | AW31: 100 | AX31: 0 | AY31: 0 | AZ31: =IF(Wycena!$C$15=78,Mapping!AX31,AY31) -> 0 | BC31: 208 | BD31: 0 | BE31: 0 | BF31: =IF(Wycena!$C$15=78,Mapping!BD31,BE31) -> 0 | CN31: Przy skrzydle z dwóch stron | CO31: =IF(Wycena!$C$14="Przylgowe",8,IF(Wycena!$C$14="Bezprzylgowe",6,0)) -> 8 | CP31: =IF(Wycena!$C$14="Przylgowe",8,IF(Wycena!$C$14="Bezprzylgowe",6,0)) -> 8 | CQ31: 0 | CR31: 0 | DB31: =$DB$3:INDEX($DB$3:$DB$28,(ROWS($DA$3:$DA$28)-COUNTBLANK($DA$3:$DA$28))) -> 6 | DL31: =$DL$3:INDEX($DL$3:$DL$28,(ROWS($DK$3:$DK$28)-COUNTBLANK($DK$3:$DK$28))) -> 6 | DN31: =$DN$3:INDEX($DN$3:$DN$28,(ROWS($DM$3:$DM$28)-COUNTBLANK($DM$3:$DM$28))) -> 6 | DT31: =$DT$3:INDEX($DT$3:$DT$28,(ROWS($DS$3:$DS$28)-COUNTBLANK($DS$3:$DS$28))) -> 10.5 | DV31: 28 | FV31: Zestaw czytnik RFID | FW31: Automat 4-punktowy | GB31: =IF(VLOOKUP(Wycena!$C$5,SKU!$B$1:$D$743,3,0)="Płycinowe",FZ31,"") ->  | GD31: =GB31 ->  | GE31: =GB31 ->  | GI31: =IF((HLOOKUP(VLOOKUP(Wycena!$C$58,Mapping!$GH$35:$GI$42,2,0),$GC$1:$GH$33,2+GJ31))=0,"",(HLOOKUP(VLOOKUP(Wycena!$C$58,Mapping!$GH$35:$GI$42,2,0),$GC$1:$GH$33,2+GJ31))) ->  | GJ31: 29 | GK31: =IF(ROWS($GI$3:GI31)>(ROWS($GI$3:$GI$33)-COUNTBLANK($GI$3:$GI$33)),"",INDEX($GI$3:$GI$33,SMALL(IF($GI$3:$GI$33<>"",ROW($GI$3:$GI$33)-2),ROWS($GI$3:GI31)))) ->  | GL31: Klamka AXA Slim Plus | GM31: Stare złoto | HA31: Zestaw antywłamaniowy RC2 | HB31: Tak
A32: DB 57 | B32: 20 | C32: 20 | D32: 20 | E32: 20 | F32: 34 | G32: 34 | H32: 36 | I32: 36 | Y32: RAL 1014 | Z32: 500 | AA32: RAL 1014 | AB32: =IF(ROWS($AA$3:AA32)>(ROWS($AA$3:$AA$228)-COUNTBLANK($AA$3:$AA$228)),"",INDEX($AA$3:$AA$228,SMALL(IF($AA$3:$AA$228<>"",ROW($AA$3:$AA$228)-2),ROWS($AA$3:AA32)))) ->  | AW32: 101 | AX32: 0 | AY32: 0 | AZ32: =IF(Wycena!$C$15=78,Mapping!AX32,AY32) -> 0 | BC32: 209 | BD32: 0 | BE32: 0 | BF32: =IF(Wycena!$C$15=78,Mapping!BD32,BE32) -> 0 | CN32: Przy skrzydle i ościeżnicy od zewnątrz | CP32: =IF(Wycena!$C$14="Przylgowe",8,IF(Wycena!$C$14="Bezprzylgowe",6,0)) -> 8 | CQ32: =IF(Wycena!$C$14="Przylgowe",8,IF(Wycena!$C$14="Bezprzylgowe",6,0)) -> 8 | CR32: =IF(Wycena!$C$14="Przylgowe",8,IF(Wycena!$C$14="Bezprzylgowe",6,0)) -> 8 | DV32: 29 | FV32: Zestaw szklana klawiatura Bluetooth | FW32: Automat 4-punktowy | GB32: =IF(VLOOKUP(Wycena!$C$5,SKU!$B$1:$D$743,3,0)="Płytowe",FZ32,"") ->  | GD32: =GB32 ->  | GE32: =GB32 ->  | GI32: =IF((HLOOKUP(VLOOKUP(Wycena!$C$58,Mapping!$GH$35:$GI$42,2,0),$GC$1:$GH$33,2+GJ32))=0,"",(HLOOKUP(VLOOKUP(Wycena!$C$58,Mapping!$GH$35:$GI$42,2,0),$GC$1:$GH$33,2+GJ32))) ->  | GJ32: 30 | GK32: =IF(ROWS($GI$3:GI32)>(ROWS($GI$3:$GI$33)-COUNTBLANK($GI$3:$GI$33)),"",INDEX($GI$3:$GI$33,SMALL(IF($GI$3:$GI$33<>"",ROW($GI$3:$GI$33)-2),ROWS($GI$3:GI32)))) ->  | GL32: Klamko - pochwyt Medos Warszawa | GM32: Inox | HA32: Zestaw czytnik linii papilarnych | HB32: -
A33: DB 59 | B33: 20 | C33: 20 | D33: 20 | E33: 20 | F33: 34 | G33: 34 | H33: 36 | I33: 36 | Y33: RAL 1015 | Z33: 500 | AA33: RAL 1015 | AB33: =IF(ROWS($AA$3:AA33)>(ROWS($AA$3:$AA$228)-COUNTBLANK($AA$3:$AA$228)),"",INDEX($AA$3:$AA$228,SMALL(IF($AA$3:$AA$228<>"",ROW($AA$3:$AA$228)-2),ROWS($AA$3:AA33)))) ->  | AW33: 102 | AX33: 0 | AY33: 0 | AZ33: =IF(Wycena!$C$15=78,Mapping!AX33,AY33) -> 0 | BC33: 210 | BD33: 0 | BE33: 0 | BF33: =IF(Wycena!$C$15=78,Mapping!BD33,BE33) -> 0 | CN33: Przy skrzydle i ościeżnicy z dwóch stron | CP33: =IF(Wycena!$C$14="Przylgowe",8,IF(Wycena!$C$14="Bezprzylgowe",6,0)) -> 8 | CQ33: =IF(Wycena!$C$14="Przylgowe",8,IF(Wycena!$C$14="Bezprzylgowe",6,0)) -> 8 | CR33: =IF(Wycena!$C$14="Przylgowe",8,IF(Wycena!$C$14="Bezprzylgowe",6,0)) -> 8 | DV33: 30 | GB33: =IF(VLOOKUP(Wycena!$C$5,SKU!$B$1:$D$743,3,0)="Płycinowe",FZ33,"") ->  | GD33: =GB33 ->  | GE33: =GB33 ->  | GI33: =IF((HLOOKUP(VLOOKUP(Wycena!$C$58,Mapping!$GH$35:$GI$42,2,0),$GC$1:$GH$33,2+GJ33))=0,"",(HLOOKUP(VLOOKUP(Wycena!$C$58,Mapping!$GH$35:$GI$42,2,0),$GC$1:$GH$33,2+GJ33))) ->  | GJ33: 31 | GK33: =IF(ROWS($GI$3:GI33)>(ROWS($GI$3:$GI$33)-COUNTBLANK($GI$3:$GI$33)),"",INDEX($GI$3:$GI$33,SMALL(IF($GI$3:$GI$33<>"",ROW($GI$3:$GI$33)-2),ROWS($GI$3:GI33)))) ->  | GL33: Klamko - pochwyt Medos Warszawa | GM33: Stare złoto | HA33: Zestaw czytnik linii papilarnych | HB33: Tak
A34: DB 59a | B34: 20 | C34: 20 | D34: 20 | E34: 20 | F34: 34 | G34: 34 | H34: 36 | I34: 36 | Y34: RAL 1016 | Z34: 500 | AA34: RAL 1016 | AB34: =IF(ROWS($AA$3:AA34)>(ROWS($AA$3:$AA$228)-COUNTBLANK($AA$3:$AA$228)),"",INDEX($AA$3:$AA$228,SMALL(IF($AA$3:$AA$228<>"",ROW($AA$3:$AA$228)-2),ROWS($AA$3:AA34)))) ->  | AW34: 103 | AX34: 0 | AY34: 0 | AZ34: =IF(Wycena!$C$15=78,Mapping!AX34,AY34) -> 0 | BC34: 211 | BD34: 0 | BE34: 0 | BF34: =IF(Wycena!$C$15=78,Mapping!BD34,BE34) -> 0 | CN34: Przy skrzydle i naświetlu od zewnątrz | CP34: =IF(Wycena!$C$14="Przylgowe",8,IF(Wycena!$C$14="Bezprzylgowe",6,0)) -> 8 | CQ34: 0 | CR34: 0 | GH34: x | GI34: x | GJ34: x | GK34: x | GL34: Klamko - pochwyt Medos Warszawa | GM34: Czarny | HA34: Zestaw czytnik RFID | HB34: -
A35: DB 60 | B35: 20 | C35: 20 | D35: 20 | E35: 20 | F35: 34 | G35: 34 | H35: 36 | I35: 36 | Y35: RAL 1017 | Z35: 500 | AA35: RAL 1017 | AB35: =IF(ROWS($AA$3:AA35)>(ROWS($AA$3:$AA$228)-COUNTBLANK($AA$3:$AA$228)),"",INDEX($AA$3:$AA$228,SMALL(IF($AA$3:$AA$228<>"",ROW($AA$3:$AA$228)-2),ROWS($AA$3:AA35)))) ->  | AW35: 104 | AX35: 0 | AY35: 0 | AZ35: =IF(Wycena!$C$15=78,Mapping!AX35,AY35) -> 0 | BC35: 212 | BD35: 0 | BE35: 0 | BF35: =IF(Wycena!$C$15=78,Mapping!BD35,BE35) -> 0 | CN35: Przy skrzydle i naświetlu z dwóch stron | CO35: =IF(Wycena!$C$14="Przylgowe",8,IF(Wycena!$C$14="Bezprzylgowe",6,0)) -> 8 | CP35: =IF(Wycena!$C$14="Przylgowe",8,IF(Wycena!$C$14="Bezprzylgowe",6,0)) -> 8 | CQ35: 0 | CR35: 0 | GH35: Brak (standard) | GI35: 1 | GL35: Klamko - pochwyt Dublin Warszawa | GM35: Inox | HA35: Zestaw czytnik RFID | HB35: Tak
A36: DB 61a | B36: 20 | C36: 20 | D36: 20 | E36: 20 | F36: 34 | G36: 34 | H36: 36 | I36: 36 | Y36: RAL 1018 | Z36: 500 | AA36: RAL 1018 | AB36: =IF(ROWS($AA$3:AA36)>(ROWS($AA$3:$AA$228)-COUNTBLANK($AA$3:$AA$228)),"",INDEX($AA$3:$AA$228,SMALL(IF($AA$3:$AA$228<>"",ROW($AA$3:$AA$228)-2),ROWS($AA$3:AA36)))) ->  | AW36: 105 | AX36: 0 | AY36: 0 | AZ36: =IF(Wycena!$C$15=78,Mapping!AX36,AY36) -> 0 | BC36: 213 | BD36: 0 | BE36: 0 | BF36: =IF(Wycena!$C$15=78,Mapping!BD36,BE36) -> 0 | CN36: Przy skrzydle, naświetlu i ościeżnicy od zewnątrz | CO36: =IF(Wycena!$C$14="Przylgowe",8,IF(Wycena!$C$14="Bezprzylgowe",6,0)) -> 8 | CP36: =IF(Wycena!$C$14="Przylgowe",8,IF(Wycena!$C$14="Bezprzylgowe",6,0)) -> 8 | CQ36: =IF(Wycena!$C$14="Przylgowe",8,IF(Wycena!$C$14="Bezprzylgowe",6,0)) -> 8 | CR36: =IF(Wycena!$C$14="Przylgowe",8,IF(Wycena!$C$14="Bezprzylgowe",6,0)) -> 8 | GH36: Zestaw elektronik z zamkiem ryglowym | GI36: 2 | GK36: =$GK$3:INDEX($GK$3:$GK$33,(ROWS($GI$3:$GI$33)-COUNTBLANK($GI$3:$GI$33))) ->  | GL36: Klamko - pochwyt Dublin Warszawa | GM36: Stare złoto | HA36: Zestaw szklana klawiatura Bluetooth | HB36: -
A37: DB 62a | B37: 20 | C37: 20 | D37: 20 | E37: 20 | F37: 34 | G37: 34 | H37: 36 | I37: 36 | Y37: RAL 1019 | Z37: 500 | AA37: RAL 1019 | AB37: =IF(ROWS($AA$3:AA37)>(ROWS($AA$3:$AA$228)-COUNTBLANK($AA$3:$AA$228)),"",INDEX($AA$3:$AA$228,SMALL(IF($AA$3:$AA$228<>"",ROW($AA$3:$AA$228)-2),ROWS($AA$3:AA37)))) ->  | AW37: 106 | AX37: 0 | AY37: 0 | AZ37: =IF(Wycena!$C$15=78,Mapping!AX37,AY37) -> 0 | BC37: 214 | BD37: 0 | BE37: 0 | BF37: =IF(Wycena!$C$15=78,Mapping!BD37,BE37) -> 0 | CN37: Przy skrzydle, naświetlu i ościeżnicy z dwóch stron | CP37: =IF(Wycena!$C$14="Przylgowe",8,IF(Wycena!$C$14="Bezprzylgowe",6,0)) -> 8 | CQ37: =IF(Wycena!$C$14="Przylgowe",8,IF(Wycena!$C$14="Bezprzylgowe",6,0)) -> 8 | CR37: =IF(Wycena!$C$14="Przylgowe",8,IF(Wycena!$C$14="Bezprzylgowe",6,0)) -> 8 | GH37: Zestaw elektronik z zamkiem automatycznym | GI37: 3 | GL37: Klamko - pochwyt Dublin Warszawa | GM37: Czarny | HA37: Zestaw szklana klawiatura Bluetooth | HB37: Tak
A38: DB 63 | B38: 20 | C38: 20 | D38: 20 | E38: 20 | F38: 34 | G38: 34 | H38: 36 | I38: 36 | Y38: RAL 1020 | Z38: 500 | AA38: RAL 1020 | AB38: =IF(ROWS($AA$3:AA38)>(ROWS($AA$3:$AA$228)-COUNTBLANK($AA$3:$AA$228)),"",INDEX($AA$3:$AA$228,SMALL(IF($AA$3:$AA$228<>"",ROW($AA$3:$AA$228)-2),ROWS($AA$3:AA38)))) ->  | AW38: 107 | AX38: 0 | AY38: 0 | AZ38: =IF(Wycena!$C$15=78,Mapping!AX38,AY38) -> 0 | BC38: 215 | BD38: 0 | BE38: 0 | BF38: =IF(Wycena!$C$15=78,Mapping!BD38,BE38) -> 0 | GH38: Zestaw z pochwytem na styl amerykański | GI38: 4 | GL38: Klamko - pochwyt Hoppe Bezpieczna | GM38: Satyna
A39: DB 63a | B39: 20 | C39: 20 | D39: 20 | E39: 20 | F39: 34 | G39: 34 | H39: 36 | I39: 36 | Y39: RAL 1021 | Z39: 500 | AA39: RAL 1021 | AB39: =IF(ROWS($AA$3:AA39)>(ROWS($AA$3:$AA$228)-COUNTBLANK($AA$3:$AA$228)),"",INDEX($AA$3:$AA$228,SMALL(IF($AA$3:$AA$228<>"",ROW($AA$3:$AA$228)-2),ROWS($AA$3:AA39)))) ->  | AW39: 108 | AX39: 0 | AY39: 0 | AZ39: =IF(Wycena!$C$15=78,Mapping!AX39,AY39) -> 0 | BC39: 216 | BD39: 0 | BE39: 0 | BF39: =IF(Wycena!$C$15=78,Mapping!BD39,BE39) -> 0 | CN39: =VLOOKUP(Wycena!C25,Mapping!$CN$40:$CR$49,IF(AND(Wycena!C19="-",Wycena!C20="-"),2,IF(AND(Wycena!C19<>"-",Wycena!C20="-"),3,IF(AND(Wycena!C19="-",Wycena!C20<>"-"),4,5))),0) -> 0 | GH39: Zestaw antywłamaniowy RC2 | GI39: 5 | GL39: Klamko - pochwyt Hoppe Bezpieczna | GM39: Patyna
A40: DB 65 | B40: 20 | C40: 20 | D40: 20 | E40: 20 | F40: 34 | G40: 34 | H40: 36 | I40: 36 | Y40: RAL 1023 | Z40: 500 | AA40: RAL 1023 | AB40: =IF(ROWS($AA$3:AA40)>(ROWS($AA$3:$AA$228)-COUNTBLANK($AA$3:$AA$228)),"",INDEX($AA$3:$AA$228,SMALL(IF($AA$3:$AA$228<>"",ROW($AA$3:$AA$228)-2),ROWS($AA$3:AA40)))) ->  | AW40: 109 | AX40: 0 | AY40: 0 | AZ40: =IF(Wycena!$C$15=78,Mapping!AX40,AY40) -> 0 | BC40: 217 | BD40: 0 | BE40: 0 | BF40: =IF(Wycena!$C$15=78,Mapping!BD40,BE40) -> 0 | CN40: Dla dostawki od zawias | CO40: SOLO | CP40: DOSTAWKA OD ZAWIAS | CQ40: DOSTAWKA OD ZAMKA | CR40: 2 DOSTAWKI | GH40: Zestaw czytnik linii papilarnych | GI40: 6 | GL40: Klamko - pochwyt AXA Diva Flex | GM40: Inox
A41: DB 66a | B41: 20 | C41: 20 | D41: 20 | E41: 20 | F41: 34 | G41: 34 | H41: 36 | I41: 36 | Y41: RAL 1024 | Z41: 500 | AA41: RAL 1024 | AB41: =IF(ROWS($AA$3:AA41)>(ROWS($AA$3:$AA$228)-COUNTBLANK($AA$3:$AA$228)),"",INDEX($AA$3:$AA$228,SMALL(IF($AA$3:$AA$228<>"",ROW($AA$3:$AA$228)-2),ROWS($AA$3:AA41)))) ->  | AW41: 110 | AX41: 0 | AY41: 0 | AZ41: =IF(Wycena!$C$15=78,Mapping!AX41,AY41) -> 0 | BC41: 218 | BD41: 0 | BE41: 0 | BF41: =IF(Wycena!$C$15=78,Mapping!BD41,BE41) -> 0 | CN41: - | CO41: 0 | CP41: 0 | CQ41: 0 | CR41: 0 | GH41: Zestaw czytnik RFID | GI41: 6 | GL41: Klamko - pochwyt AXA Diva Flex | GM41: Tytan
A42: DB 67 | B42: 20 | C42: 20 | D42: 20 | E42: 20 | F42: 34 | G42: 34 | H42: 36 | I42: 36 | Y42: RAL 1026 | Z42: 500 | AA42: RAL 1026 | AB42: =IF(ROWS($AA$3:AA42)>(ROWS($AA$3:$AA$228)-COUNTBLANK($AA$3:$AA$228)),"",INDEX($AA$3:$AA$228,SMALL(IF($AA$3:$AA$228<>"",ROW($AA$3:$AA$228)-2),ROWS($AA$3:AA42)))) ->  | AW42: 111 | AX42: 0 | AY42: 0 | AZ42: =IF(Wycena!$C$15=78,Mapping!AX42,AY42) -> 0 | BC42: 219 | BD42: 0 | BE42: 0 | BF42: =IF(Wycena!$C$15=78,Mapping!BD42,BE42) -> 0 | CN42: Przy skrzydle od zewnątrz | CP42: =-IF(Wycena!$C$14="Przylgowe",8,IF(Wycena!$C$14="Bezprzylgowe",6,0)) -> -8 | CQ42: 0 | CR42: =-IF(Wycena!$C$14="Przylgowe",8,IF(Wycena!$C$14="Bezprzylgowe",6,0)) -> -8 | GH42: Zestaw szklana klawiatura Bluetooth | GI42: 6 | GL42: Klamko - pochwyt AXA Diva Flex | GM42: Stare złoto
A43: DB 68a | B43: 20 | C43: 20 | D43: 20 | E43: 20 | F43: 34 | G43: 34 | H43: 36 | I43: 36 | Y43: RAL 1027 | Z43: 500 | AA43: RAL 1027 | AB43: =IF(ROWS($AA$3:AA43)>(ROWS($AA$3:$AA$228)-COUNTBLANK($AA$3:$AA$228)),"",INDEX($AA$3:$AA$228,SMALL(IF($AA$3:$AA$228<>"",ROW($AA$3:$AA$228)-2),ROWS($AA$3:AA43)))) ->  | AW43: 112 | AX43: 0 | AY43: 0 | AZ43: =IF(Wycena!$C$15=78,Mapping!AX43,AY43) -> 0 | BC43: 220 | BD43: 0 | BE43: 0 | BF43: =IF(Wycena!$C$15=78,Mapping!BD43,BE43) -> 0 | CN43: Przy skrzydle z dwóch stron | CP43: =-IF(Wycena!$C$14="Przylgowe",8,IF(Wycena!$C$14="Bezprzylgowe",6,0)) -> -8 | CQ43: 0 | CR43: =-IF(Wycena!$C$14="Przylgowe",8,IF(Wycena!$C$14="Bezprzylgowe",6,0)) -> -8 | GL43: Klamko - pochwyt AXA Haga Plus | GM43: Inox
A44: DB 69 | B44: 20 | C44: 20 | D44: 20 | E44: 20 | F44: 34 | G44: 34 | H44: 36 | I44: 36 | Y44: RAL 1028 | Z44: 500 | AA44: RAL 1028 | AB44: =IF(ROWS($AA$3:AA44)>(ROWS($AA$3:$AA$228)-COUNTBLANK($AA$3:$AA$228)),"",INDEX($AA$3:$AA$228,SMALL(IF($AA$3:$AA$228<>"",ROW($AA$3:$AA$228)-2),ROWS($AA$3:AA44)))) ->  | AW44: 113 | AX44: 0 | AY44: 0 | AZ44: =IF(Wycena!$C$15=78,Mapping!AX44,AY44) -> 0 | BC44: 221 | BD44: 0 | BE44: 0 | BF44: =IF(Wycena!$C$15=78,Mapping!BD44,BE44) -> 0 | CN44: Przy skrzydle i ościeżnicy od zewnątrz | CP44: =-IF(Wycena!$C$14="Przylgowe",8,IF(Wycena!$C$14="Bezprzylgowe",6,0)) -> -8 | CQ44: 0 | CR44: =-IF(Wycena!$C$14="Przylgowe",8,IF(Wycena!$C$14="Bezprzylgowe",6,0)) -> -8 | GL44: Klamko - pochwyt AXA Haga Plus | GM44: Tytan
A45: DB 70 | B45: 20 | C45: 20 | D45: 20 | E45: 20 | F45: 34 | G45: 34 | H45: 36 | I45: 36 | Y45: RAL 1032 | Z45: 500 | AA45: RAL 1032 | AB45: =IF(ROWS($AA$3:AA45)>(ROWS($AA$3:$AA$228)-COUNTBLANK($AA$3:$AA$228)),"",INDEX($AA$3:$AA$228,SMALL(IF($AA$3:$AA$228<>"",ROW($AA$3:$AA$228)-2),ROWS($AA$3:AA45)))) ->  | AW45: 114 | AX45: 0 | AY45: 0 | AZ45: =IF(Wycena!$C$15=78,Mapping!AX45,AY45) -> 0 | BC45: 222 | BD45: 0 | BE45: 0 | BF45: =IF(Wycena!$C$15=78,Mapping!BD45,BE45) -> 0 | CN45: Przy skrzydle i ościeżnicy z dwóch stron | CP45: =-IF(Wycena!$C$14="Przylgowe",8,IF(Wycena!$C$14="Bezprzylgowe",6,0)) -> -8 | CQ45: 0 | CR45: =-IF(Wycena!$C$14="Przylgowe",8,IF(Wycena!$C$14="Bezprzylgowe",6,0)) -> -8 | GL45: Klamko - pochwyt AXA Haga Plus | GM45: Stare złoto
A46: DB 71a | B46: 20 | C46: 20 | D46: 20 | E46: 20 | F46: 34 | G46: 34 | H46: 36 | I46: 36 | Y46: RAL 1033 | Z46: 500 | AA46: RAL 1033 | AB46: =IF(ROWS($AA$3:AA46)>(ROWS($AA$3:$AA$228)-COUNTBLANK($AA$3:$AA$228)),"",INDEX($AA$3:$AA$228,SMALL(IF($AA$3:$AA$228<>"",ROW($AA$3:$AA$228)-2),ROWS($AA$3:AA46)))) ->  | AW46: 115 | AX46: 0 | AY46: 0 | AZ46: =IF(Wycena!$C$15=78,Mapping!AX46,AY46) -> 0 | BC46: 223 | BD46: 0 | BE46: 0 | BF46: =IF(Wycena!$C$15=78,Mapping!BD46,BE46) -> 0 | CN46: Przy skrzydle i naświetlu od zewnątrz | CP46: =-IF(Wycena!$C$14="Przylgowe",8,IF(Wycena!$C$14="Bezprzylgowe",6,0)) -> -8 | CQ46: 0 | CR46: =-IF(Wycena!$C$14="Przylgowe",8,IF(Wycena!$C$14="Bezprzylgowe",6,0)) -> -8 | GL46: Klamko - pochwyt AXA Haga Plus | GM46: Czarny
A47: DB 72a | B47: 20 | C47: 20 | D47: 20 | E47: 20 | F47: 34 | G47: 34 | H47: 36 | I47: 36 | Y47: RAL 1034 | Z47: 500 | AA47: RAL 1034 | AB47: =IF(ROWS($AA$3:AA47)>(ROWS($AA$3:$AA$228)-COUNTBLANK($AA$3:$AA$228)),"",INDEX($AA$3:$AA$228,SMALL(IF($AA$3:$AA$228<>"",ROW($AA$3:$AA$228)-2),ROWS($AA$3:AA47)))) ->  | AW47: 116 | AX47: 0 | AY47: 0 | AZ47: =IF(Wycena!$C$15=78,Mapping!AX47,AY47) -> 0 | BC47: 224 | BD47: 0 | BE47: 0 | BF47: =IF(Wycena!$C$15=78,Mapping!BD47,BE47) -> 0 | CN47: Przy skrzydle i naświetlu z dwóch stron | CP47: =-IF(Wycena!$C$14="Przylgowe",8,IF(Wycena!$C$14="Bezprzylgowe",6,0)) -> -8 | CQ47: 0 | CR47: =-IF(Wycena!$C$14="Przylgowe",8,IF(Wycena!$C$14="Bezprzylgowe",6,0)) -> -8 | GL47: Klamko - pochwyt AXA Prestige Flex | GM47: Inox
A48: DB 73 | B48: 20 | C48: 20 | D48: 20 | E48: 20 | F48: 34 | G48: 34 | H48: 36 | I48: 36 | Y48: RAL 1035 | Z48: 500 | AA48: RAL 1035 | AB48: =IF(ROWS($AA$3:AA48)>(ROWS($AA$3:$AA$228)-COUNTBLANK($AA$3:$AA$228)),"",INDEX($AA$3:$AA$228,SMALL(IF($AA$3:$AA$228<>"",ROW($AA$3:$AA$228)-2),ROWS($AA$3:AA48)))) ->  | AW48: 117 | AX48: 0 | AY48: 0 | AZ48: =IF(Wycena!$C$15=78,Mapping!AX48,AY48) -> 0 | BC48: 225 | BD48: 0 | BE48: 0 | BF48: =IF(Wycena!$C$15=78,Mapping!BD48,BE48) -> 0 | CN48: Przy skrzydle, naświetlu i ościeżnicy od zewnątrz | CP48: =-IF(Wycena!$C$14="Przylgowe",8,IF(Wycena!$C$14="Bezprzylgowe",6,0)) -> -8 | CQ48: 0 | CR48: =-IF(Wycena!$C$14="Przylgowe",8,IF(Wycena!$C$14="Bezprzylgowe",6,0)) -> -8 | GL48: Klamko - pochwyt AXA Prestige Flex | GM48: Tytan
A49: DB 74 | B49: 20 | C49: 20 | D49: 20 | E49: 20 | F49: 34 | G49: 34 | H49: 36 | I49: 36 | Y49: RAL 1036 | Z49: 500 | AA49: RAL 1036 | AB49: =IF(ROWS($AA$3:AA49)>(ROWS($AA$3:$AA$228)-COUNTBLANK($AA$3:$AA$228)),"",INDEX($AA$3:$AA$228,SMALL(IF($AA$3:$AA$228<>"",ROW($AA$3:$AA$228)-2),ROWS($AA$3:AA49)))) ->  | AW49: 118 | AX49: 0 | AY49: 0 | AZ49: =IF(Wycena!$C$15=78,Mapping!AX49,AY49) -> 0 | BC49: 226 | BD49: 0 | BE49: 0 | BF49: =IF(Wycena!$C$15=78,Mapping!BD49,BE49) -> 0 | CN49: Przy skrzydle, naświetlu i ościeżnicy z dwóch stron | CP49: =-IF(Wycena!$C$14="Przylgowe",8,IF(Wycena!$C$14="Bezprzylgowe",6,0)) -> -8 | CQ49: 0 | CR49: =-IF(Wycena!$C$14="Przylgowe",8,IF(Wycena!$C$14="Bezprzylgowe",6,0)) -> -8 | GL49: Klamko - pochwyt AXA Prestige Flex | GM49: Stare złoto
A50: DB 77 | B50: 20 | C50: 20 | D50: 20 | E50: 20 | F50: 34 | G50: 34 | H50: 36 | I50: 36 | Y50: RAL 1037 | Z50: 500 | AA50: RAL 1037 | AB50: =IF(ROWS($AA$3:AA50)>(ROWS($AA$3:$AA$228)-COUNTBLANK($AA$3:$AA$228)),"",INDEX($AA$3:$AA$228,SMALL(IF($AA$3:$AA$228<>"",ROW($AA$3:$AA$228)-2),ROWS($AA$3:AA50)))) ->  | AW50: 119 | AX50: 0 | AY50: 0 | AZ50: =IF(Wycena!$C$15=78,Mapping!AX50,AY50) -> 0 | BC50: 227 | BD50: 0 | BE50: 0 | BF50: =IF(Wycena!$C$15=78,Mapping!BD50,BE50) -> 0 | GL50: Pochwyt Palermo w zestawie | GM50: Inox błysk
A51: DB 78 | B51: 20 | C51: 20 | D51: 20 | E51: 20 | F51: 34 | G51: 34 | H51: 36 | I51: 36 | Y51: RAL 2000 | Z51: 500 | AA51: RAL 2000 | AB51: =IF(ROWS($AA$3:AA51)>(ROWS($AA$3:$AA$228)-COUNTBLANK($AA$3:$AA$228)),"",INDEX($AA$3:$AA$228,SMALL(IF($AA$3:$AA$228<>"",ROW($AA$3:$AA$228)-2),ROWS($AA$3:AA51)))) ->  | AW51: 120 | AX51: 0 | AY51: 0 | AZ51: =IF(Wycena!$C$15=78,Mapping!AX51,AY51) -> 0 | BC51: 228 | BD51: 0 | BE51: 0 | BF51: =IF(Wycena!$C$15=78,Mapping!BD51,BE51) -> 0 | CN51: =VLOOKUP(Wycena!C25,Mapping!$CN$52:$CR$61,IF(AND(Wycena!C19="-",Wycena!C20="-"),2,IF(AND(Wycena!C19<>"-",Wycena!C20="-"),3,IF(AND(Wycena!C19="-",Wycena!C20<>"-"),4,5))),0) -> 0 | GL51: Pochwyt Palermo w zestawie | GM51: Złoty błysk
A52: DB 79 | B52: 20 | C52: 20 | D52: 20 | E52: 20 | F52: 34 | G52: 34 | H52: 36 | I52: 36 | Y52: RAL 2001 | Z52: 500 | AA52: RAL 2001 | AB52: =IF(ROWS($AA$3:AA52)>(ROWS($AA$3:$AA$228)-COUNTBLANK($AA$3:$AA$228)),"",INDEX($AA$3:$AA$228,SMALL(IF($AA$3:$AA$228<>"",ROW($AA$3:$AA$228)-2),ROWS($AA$3:AA52)))) ->  | AW52: 121 | AX52: 0 | AY52: 0 | AZ52: =IF(Wycena!$C$15=78,Mapping!AX52,AY52) -> 0 | BC52: 229 | BD52: 0 | BE52: 0 | BF52: =IF(Wycena!$C$15=78,Mapping!BD52,BE52) -> 0 | CN52: Dla dostawki od zamka | CO52: SOLO | CP52: DOSTAWKA OD ZAWIAS | CQ52: DOSTAWKA OD ZAMKA | CR52: 2 DOSTAWKI | GL52: Pochwyt Palermo w zestawie | GM52: Stare złoto
A53: DB 80 | B53: 20 | C53: 20 | D53: 20 | E53: 20 | F53: 34 | G53: 34 | H53: 36 | I53: 36 | Y53: RAL 2002 | Z53: 500 | AA53: RAL 2002 | AB53: =IF(ROWS($AA$3:AA53)>(ROWS($AA$3:$AA$228)-COUNTBLANK($AA$3:$AA$228)),"",INDEX($AA$3:$AA$228,SMALL(IF($AA$3:$AA$228<>"",ROW($AA$3:$AA$228)-2),ROWS($AA$3:AA53)))) ->  | AW53: 122 | AX53: 0 | AY53: 0 | AZ53: =IF(Wycena!$C$15=78,Mapping!AX53,AY53) -> 0 | BC53: 230 | BD53: 0 | BE53: 0 | BF53: =IF(Wycena!$C$15=78,Mapping!BD53,BE53) -> 0 | CN53: - | CO53: 0 | CP53: 0 | CQ53: 0 | CR53: 0 | GL53: Pochwyt Palermo w zestawie | GM53: Srebro antyczne
A54: DB 81 | B54: 20 | C54: 20 | D54: 20 | E54: 20 | F54: 34 | G54: 34 | H54: 36 | I54: 36 | Y54: RAL 2003 | Z54: 500 | AA54: RAL 2003 | AB54: =IF(ROWS($AA$3:AA54)>(ROWS($AA$3:$AA$228)-COUNTBLANK($AA$3:$AA$228)),"",INDEX($AA$3:$AA$228,SMALL(IF($AA$3:$AA$228<>"",ROW($AA$3:$AA$228)-2),ROWS($AA$3:AA54)))) ->  | AW54: 123 | AX54: 0 | AY54: 0 | AZ54: =IF(Wycena!$C$15=78,Mapping!AX54,AY54) -> 0 | BC54: 231 | BD54: 0 | BE54: 0 | BF54: =IF(Wycena!$C$15=78,Mapping!BD54,BE54) -> 0 | CN54: Przy skrzydle od zewnątrz | CP54: 0 | CQ54: =-IF(Wycena!$C$14="Przylgowe",8,IF(Wycena!$C$14="Bezprzylgowe",6,0)) -> -8 | CR54: =-IF(Wycena!$C$14="Przylgowe",8,IF(Wycena!$C$14="Bezprzylgowe",6,0)) -> -8 | GL54: Pochwyt Eva | GM54: Inox
A55: DB 83 | B55: 20 | C55: 20 | D55: 20 | E55: 20 | F55: 34 | G55: 34 | H55: 36 | I55: 36 | Y55: RAL 2004 | Z55: 500 | AA55: RAL 2004 | AB55: =IF(ROWS($AA$3:AA55)>(ROWS($AA$3:$AA$228)-COUNTBLANK($AA$3:$AA$228)),"",INDEX($AA$3:$AA$228,SMALL(IF($AA$3:$AA$228<>"",ROW($AA$3:$AA$228)-2),ROWS($AA$3:AA55)))) ->  | AW55: 124 | AX55: 0 | AY55: 0 | AZ55: =IF(Wycena!$C$15=78,Mapping!AX55,AY55) -> 0 | BC55: 232 | BD55: 0 | BE55: 0 | BF55: =IF(Wycena!$C$15=78,Mapping!BD55,BE55) -> 0 | CN55: Przy skrzydle z dwóch stron | CP55: 0 | CQ55: =-IF(Wycena!$C$14="Przylgowe",8,IF(Wycena!$C$14="Bezprzylgowe",6,0)) -> -8 | CR55: =-IF(Wycena!$C$14="Przylgowe",8,IF(Wycena!$C$14="Bezprzylgowe",6,0)) -> -8 | GL55: Pochwyt Eva | GM55: Stare złoto
A56: DB 85 | B56: 20 | C56: 20 | D56: 34 | E56: 34 | F56: 44 | G56: 44 | H56: 46 | I56: 46 | Y56: RAL 2005 | Z56: 500 | AA56: RAL 2005 | AB56: =IF(ROWS($AA$3:AA56)>(ROWS($AA$3:$AA$228)-COUNTBLANK($AA$3:$AA$228)),"",INDEX($AA$3:$AA$228,SMALL(IF($AA$3:$AA$228<>"",ROW($AA$3:$AA$228)-2),ROWS($AA$3:AA56)))) ->  | AW56: 125 | AX56: 0 | AY56: 0 | AZ56: =IF(Wycena!$C$15=78,Mapping!AX56,AY56) -> 0 | BC56: 233 | BD56: 0 | BE56: 0 | BF56: =IF(Wycena!$C$15=78,Mapping!BD56,BE56) -> 0 | CN56: Przy skrzydle i ościeżnicy od zewnątrz | CP56: 0 | CQ56: =-IF(Wycena!$C$14="Przylgowe",8,IF(Wycena!$C$14="Bezprzylgowe",6,0)) -> -8 | CR56: =-IF(Wycena!$C$14="Przylgowe",8,IF(Wycena!$C$14="Bezprzylgowe",6,0)) -> -8 | GL56: Pochwyt Eva | GM56: Brąz antyczny
A57: DB 87a | B57: 20 | C57: 20 | D57: 34 | E57: 34 | F57: 44 | G57: 44 | H57: =F57+2 -> 46 | I57: =G57+2 -> 46 | Y57: RAL 2007 | Z57: 500 | AA57: RAL 2007 | AB57: =IF(ROWS($AA$3:AA57)>(ROWS($AA$3:$AA$228)-COUNTBLANK($AA$3:$AA$228)),"",INDEX($AA$3:$AA$228,SMALL(IF($AA$3:$AA$228<>"",ROW($AA$3:$AA$228)-2),ROWS($AA$3:AA57)))) ->  | AW57: 126 | AX57: 0 | AY57: 0 | AZ57: =IF(Wycena!$C$15=78,Mapping!AX57,AY57) -> 0 | BC57: 234 | BD57: 0 | BE57: 0 | BF57: =IF(Wycena!$C$15=78,Mapping!BD57,BE57) -> 0 | CN57: Przy skrzydle i ościeżnicy z dwóch stron | CP57: 0 | CQ57: =-IF(Wycena!$C$14="Przylgowe",8,IF(Wycena!$C$14="Bezprzylgowe",6,0)) -> -8 | CR57: =-IF(Wycena!$C$14="Przylgowe",8,IF(Wycena!$C$14="Bezprzylgowe",6,0)) -> -8 | GL57: Pochwyt Eva | GM57: Czarny mat
A58: DB 94 | B58: 20 | C58: 20 | D58: 34 | E58: 34 | F58: 44 | G58: 44 | H58: 46 | I58: 46 | Y58: RAL 2008 | Z58: 500 | AA58: RAL 2008 | AB58: =IF(ROWS($AA$3:AA58)>(ROWS($AA$3:$AA$228)-COUNTBLANK($AA$3:$AA$228)),"",INDEX($AA$3:$AA$228,SMALL(IF($AA$3:$AA$228<>"",ROW($AA$3:$AA$228)-2),ROWS($AA$3:AA58)))) ->  | AW58: 127 | AX58: 0 | AY58: 0 | AZ58: =IF(Wycena!$C$15=78,Mapping!AX58,AY58) -> 0 | BC58: 235 | BD58: 0 | BE58: 0 | BF58: =IF(Wycena!$C$15=78,Mapping!BD58,BE58) -> 0 | CN58: Przy skrzydle i naświetlu od zewnątrz | CP58: 0 | CQ58: =-IF(Wycena!$C$14="Przylgowe",8,IF(Wycena!$C$14="Bezprzylgowe",6,0)) -> -8 | CR58: =-IF(Wycena!$C$14="Przylgowe",8,IF(Wycena!$C$14="Bezprzylgowe",6,0)) -> -8 | GL58: Pochwyt Maddalena | GM58: Inox
A59: DB 106 | B59: 20 | C59: 20 | D59: 34 | E59: 34 | F59: 44 | G59: 44 | H59: 46 | I59: 46 | Y59: RAL 2009 | Z59: 500 | AA59: RAL 2009 | AB59: =IF(ROWS($AA$3:AA59)>(ROWS($AA$3:$AA$228)-COUNTBLANK($AA$3:$AA$228)),"",INDEX($AA$3:$AA$228,SMALL(IF($AA$3:$AA$228<>"",ROW($AA$3:$AA$228)-2),ROWS($AA$3:AA59)))) ->  | AW59: 128 | AX59: 0 | AY59: 0 | AZ59: =IF(Wycena!$C$15=78,Mapping!AX59,AY59) -> 0 | BC59: 236 | BD59: 0 | BE59: 0 | BF59: =IF(Wycena!$C$15=78,Mapping!BD59,BE59) -> 0 | CN59: Przy skrzydle i naświetlu z dwóch stron | CP59: 0 | CQ59: =-IF(Wycena!$C$14="Przylgowe",8,IF(Wycena!$C$14="Bezprzylgowe",6,0)) -> -8 | CR59: =-IF(Wycena!$C$14="Przylgowe",8,IF(Wycena!$C$14="Bezprzylgowe",6,0)) -> -8 | GL59: Pochwyt Maddalena | GM59: Stare złoto
A60: DB 106a | B60: 20 | C60: 20 | D60: 34 | E60: 34 | F60: 44 | G60: 44 | H60: 46 | I60: 46 | Y60: RAL 2010 | Z60: 500 | AA60: RAL 2010 | AB60: =IF(ROWS($AA$3:AA60)>(ROWS($AA$3:$AA$228)-COUNTBLANK($AA$3:$AA$228)),"",INDEX($AA$3:$AA$228,SMALL(IF($AA$3:$AA$228<>"",ROW($AA$3:$AA$228)-2),ROWS($AA$3:AA60)))) ->  | AW60: 129 | AX60: 0 | AY60: 0 | AZ60: =IF(Wycena!$C$15=78,Mapping!AX60,AY60) -> 0 | BC60: 237 | BD60: 0 | BE60: 0 | BF60: =IF(Wycena!$C$15=78,Mapping!BD60,BE60) -> 0 | CN60: Przy skrzydle, naświetlu i ościeżnicy od zewnątrz | CP60: 0 | CQ60: =-IF(Wycena!$C$14="Przylgowe",8,IF(Wycena!$C$14="Bezprzylgowe",6,0)) -> -8 | CR60: =-IF(Wycena!$C$14="Przylgowe",8,IF(Wycena!$C$14="Bezprzylgowe",6,0)) -> -8 | GL60: Pochwyt Maddalena | GM60: Brąz antyczny
A61: DB 107 | B61: 20 | C61: 20 | D61: 34 | E61: 34 | F61: 44 | G61: 44 | H61: 46 | I61: 46 | Y61: RAL 2011 | Z61: 500 | AA61: RAL 2011 | AB61: =IF(ROWS($AA$3:AA61)>(ROWS($AA$3:$AA$228)-COUNTBLANK($AA$3:$AA$228)),"",INDEX($AA$3:$AA$228,SMALL(IF($AA$3:$AA$228<>"",ROW($AA$3:$AA$228)-2),ROWS($AA$3:AA61)))) ->  | AW61: 130 | AX61: 0 | AY61: 0 | AZ61: =IF(Wycena!$C$15=78,Mapping!AX61,AY61) -> 0 | BC61: 238 | BD61: 0 | BE61: 0 | BF61: =IF(Wycena!$C$15=78,Mapping!BD61,BE61) -> 0 | CN61: Przy skrzydle, naświetlu i ościeżnicy z dwóch stron | CP61: 0 | CQ61: =-IF(Wycena!$C$14="Przylgowe",8,IF(Wycena!$C$14="Bezprzylgowe",6,0)) -> -8 | CR61: =-IF(Wycena!$C$14="Przylgowe",8,IF(Wycena!$C$14="Bezprzylgowe",6,0)) -> -8 | GL61: Pochwyt Maddalena | GM61: Czarny mat
A62: DB 108 | B62: 20 | C62: 20 | D62: 34 | E62: 34 | F62: 44 | G62: 44 | H62: 46 | I62: 46 | Y62: RAL 2012 | Z62: 500 | AA62: RAL 2012 | AB62: =IF(ROWS($AA$3:AA62)>(ROWS($AA$3:$AA$228)-COUNTBLANK($AA$3:$AA$228)),"",INDEX($AA$3:$AA$228,SMALL(IF($AA$3:$AA$228<>"",ROW($AA$3:$AA$228)-2),ROWS($AA$3:AA62)))) ->  | AW62: 131 | AX62: 1 | AY62: 0 | AZ62: =IF(Wycena!$C$15=78,Mapping!AX62,AY62) -> 0 | BC62: 239 | BD62: 0 | BE62: 0 | BF62: =IF(Wycena!$C$15=78,Mapping!BD62,BE62) -> 0 | GL62: Antaba Medos Lisbon prostokątna prosta + klamka Warszawa | GM62: Inox
A63: DB 151 | B63: 20 | C63: 20 | D63: 34 | E63: 34 | F63: 44 | G63: 44 | H63: 46 | I63: 46 | Y63: RAL 2013 | Z63: 500 | AA63: RAL 2013 | AB63: =IF(ROWS($AA$3:AA63)>(ROWS($AA$3:$AA$228)-COUNTBLANK($AA$3:$AA$228)),"",INDEX($AA$3:$AA$228,SMALL(IF($AA$3:$AA$228<>"",ROW($AA$3:$AA$228)-2),ROWS($AA$3:AA63)))) ->  | AW63: 132 | AX63: 1 | AY63: 0 | AZ63: =IF(Wycena!$C$15=78,Mapping!AX63,AY63) -> 0 | BC63: 240 | BD63: 0 | BE63: 0 | BF63: =IF(Wycena!$C$15=78,Mapping!BD63,BE63) -> 0 | GL63: Antaba Medos Lisbon prostokątna prosta + klamka Warszawa | GM63: Stare złoto
A64: DB 152 | B64: 20 | C64: 20 | D64: 34 | E64: 34 | F64: 44 | G64: 44 | H64: 46 | I64: 46 | Y64: RAL 3000 | Z64: 500 | AA64: RAL 3000 | AB64: =IF(ROWS($AA$3:AA64)>(ROWS($AA$3:$AA$228)-COUNTBLANK($AA$3:$AA$228)),"",INDEX($AA$3:$AA$228,SMALL(IF($AA$3:$AA$228<>"",ROW($AA$3:$AA$228)-2),ROWS($AA$3:AA64)))) ->  | AW64: 133 | AX64: 1 | AY64: 0 | AZ64: =IF(Wycena!$C$15=78,Mapping!AX64,AY64) -> 0 | BC64: 241 | BD64: 0 | BE64: 0 | BF64: =IF(Wycena!$C$15=78,Mapping!BD64,BE64) -> 0 | GL64: Antaba Medos Lisbon prostokątna prosta + klamka Warszawa | GM64: Czarny
A65: DB 153 | B65: 20 | C65: 20 | D65: 34 | E65: 34 | F65: 44 | G65: 44 | H65: 46 | I65: 46 | Y65: RAL 3001 | Z65: 500 | AA65: RAL 3001 | AB65: =IF(ROWS($AA$3:AA65)>(ROWS($AA$3:$AA$228)-COUNTBLANK($AA$3:$AA$228)),"",INDEX($AA$3:$AA$228,SMALL(IF($AA$3:$AA$228<>"",ROW($AA$3:$AA$228)-2),ROWS($AA$3:AA65)))) ->  | AW65: 134 | AX65: 1 | AY65: 0 | AZ65: =IF(Wycena!$C$15=78,Mapping!AX65,AY65) -> 0 | BC65: 242 | BD65: 0 | BE65: 0 | BF65: =IF(Wycena!$C$15=78,Mapping!BD65,BE65) -> 0 | GL65: Antaba Medos Lisbon prostokątna skośna + klamka Warszawa | GM65: Inox
A66: DB 154 | B66: 20 | C66: 20 | D66: 34 | E66: 34 | F66: 44 | G66: 44 | H66: 46 | I66: 46 | Y66: RAL 3002 | Z66: 500 | AA66: RAL 3002 | AB66: =IF(ROWS($AA$3:AA66)>(ROWS($AA$3:$AA$228)-COUNTBLANK($AA$3:$AA$228)),"",INDEX($AA$3:$AA$228,SMALL(IF($AA$3:$AA$228<>"",ROW($AA$3:$AA$228)-2),ROWS($AA$3:AA66)))) ->  | AW66: 135 | AX66: 1 | AY66: 1 | AZ66: =IF(Wycena!$C$15=78,Mapping!AX66,AY66) -> 1 | BC66: 243 | BD66: 0 | BE66: 0 | BF66: =IF(Wycena!$C$15=78,Mapping!BD66,BE66) -> 0 | GL66: Antaba Medos Lisbon prostokątna skośna + klamka Warszawa | GM66: Stare złoto
A67: DB 157 | B67: 20 | C67: 20 | D67: 34 | E67: 34 | F67: 44 | G67: 44 | H67: 46 | I67: 46 | Y67: RAL 3003 | Z67: 500 | AA67: RAL 3003 | AB67: =IF(ROWS($AA$3:AA67)>(ROWS($AA$3:$AA$228)-COUNTBLANK($AA$3:$AA$228)),"",INDEX($AA$3:$AA$228,SMALL(IF($AA$3:$AA$228<>"",ROW($AA$3:$AA$228)-2),ROWS($AA$3:AA67)))) ->  | AW67: 136 | AX67: 1 | AY67: 1 | AZ67: =IF(Wycena!$C$15=78,Mapping!AX67,AY67) -> 1 | BC67: 244 | BD67: 0 | BE67: 0 | BF67: =IF(Wycena!$C$15=78,Mapping!BD67,BE67) -> 0 | GL67: Antaba Medos Lisbon prostokątna skośna + klamka Warszawa | GM67: Czarny
A68: DB 158 | B68: 20 | C68: 20 | D68: 34 | E68: 34 | F68: 44 | G68: 44 | H68: 46 | I68: 46 | Y68: RAL 3004 | Z68: 500 | AA68: =Y68 -> RAL 3004 | AB68: =IF(ROWS($AA$3:AA68)>(ROWS($AA$3:$AA$228)-COUNTBLANK($AA$3:$AA$228)),"",INDEX($AA$3:$AA$228,SMALL(IF($AA$3:$AA$228<>"",ROW($AA$3:$AA$228)-2),ROWS($AA$3:AA68)))) ->  | AW68: 137 | AX68: 1 | AY68: 1 | AZ68: =IF(Wycena!$C$15=78,Mapping!AX68,AY68) -> 1 | BC68: 245 | BD68: 0 | BE68: 0 | BF68: =IF(Wycena!$C$15=78,Mapping!BD68,BE68) -> 0 | GL68: Antaba Medos Madrid kwadratowa prosta + klamka Warszawa | GM68: Inox
A69: DB 159 | B69: 20 | C69: 20 | D69: 34 | E69: 34 | F69: 44 | G69: 44 | H69: 46 | I69: 46 | Y69: RAL 3005 | Z69: 500 | AA69: RAL 3005 | AB69: =IF(ROWS($AA$3:AA69)>(ROWS($AA$3:$AA$228)-COUNTBLANK($AA$3:$AA$228)),"",INDEX($AA$3:$AA$228,SMALL(IF($AA$3:$AA$228<>"",ROW($AA$3:$AA$228)-2),ROWS($AA$3:AA69)))) ->  | AW69: 138 | AX69: 1 | AY69: 1 | AZ69: =IF(Wycena!$C$15=78,Mapping!AX69,AY69) -> 1 | BC69: 246 | BD69: 0 | BE69: 0 | BF69: =IF(Wycena!$C$15=78,Mapping!BD69,BE69) -> 0 | GL69: Antaba Medos Madrid kwadratowa prosta + klamka Warszawa | GM69: Stare złoto
A70: DB 200 | B70: 20 | C70: 20 | D70: x | E70: x | F70: 20 | G70: 28 | H70: 36 | I70: 36 | Y70: RAL 3007 | Z70: 500 | AA70: RAL 3007 | AB70: =IF(ROWS($AA$3:AA70)>(ROWS($AA$3:$AA$228)-COUNTBLANK($AA$3:$AA$228)),"",INDEX($AA$3:$AA$228,SMALL(IF($AA$3:$AA$228<>"",ROW($AA$3:$AA$228)-2),ROWS($AA$3:AA70)))) ->  | AW70: 139 | AX70: 1 | AY70: 1 | AZ70: =IF(Wycena!$C$15=78,Mapping!AX70,AY70) -> 1 | BC70: 247 | BD70: 0 | BE70: 0 | BF70: =IF(Wycena!$C$15=78,Mapping!BD70,BE70) -> 0 | GL70: Antaba Medos Madrid kwadratowa prosta + klamka Warszawa | GM70: Czarny
A71: DB 200a | B71: 20 | C71: 20 | D71: x | E71: x | F71: 20 | G71: 28 | H71: 36 | I71: 36 | Y71: RAL 3009 | Z71: 500 | AA71: RAL 3009 | AB71: =IF(ROWS($AA$3:AA71)>(ROWS($AA$3:$AA$228)-COUNTBLANK($AA$3:$AA$228)),"",INDEX($AA$3:$AA$228,SMALL(IF($AA$3:$AA$228<>"",ROW($AA$3:$AA$228)-2),ROWS($AA$3:AA71)))) ->  | AW71: 140 | AX71: 1 | AY71: 1 | AZ71: =IF(Wycena!$C$15=78,Mapping!AX71,AY71) -> 1 | BC71: 248 | BD71: 0 | BE71: 0 | BF71: =IF(Wycena!$C$15=78,Mapping!BD71,BE71) -> 0 | GL71: Antaba Medos Madrid kwadratowa skośna + klamka Warszawa | GM71: Inox
A72: DB 202a | B72: 20 | C72: 20 | D72: x | E72: x | F72: 20 | G72: 48 | H72: 48 | I72: 48 | Y72: RAL 3011 | Z72: 500 | AA72: RAL 3011 | AB72: =IF(ROWS($AA$3:AA72)>(ROWS($AA$3:$AA$228)-COUNTBLANK($AA$3:$AA$228)),"",INDEX($AA$3:$AA$228,SMALL(IF($AA$3:$AA$228<>"",ROW($AA$3:$AA$228)-2),ROWS($AA$3:AA72)))) ->  | AW72: 141 | AX72: 1 | AY72: 1 | AZ72: =IF(Wycena!$C$15=78,Mapping!AX72,AY72) -> 1 | BC72: 249 | BD72: 0 | BE72: 0 | BF72: =IF(Wycena!$C$15=78,Mapping!BD72,BE72) -> 0 | GL72: Antaba Medos Madrid kwadratowa skośna + klamka Warszawa | GM72: Stare złoto
A73: DB 203a | B73: 20 | C73: 20 | D73: x | E73: x | F73: 20 | G73: 28 | H73: 36 | I73: 36 | Y73: RAL 3012 | Z73: 500 | AA73: RAL 3012 | AB73: =IF(ROWS($AA$3:AA73)>(ROWS($AA$3:$AA$228)-COUNTBLANK($AA$3:$AA$228)),"",INDEX($AA$3:$AA$228,SMALL(IF($AA$3:$AA$228<>"",ROW($AA$3:$AA$228)-2),ROWS($AA$3:AA73)))) ->  | AW73: 142 | AX73: 1 | AY73: 1 | AZ73: =IF(Wycena!$C$15=78,Mapping!AX73,AY73) -> 1 | BC73: 250 | BD73: 0 | BE73: 0 | BF73: =IF(Wycena!$C$15=78,Mapping!BD73,BE73) -> 0 | GL73: Antaba Medos Madrid kwadratowa skośna + klamka Warszawa | GM73: Czarny
A74: DB 204 | B74: 20 | C74: 20 | D74: x | E74: x | F74: 20 | G74: 48 | H74: 48 | I74: 48 | Y74: RAL 3013 | Z74: 500 | AA74: RAL 3013 | AB74: =IF(ROWS($AA$3:AA74)>(ROWS($AA$3:$AA$228)-COUNTBLANK($AA$3:$AA$228)),"",INDEX($AA$3:$AA$228,SMALL(IF($AA$3:$AA$228<>"",ROW($AA$3:$AA$228)-2),ROWS($AA$3:AA74)))) ->  | AW74: 143 | AX74: 1 | AY74: 1 | AZ74: =IF(Wycena!$C$15=78,Mapping!AX74,AY74) -> 1 | BC74: 251 | BD74: 1 | BE74: 0 | BF74: =IF(Wycena!$C$15=78,Mapping!BD74,BE74) -> 0 | GL74: Antaba Medos Paris okrągła prosta + klamka Warszawa | GM74: Inox
A75: DB 204a | B75: 20 | C75: 20 | D75: x | E75: x | F75: 20 | G75: 48 | H75: 48 | I75: 48 | Y75: RAL 3014 | Z75: 500 | AA75: RAL 3014 | AB75: =IF(ROWS($AA$3:AA75)>(ROWS($AA$3:$AA$228)-COUNTBLANK($AA$3:$AA$228)),"",INDEX($AA$3:$AA$228,SMALL(IF($AA$3:$AA$228<>"",ROW($AA$3:$AA$228)-2),ROWS($AA$3:AA75)))) ->  | AW75: 144 | AX75: 1 | AY75: 1 | AZ75: =IF(Wycena!$C$15=78,Mapping!AX75,AY75) -> 1 | BC75: 252 | BD75: 1 | BE75: 0 | BF75: =IF(Wycena!$C$15=78,Mapping!BD75,BE75) -> 0 | GL75: Antaba Medos Paris okrągła prosta + klamka Warszawa | GM75: Stare złoto
A76: DB 205a | B76: 20 | C76: 20 | D76: x | E76: x | F76: 20 | G76: 28 | H76: 36 | I76: 36 | Y76: RAL 3015 | Z76: 500 | AA76: RAL 3015 | AB76: =IF(ROWS($AA$3:AA76)>(ROWS($AA$3:$AA$228)-COUNTBLANK($AA$3:$AA$228)),"",INDEX($AA$3:$AA$228,SMALL(IF($AA$3:$AA$228<>"",ROW($AA$3:$AA$228)-2),ROWS($AA$3:AA76)))) ->  | AW76: 145 | AX76: 1 | AY76: 1 | AZ76: =IF(Wycena!$C$15=78,Mapping!AX76,AY76) -> 1 | BC76: 253 | BD76: 1 | BE76: 1 | BF76: =IF(Wycena!$C$15=78,Mapping!BD76,BE76) -> 1 | GL76: Antaba Medos Paris okrągła prosta + klamka Warszawa | GM76: Czarny
A77: DB 206a | B77: 20 | C77: 20 | D77: x | E77: x | F77: 20 | G77: 28 | H77: 36 | I77: 36 | Y77: RAL 3016 | Z77: 500 | AA77: RAL 3016 | AB77: =IF(ROWS($AA$3:AA77)>(ROWS($AA$3:$AA$228)-COUNTBLANK($AA$3:$AA$228)),"",INDEX($AA$3:$AA$228,SMALL(IF($AA$3:$AA$228<>"",ROW($AA$3:$AA$228)-2),ROWS($AA$3:AA77)))) ->  | AW77: 146 | AX77: 1 | AY77: 1 | AZ77: =IF(Wycena!$C$15=78,Mapping!AX77,AY77) -> 1 | BC77: 254 | BD77: 1 | BE77: 1 | BF77: =IF(Wycena!$C$15=78,Mapping!BD77,BE77) -> 1 | GL77: Antaba Medos Paris okrągła prosta + klamka Warszawa | GM77: Inox
A78: DB 207 | B78: 20 | C78: 20 | D78: x | E78: x | F78: 20 | G78: 28 | H78: 36 | I78: 36 | Y78: RAL 3017 | Z78: 500 | AA78: RAL 3017 | AB78: =IF(ROWS($AA$3:AA78)>(ROWS($AA$3:$AA$228)-COUNTBLANK($AA$3:$AA$228)),"",INDEX($AA$3:$AA$228,SMALL(IF($AA$3:$AA$228<>"",ROW($AA$3:$AA$228)-2),ROWS($AA$3:AA78)))) ->  | AW78: 147 | AX78: 1 | AY78: 1 | AZ78: =IF(Wycena!$C$15=78,Mapping!AX78,AY78) -> 1 | BC78: 255 | BD78: 1 | BE78: 1 | BF78: =IF(Wycena!$C$15=78,Mapping!BD78,BE78) -> 1 | GL78: Antaba Medos Paris okrągła prosta + klamka Warszawa | GM78: Stare złoto
A79: DB 207a | B79: 20 | C79: 20 | D79: x | E79: x | F79: 20 | G79: 48 | H79: 48 | I79: 48 | Y79: RAL 3018 | Z79: 500 | AA79: RAL 3018 | AB79: =IF(ROWS($AA$3:AA79)>(ROWS($AA$3:$AA$228)-COUNTBLANK($AA$3:$AA$228)),"",INDEX($AA$3:$AA$228,SMALL(IF($AA$3:$AA$228<>"",ROW($AA$3:$AA$228)-2),ROWS($AA$3:AA79)))) ->  | AW79: 148 | AX79: 1 | AY79: 1 | AZ79: =IF(Wycena!$C$15=78,Mapping!AX79,AY79) -> 1 | BC79: 256 | BD79: 1 | BE79: 1 | BF79: =IF(Wycena!$C$15=78,Mapping!BD79,BE79) -> 1 | GL79: Antaba Medos Paris okrągła prosta + klamka Warszawa | GM79: Czarny
A80: DB 208a | B80: 20 | C80: 20 | D80: x | E80: x | F80: 20 | G80: 48 | H80: 48 | I80: 48 | Y80: RAL 3020 | Z80: 500 | AA80: RAL 3020 | AB80: =IF(ROWS($AA$3:AA80)>(ROWS($AA$3:$AA$228)-COUNTBLANK($AA$3:$AA$228)),"",INDEX($AA$3:$AA$228,SMALL(IF($AA$3:$AA$228<>"",ROW($AA$3:$AA$228)-2),ROWS($AA$3:AA80)))) ->  | AW80: 149 | AX80: 1 | AY80: 1 | AZ80: =IF(Wycena!$C$15=78,Mapping!AX80,AY80) -> 1 | BC80: 257 | BD80: 1 | BE80: 1 | BF80: =IF(Wycena!$C$15=78,Mapping!BD80,BE80) -> 1 | GL80: Antaba Medos Paris okrągła skośna + klamka Warszawa | GM80: Inox
A81: DB 209a | B81: 20 | C81: 20 | D81: x | E81: x | F81: 20 | G81: 42 | H81: 42 | I81: 42 | Y81: RAL 3022 | Z81: 500 | AA81: RAL 3022 | AB81: =IF(ROWS($AA$3:AA81)>(ROWS($AA$3:$AA$228)-COUNTBLANK($AA$3:$AA$228)),"",INDEX($AA$3:$AA$228,SMALL(IF($AA$3:$AA$228<>"",ROW($AA$3:$AA$228)-2),ROWS($AA$3:AA81)))) ->  | AW81: 150 | AX81: 1 | AY81: 1 | AZ81: =IF(Wycena!$C$15=78,Mapping!AX81,AY81) -> 1 | BC81: 258 | BD81: 1 | BE81: 1 | BF81: =IF(Wycena!$C$15=78,Mapping!BD81,BE81) -> 1 | GL81: Antaba Medos Paris okrągła skośna + klamka Warszawa | GM81: Stare złoto
A82: DB 210a | B82: 20 | C82: 20 | D82: x | E82: x | F82: 20 | G82: 28 | H82: 36 | I82: 36 | Y82: RAL 3024 | Z82: 500 | AA82: RAL 3024 | AB82: =IF(ROWS($AA$3:AA82)>(ROWS($AA$3:$AA$228)-COUNTBLANK($AA$3:$AA$228)),"",INDEX($AA$3:$AA$228,SMALL(IF($AA$3:$AA$228<>"",ROW($AA$3:$AA$228)-2),ROWS($AA$3:AA82)))) ->  | AW82: 151 | AX82: 1 | AY82: 1 | AZ82: =IF(Wycena!$C$15=78,Mapping!AX82,AY82) -> 1 | BC82: 259 | BD82: 1 | BE82: 1 | BF82: =IF(Wycena!$C$15=78,Mapping!BD82,BE82) -> 1 | GL82: Antaba Medos Paris okrągła skośna + klamka Warszawa | GM82: Czarny
A83: DB 211 | B83: 20 | C83: 20 | D83: x | E83: x | F83: 20 | G83: 50 | H83: 50 | I83: 50 | Y83: RAL 3026 | Z83: 500 | AA83: RAL 3026 | AB83: =IF(ROWS($AA$3:AA83)>(ROWS($AA$3:$AA$228)-COUNTBLANK($AA$3:$AA$228)),"",INDEX($AA$3:$AA$228,SMALL(IF($AA$3:$AA$228<>"",ROW($AA$3:$AA$228)-2),ROWS($AA$3:AA83)))) ->  | AW83: 152 | AX83: 1 | AY83: 1 | AZ83: =IF(Wycena!$C$15=78,Mapping!AX83,AY83) -> 1 | BC83: 260 | BD83: 1 | BE83: 1 | BF83: =IF(Wycena!$C$15=78,Mapping!BD83,BE83) -> 1 | GL83: Antaba łukowa okrągła prosta + klamka Warszawa | GM83: Stal nierdzewna
A84: DB 211a | B84: 20 | C84: 20 | D84: x | E84: x | F84: 20 | G84: 42 | H84: 42 | I84: 42 | Y84: RAL 3027 | Z84: 500 | AA84: RAL 3027 | AB84: =IF(ROWS($AA$3:AA84)>(ROWS($AA$3:$AA$228)-COUNTBLANK($AA$3:$AA$228)),"",INDEX($AA$3:$AA$228,SMALL(IF($AA$3:$AA$228<>"",ROW($AA$3:$AA$228)-2),ROWS($AA$3:AA84)))) ->  | AW84: 153 | AX84: 1 | AY84: 1 | AZ84: =IF(Wycena!$C$15=78,Mapping!AX84,AY84) -> 1 | BC84: 261 | BD84: 1 | BE84: 1 | BF84: =IF(Wycena!$C$15=78,Mapping!BD84,BE84) -> 1 | GL84: Antaba łukowa prostokątna prosta + klamka Warszawa | GM84: Stal nierdzewna
A85: DB 212a | B85: 20 | C85: 20 | D85: x | E85: x | F85: 20 | G85: 28 | H85: 36 | I85: 36 | Y85: RAL 3028 | Z85: 500 | AA85: RAL 3028 | AB85: =IF(ROWS($AA$3:AA85)>(ROWS($AA$3:$AA$228)-COUNTBLANK($AA$3:$AA$228)),"",INDEX($AA$3:$AA$228,SMALL(IF($AA$3:$AA$228<>"",ROW($AA$3:$AA$228)-2),ROWS($AA$3:AA85)))) ->  | AW85: 154 | AX85: 1 | AY85: 1 | AZ85: =IF(Wycena!$C$15=78,Mapping!AX85,AY85) -> 1 | BC85: 262 | BD85: 1 | BE85: 1 | BF85: =IF(Wycena!$C$15=78,Mapping!BD85,BE85) -> 1 | GL85: Antaba AXA Amsterdam prostokątna prosta + klamka Gaja | GM85: Inox
A86: DB 213a | B86: 20 | C86: 20 | D86: x | E86: x | F86: 20 | G86: 42 | H86: 42 | I86: 42 | Y86: RAL 3031 | Z86: 500 | AA86: RAL 3031 | AB86: =IF(ROWS($AA$3:AA86)>(ROWS($AA$3:$AA$228)-COUNTBLANK($AA$3:$AA$228)),"",INDEX($AA$3:$AA$228,SMALL(IF($AA$3:$AA$228<>"",ROW($AA$3:$AA$228)-2),ROWS($AA$3:AA86)))) ->  | AW86: 155 | AX86: 1 | AY86: 1 | AZ86: =IF(Wycena!$C$15=78,Mapping!AX86,AY86) -> 1 | BC86: 263 | BD86: 1 | BE86: 1 | BF86: =IF(Wycena!$C$15=78,Mapping!BD86,BE86) -> 1 | GL86: Antaba AXA Amsterdam prostokątna prosta + klamka Gaja | GM86: Tytan
A87: DB 214 | B87: 20 | C87: 20 | D87: x | E87: x | F87: 20 | G87: 28 | H87: 36 | I87: 36 | Y87: RAL 3032 | Z87: 500 | AA87: RAL 3032 | AB87: =IF(ROWS($AA$3:AA87)>(ROWS($AA$3:$AA$228)-COUNTBLANK($AA$3:$AA$228)),"",INDEX($AA$3:$AA$228,SMALL(IF($AA$3:$AA$228<>"",ROW($AA$3:$AA$228)-2),ROWS($AA$3:AA87)))) ->  | AW87: 156 | AX87: 1 | AY87: 1 | AZ87: =IF(Wycena!$C$15=78,Mapping!AX87,AY87) -> 1 | BC87: 264 | BD87: 1 | BE87: 1 | BF87: =IF(Wycena!$C$15=78,Mapping!BD87,BE87) -> 1 | GL87: Antaba AXA Amsterdam prostokątna prosta + klamka Gaja | GM87: Stare złoto
A88: DB 215 | B88: 20 | C88: 20 | D88: x | E88: x | F88: 20 | G88: 28 | H88: 36 | I88: 36 | Y88: RAL 3033 | Z88: 500 | AA88: RAL 3033 | AB88: =IF(ROWS($AA$3:AA88)>(ROWS($AA$3:$AA$228)-COUNTBLANK($AA$3:$AA$228)),"",INDEX($AA$3:$AA$228,SMALL(IF($AA$3:$AA$228<>"",ROW($AA$3:$AA$228)-2),ROWS($AA$3:AA88)))) ->  | AW88: 157 | AX88: 1 | AY88: 1 | AZ88: =IF(Wycena!$C$15=78,Mapping!AX88,AY88) -> 1 | BC88: 265 | BD88: 1 | BE88: 1 | BF88: =IF(Wycena!$C$15=78,Mapping!BD88,BE88) -> 1 | GL88: Antaba AXA Amsterdam prostokątna prosta + klamka Gaja | GM88: Czarny
A89: DB 216 | B89: 20 | C89: 20 | D89: x | E89: x | F89: 20 | G89: 28 | H89: 36 | I89: 36 | Y89: RAL 4001 | Z89: 500 | AA89: RAL 4001 | AB89: =IF(ROWS($AA$3:AA89)>(ROWS($AA$3:$AA$228)-COUNTBLANK($AA$3:$AA$228)),"",INDEX($AA$3:$AA$228,SMALL(IF($AA$3:$AA$228<>"",ROW($AA$3:$AA$228)-2),ROWS($AA$3:AA89)))) ->  | AW89: 158 | AX89: 1 | AY89: 1 | AZ89: =IF(Wycena!$C$15=78,Mapping!AX89,AY89) -> 1 | BC89: 266 | BD89: 1 | BE89: 1 | BF89: =IF(Wycena!$C$15=78,Mapping!BD89,BE89) -> 1 | GL89: Antaba AXA Amsterdam prostokątna skośna + klamka Gaja | GM89: Inox
A90: DB 217 | B90: 20 | C90: 20 | D90: x | E90: x | F90: 20 | G90: 28 | H90: 36 | I90: 36 | Y90: RAL 4002 | Z90: 500 | AA90: RAL 4002 | AB90: =IF(ROWS($AA$3:AA90)>(ROWS($AA$3:$AA$228)-COUNTBLANK($AA$3:$AA$228)),"",INDEX($AA$3:$AA$228,SMALL(IF($AA$3:$AA$228<>"",ROW($AA$3:$AA$228)-2),ROWS($AA$3:AA90)))) ->  | AW90: 159 | AX90: 1 | AY90: 1 | AZ90: =IF(Wycena!$C$15=78,Mapping!AX90,AY90) -> 1 | BC90: 267 | BD90: 1 | BE90: 1 | BF90: =IF(Wycena!$C$15=78,Mapping!BD90,BE90) -> 1 | GL90: Antaba AXA Amsterdam prostokątna skośna + klamka Gaja | GM90: Tytan
A91: DB 218 | B91: 20 | C91: 20 | D91: x | E91: x | F91: 20 | G91: 28 | H91: 36 | I91: 36 | Y91: RAL 4003 | Z91: 500 | AA91: RAL 4003 | AB91: =IF(ROWS($AA$3:AA91)>(ROWS($AA$3:$AA$228)-COUNTBLANK($AA$3:$AA$228)),"",INDEX($AA$3:$AA$228,SMALL(IF($AA$3:$AA$228<>"",ROW($AA$3:$AA$228)-2),ROWS($AA$3:AA91)))) ->  | AW91: 160 | AX91: 1 | AY91: 1 | AZ91: =IF(Wycena!$C$15=78,Mapping!AX91,AY91) -> 1 | BC91: 268 | BD91: 1 | BE91: 1 | BF91: =IF(Wycena!$C$15=78,Mapping!BD91,BE91) -> 1 | GL91: Antaba AXA Amsterdam prostokątna skośna + klamka Gaja | GM91: Stare złoto
A92: DB 219 | B92: 20 | C92: 20 | D92: x | E92: x | F92: 20 | G92: 28 | H92: 36 | I92: 36 | Y92: RAL 4004 | Z92: 500 | AA92: RAL 4004 | AB92: =IF(ROWS($AA$3:AA92)>(ROWS($AA$3:$AA$228)-COUNTBLANK($AA$3:$AA$228)),"",INDEX($AA$3:$AA$228,SMALL(IF($AA$3:$AA$228<>"",ROW($AA$3:$AA$228)-2),ROWS($AA$3:AA92)))) ->  | AW92: 161 | AX92: 1 | AY92: 1 | AZ92: =IF(Wycena!$C$15=78,Mapping!AX92,AY92) -> 1 | BC92: 269 | BD92: 1 | BE92: 1 | BF92: =IF(Wycena!$C$15=78,Mapping!BD92,BE92) -> 1 | GL92: Antaba AXA Amsterdam prostokątna skośna + klamka Gaja | GM92: Czarny
A93: DB 221 | B93: 20 | C93: 20 | D93: x | E93: x | F93: 20 | G93: 28 | H93: 36 | I93: 36 | Y93: RAL 4005 | Z93: 500 | AA93: RAL 4005 | AB93: =IF(ROWS($AA$3:AA93)>(ROWS($AA$3:$AA$228)-COUNTBLANK($AA$3:$AA$228)),"",INDEX($AA$3:$AA$228,SMALL(IF($AA$3:$AA$228<>"",ROW($AA$3:$AA$228)-2),ROWS($AA$3:AA93)))) ->  | AW93: 162 | AX93: 1 | AY93: 1 | AZ93: =IF(Wycena!$C$15=78,Mapping!AX93,AY93) -> 1 | BC93: 270 | BD93: 1 | BE93: 1 | BF93: =IF(Wycena!$C$15=78,Mapping!BD93,BE93) -> 1 | GL93: Antaba AXA Montreal okrągła prosta + klamka Gaja | GM93: Inox
A94: DB 223 | B94: 20 | C94: 20 | D94: x | E94: x | F94: 20 | G94: 42 | H94: 42 | I94: 42 | Y94: RAL 4006 | Z94: 500 | AA94: RAL 4006 | AB94: =IF(ROWS($AA$3:AA94)>(ROWS($AA$3:$AA$228)-COUNTBLANK($AA$3:$AA$228)),"",INDEX($AA$3:$AA$228,SMALL(IF($AA$3:$AA$228<>"",ROW($AA$3:$AA$228)-2),ROWS($AA$3:AA94)))) ->  | AW94: 163 | AX94: 1 | AY94: 1 | AZ94: =IF(Wycena!$C$15=78,Mapping!AX94,AY94) -> 1 | BC94: 271 | BD94: 1 | BE94: 1 | BF94: =IF(Wycena!$C$15=78,Mapping!BD94,BE94) -> 1 | GL94: Antaba AXA Montreal okrągła prosta + klamka Gaja | GM94: Tytan
A95: DB 224 | B95: 20 | C95: 20 | D95: x | E95: x | F95: 20 | G95: 28 | H95: 36 | I95: 36 | Y95: RAL 4007 | Z95: 500 | AA95: RAL 4007 | AB95: =IF(ROWS($AA$3:AA95)>(ROWS($AA$3:$AA$228)-COUNTBLANK($AA$3:$AA$228)),"",INDEX($AA$3:$AA$228,SMALL(IF($AA$3:$AA$228<>"",ROW($AA$3:$AA$228)-2),ROWS($AA$3:AA95)))) ->  | AW95: 164 | AX95: 1 | AY95: 1 | AZ95: =IF(Wycena!$C$15=78,Mapping!AX95,AY95) -> 1 | BC95: 272 | BD95: 1 | BE95: 1 | BF95: =IF(Wycena!$C$15=78,Mapping!BD95,BE95) -> 1 | GL95: Antaba AXA Montreal okrągła prosta + klamka Gaja | GM95: Stare złoto
A96: DB 225 | B96: 20 | C96: 20 | D96: x | E96: x | F96: 20 | G96: 28 | H96: 36 | I96: 36 | Y96: RAL 4008 | Z96: 500 | AA96: RAL 4008 | AB96: =IF(ROWS($AA$3:AA96)>(ROWS($AA$3:$AA$228)-COUNTBLANK($AA$3:$AA$228)),"",INDEX($AA$3:$AA$228,SMALL(IF($AA$3:$AA$228<>"",ROW($AA$3:$AA$228)-2),ROWS($AA$3:AA96)))) ->  | AW96: 165 | AX96: 1 | AY96: 1 | AZ96: =IF(Wycena!$C$15=78,Mapping!AX96,AY96) -> 1 | BC96: 273 | BD96: 1 | BE96: 1 | BF96: =IF(Wycena!$C$15=78,Mapping!BD96,BE96) -> 1 | GL96: Antaba AXA Montreal okrągła prosta + klamka Gaja | GM96: Czarny
A97: DB 226 | B97: 20 | C97: 20 | D97: x | E97: x | F97: 20 | G97: 28 | H97: 36 | I97: 36 | Y97: RAL 4009 | Z97: 500 | AA97: RAL 4009 | AB97: =IF(ROWS($AA$3:AA97)>(ROWS($AA$3:$AA$228)-COUNTBLANK($AA$3:$AA$228)),"",INDEX($AA$3:$AA$228,SMALL(IF($AA$3:$AA$228<>"",ROW($AA$3:$AA$228)-2),ROWS($AA$3:AA97)))) ->  | AW97: 166 | AX97: 1 | AY97: 1 | AZ97: =IF(Wycena!$C$15=78,Mapping!AX97,AY97) -> 1 | BC97: 274 | BD97: 1 | BE97: 1 | BF97: =IF(Wycena!$C$15=78,Mapping!BD97,BE97) -> 1 | GL97: Antaba AXA Montreal okrągła skośna + klamka Gaja | GM97: Inox
A98: DB 249 | B98: 20 | C98: 20 | D98: x | E98: x | F98: 20 | G98: 28 | H98: 36 | I98: 36 | Y98: RAL 4010 | Z98: 500 | AA98: RAL 4010 | AB98: =IF(ROWS($AA$3:AA98)>(ROWS($AA$3:$AA$228)-COUNTBLANK($AA$3:$AA$228)),"",INDEX($AA$3:$AA$228,SMALL(IF($AA$3:$AA$228<>"",ROW($AA$3:$AA$228)-2),ROWS($AA$3:AA98)))) ->  | AW98: 167 | AX98: 1 | AY98: 1 | AZ98: =IF(Wycena!$C$15=78,Mapping!AX98,AY98) -> 1 | BC98: 275 | BD98: 1 | BE98: 1 | BF98: =IF(Wycena!$C$15=78,Mapping!BD98,BE98) -> 1 | GL98: Antaba AXA Montreal okrągła skośna + klamka Gaja | GM98: Tytan
A99: DB 250 | B99: 20 | C99: 20 | D99: x | E99: x | F99: 20 | G99: 28 | H99: 36 | I99: 36 | Y99: RAL 4011 | Z99: 500 | AA99: RAL 4011 | AB99: =IF(ROWS($AA$3:AA99)>(ROWS($AA$3:$AA$228)-COUNTBLANK($AA$3:$AA$228)),"",INDEX($AA$3:$AA$228,SMALL(IF($AA$3:$AA$228<>"",ROW($AA$3:$AA$228)-2),ROWS($AA$3:AA99)))) ->  | AW99: 168 | AX99: 1 | AY99: 1 | AZ99: =IF(Wycena!$C$15=78,Mapping!AX99,AY99) -> 1 | BC99: 276 | BD99: 1 | BE99: 1 | BF99: =IF(Wycena!$C$15=78,Mapping!BD99,BE99) -> 1 | GL99: Antaba AXA Montreal okrągła skośna + klamka Gaja | GM99: Stare złoto
A100: DB 251 | B100: 20 | C100: 20 | D100: x | E100: x | F100: 20 | G100: 28 | H100: 36 | I100: 36 | Y100: RAL 4012 | Z100: 500 | AA100: RAL 4012 | AB100: =IF(ROWS($AA$3:AA100)>(ROWS($AA$3:$AA$228)-COUNTBLANK($AA$3:$AA$228)),"",INDEX($AA$3:$AA$228,SMALL(IF($AA$3:$AA$228<>"",ROW($AA$3:$AA$228)-2),ROWS($AA$3:AA100)))) ->  | AW100: 169 | AX100: 1 | AY100: 1 | AZ100: =IF(Wycena!$C$15=78,Mapping!AX100,AY100) -> 1 | BC100: 277 | BD100: 1 | BE100: 1 | BF100: =IF(Wycena!$C$15=78,Mapping!BD100,BE100) -> 1 | GL100: Antaba AXA Montreal okrągła skośna + klamka Gaja | GM100: Czarny
A101: DB 252 | B101: 20 | C101: 20 | D101: x | E101: x | F101: 20 | G101: 28 | H101: 36 | I101: 36 | Y101: RAL 5000 | Z101: 500 | AA101: RAL 5000 | AB101: =IF(ROWS($AA$3:AA101)>(ROWS($AA$3:$AA$228)-COUNTBLANK($AA$3:$AA$228)),"",INDEX($AA$3:$AA$228,SMALL(IF($AA$3:$AA$228<>"",ROW($AA$3:$AA$228)-2),ROWS($AA$3:AA101)))) ->  | AW101: 170 | AX101: 1 | AY101: 1 | AZ101: =IF(Wycena!$C$15=78,Mapping!AX101,AY101) -> 1 | BC101: 278 | BD101: 1 | BE101: 1 | BF101: =IF(Wycena!$C$15=78,Mapping!BD101,BE101) -> 1 | GL101: Antaba Vegas prostokątna polerowana + klamka Warszawa | GM101: Inox
A102: DB 253 | B102: 20 | C102: 20 | D102: x | E102: x | F102: 20 | G102: 28 | H102: 36 | I102: 36 | Y102: RAL 5001 | Z102: 500 | AA102: RAL 5001 | AB102: =IF(ROWS($AA$3:AA102)>(ROWS($AA$3:$AA$228)-COUNTBLANK($AA$3:$AA$228)),"",INDEX($AA$3:$AA$228,SMALL(IF($AA$3:$AA$228<>"",ROW($AA$3:$AA$228)-2),ROWS($AA$3:AA102)))) ->  | AW102: 171 | AX102: 1 | AY102: 1 | AZ102: =IF(Wycena!$C$15=78,Mapping!AX102,AY102) -> 1 | BC102: 279 | BD102: 1 | BE102: 1 | BF102: =IF(Wycena!$C$15=78,Mapping!BD102,BE102) -> 1
A103: DB 253a | B103: 20 | C103: 20 | D103: x | E103: x | F103: 20 | G103: 28 | H103: 36 | I103: 36 | Y103: RAL 5002 | Z103: 500 | AA103: RAL 5002 | AB103: =IF(ROWS($AA$3:AA103)>(ROWS($AA$3:$AA$228)-COUNTBLANK($AA$3:$AA$228)),"",INDEX($AA$3:$AA$228,SMALL(IF($AA$3:$AA$228<>"",ROW($AA$3:$AA$228)-2),ROWS($AA$3:AA103)))) ->  | AW103: 172 | AX103: 1 | AY103: 1 | AZ103: =IF(Wycena!$C$15=78,Mapping!AX103,AY103) -> 1 | BC103: 280 | BD103: 1 | BE103: 1 | BF103: =IF(Wycena!$C$15=78,Mapping!BD103,BE103) -> 1
A104: DB 253b | B104: 20 | C104: 20 | D104: x | E104: x | F104: 20 | G104: 28 | H104: 36 | I104: 36 | Y104: RAL 5003 | Z104: 500 | AA104: RAL 5003 | AB104: =IF(ROWS($AA$3:AA104)>(ROWS($AA$3:$AA$228)-COUNTBLANK($AA$3:$AA$228)),"",INDEX($AA$3:$AA$228,SMALL(IF($AA$3:$AA$228<>"",ROW($AA$3:$AA$228)-2),ROWS($AA$3:AA104)))) ->  | AW104: 173 | AX104: 1 | AY104: 1 | AZ104: =IF(Wycena!$C$15=78,Mapping!AX104,AY104) -> 1 | BC104: 281 | BD104: 1 | BE104: 1 | BF104: =IF(Wycena!$C$15=78,Mapping!BD104,BE104) -> 1
A105: DB 265 | B105: 20 | C105: 20 | D105: x | E105: x | F105: 20 | G105: 28 | H105: 36 | I105: 36 | Y105: RAL 5004 | Z105: 500 | AA105: RAL 5004 | AB105: =IF(ROWS($AA$3:AA105)>(ROWS($AA$3:$AA$228)-COUNTBLANK($AA$3:$AA$228)),"",INDEX($AA$3:$AA$228,SMALL(IF($AA$3:$AA$228<>"",ROW($AA$3:$AA$228)-2),ROWS($AA$3:AA105)))) ->  | AW105: 174 | AX105: 1 | AY105: 1 | AZ105: =IF(Wycena!$C$15=78,Mapping!AX105,AY105) -> 1 | BC105: 282 | BD105: 1 | BE105: 1 | BF105: =IF(Wycena!$C$15=78,Mapping!BD105,BE105) -> 1
A106: DB 266 | B106: 20 | C106: 20 | D106: x | E106: x | F106: 20 | G106: 48 | H106: 58 | I106: 58 | Y106: RAL 5005 | Z106: 500 | AA106: RAL 5005 | AB106: =IF(ROWS($AA$3:AA106)>(ROWS($AA$3:$AA$228)-COUNTBLANK($AA$3:$AA$228)),"",INDEX($AA$3:$AA$228,SMALL(IF($AA$3:$AA$228<>"",ROW($AA$3:$AA$228)-2),ROWS($AA$3:AA106)))) ->  | AW106: 175 | AX106: 1 | AY106: 1 | AZ106: =IF(Wycena!$C$15=78,Mapping!AX106,AY106) -> 1 | BC106: 283 | BD106: 1 | BE106: 1 | BF106: =IF(Wycena!$C$15=78,Mapping!BD106,BE106) -> 1
A107: DB 273 | B107: 20 | C107: 20 | D107: x | E107: x | F107: 20 | G107: 28 | H107: 36 | I107: 36 | Y107: RAL 5007 | Z107: 500 | AA107: RAL 5007 | AB107: =IF(ROWS($AA$3:AA107)>(ROWS($AA$3:$AA$228)-COUNTBLANK($AA$3:$AA$228)),"",INDEX($AA$3:$AA$228,SMALL(IF($AA$3:$AA$228<>"",ROW($AA$3:$AA$228)-2),ROWS($AA$3:AA107)))) ->  | AW107: 176 | AX107: 1 | AY107: 1 | AZ107: =IF(Wycena!$C$15=78,Mapping!AX107,AY107) -> 1 | BC107: 284 | BD107: 1 | BE107: 1 | BF107: =IF(Wycena!$C$15=78,Mapping!BD107,BE107) -> 1
A108: DB 274 | B108: 20 | C108: 20 | D108: x | E108: x | F108: 20 | G108: 28 | H108: 36 | I108: 36 | Y108: RAL 5008 | Z108: 500 | AA108: RAL 5008 | AB108: =IF(ROWS($AA$3:AA108)>(ROWS($AA$3:$AA$228)-COUNTBLANK($AA$3:$AA$228)),"",INDEX($AA$3:$AA$228,SMALL(IF($AA$3:$AA$228<>"",ROW($AA$3:$AA$228)-2),ROWS($AA$3:AA108)))) ->  | AW108: 177 | AX108: 1 | AY108: 1 | AZ108: =IF(Wycena!$C$15=78,Mapping!AX108,AY108) -> 1 | BC108: 285 | BD108: 1 | BE108: 1 | BF108: =IF(Wycena!$C$15=78,Mapping!BD108,BE108) -> 1
A109: DB 278 | B109: 20 | C109: 20 | D109: x | E109: x | F109: 20 | G109: 28 | H109: 36 | I109: 36 | Y109: RAL 5009 | Z109: 500 | AA109: RAL 5009 | AB109: =IF(ROWS($AA$3:AA109)>(ROWS($AA$3:$AA$228)-COUNTBLANK($AA$3:$AA$228)),"",INDEX($AA$3:$AA$228,SMALL(IF($AA$3:$AA$228<>"",ROW($AA$3:$AA$228)-2),ROWS($AA$3:AA109)))) ->  | AW109: 178 | AX109: 1 | AY109: 1 | AZ109: =IF(Wycena!$C$15=78,Mapping!AX109,AY109) -> 1 | BC109: 286 | BD109: 1 | BE109: 1 | BF109: =IF(Wycena!$C$15=78,Mapping!BD109,BE109) -> 1
A110: DB 279 | B110: 20 | C110: 20 | D110: x | E110: x | F110: 20 | G110: 28 | H110: 36 | I110: 36 | Y110: RAL 5010 | Z110: 500 | AA110: RAL 5010 | AB110: =IF(ROWS($AA$3:AA110)>(ROWS($AA$3:$AA$228)-COUNTBLANK($AA$3:$AA$228)),"",INDEX($AA$3:$AA$228,SMALL(IF($AA$3:$AA$228<>"",ROW($AA$3:$AA$228)-2),ROWS($AA$3:AA110)))) ->  | AW110: 179 | AX110: 1 | AY110: 1 | AZ110: =IF(Wycena!$C$15=78,Mapping!AX110,AY110) -> 1 | BC110: 287 | BD110: 1 | BE110: 1 | BF110: =IF(Wycena!$C$15=78,Mapping!BD110,BE110) -> 1
A111: DB 279a | B111: 20 | C111: 20 | D111: x | E111: x | F111: 20 | G111: 38 | H111: 46 | I111: 46 | Y111: RAL 5011 | Z111: 500 | AA111: RAL 5011 | AB111: =IF(ROWS($AA$3:AA111)>(ROWS($AA$3:$AA$228)-COUNTBLANK($AA$3:$AA$228)),"",INDEX($AA$3:$AA$228,SMALL(IF($AA$3:$AA$228<>"",ROW($AA$3:$AA$228)-2),ROWS($AA$3:AA111)))) ->  | AW111: 180 | AX111: 1 | AY111: 1 | AZ111: =IF(Wycena!$C$15=78,Mapping!AX111,AY111) -> 1 | BC111: 288 | BD111: 1 | BE111: 1 | BF111: =IF(Wycena!$C$15=78,Mapping!BD111,BE111) -> 1
A112: DB 285 | B112: 20 | C112: 20 | D112: x | E112: x | F112: 20 | G112: 48 | H112: 58 | I112: 58 | Y112: RAL 5012 | Z112: 500 | AA112: RAL 5012 | AB112: =IF(ROWS($AA$3:AA112)>(ROWS($AA$3:$AA$228)-COUNTBLANK($AA$3:$AA$228)),"",INDEX($AA$3:$AA$228,SMALL(IF($AA$3:$AA$228<>"",ROW($AA$3:$AA$228)-2),ROWS($AA$3:AA112)))) ->  | AW112: 181 | AX112: 1 | AY112: 1 | AZ112: =IF(Wycena!$C$15=78,Mapping!AX112,AY112) -> 1 | BC112: 289 | BD112: 1 | BE112: 1 | BF112: =IF(Wycena!$C$15=78,Mapping!BD112,BE112) -> 1
A113: DB 286 | B113: 20 | C113: 20 | D113: x | E113: x | F113: 20 | G113: 28 | H113: 36 | I113: 36 | Y113: RAL 5013 | Z113: 500 | AA113: RAL 5013 | AB113: =IF(ROWS($AA$3:AA113)>(ROWS($AA$3:$AA$228)-COUNTBLANK($AA$3:$AA$228)),"",INDEX($AA$3:$AA$228,SMALL(IF($AA$3:$AA$228<>"",ROW($AA$3:$AA$228)-2),ROWS($AA$3:AA113)))) ->  | AW113: 182 | AX113: 1 | AY113: 1 | AZ113: =IF(Wycena!$C$15=78,Mapping!AX113,AY113) -> 1 | BC113: 290 | BD113: 1 | BE113: 1 | BF113: =IF(Wycena!$C$15=78,Mapping!BD113,BE113) -> 1
A114: DB 289 | B114: 20 | C114: 20 | D114: x | E114: x | F114: 20 | G114: 28 | H114: 36 | I114: 36 | Y114: RAL 5014 | Z114: 500 | AA114: RAL 5014 | AB114: =IF(ROWS($AA$3:AA114)>(ROWS($AA$3:$AA$228)-COUNTBLANK($AA$3:$AA$228)),"",INDEX($AA$3:$AA$228,SMALL(IF($AA$3:$AA$228<>"",ROW($AA$3:$AA$228)-2),ROWS($AA$3:AA114)))) ->  | AW114: 183 | AX114: 1 | AY114: 1 | AZ114: =IF(Wycena!$C$15=78,Mapping!AX114,AY114) -> 1 | BC114: 291 | BD114: 1 | BE114: 1 | BF114: =IF(Wycena!$C$15=78,Mapping!BD114,BE114) -> 1
A115: DB 290 | B115: 20 | C115: 20 | D115: x | E115: x | F115: 20 | G115: 28 | H115: 36 | I115: 36 | Y115: RAL 5015 | Z115: 500 | AA115: RAL 5015 | AB115: =IF(ROWS($AA$3:AA115)>(ROWS($AA$3:$AA$228)-COUNTBLANK($AA$3:$AA$228)),"",INDEX($AA$3:$AA$228,SMALL(IF($AA$3:$AA$228<>"",ROW($AA$3:$AA$228)-2),ROWS($AA$3:AA115)))) ->  | AW115: 184 | AX115: 1 | AY115: 1 | AZ115: =IF(Wycena!$C$15=78,Mapping!AX115,AY115) -> 1 | BC115: 292 | BD115: 1 | BE115: 1 | BF115: =IF(Wycena!$C$15=78,Mapping!BD115,BE115) -> 1
A116: DB 291 | B116: 20 | C116: 20 | D116: x | E116: x | F116: 20 | G116: 28 | H116: 36 | I116: 36 | Y116: RAL 5017 | Z116: 500 | AA116: RAL 5017 | AB116: =IF(ROWS($AA$3:AA116)>(ROWS($AA$3:$AA$228)-COUNTBLANK($AA$3:$AA$228)),"",INDEX($AA$3:$AA$228,SMALL(IF($AA$3:$AA$228<>"",ROW($AA$3:$AA$228)-2),ROWS($AA$3:AA116)))) ->  | AW116: 185 | AX116: 1 | AY116: 1 | AZ116: =IF(Wycena!$C$15=78,Mapping!AX116,AY116) -> 1 | BC116: 293 | BD116: 1 | BE116: 1 | BF116: =IF(Wycena!$C$15=78,Mapping!BD116,BE116) -> 1
A117: DB 292 | B117: 20 | C117: 20 | D117: x | E117: x | F117: 20 | G117: 28 | H117: 36 | I117: 36 | Y117: RAL 5018 | Z117: 500 | AA117: RAL 5018 | AB117: =IF(ROWS($AA$3:AA117)>(ROWS($AA$3:$AA$228)-COUNTBLANK($AA$3:$AA$228)),"",INDEX($AA$3:$AA$228,SMALL(IF($AA$3:$AA$228<>"",ROW($AA$3:$AA$228)-2),ROWS($AA$3:AA117)))) ->  | AW117: 186 | AX117: 1 | AY117: 1 | AZ117: =IF(Wycena!$C$15=78,Mapping!AX117,AY117) -> 1 | BC117: 294 | BD117: 1 | BE117: 1 | BF117: =IF(Wycena!$C$15=78,Mapping!BD117,BE117) -> 1
A118: DB 293 | B118: 20 | C118: 20 | D118: x | E118: x | F118: 20 | G118: 28 | H118: 36 | I118: 36 | Y118: RAL 5019 | Z118: 500 | AA118: RAL 5019 | AB118: =IF(ROWS($AA$3:AA118)>(ROWS($AA$3:$AA$228)-COUNTBLANK($AA$3:$AA$228)),"",INDEX($AA$3:$AA$228,SMALL(IF($AA$3:$AA$228<>"",ROW($AA$3:$AA$228)-2),ROWS($AA$3:AA118)))) ->  | AW118: 187 | AX118: 1 | AY118: 1 | AZ118: =IF(Wycena!$C$15=78,Mapping!AX118,AY118) -> 1 | BC118: 295 | BD118: 1 | BE118: 1 | BF118: =IF(Wycena!$C$15=78,Mapping!BD118,BE118) -> 1
A119: DB 296 | B119: 20 | C119: 20 | D119: x | E119: x | F119: 20 | G119: 28 | H119: 36 | I119: 36 | Y119: RAL 5020 | Z119: 500 | AA119: RAL 5020 | AB119: =IF(ROWS($AA$3:AA119)>(ROWS($AA$3:$AA$228)-COUNTBLANK($AA$3:$AA$228)),"",INDEX($AA$3:$AA$228,SMALL(IF($AA$3:$AA$228<>"",ROW($AA$3:$AA$228)-2),ROWS($AA$3:AA119)))) ->  | AW119: 188 | AX119: 1 | AY119: 1 | AZ119: =IF(Wycena!$C$15=78,Mapping!AX119,AY119) -> 1 | BC119: 296 | BD119: 1 | BE119: 1 | BF119: =IF(Wycena!$C$15=78,Mapping!BD119,BE119) -> 1
A120: DB 297 | B120: 20 | C120: 20 | D120: x | E120: x | F120: 20 | G120: 28 | H120: 36 | I120: 36 | Y120: RAL 5021 | Z120: 500 | AA120: RAL 5021 | AB120: =IF(ROWS($AA$3:AA120)>(ROWS($AA$3:$AA$228)-COUNTBLANK($AA$3:$AA$228)),"",INDEX($AA$3:$AA$228,SMALL(IF($AA$3:$AA$228<>"",ROW($AA$3:$AA$228)-2),ROWS($AA$3:AA120)))) ->  | AW120: 189 | AX120: 1 | AY120: 1 | AZ120: =IF(Wycena!$C$15=78,Mapping!AX120,AY120) -> 1 | BC120: 297 | BD120: 1 | BE120: 1 | BF120: =IF(Wycena!$C$15=78,Mapping!BD120,BE120) -> 1
A121: DB 298 | B121: 20 | C121: 20 | D121: x | E121: x | F121: 20 | G121: 28 | H121: 36 | I121: 36 | Y121: RAL 5022 | Z121: 500 | AA121: RAL 5022 | AB121: =IF(ROWS($AA$3:AA121)>(ROWS($AA$3:$AA$228)-COUNTBLANK($AA$3:$AA$228)),"",INDEX($AA$3:$AA$228,SMALL(IF($AA$3:$AA$228<>"",ROW($AA$3:$AA$228)-2),ROWS($AA$3:AA121)))) ->  | AW121: 190 | AX121: 1 | AY121: 1 | AZ121: =IF(Wycena!$C$15=78,Mapping!AX121,AY121) -> 1 | BC121: 298 | BD121: 1 | BE121: 1 | BF121: =IF(Wycena!$C$15=78,Mapping!BD121,BE121) -> 1
A122: DB 299 | B122: 20 | C122: 20 | D122: x | E122: x | F122: 20 | G122: 28 | H122: 36 | I122: 36 | Y122: RAL 5023 | Z122: 500 | AA122: RAL 5023 | AB122: =IF(ROWS($AA$3:AA122)>(ROWS($AA$3:$AA$228)-COUNTBLANK($AA$3:$AA$228)),"",INDEX($AA$3:$AA$228,SMALL(IF($AA$3:$AA$228<>"",ROW($AA$3:$AA$228)-2),ROWS($AA$3:AA122)))) ->  | AW122: 191 | AX122: 1 | AY122: 1 | AZ122: =IF(Wycena!$C$15=78,Mapping!AX122,AY122) -> 1 | BC122: 299 | BD122: 1 | BE122: 1 | BF122: =IF(Wycena!$C$15=78,Mapping!BD122,BE122) -> 1
A123: DB 325a | B123: 20 | C123: 20 | D123: x | E123: x | F123: 20 | G123: 36 | H123: 36 | I123: 36 | Y123: RAL 5024 | Z123: 500 | AA123: RAL 5024 | AB123: =IF(ROWS($AA$3:AA123)>(ROWS($AA$3:$AA$228)-COUNTBLANK($AA$3:$AA$228)),"",INDEX($AA$3:$AA$228,SMALL(IF($AA$3:$AA$228<>"",ROW($AA$3:$AA$228)-2),ROWS($AA$3:AA123)))) ->  | AW123: 192 | AX123: 1 | AY123: 1 | AZ123: =IF(Wycena!$C$15=78,Mapping!AX123,AY123) -> 1 | BC123: 300 | BD123: 1 | BE123: 1 | BF123: =IF(Wycena!$C$15=78,Mapping!BD123,BE123) -> 1
A124: DB 326 | B124: 20 | C124: 20 | D124: x | E124: x | F124: 20 | G124: 28 | H124: 36 | I124: 36 | Y124: RAL 5025 | Z124: 500 | AA124: RAL 5025 | AB124: =IF(ROWS($AA$3:AA124)>(ROWS($AA$3:$AA$228)-COUNTBLANK($AA$3:$AA$228)),"",INDEX($AA$3:$AA$228,SMALL(IF($AA$3:$AA$228<>"",ROW($AA$3:$AA$228)-2),ROWS($AA$3:AA124)))) ->  | AW124: 193 | AX124: 1 | AY124: 1 | AZ124: =IF(Wycena!$C$15=78,Mapping!AX124,AY124) -> 1 | BC124: 301 | BD124: 1 | BE124: 1 | BF124: =IF(Wycena!$C$15=78,Mapping!BD124,BE124) -> 1
A125: DB 327 | B125: 20 | C125: 20 | D125: x | E125: x | F125: 20 | G125: 28 | H125: 36 | I125: 36 | Y125: RAL 5026 | Z125: 500 | AA125: RAL 5026 | AB125: =IF(ROWS($AA$3:AA125)>(ROWS($AA$3:$AA$228)-COUNTBLANK($AA$3:$AA$228)),"",INDEX($AA$3:$AA$228,SMALL(IF($AA$3:$AA$228<>"",ROW($AA$3:$AA$228)-2),ROWS($AA$3:AA125)))) ->  | AW125: 194 | AX125: 1 | AY125: 1 | AZ125: =IF(Wycena!$C$15=78,Mapping!AX125,AY125) -> 1 | BC125: 302 | BD125: 1 | BE125: 1 | BF125: =IF(Wycena!$C$15=78,Mapping!BD125,BE125) -> 1
A126: DB 328 | B126: 20 | C126: 20 | D126: x | E126: x | F126: 20 | G126: 28 | H126: 36 | I126: 36 | Y126: RAL 6000 | Z126: 500 | AA126: RAL 6000 | AB126: =IF(ROWS($AA$3:AA126)>(ROWS($AA$3:$AA$228)-COUNTBLANK($AA$3:$AA$228)),"",INDEX($AA$3:$AA$228,SMALL(IF($AA$3:$AA$228<>"",ROW($AA$3:$AA$228)-2),ROWS($AA$3:AA126)))) ->  | AW126: 195 | AX126: 1 | AY126: 1 | AZ126: =IF(Wycena!$C$15=78,Mapping!AX126,AY126) -> 1 | BC126: 303 | BD126: 1 | BE126: 1 | BF126: =IF(Wycena!$C$15=78,Mapping!BD126,BE126) -> 1
A127: DB 329 | B127: 20 | C127: 20 | D127: x | E127: x | F127: 20 | G127: 28 | H127: 36 | I127: 36 | Y127: RAL 6001 | Z127: 500 | AA127: RAL 6001 | AB127: =IF(ROWS($AA$3:AA127)>(ROWS($AA$3:$AA$228)-COUNTBLANK($AA$3:$AA$228)),"",INDEX($AA$3:$AA$228,SMALL(IF($AA$3:$AA$228<>"",ROW($AA$3:$AA$228)-2),ROWS($AA$3:AA127)))) ->  | AW127: 196 | AX127: 1 | AY127: 1 | AZ127: =IF(Wycena!$C$15=78,Mapping!AX127,AY127) -> 1 | BC127: 304 | BD127: 1 | BE127: 1 | BF127: =IF(Wycena!$C$15=78,Mapping!BD127,BE127) -> 1
A128: DB 330 | B128: 20 | C128: 20 | D128: x | E128: x | F128: 20 | G128: 28 | H128: 36 | I128: 36 | Y128: RAL 6002 | Z128: 500 | AA128: RAL 6002 | AB128: =IF(ROWS($AA$3:AA128)>(ROWS($AA$3:$AA$228)-COUNTBLANK($AA$3:$AA$228)),"",INDEX($AA$3:$AA$228,SMALL(IF($AA$3:$AA$228<>"",ROW($AA$3:$AA$228)-2),ROWS($AA$3:AA128)))) ->  | AW128: 197 | AX128: 1 | AY128: 1 | AZ128: =IF(Wycena!$C$15=78,Mapping!AX128,AY128) -> 1 | BC128: 305 | BD128: 1 | BE128: 1 | BF128: =IF(Wycena!$C$15=78,Mapping!BD128,BE128) -> 1
A129: DB 331 | B129: 20 | C129: 20 | D129: x | E129: x | F129: 20 | G129: 36 | H129: 36 | I129: 36 | Y129: RAL 6003 | Z129: 500 | AA129: RAL 6003 | AB129: =IF(ROWS($AA$3:AA129)>(ROWS($AA$3:$AA$228)-COUNTBLANK($AA$3:$AA$228)),"",INDEX($AA$3:$AA$228,SMALL(IF($AA$3:$AA$228<>"",ROW($AA$3:$AA$228)-2),ROWS($AA$3:AA129)))) ->  | AW129: 198 | AX129: 1 | AY129: 1 | AZ129: =IF(Wycena!$C$15=78,Mapping!AX129,AY129) -> 1 | BC129: 306 | BD129: 1 | BE129: 1 | BF129: =IF(Wycena!$C$15=78,Mapping!BD129,BE129) -> 1
A130: DB 332 | B130: 20 | C130: 20 | D130: x | E130: x | F130: 20 | G130: 36 | H130: 36 | I130: 36 | Y130: RAL 6004 | Z130: 500 | AA130: RAL 6004 | AB130: =IF(ROWS($AA$3:AA130)>(ROWS($AA$3:$AA$228)-COUNTBLANK($AA$3:$AA$228)),"",INDEX($AA$3:$AA$228,SMALL(IF($AA$3:$AA$228<>"",ROW($AA$3:$AA$228)-2),ROWS($AA$3:AA130)))) ->  | AW130: 199 | AX130: 1 | AY130: 1 | AZ130: =IF(Wycena!$C$15=78,Mapping!AX130,AY130) -> 1 | BC130: 307 | BD130: 1 | BE130: 1 | BF130: =IF(Wycena!$C$15=78,Mapping!BD130,BE130) -> 1
A131: DB 333 | B131: 20 | C131: 20 | D131: x | E131: x | F131: 20 | G131: 28 | H131: 36 | I131: 36 | Y131: RAL 6005 | Z131: 500 | AA131: RAL 6005 | AB131: =IF(ROWS($AA$3:AA131)>(ROWS($AA$3:$AA$228)-COUNTBLANK($AA$3:$AA$228)),"",INDEX($AA$3:$AA$228,SMALL(IF($AA$3:$AA$228<>"",ROW($AA$3:$AA$228)-2),ROWS($AA$3:AA131)))) ->  | AW131: 200 | AX131: 1 | AY131: 1 | AZ131: =IF(Wycena!$C$15=78,Mapping!AX131,AY131) -> 1 | BC131: 308 | BD131: 1 | BE131: 1 | BF131: =IF(Wycena!$C$15=78,Mapping!BD131,BE131) -> 1
A132: DB 334 | B132: 20 | C132: 20 | D132: x | E132: x | F132: 20 | G132: 28 | H132: 36 | I132: 36 | Y132: RAL 6006 | Z132: 500 | AA132: =Y132 -> RAL 6006 | AB132: =IF(ROWS($AA$3:AA132)>(ROWS($AA$3:$AA$228)-COUNTBLANK($AA$3:$AA$228)),"",INDEX($AA$3:$AA$228,SMALL(IF($AA$3:$AA$228<>"",ROW($AA$3:$AA$228)-2),ROWS($AA$3:AA132)))) ->  | AW132: 201 | AX132: 1 | AY132: 1 | AZ132: =IF(Wycena!$C$15=78,Mapping!AX132,AY132) -> 1 | BC132: 309 | BD132: 1 | BE132: 1 | BF132: =IF(Wycena!$C$15=78,Mapping!BD132,BE132) -> 1
A133: DB 338 | B133: 20 | C133: 20 | D133: x | E133: x | F133: 20 | G133: 36 | H133: 36 | I133: 36 | Y133: RAL 6007 | Z133: 500 | AA133: RAL 6007 | AB133: =IF(ROWS($AA$3:AA133)>(ROWS($AA$3:$AA$228)-COUNTBLANK($AA$3:$AA$228)),"",INDEX($AA$3:$AA$228,SMALL(IF($AA$3:$AA$228<>"",ROW($AA$3:$AA$228)-2),ROWS($AA$3:AA133)))) ->  | AW133: 202 | AX133: 1 | AY133: 1 | AZ133: =IF(Wycena!$C$15=78,Mapping!AX133,AY133) -> 1 | BC133: 310 | BD133: 1 | BE133: 1 | BF133: =IF(Wycena!$C$15=78,Mapping!BD133,BE133) -> 1
A134: DB 345 | B134: 20 | C134: 20 | D134: x | E134: x | F134: 20 | G134: 28 | H134: 36 | I134: 36 | Y134: RAL 6008 | Z134: 500 | AA134: RAL 6008 | AB134: =IF(ROWS($AA$3:AA134)>(ROWS($AA$3:$AA$228)-COUNTBLANK($AA$3:$AA$228)),"",INDEX($AA$3:$AA$228,SMALL(IF($AA$3:$AA$228<>"",ROW($AA$3:$AA$228)-2),ROWS($AA$3:AA134)))) ->  | AW134: 203 | AX134: 2 | AY134: 1 | AZ134: =IF(Wycena!$C$15=78,Mapping!AX134,AY134) -> 1 | BC134: 311 | BD134: 1 | BE134: 1 | BF134: =IF(Wycena!$C$15=78,Mapping!BD134,BE134) -> 1
A135: DB 350 | B135: 20 | C135: 20 | D135: x | E135: x | F135: 20 | G135: 36 | H135: 36 | I135: 36 | Y135: RAL 6009 | Z135: 500 | AA135: RAL 6009 | AB135: =IF(ROWS($AA$3:AA135)>(ROWS($AA$3:$AA$228)-COUNTBLANK($AA$3:$AA$228)),"",INDEX($AA$3:$AA$228,SMALL(IF($AA$3:$AA$228<>"",ROW($AA$3:$AA$228)-2),ROWS($AA$3:AA135)))) ->  | AW135: 204 | AX135: 2 | AY135: 1 | AZ135: =IF(Wycena!$C$15=78,Mapping!AX135,AY135) -> 1 | BC135: 312 | BD135: 1 | BE135: 1 | BF135: =IF(Wycena!$C$15=78,Mapping!BD135,BE135) -> 1
A136: DB 359 | B136: 20 | C136: 20 | D136: x | E136: x | F136: 20 | G136: 28 | H136: 36 | I136: 36 | Y136: RAL 6010 | Z136: 500 | AA136: RAL 6010 | AB136: =IF(ROWS($AA$3:AA136)>(ROWS($AA$3:$AA$228)-COUNTBLANK($AA$3:$AA$228)),"",INDEX($AA$3:$AA$228,SMALL(IF($AA$3:$AA$228<>"",ROW($AA$3:$AA$228)-2),ROWS($AA$3:AA136)))) ->  | AW136: 205 | AX136: 2 | AY136: 1 | AZ136: =IF(Wycena!$C$15=78,Mapping!AX136,AY136) -> 1 | BC136: 313 | BD136: 1 | BE136: 1 | BF136: =IF(Wycena!$C$15=78,Mapping!BD136,BE136) -> 1
A137: DB 360 | B137: 20 | C137: 20 | D137: x | E137: x | F137: 20 | G137: 28 | H137: 36 | I137: 36 | Y137: RAL 6011 | Z137: 500 | AA137: RAL 6011 | AB137: =IF(ROWS($AA$3:AA137)>(ROWS($AA$3:$AA$228)-COUNTBLANK($AA$3:$AA$228)),"",INDEX($AA$3:$AA$228,SMALL(IF($AA$3:$AA$228<>"",ROW($AA$3:$AA$228)-2),ROWS($AA$3:AA137)))) ->  | AW137: 206 | AX137: 2 | AY137: 1 | AZ137: =IF(Wycena!$C$15=78,Mapping!AX137,AY137) -> 1 | BC137: 314 | BD137: 1 | BE137: 1 | BF137: =IF(Wycena!$C$15=78,Mapping!BD137,BE137) -> 1
A138: DB 361 | B138: 20 | C138: 20 | D138: x | E138: x | F138: 20 | G138: 28 | H138: 36 | I138: 36 | Y138: RAL 6012 | Z138: 500 | AA138: RAL 6012 | AB138: =IF(ROWS($AA$3:AA138)>(ROWS($AA$3:$AA$228)-COUNTBLANK($AA$3:$AA$228)),"",INDEX($AA$3:$AA$228,SMALL(IF($AA$3:$AA$228<>"",ROW($AA$3:$AA$228)-2),ROWS($AA$3:AA138)))) ->  | AW138: 207 | AX138: 2 | AY138: 2 | AZ138: =IF(Wycena!$C$15=78,Mapping!AX138,AY138) -> 2 | BC138: 315 | BD138: 1 | BE138: 1 | BF138: =IF(Wycena!$C$15=78,Mapping!BD138,BE138) -> 1
A139: DB 363 | B139: 20 | C139: 20 | D139: x | E139: x | F139: 20 | G139: 36 | H139: 36 | I139: 36 | Y139: RAL 6013 | Z139: 500 | AA139: RAL 6013 | AB139: =IF(ROWS($AA$3:AA139)>(ROWS($AA$3:$AA$228)-COUNTBLANK($AA$3:$AA$228)),"",INDEX($AA$3:$AA$228,SMALL(IF($AA$3:$AA$228<>"",ROW($AA$3:$AA$228)-2),ROWS($AA$3:AA139)))) ->  | AW139: 208 | AX139: 2 | AY139: 2 | AZ139: =IF(Wycena!$C$15=78,Mapping!AX139,AY139) -> 2 | BC139: 316 | BD139: 1 | BE139: 1 | BF139: =IF(Wycena!$C$15=78,Mapping!BD139,BE139) -> 1
A140: DB 364 | B140: 20 | C140: 20 | D140: x | E140: x | F140: 20 | G140: 36 | H140: 36 | I140: 36 | Y140: RAL 6014 | Z140: 500 | AA140: RAL 6014 | AB140: =IF(ROWS($AA$3:AA140)>(ROWS($AA$3:$AA$228)-COUNTBLANK($AA$3:$AA$228)),"",INDEX($AA$3:$AA$228,SMALL(IF($AA$3:$AA$228<>"",ROW($AA$3:$AA$228)-2),ROWS($AA$3:AA140)))) ->  | AW140: 209 | AX140: 2 | AY140: 2 | AZ140: =IF(Wycena!$C$15=78,Mapping!AX140,AY140) -> 2 | BC140: 317 | BD140: 1 | BE140: 1 | BF140: =IF(Wycena!$C$15=78,Mapping!BD140,BE140) -> 1
A141: DB 366 | B141: 20 | C141: 20 | D141: x | E141: x | F141: 20 | G141: 28 | H141: 36 | I141: 36 | Y141: RAL 6015 | Z141: 500 | AA141: RAL 6015 | AB141: =IF(ROWS($AA$3:AA141)>(ROWS($AA$3:$AA$228)-COUNTBLANK($AA$3:$AA$228)),"",INDEX($AA$3:$AA$228,SMALL(IF($AA$3:$AA$228<>"",ROW($AA$3:$AA$228)-2),ROWS($AA$3:AA141)))) ->  | AW141: 210 | AX141: 2 | AY141: 2 | AZ141: =IF(Wycena!$C$15=78,Mapping!AX141,AY141) -> 2 | BC141: 318 | BD141: 1 | BE141: 1 | BF141: =IF(Wycena!$C$15=78,Mapping!BD141,BE141) -> 1
A142: DB 400 | B142: 20 | C142: 20 | D142: x | E142: x | Y142: RAL 6016 | Z142: 500 | AA142: RAL 6016 | AB142: =IF(ROWS($AA$3:AA142)>(ROWS($AA$3:$AA$228)-COUNTBLANK($AA$3:$AA$228)),"",INDEX($AA$3:$AA$228,SMALL(IF($AA$3:$AA$228<>"",ROW($AA$3:$AA$228)-2),ROWS($AA$3:AA142)))) ->  | AW142: 211 | AX142: 2 | AY142: 2 | AZ142: =IF(Wycena!$C$15=78,Mapping!AX142,AY142) -> 2 | BC142: 319 | BD142: 1 | BE142: 1 | BF142: =IF(Wycena!$C$15=78,Mapping!BD142,BE142) -> 1
A143: DB 405 | B143: 20 | C143: 20 | D143: x | E143: x | Y143: RAL 6017 | Z143: 500 | AA143: RAL 6017 | AB143: =IF(ROWS($AA$3:AA143)>(ROWS($AA$3:$AA$228)-COUNTBLANK($AA$3:$AA$228)),"",INDEX($AA$3:$AA$228,SMALL(IF($AA$3:$AA$228<>"",ROW($AA$3:$AA$228)-2),ROWS($AA$3:AA143)))) ->  | AW143: 212 | AX143: 2 | AY143: 2 | AZ143: =IF(Wycena!$C$15=78,Mapping!AX143,AY143) -> 2 | BC143: 320 | BD143: 1 | BE143: 1 | BF143: =IF(Wycena!$C$15=78,Mapping!BD143,BE143) -> 1
A144: DB 411 | B144: 20 | C144: 20 | D144: x | E144: x | Y144: RAL 6018 | Z144: 500 | AA144: RAL 6018 | AB144: =IF(ROWS($AA$3:AA144)>(ROWS($AA$3:$AA$228)-COUNTBLANK($AA$3:$AA$228)),"",INDEX($AA$3:$AA$228,SMALL(IF($AA$3:$AA$228<>"",ROW($AA$3:$AA$228)-2),ROWS($AA$3:AA144)))) ->  | AW144: 213 | AX144: 2 | AY144: 2 | AZ144: =IF(Wycena!$C$15=78,Mapping!AX144,AY144) -> 2 | BC144: 321 | BD144: 1 | BE144: 1 | BF144: =IF(Wycena!$C$15=78,Mapping!BD144,BE144) -> 1
A145: DB 412 | B145: 20 | C145: 20 | D145: x | E145: x | Y145: RAL 6019 | Z145: 500 | AA145: RAL 6019 | AB145: =IF(ROWS($AA$3:AA145)>(ROWS($AA$3:$AA$228)-COUNTBLANK($AA$3:$AA$228)),"",INDEX($AA$3:$AA$228,SMALL(IF($AA$3:$AA$228<>"",ROW($AA$3:$AA$228)-2),ROWS($AA$3:AA145)))) ->  | AW145: 214 | AX145: 2 | AY145: 2 | AZ145: =IF(Wycena!$C$15=78,Mapping!AX145,AY145) -> 2 | BC145: 322 | BD145: 1 | BE145: 1 | BF145: =IF(Wycena!$C$15=78,Mapping!BD145,BE145) -> 1
A146: DB 413 | B146: 20 | C146: 20 | D146: x | E146: x | Y146: RAL 6020 | Z146: 500 | AA146: RAL 6020 | AB146: =IF(ROWS($AA$3:AA146)>(ROWS($AA$3:$AA$228)-COUNTBLANK($AA$3:$AA$228)),"",INDEX($AA$3:$AA$228,SMALL(IF($AA$3:$AA$228<>"",ROW($AA$3:$AA$228)-2),ROWS($AA$3:AA146)))) ->  | AW146: 215 | AX146: 2 | AY146: 2 | AZ146: =IF(Wycena!$C$15=78,Mapping!AX146,AY146) -> 2 | BC146: 323 | BD146: 1 | BE146: 1 | BF146: =IF(Wycena!$C$15=78,Mapping!BD146,BE146) -> 1
A147: DB 414 | B147: 20 | C147: 20 | D147: x | E147: x | Y147: RAL 6021 | Z147: 500 | AA147: RAL 6021 | AB147: =IF(ROWS($AA$3:AA147)>(ROWS($AA$3:$AA$228)-COUNTBLANK($AA$3:$AA$228)),"",INDEX($AA$3:$AA$228,SMALL(IF($AA$3:$AA$228<>"",ROW($AA$3:$AA$228)-2),ROWS($AA$3:AA147)))) ->  | AW147: 216 | AX147: 2 | AY147: 2 | AZ147: =IF(Wycena!$C$15=78,Mapping!AX147,AY147) -> 2 | BC147: 324 | BD147: 1 | BE147: 1 | BF147: =IF(Wycena!$C$15=78,Mapping!BD147,BE147) -> 1
A148: DB 415 | B148: 20 | C148: 20 | D148: x | E148: x | Y148: RAL 6022 | Z148: 500 | AA148: RAL 6022 | AB148: =IF(ROWS($AA$3:AA148)>(ROWS($AA$3:$AA$228)-COUNTBLANK($AA$3:$AA$228)),"",INDEX($AA$3:$AA$228,SMALL(IF($AA$3:$AA$228<>"",ROW($AA$3:$AA$228)-2),ROWS($AA$3:AA148)))) ->  | AW148: 217 | AX148: 2 | AY148: 2 | AZ148: =IF(Wycena!$C$15=78,Mapping!AX148,AY148) -> 2 | BC148: 325 | BD148: 1 | BE148: 1 | BF148: =IF(Wycena!$C$15=78,Mapping!BD148,BE148) -> 1
A149: DB 431 | B149: 20 | C149: 20 | D149: x | E149: x | Y149: RAL 6024 | Z149: 500 | AA149: RAL 6024 | AB149: =IF(ROWS($AA$3:AA149)>(ROWS($AA$3:$AA$228)-COUNTBLANK($AA$3:$AA$228)),"",INDEX($AA$3:$AA$228,SMALL(IF($AA$3:$AA$228<>"",ROW($AA$3:$AA$228)-2),ROWS($AA$3:AA149)))) ->  | AW149: 218 | AX149: 2 | AY149: 2 | AZ149: =IF(Wycena!$C$15=78,Mapping!AX149,AY149) -> 2 | BC149: 326 | BD149: 1 | BE149: 1 | BF149: =IF(Wycena!$C$15=78,Mapping!BD149,BE149) -> 1
A150: DB 432 | B150: 20 | C150: 20 | D150: x | E150: x | Y150: RAL 6025 | Z150: 500 | AA150: RAL 6025 | AB150: =IF(ROWS($AA$3:AA150)>(ROWS($AA$3:$AA$228)-COUNTBLANK($AA$3:$AA$228)),"",INDEX($AA$3:$AA$228,SMALL(IF($AA$3:$AA$228<>"",ROW($AA$3:$AA$228)-2),ROWS($AA$3:AA150)))) ->  | AW150: 219 | AX150: 2 | AY150: 2 | AZ150: =IF(Wycena!$C$15=78,Mapping!AX150,AY150) -> 2 | BC150: 327 | BD150: 1 | BE150: 1 | BF150: =IF(Wycena!$C$15=78,Mapping!BD150,BE150) -> 1
A151: DB 450 | B151: 20 | C151: 20 | D151: x | E151: x | Y151: RAL 6026 | Z151: 500 | AA151: RAL 6026 | AB151: =IF(ROWS($AA$3:AA151)>(ROWS($AA$3:$AA$228)-COUNTBLANK($AA$3:$AA$228)),"",INDEX($AA$3:$AA$228,SMALL(IF($AA$3:$AA$228<>"",ROW($AA$3:$AA$228)-2),ROWS($AA$3:AA151)))) ->  | AW151: 220 | AX151: 2 | AY151: 2 | AZ151: =IF(Wycena!$C$15=78,Mapping!AX151,AY151) -> 2 | BC151: 328 | BD151: 1 | BE151: 1 | BF151: =IF(Wycena!$C$15=78,Mapping!BD151,BE151) -> 1
A152: DB 502 | B152: 20 | C152: 20 | D152: x | E152: x | F152: 20 | G152: 32 | H152: 36 | I152: 36 | Y152: RAL 6027 | Z152: 500 | AA152: RAL 6027 | AB152: =IF(ROWS($AA$3:AA152)>(ROWS($AA$3:$AA$228)-COUNTBLANK($AA$3:$AA$228)),"",INDEX($AA$3:$AA$228,SMALL(IF($AA$3:$AA$228<>"",ROW($AA$3:$AA$228)-2),ROWS($AA$3:AA152)))) ->  | AW152: 221 | AX152: 2 | AY152: 2 | AZ152: =IF(Wycena!$C$15=78,Mapping!AX152,AY152) -> 2 | BC152: 329 | BD152: 1 | BE152: 1 | BF152: =IF(Wycena!$C$15=78,Mapping!BD152,BE152) -> 1
A153: DB 506 | B153: 20 | C153: 20 | D153: x | E153: x | F153: 20 | G153: 32 | H153: 36 | I153: 36 | Y153: RAL 6028 | Z153: 500 | AA153: RAL 6028 | AB153: =IF(ROWS($AA$3:AA153)>(ROWS($AA$3:$AA$228)-COUNTBLANK($AA$3:$AA$228)),"",INDEX($AA$3:$AA$228,SMALL(IF($AA$3:$AA$228<>"",ROW($AA$3:$AA$228)-2),ROWS($AA$3:AA153)))) ->  | AW153: 222 | AX153: 2 | AY153: 2 | AZ153: =IF(Wycena!$C$15=78,Mapping!AX153,AY153) -> 2 | BC153: 330 | BD153: 1 | BE153: 1 | BF153: =IF(Wycena!$C$15=78,Mapping!BD153,BE153) -> 1
A154: DB 510 | B154: 20 | C154: 20 | D154: x | E154: x | F154: 20 | G154: 32 | H154: 36 | I154: 36 | Y154: RAL 6029 | Z154: 500 | AA154: RAL 6029 | AB154: =IF(ROWS($AA$3:AA154)>(ROWS($AA$3:$AA$228)-COUNTBLANK($AA$3:$AA$228)),"",INDEX($AA$3:$AA$228,SMALL(IF($AA$3:$AA$228<>"",ROW($AA$3:$AA$228)-2),ROWS($AA$3:AA154)))) ->  | AW154: 223 | AX154: 2 | AY154: 2 | AZ154: =IF(Wycena!$C$15=78,Mapping!AX154,AY154) -> 2 | BC154: 331 | BD154: 1 | BE154: 1 | BF154: =IF(Wycena!$C$15=78,Mapping!BD154,BE154) -> 1
A155: DB 511 | B155: 20 | C155: 20 | D155: x | E155: x | F155: 20 | G155: 32 | H155: 36 | I155: 36 | Y155: RAL 6032 | Z155: 500 | AA155: RAL 6032 | AB155: =IF(ROWS($AA$3:AA155)>(ROWS($AA$3:$AA$228)-COUNTBLANK($AA$3:$AA$228)),"",INDEX($AA$3:$AA$228,SMALL(IF($AA$3:$AA$228<>"",ROW($AA$3:$AA$228)-2),ROWS($AA$3:AA155)))) ->  | AW155: 224 | AX155: 2 | AY155: 2 | AZ155: =IF(Wycena!$C$15=78,Mapping!AX155,AY155) -> 2 | BC155: 332 | BD155: 1 | BE155: 1 | BF155: =IF(Wycena!$C$15=78,Mapping!BD155,BE155) -> 1
A156: DB 512 | B156: 20 | C156: 20 | D156: x | E156: x | F156: 20 | G156: 32 | H156: 36 | I156: 36 | Y156: RAL 6033 | Z156: 500 | AA156: RAL 6033 | AB156: =IF(ROWS($AA$3:AA156)>(ROWS($AA$3:$AA$228)-COUNTBLANK($AA$3:$AA$228)),"",INDEX($AA$3:$AA$228,SMALL(IF($AA$3:$AA$228<>"",ROW($AA$3:$AA$228)-2),ROWS($AA$3:AA156)))) ->  | AW156: 225 | AX156: 2 | AY156: 2 | AZ156: =IF(Wycena!$C$15=78,Mapping!AX156,AY156) -> 2 | BC156: 333 | BD156: 1 | BE156: 1 | BF156: =IF(Wycena!$C$15=78,Mapping!BD156,BE156) -> 1
A157: DB 513 | B157: 20 | C157: 20 | D157: x | E157: x | F157: 20 | G157: 32 | H157: 36 | I157: 36 | Y157: RAL 6034 | Z157: 500 | AA157: RAL 6034 | AB157: =IF(ROWS($AA$3:AA157)>(ROWS($AA$3:$AA$228)-COUNTBLANK($AA$3:$AA$228)),"",INDEX($AA$3:$AA$228,SMALL(IF($AA$3:$AA$228<>"",ROW($AA$3:$AA$228)-2),ROWS($AA$3:AA157)))) ->  | AW157: 226 | AX157: 2 | AY157: 2 | AZ157: =IF(Wycena!$C$15=78,Mapping!AX157,AY157) -> 2 | BC157: 334 | BD157: 1 | BE157: 1 | BF157: =IF(Wycena!$C$15=78,Mapping!BD157,BE157) -> 1
A158: DB 514 | B158: 20 | C158: 20 | D158: x | E158: x | F158: 20 | G158: 32 | H158: 36 | I158: 36 | Y158: RAL 6035 | Z158: 500 | AA158: RAL 6035 | AB158: =IF(ROWS($AA$3:AA158)>(ROWS($AA$3:$AA$228)-COUNTBLANK($AA$3:$AA$228)),"",INDEX($AA$3:$AA$228,SMALL(IF($AA$3:$AA$228<>"",ROW($AA$3:$AA$228)-2),ROWS($AA$3:AA158)))) ->  | AW158: 227 | AX158: 2 | AY158: 2 | AZ158: =IF(Wycena!$C$15=78,Mapping!AX158,AY158) -> 2 | BC158: 335 | BD158: 1 | BE158: 1 | BF158: =IF(Wycena!$C$15=78,Mapping!BD158,BE158) -> 1
A159: DB 515 | B159: 20 | C159: 20 | D159: x | E159: x | F159: 20 | G159: 32 | H159: 36 | I159: 36 | Y159: RAL 6036 | Z159: 500 | AA159: RAL 6036 | AB159: =IF(ROWS($AA$3:AA159)>(ROWS($AA$3:$AA$228)-COUNTBLANK($AA$3:$AA$228)),"",INDEX($AA$3:$AA$228,SMALL(IF($AA$3:$AA$228<>"",ROW($AA$3:$AA$228)-2),ROWS($AA$3:AA159)))) ->  | AW159: 228 | AX159: 2 | AY159: 2 | AZ159: =IF(Wycena!$C$15=78,Mapping!AX159,AY159) -> 2 | BC159: 336 | BD159: 1 | BE159: 1 | BF159: =IF(Wycena!$C$15=78,Mapping!BD159,BE159) -> 1
A160: DB 517 | B160: 20 | C160: 20 | D160: x | E160: x | F160: 20 | G160: 32 | H160: 36 | I160: 36 | Y160: RAL 6038 | Z160: 500 | AA160: RAL 6038 | AB160: =IF(ROWS($AA$3:AA160)>(ROWS($AA$3:$AA$228)-COUNTBLANK($AA$3:$AA$228)),"",INDEX($AA$3:$AA$228,SMALL(IF($AA$3:$AA$228<>"",ROW($AA$3:$AA$228)-2),ROWS($AA$3:AA160)))) ->  | AW160: 230 | AX160: 2 | AY160: 2 | AZ160: =IF(Wycena!$C$15=78,Mapping!AX160,AY160) -> 2 | BC160: 338 | BD160: 1 | BE160: 1 | BF160: =IF(Wycena!$C$15=78,Mapping!BD160,BE160) -> 1
A161: DB 601 | B161: 20 | C161: 20 | D161: x | E161: x | F161: 20 | G161: 32 | H161: 36 | I161: 36 | Y161: RAL 7000 | Z161: 500 | AA161: RAL 7000 | AB161: =IF(ROWS($AA$3:AA161)>(ROWS($AA$3:$AA$228)-COUNTBLANK($AA$3:$AA$228)),"",INDEX($AA$3:$AA$228,SMALL(IF($AA$3:$AA$228<>"",ROW($AA$3:$AA$228)-2),ROWS($AA$3:AA161)))) ->  | AW161: 231 | AX161: 2 | AY161: 2 | AZ161: =IF(Wycena!$C$15=78,Mapping!AX161,AY161) -> 2 | BC161: 339 | BD161: 1 | BE161: 1 | BF161: =IF(Wycena!$C$15=78,Mapping!BD161,BE161) -> 1
A162: DB 602 | B162: 20 | C162: 20 | D162: x | E162: x | F162: 20 | G162: 32 | H162: 36 | I162: 36 | Y162: RAL 7001 | Z162: 500 | AA162: RAL 7001 | AB162: =IF(ROWS($AA$3:AA162)>(ROWS($AA$3:$AA$228)-COUNTBLANK($AA$3:$AA$228)),"",INDEX($AA$3:$AA$228,SMALL(IF($AA$3:$AA$228<>"",ROW($AA$3:$AA$228)-2),ROWS($AA$3:AA162)))) ->  | AW162: 232 | AX162: 2 | AY162: 2 | AZ162: =IF(Wycena!$C$15=78,Mapping!AX162,AY162) -> 2 | BC162: 340 | BD162: 1 | BE162: 1 | BF162: =IF(Wycena!$C$15=78,Mapping!BD162,BE162) -> 1
A163: DB 603 | B163: 20 | C163: 20 | D163: x | E163: x | F163: 20 | G163: 32 | H163: 36 | I163: 36 | Y163: RAL 7002 | Z163: 500 | AA163: RAL 7002 | AB163: =IF(ROWS($AA$3:AA163)>(ROWS($AA$3:$AA$228)-COUNTBLANK($AA$3:$AA$228)),"",INDEX($AA$3:$AA$228,SMALL(IF($AA$3:$AA$228<>"",ROW($AA$3:$AA$228)-2),ROWS($AA$3:AA163)))) ->  | AW163: 233 | AX163: 2 | AY163: 2 | AZ163: =IF(Wycena!$C$15=78,Mapping!AX163,AY163) -> 2 | BC163: 341 | BD163: 1 | BE163: 1 | BF163: =IF(Wycena!$C$15=78,Mapping!BD163,BE163) -> 1
A164: DB 604 | B164: 20 | C164: 20 | D164: x | E164: x | F164: 20 | G164: 32 | H164: 36 | I164: 36 | Y164: RAL 7003 | Z164: 500 | AA164: RAL 7003 | AB164: =IF(ROWS($AA$3:AA164)>(ROWS($AA$3:$AA$228)-COUNTBLANK($AA$3:$AA$228)),"",INDEX($AA$3:$AA$228,SMALL(IF($AA$3:$AA$228<>"",ROW($AA$3:$AA$228)-2),ROWS($AA$3:AA164)))) ->  | AW164: 234 | AX164: 2 | AY164: 2 | AZ164: =IF(Wycena!$C$15=78,Mapping!AX164,AY164) -> 2 | BC164: 342 | BD164: 1 | BE164: 1 | BF164: =IF(Wycena!$C$15=78,Mapping!BD164,BE164) -> 1
A165: DB 605 | B165: 20 | C165: 20 | D165: x | E165: x | F165: 20 | G165: 32 | H165: 36 | I165: 36 | Y165: RAL 7004 | Z165: 500 | AA165: RAL 7004 | AB165: =IF(ROWS($AA$3:AA165)>(ROWS($AA$3:$AA$228)-COUNTBLANK($AA$3:$AA$228)),"",INDEX($AA$3:$AA$228,SMALL(IF($AA$3:$AA$228<>"",ROW($AA$3:$AA$228)-2),ROWS($AA$3:AA165)))) ->  | AW165: 235 | AX165: 2 | AY165: 2 | AZ165: =IF(Wycena!$C$15=78,Mapping!AX165,AY165) -> 2 | BC165: 343 | BD165: 1 | BE165: 1 | BF165: =IF(Wycena!$C$15=78,Mapping!BD165,BE165) -> 1
A166: DB 606 | B166: 20 | C166: 20 | D166: x | E166: x | F166: 20 | G166: 32 | H166: 36 | I166: 36 | Y166: RAL 7005 | Z166: 500 | AA166: RAL 7005 | AB166: =IF(ROWS($AA$3:AA166)>(ROWS($AA$3:$AA$228)-COUNTBLANK($AA$3:$AA$228)),"",INDEX($AA$3:$AA$228,SMALL(IF($AA$3:$AA$228<>"",ROW($AA$3:$AA$228)-2),ROWS($AA$3:AA166)))) ->  | AW166: 236 | AX166: 2 | AY166: 2 | AZ166: =IF(Wycena!$C$15=78,Mapping!AX166,AY166) -> 2 | BC166: 344 | BD166: 1 | BE166: 1 | BF166: =IF(Wycena!$C$15=78,Mapping!BD166,BE166) -> 1
A167: DB 607 | B167: 20 | C167: 20 | D167: x | E167: x | F167: 20 | G167: 32 | H167: 36 | I167: 36 | Y167: RAL 7006 | Z167: 500 | AA167: RAL 7006 | AB167: =IF(ROWS($AA$3:AA167)>(ROWS($AA$3:$AA$228)-COUNTBLANK($AA$3:$AA$228)),"",INDEX($AA$3:$AA$228,SMALL(IF($AA$3:$AA$228<>"",ROW($AA$3:$AA$228)-2),ROWS($AA$3:AA167)))) ->  | AW167: 237 | AX167: 2 | AY167: 2 | AZ167: =IF(Wycena!$C$15=78,Mapping!AX167,AY167) -> 2 | BC167: 345 | BD167: 1 | BE167: 1 | BF167: =IF(Wycena!$C$15=78,Mapping!BD167,BE167) -> 1
A168: DB 609 | B168: 20 | C168: 20 | D168: x | E168: x | F168: 20 | G168: 32 | H168: 36 | I168: 36 | Y168: RAL 7008 | Z168: 500 | AA168: RAL 7008 | AB168: =IF(ROWS($AA$3:AA168)>(ROWS($AA$3:$AA$228)-COUNTBLANK($AA$3:$AA$228)),"",INDEX($AA$3:$AA$228,SMALL(IF($AA$3:$AA$228<>"",ROW($AA$3:$AA$228)-2),ROWS($AA$3:AA168)))) ->  | AW168: 238 | AX168: 2 | AY168: 2 | AZ168: =IF(Wycena!$C$15=78,Mapping!AX168,AY168) -> 2 | BC168: 346 | BD168: 1 | BE168: 1 | BF168: =IF(Wycena!$C$15=78,Mapping!BD168,BE168) -> 1
Y169: RAL 7009 | Z169: 500 | AA169: RAL 7009 | AB169: =IF(ROWS($AA$3:AA169)>(ROWS($AA$3:$AA$228)-COUNTBLANK($AA$3:$AA$228)),"",INDEX($AA$3:$AA$228,SMALL(IF($AA$3:$AA$228<>"",ROW($AA$3:$AA$228)-2),ROWS($AA$3:AA169)))) ->  | AW169: 239 | AX169: 2 | AY169: 2 | AZ169: =IF(Wycena!$C$15=78,Mapping!AX169,AY169) -> 2 | BC169: 347 | BD169: 1 | BE169: 1 | BF169: =IF(Wycena!$C$15=78,Mapping!BD169,BE169) -> 1
Y170: RAL 7010 | Z170: 500 | AA170: RAL 7010 | AB170: =IF(ROWS($AA$3:AA170)>(ROWS($AA$3:$AA$228)-COUNTBLANK($AA$3:$AA$228)),"",INDEX($AA$3:$AA$228,SMALL(IF($AA$3:$AA$228<>"",ROW($AA$3:$AA$228)-2),ROWS($AA$3:AA170)))) ->  | AW170: 240 | AX170: 2 | AY170: 2 | AZ170: =IF(Wycena!$C$15=78,Mapping!AX170,AY170) -> 2 | BC170: 348 | BD170: 1 | BE170: 1 | BF170: =IF(Wycena!$C$15=78,Mapping!BD170,BE170) -> 1
Y171: RAL 7011 | Z171: 500 | AA171: RAL 7011 | AB171: =IF(ROWS($AA$3:AA171)>(ROWS($AA$3:$AA$228)-COUNTBLANK($AA$3:$AA$228)),"",INDEX($AA$3:$AA$228,SMALL(IF($AA$3:$AA$228<>"",ROW($AA$3:$AA$228)-2),ROWS($AA$3:AA171)))) ->  | AW171: 241 | AX171: 2 | AY171: 2 | AZ171: =IF(Wycena!$C$15=78,Mapping!AX171,AY171) -> 2 | BC171: 349 | BD171: 1 | BE171: 1 | BF171: =IF(Wycena!$C$15=78,Mapping!BD171,BE171) -> 1
Y172: RAL 7012 | Z172: 500 | AA172: RAL 7012 | AB172: =IF(ROWS($AA$3:AA172)>(ROWS($AA$3:$AA$228)-COUNTBLANK($AA$3:$AA$228)),"",INDEX($AA$3:$AA$228,SMALL(IF($AA$3:$AA$228<>"",ROW($AA$3:$AA$228)-2),ROWS($AA$3:AA172)))) ->  | AW172: 242 | AX172: 2 | AY172: 2 | AZ172: =IF(Wycena!$C$15=78,Mapping!AX172,AY172) -> 2 | BC172: 350 | BD172: 1 | BE172: 1 | BF172: =IF(Wycena!$C$15=78,Mapping!BD172,BE172) -> 1
Y173: RAL 7013 | Z173: 500 | AA173: RAL 7013 | AB173: =IF(ROWS($AA$3:AA173)>(ROWS($AA$3:$AA$228)-COUNTBLANK($AA$3:$AA$228)),"",INDEX($AA$3:$AA$228,SMALL(IF($AA$3:$AA$228<>"",ROW($AA$3:$AA$228)-2),ROWS($AA$3:AA173)))) ->  | AW173: 243 | AX173: 2 | AY173: 2 | AZ173: =IF(Wycena!$C$15=78,Mapping!AX173,AY173) -> 2
Y174: RAL 7015 | Z174: 500 | AA174: RAL 7015 | AB174: =IF(ROWS($AA$3:AA174)>(ROWS($AA$3:$AA$228)-COUNTBLANK($AA$3:$AA$228)),"",INDEX($AA$3:$AA$228,SMALL(IF($AA$3:$AA$228<>"",ROW($AA$3:$AA$228)-2),ROWS($AA$3:AA174)))) ->  | AW174: 244 | AX174: 2 | AY174: 2 | AZ174: =IF(Wycena!$C$15=78,Mapping!AX174,AY174) -> 2
Y175: RAL 7021 | Z175: 500 | AA175: RAL 7021 | AB175: =IF(ROWS($AA$3:AA175)>(ROWS($AA$3:$AA$228)-COUNTBLANK($AA$3:$AA$228)),"",INDEX($AA$3:$AA$228,SMALL(IF($AA$3:$AA$228<>"",ROW($AA$3:$AA$228)-2),ROWS($AA$3:AA175)))) ->  | AW175: 245 | AX175: 2 | AY175: 2 | AZ175: =IF(Wycena!$C$15=78,Mapping!AX175,AY175) -> 2
Y176: RAL 7022 | Z176: 500 | AA176: RAL 7022 | AB176: =IF(ROWS($AA$3:AA176)>(ROWS($AA$3:$AA$228)-COUNTBLANK($AA$3:$AA$228)),"",INDEX($AA$3:$AA$228,SMALL(IF($AA$3:$AA$228<>"",ROW($AA$3:$AA$228)-2),ROWS($AA$3:AA176)))) ->  | AW176: 246 | AX176: 2 | AY176: 2 | AZ176: =IF(Wycena!$C$15=78,Mapping!AX176,AY176) -> 2
Y177: RAL 7023 | Z177: 500 | AA177: RAL 7023 | AB177: =IF(ROWS($AA$3:AA177)>(ROWS($AA$3:$AA$228)-COUNTBLANK($AA$3:$AA$228)),"",INDEX($AA$3:$AA$228,SMALL(IF($AA$3:$AA$228<>"",ROW($AA$3:$AA$228)-2),ROWS($AA$3:AA177)))) ->  | AW177: 247 | AX177: 2 | AY177: 2 | AZ177: =IF(Wycena!$C$15=78,Mapping!AX177,AY177) -> 2
Y178: RAL 7024 | Z178: 500 | AA178: RAL 7024 | AB178: =IF(ROWS($AA$3:AA178)>(ROWS($AA$3:$AA$228)-COUNTBLANK($AA$3:$AA$228)),"",INDEX($AA$3:$AA$228,SMALL(IF($AA$3:$AA$228<>"",ROW($AA$3:$AA$228)-2),ROWS($AA$3:AA178)))) ->  | AW178: 248 | AX178: 2 | AY178: 2 | AZ178: =IF(Wycena!$C$15=78,Mapping!AX178,AY178) -> 2
Y179: RAL 7026 | Z179: 500 | AA179: RAL 7026 | AB179: =IF(ROWS($AA$3:AA179)>(ROWS($AA$3:$AA$228)-COUNTBLANK($AA$3:$AA$228)),"",INDEX($AA$3:$AA$228,SMALL(IF($AA$3:$AA$228<>"",ROW($AA$3:$AA$228)-2),ROWS($AA$3:AA179)))) ->  | AW179: 249 | AX179: 2 | AY179: 2 | AZ179: =IF(Wycena!$C$15=78,Mapping!AX179,AY179) -> 2
Y180: RAL 7030 | Z180: 500 | AA180: RAL 7030 | AB180: =IF(ROWS($AA$3:AA180)>(ROWS($AA$3:$AA$228)-COUNTBLANK($AA$3:$AA$228)),"",INDEX($AA$3:$AA$228,SMALL(IF($AA$3:$AA$228<>"",ROW($AA$3:$AA$228)-2),ROWS($AA$3:AA180)))) ->  | AW180: 250 | AX180: 2 | AY180: 2 | AZ180: =IF(Wycena!$C$15=78,Mapping!AX180,AY180) -> 2
Y181: RAL 7031 | Z181: 500 | AA181: RAL 7031 | AB181: =IF(ROWS($AA$3:AA181)>(ROWS($AA$3:$AA$228)-COUNTBLANK($AA$3:$AA$228)),"",INDEX($AA$3:$AA$228,SMALL(IF($AA$3:$AA$228<>"",ROW($AA$3:$AA$228)-2),ROWS($AA$3:AA181)))) ->  | AW181: 251 | AX181: 2 | AY181: 2 | AZ181: =IF(Wycena!$C$15=78,Mapping!AX181,AY181) -> 2
Y182: RAL 7032 | Z182: 500 | AA182: RAL 7032 | AB182: =IF(ROWS($AA$3:AA182)>(ROWS($AA$3:$AA$228)-COUNTBLANK($AA$3:$AA$228)),"",INDEX($AA$3:$AA$228,SMALL(IF($AA$3:$AA$228<>"",ROW($AA$3:$AA$228)-2),ROWS($AA$3:AA182)))) ->  | AW182: 252 | AX182: 2 | AY182: 2 | AZ182: =IF(Wycena!$C$15=78,Mapping!AX182,AY182) -> 2
Y183: RAL 7033 | Z183: 500 | AA183: RAL 7033 | AB183: =IF(ROWS($AA$3:AA183)>(ROWS($AA$3:$AA$228)-COUNTBLANK($AA$3:$AA$228)),"",INDEX($AA$3:$AA$228,SMALL(IF($AA$3:$AA$228<>"",ROW($AA$3:$AA$228)-2),ROWS($AA$3:AA183)))) ->  | AW183: 253 | AX183: 2 | AY183: 2 | AZ183: =IF(Wycena!$C$15=78,Mapping!AX183,AY183) -> 2
Y184: RAL 7034 | Z184: 500 | AA184: RAL 7034 | AB184: =IF(ROWS($AA$3:AA184)>(ROWS($AA$3:$AA$228)-COUNTBLANK($AA$3:$AA$228)),"",INDEX($AA$3:$AA$228,SMALL(IF($AA$3:$AA$228<>"",ROW($AA$3:$AA$228)-2),ROWS($AA$3:AA184)))) ->  | AW184: 254 | AX184: 2 | AY184: 2 | AZ184: =IF(Wycena!$C$15=78,Mapping!AX184,AY184) -> 2
Y185: RAL 7035 | Z185: 500 | AA185: RAL 7035 | AB185: =IF(ROWS($AA$3:AA185)>(ROWS($AA$3:$AA$228)-COUNTBLANK($AA$3:$AA$228)),"",INDEX($AA$3:$AA$228,SMALL(IF($AA$3:$AA$228<>"",ROW($AA$3:$AA$228)-2),ROWS($AA$3:AA185)))) ->  | AW185: 255 | AX185: 2 | AY185: 2 | AZ185: =IF(Wycena!$C$15=78,Mapping!AX185,AY185) -> 2
Y186: RAL 7036 | Z186: 500 | AA186: RAL 7036 | AB186: =IF(ROWS($AA$3:AA186)>(ROWS($AA$3:$AA$228)-COUNTBLANK($AA$3:$AA$228)),"",INDEX($AA$3:$AA$228,SMALL(IF($AA$3:$AA$228<>"",ROW($AA$3:$AA$228)-2),ROWS($AA$3:AA186)))) ->  | AW186: 256 | AX186: 2 | AY186: 2 | AZ186: =IF(Wycena!$C$15=78,Mapping!AX186,AY186) -> 2
Y187: RAL 7037 | Z187: 500 | AA187: RAL 7037 | AB187: =IF(ROWS($AA$3:AA187)>(ROWS($AA$3:$AA$228)-COUNTBLANK($AA$3:$AA$228)),"",INDEX($AA$3:$AA$228,SMALL(IF($AA$3:$AA$228<>"",ROW($AA$3:$AA$228)-2),ROWS($AA$3:AA187)))) ->  | AW187: 257 | AX187: 2 | AY187: 2 | AZ187: =IF(Wycena!$C$15=78,Mapping!AX187,AY187) -> 2
Y188: RAL 7038 | Z188: 500 | AA188: RAL 7038 | AB188: =IF(ROWS($AA$3:AA188)>(ROWS($AA$3:$AA$228)-COUNTBLANK($AA$3:$AA$228)),"",INDEX($AA$3:$AA$228,SMALL(IF($AA$3:$AA$228<>"",ROW($AA$3:$AA$228)-2),ROWS($AA$3:AA188)))) ->  | AW188: 258 | AX188: 2 | AY188: 2 | AZ188: =IF(Wycena!$C$15=78,Mapping!AX188,AY188) -> 2
Y189: RAL 7039 | Z189: 500 | AA189: RAL 7039 | AB189: =IF(ROWS($AA$3:AA189)>(ROWS($AA$3:$AA$228)-COUNTBLANK($AA$3:$AA$228)),"",INDEX($AA$3:$AA$228,SMALL(IF($AA$3:$AA$228<>"",ROW($AA$3:$AA$228)-2),ROWS($AA$3:AA189)))) ->  | AW189: 259 | AX189: 2 | AY189: 2 | AZ189: =IF(Wycena!$C$15=78,Mapping!AX189,AY189) -> 2
Y190: RAL 7042 | Z190: 500 | AA190: RAL 7042 | AB190: =IF(ROWS($AA$3:AA190)>(ROWS($AA$3:$AA$228)-COUNTBLANK($AA$3:$AA$228)),"",INDEX($AA$3:$AA$228,SMALL(IF($AA$3:$AA$228<>"",ROW($AA$3:$AA$228)-2),ROWS($AA$3:AA190)))) ->  | AW190: 260 | AX190: 2 | AY190: 2 | AZ190: =IF(Wycena!$C$15=78,Mapping!AX190,AY190) -> 2
Y191: RAL 7043 | Z191: 500 | AA191: RAL 7043 | AB191: =IF(ROWS($AA$3:AA191)>(ROWS($AA$3:$AA$228)-COUNTBLANK($AA$3:$AA$228)),"",INDEX($AA$3:$AA$228,SMALL(IF($AA$3:$AA$228<>"",ROW($AA$3:$AA$228)-2),ROWS($AA$3:AA191)))) ->  | AW191: 261 | AX191: 2 | AY191: 2 | AZ191: =IF(Wycena!$C$15=78,Mapping!AX191,AY191) -> 2
Y192: RAL 7044 | Z192: 500 | AA192: RAL 7044 | AB192: =IF(ROWS($AA$3:AA192)>(ROWS($AA$3:$AA$228)-COUNTBLANK($AA$3:$AA$228)),"",INDEX($AA$3:$AA$228,SMALL(IF($AA$3:$AA$228<>"",ROW($AA$3:$AA$228)-2),ROWS($AA$3:AA192)))) ->  | AW192: 262 | AX192: 2 | AY192: 2 | AZ192: =IF(Wycena!$C$15=78,Mapping!AX192,AY192) -> 2
Y193: RAL 7045 | Z193: 500 | AA193: RAL 7045 | AB193: =IF(ROWS($AA$3:AA193)>(ROWS($AA$3:$AA$228)-COUNTBLANK($AA$3:$AA$228)),"",INDEX($AA$3:$AA$228,SMALL(IF($AA$3:$AA$228<>"",ROW($AA$3:$AA$228)-2),ROWS($AA$3:AA193)))) ->  | AW193: 263 | AX193: 2 | AY193: 2 | AZ193: =IF(Wycena!$C$15=78,Mapping!AX193,AY193) -> 2
Y194: RAL 7046 | Z194: 500 | AA194: RAL 7046 | AB194: =IF(ROWS($AA$3:AA194)>(ROWS($AA$3:$AA$228)-COUNTBLANK($AA$3:$AA$228)),"",INDEX($AA$3:$AA$228,SMALL(IF($AA$3:$AA$228<>"",ROW($AA$3:$AA$228)-2),ROWS($AA$3:AA194)))) ->  | AW194: 264 | AX194: 2 | AY194: 2 | AZ194: =IF(Wycena!$C$15=78,Mapping!AX194,AY194) -> 2
Y195: RAL 7048 | Z195: 500 | AA195: RAL 7048 | AB195: =IF(ROWS($AA$3:AA195)>(ROWS($AA$3:$AA$228)-COUNTBLANK($AA$3:$AA$228)),"",INDEX($AA$3:$AA$228,SMALL(IF($AA$3:$AA$228<>"",ROW($AA$3:$AA$228)-2),ROWS($AA$3:AA195)))) ->  | AW195: 265 | AX195: 2 | AY195: 2 | AZ195: =IF(Wycena!$C$15=78,Mapping!AX195,AY195) -> 2
Y196: RAL 8000 | Z196: 500 | AA196: =Y196 -> RAL 8000 | AB196: =IF(ROWS($AA$3:AA196)>(ROWS($AA$3:$AA$228)-COUNTBLANK($AA$3:$AA$228)),"",INDEX($AA$3:$AA$228,SMALL(IF($AA$3:$AA$228<>"",ROW($AA$3:$AA$228)-2),ROWS($AA$3:AA196)))) ->  | AW196: 266 | AX196: 2 | AY196: 2 | AZ196: =IF(Wycena!$C$15=78,Mapping!AX196,AY196) -> 2
Y197: RAL 8001 | Z197: 500 | AA197: RAL 8001 | AB197: =IF(ROWS($AA$3:AA197)>(ROWS($AA$3:$AA$228)-COUNTBLANK($AA$3:$AA$228)),"",INDEX($AA$3:$AA$228,SMALL(IF($AA$3:$AA$228<>"",ROW($AA$3:$AA$228)-2),ROWS($AA$3:AA197)))) ->  | AW197: 267 | AX197: 2 | AY197: 2 | AZ197: =IF(Wycena!$C$15=78,Mapping!AX197,AY197) -> 2
Y198: RAL 8002 | Z198: 500 | AA198: RAL 8002 | AB198: =IF(ROWS($AA$3:AA198)>(ROWS($AA$3:$AA$228)-COUNTBLANK($AA$3:$AA$228)),"",INDEX($AA$3:$AA$228,SMALL(IF($AA$3:$AA$228<>"",ROW($AA$3:$AA$228)-2),ROWS($AA$3:AA198)))) ->  | AW198: 268 | AX198: 2 | AY198: 2 | AZ198: =IF(Wycena!$C$15=78,Mapping!AX198,AY198) -> 2
Y199: RAL 8003 | Z199: 500 | AA199: RAL 8003 | AB199: =IF(ROWS($AA$3:AA199)>(ROWS($AA$3:$AA$228)-COUNTBLANK($AA$3:$AA$228)),"",INDEX($AA$3:$AA$228,SMALL(IF($AA$3:$AA$228<>"",ROW($AA$3:$AA$228)-2),ROWS($AA$3:AA199)))) ->  | AW199: 269 | AX199: 2 | AY199: 2 | AZ199: =IF(Wycena!$C$15=78,Mapping!AX199,AY199) -> 2
Y200: RAL 8004 | Z200: 500 | AA200: RAL 8004 | AB200: =IF(ROWS($AA$3:AA200)>(ROWS($AA$3:$AA$228)-COUNTBLANK($AA$3:$AA$228)),"",INDEX($AA$3:$AA$228,SMALL(IF($AA$3:$AA$228<>"",ROW($AA$3:$AA$228)-2),ROWS($AA$3:AA200)))) ->  | AW200: 270 | AX200: 2 | AY200: 2 | AZ200: =IF(Wycena!$C$15=78,Mapping!AX200,AY200) -> 2
... 31 more rows
